Workbook

Sheet Instructions
A3: Instructions
A4: Step 1 | B4: To display individual budget pages, on the Main Budget worksheet click the GoTo button below the name of the budget you want to open.
A7: Step 2 | B7: Enter each segment of a project on a separate line according to the account description. When you enter an account number the account description will fill in automatically. It is not necessary to enter the items in any particular sequence, but if you start each line of a project with the same word they can be sorted accordingly (such as Conf. Travel, Conf. Food, Conf. Speaker, etc.)
B12: Current data on the form is for illustration only (current fiscal year line items). You can delete any data you don't need. For additional lines you may use open lines at the bottom or insert new lines into the form.
A15: Step 3 | B15: Enter a detailed description of each item (how many at how much each). Use as many lines as necessary to describe each item.
A18: Step 4 | B18: Enter the amount of income or expense for each line.
A20: Step 5 | B20: Enter the month when the item is most likely to occur. If it will occur somewhat evenly throughout the year leave the month space blank.
A23: Step 6 | B23: Assign Rank from 1 to 3 to each budget item using the following guidelines
B25: 1 | C25: This item is required by a governmental or other oversight agency.This item is necessary to maintain ministry at the current level.
B27: 2 | C27: This item will make a conservative advancement in ministry.
B29: 3 | C29: This item will make a somewhat aggressive advance in ministry. If donations or funding is available
A31: Click the GoTo Main BGT button below to continue
C39: InterAct Ministries Inc. Budget for 2022-2023

Sheet Main_BGT
I1: Program Ministries | O1: Program Ministries | X1: Management & General and Fund Raising
I2: Alaska - 200 | K2: Russia - 300 | R2: Other - 400-600 | X2: Management & General - 700-799 | AF2: Development
A3: InterAct Ministries Inc. | D3: Prior Year Total | F3: Current Year Total | I3: 2-780 | J3: 2-946 | K3: 3-790 | L3: 3-978 | M3: 3-601 | O3: 2-941 | P3: 1-900 | Q3: 1-968 | R3: 500 | S3: 400 & 600 | T3: 9-943 | U3: 9-954 | V3: 9-795 | W3: 9-930 | Y3: 7-700 | Z3: 7-710 | AA3: 7-720 | AB3: 7-750 | AC3: 7-755 | AD3: 7-758 | AE3: 7-760 | AF3: 8-730 | AG3: 5 | AH3: ='S5'!$C$1 -> 5
A4: 2022-2023 Draft Budget | D4: InterAct Inc. | E4: Operational Ministries | F4: InterAct Inc. | G4: Operational Ministries | I4: ='S1'!$B$1 -> AK Field Office | J4: ='S2'!$B$1 -> AK Field Ministries | K4: ='S6'!$B$1 -> RU Field Office | L4: ='S7'!$B$1 -> RU Field Ministries | M4: ='S8'!$B$1 -> RU EnGage! | O4: Counseling & Prof. Educator | P4: ='S3'!$B$1 -> AK LEaD | Q4: ='S4'!$B$1 -> AK EnGage! | R4: Home Ministry | S4: ='S13'!$B$1 -> Other Programs | T4: ='S12'!B1 -> Lazy Mtn. Events 040943 | U4: ='S15'!$B$1 -> Alaska Properties | V4: ='S16'!$B$1 -> Member Care | W4: ='S17'!$B$1 -> AK Hospitality | Y4: ='S18'!$B$1 -> Admin | Z4: ='S9'!$B$1 -> Communications | AA4: ='S19'!$B$1 -> Board | AB4: ='S20'!$B$1 -> Executive Director | AC4: ='S21'!$B$1 -> Information Systems | AD4: ='S22'!$B$1 -> HR | AE4: ='S25'!B1 -> Mobilization | AF4: ='S23'!$B$1 -> Development | AH4: ='S5'!$B$1 -> 0
D5: 2021-2022 | F5: 2022-2023
C6: Total Income | D6: =SUM(D14:D27) -> 2544463.4 | E6: =SUM(E14:E27) -> 560267.4 | F6: =SUM(I6:AF6) -> 3045283.5 | G6: =SUM(Y6:AF6) -> 521728 | H6: =C6 -> Total Income | I6: ='S1'!$E$2 -> 90000 | J6: ='S2'!$E$2 -> 670152 | K6: ='S6'!$E$2 -> 0 | L6: ='S7'!$E$2 -> 193795 | M6: ='S8'!$E$2 -> 31400 | N6: =C6 -> Total Income | O6: ='S11'!$E$2 -> 7000 | P6: ='S3'!$E$2 -> 69160 | Q6: ='S4'!$E$2 -> 13150 | R6: ='S10'!$E$2 -> 7200 | S6: ='S13'!$E$2 -> 939550 | T6: ='S12'!$E$2 -> 58500 | U6: ='S15'!$E$2 -> 334133.5 | V6: ='S16'!$E$2 -> 71535 | W6: ='S17'!$E$2 -> 37980 | X6: =C6 -> Total Income | Y6: ='S18'!$E$2 -> 367850 | Z6: ='S9'!$E$2 -> 5500 | AA6: ='S19'!$E$2 -> 0 | AB6: ='S20'!$E$2 -> 5000 | AC6: ='S21'!$E$2 -> 0 | AD6: ='S22'!$E$2 -> 32000 | AE6: ='S25'!$E$2 -> 5378 | AF6: ='S23'!$E$2 -> 106000 | AG6: ='S12'!$E$2 -> 58500 | AH6: ='S5'!$E$2 -> 0
C7: Total Expenditure | D7: =SUM(D29:D81) -> 2523584.715 | E7: =SUM(E29:E81) -> 634704.9655 | F7: =SUM(I7:AF7) -> 3025263.271 | G7: =SUM(Y7:AF7) -> 593917.2712 | H7: =C7 -> Total Expenditure | I7: ='S1'!$E$3 -> 123250 | J7: ='S2'!$E$3 -> 626723 | K7: ='S6'!$E$3 -> 9770 | L7: ='S7'!$E$3 -> 139550 | M7: ='S8'!$E$3 -> 19650 | N7: =C7 -> Total Expenditure | O7: ='S11'!$E$3 -> 12000 | P7: ='S3'!$E$3 -> 38174 | Q7: ='S4'!$E$3 -> 13720 | R7: ='S10'!$E$3 -> 7200 | S7: ='S13'!$E$3 -> 939550 | T7: ='S12'!$E$3 -> 52500 | U7: ='S15'!$E$3 -> 357265 | V7: ='S16'!$E$3 -> 71535 | W7: ='S17'!$E$3 -> 20459 | X7: =C7 -> Total Expenditure | Y7: ='S18'!$E$3 -> 176934.2513 | Z7: ='S9'!$E$3 -> 130246.02 | AA7: ='S19'!$E$3 -> 19700 | AB7: ='S20'!$E$3 -> 21840 | AC7: ='S21'!$E$3 -> 24862 | AD7: ='S22'!$E$3 -> 99610 | AE7: ='S25'!$E$3 -> 17135 | AF7: ='S23'!$E$3 -> 103590 | AG7: ='S12'!$E$3 -> 52500 | AH7: ='S5'!$E$3 -> 0
C9: Net Surplus (Deficit) | D9: =+D6-D7 -> 20878.6845 | E9: =+E6-E7 -> -74437.5655 | F9: =SUM(I9:AF9) -> 20020.22875 | G9: =SUM(Y9:AF9) -> -72189.27125 | H9: =C9 -> Net Surplus (Deficit) | I9: =I6-I7 -> -33250 | J9: =J6-J7 -> 43429 | K9: =K6-K7 -> -9770 | L9: 54245 | M9: 11750 | N9: =C9 -> Net Surplus (Deficit) | O9: =O6-O7 -> -5000 | P9: =P6-P7 -> 30986 | Q9: =Q6-Q7 -> -570 | R9: =R6-R7 -> 0 | S9: =S6-S7 -> 0 | T9: =T6-T7 -> 6000 | U9: =U6-U7 -> -23131.5 | V9: 0 | W9: 17521 | X9: =C9 -> Net Surplus (Deficit) | Y9: 190915.7487 | Z9: =Z6-Z7 -> -124746.02 | AA9: =AA6-AA7 -> -19700 | AB9: =AB6-AB7 -> -16840 | AC9: -24862 | AD9: =AD6-AD7 -> -67610 | AE9: =AE6-AE7 -> -11757 | AF9: =AF6-AF7 -> 2410 | AG9: =AG6-AG7 -> 6000 | AH9: =AH6-AH7 -> 0
F10: =SUM(I10:AF10) -> 0 | G10: 0
A11: 6900 | C11: <--Highest or last Income | F11: =SUM(I11:AF11) -> 0 | G11: 0 | H11: <--Highest or last Income | N11: <--Highest or last Income | X11: <--Highest or last Income
C12: Account No | F12: =SUM(I12:AF12) -> 0 | G12: 0 | H12: Account No | N12: Account No | X12: Account No
G13: 0
B14: 3100 | C14: Beginning Fund Balances | D14: 271700 | E14: 74000 | F14: =SUM(I14:AF14) -> 301827 | G14: 70000 | H14: =C14 -> Beginning Fund Balances | I14: =SUM(IF(S1AccNO=B14,IF(S1FieldRank<=S1Choice,S1Amount,0),0)) -> 0 | J14: =SUM(IF(S_2AccNO=$B14,IF(S_2FieldRank<=S_2Choice,S_2Amount,0),0)) -> 46929 | K14: =SUM(IF(S_6AccNO=$B14,IF(S_6FieldRank<=s_6Choice,S_6Amount,0),0)) -> 0 | L14: =SUM(IF(S_7AccNO=$B14,IF(S_7FieldRank<=S_7Choice,S_7Amount,0),0)) -> 62548 | M14: =SUM(IF(S_8AccNO=$B14,IF(S_8FieldRank<=S_8Choice,S_8Amount,0),0)) -> 8000 | N14: =C14 -> Beginning Fund Balances | O14: =SUM(IF(S_11AccNO=$B14,IF(S_11FieldRank<=S_11Choice,S_11Amount,0),0)) -> 7000 | P14: =SUM(IF(S_3AccNO=$B14,IF(S_3FieldRank<=S_3Choice,S_3Amount,0),0)) -> 29600 | Q14: =SUM(IF(S_4AccNO=$B14,IF(S_4FieldRank<=S_4Choice,S_4Amount,0),0)) -> 7750 | R14: =SUM(IF(S_10AccNO=$B14,IF(S_10FieldRank<=S_10Choice,S_10Amount,0),0)) -> 0 | S14: =SUM(IF(S_13AccNO=$B14,IF(S_13FieldRank<=S_13Choice,S_13Amount,0),0)) -> 0 | T14: =SUM(IF(S_12AccNO=$B14,IF(S_12FieldRank<=S_12Choice,S_12Amount,0),0)) -> 0 | U14: =SUM(IF(S_15AccNO=$B14,IF(S_15FieldRank<=S_15Choice,S_15Amount,0),0)) -> 70000 | V14: =SUM(IF(S_16AccNO=$B14,IF(S_16FieldRank<=S_16Choice,S_16Amount,0),0)) -> 0 | W14: =SUM(IF(S_17AccNO=$B14,IF(S_17FieldRank<=S_17Choice,S_17Amount,0),0)) -> 0 | X14: =C14 -> Beginning Fund Balances | Y14: =SUM(IF(S_18AccNO=$B14,IF(S_18FieldRank<=S_18Choice,S_18Amount,0),0)) -> 70000 | Z14: =SUM(IF(S_9AccNO=$B14,IF(S_9FieldRank<=S_9Choice,S_9Amount,0),0)) -> 0 | AA14: =SUM(IF(S_19AccNO=$B14,IF(S_19FieldRank<=S_19Choice,S_19Amount,0),0)) -> 0 | AB14: =SUM(IF(S_20AccNo=$B14,IF(S_20FieldRank<=S_20Choice,S_20Amount,0),0)) -> 0 | AC14: =SUM(IF(S_21AccNo=$B14,IF(S_21FieldRank<=S_21Choice,S_21Amount,0),0)) -> 0 | AD14: =SUM(IF(S_22AccNo=$B14,IF(S_22FieldRank<=S_22Choice,S_22Amount,0),0)) -> 0 | AE14: =SUM(IF(S_23AccNo=$B14,IF(S_23FieldRank<=S_23Choice,S_23Amount,0),0)) -> 0 | AF14: =SUM(IF(S_23AccNo=$B14,IF(S_23FieldRank<=S_23Choice,S_23Amount,0),0)) -> 0 | AG14: =SUM(IF(S_12AccNO=$B14,IF(S_12FieldRank<=S_12Choice,S_12Amount,0),0)) -> 0 | AH14: =SUM(IF(S_5AccNO=$B14,IF(S_5FieldRank<=S_5Choice,S_5Amount,0),0)) -> 0
B15: 4100 | C15: Operations Assessment | D15: 11842.4 | E15: 94226.4 | F15: 0 | G15: =SUM(Y15:AF15) -> 119586.5 | H15: Operations Assessment | I15: =SUM(IF(S1AccNO=B15,IF(S1FieldRank<=S1Choice,S1Amount,0),0)) -> -10000 | J15: =SUM(IF(S_2AccNO=$B15,IF(S_2FieldRank<=S_2Choice,S_2Amount,0),0)) -> -63417 | K15: =SUM(IF(S_6AccNO=$B15,IF(S_6FieldRank<=s_6Choice,S_6Amount,0),0)) -> 0 | L15: =SUM(IF(S_7AccNO=$B15,IF(S_7FieldRank<=S_7Choice,S_7Amount,0),0)) -> -14583 | M15: =-(M19*0.1) -> 0 | N15: Operations Assessment | O15: =SUM(IF(S_11AccNO=$B15,IF(S_11FieldRank<=S_11Choice,S_11Amount,0),0)) -> 0 | P15: =-(P19*0.1) -> -240 | Q15: =SUM(IF(S_4AccNO=$B15,IF(S_4FieldRank<=S_4Choice,S_4Amount,0),0)) -> -600 | R15: =SUM(IF(S_10AccNO=$B15,IF(S_10FieldRank<=S_10Choice,S_10Amount,0),0)) -> -800 | S15: =SUM(IF(S_13AccNO=$B15,IF(S_13FieldRank<=S_13Choice,S_13Amount,0),0)) -> -9450 | T15: =-(T19*0.1) -> -300 | U15: =-(U19*0.1) -> -14931.5 | V15: =SUM(IF(S_16AccNO=$B15,IF(S_16FieldRank<=S_16Choice,S_16Amount,0),0)) -> -3765 | W15: =-(W19*0.1) -> -1500 | X15: Operations Assessment | Y15: =-AI15 -> 119586.5 | Z15: =SUM(IF(S_9AccNO=$B15,IF(S_9FieldRank<=S_9Choice,S_9Amount,0),0)) -> 0 | AA15: =SUM(IF(S_19AccNO=$B15,IF(S_19FieldRank<=S_19Choice,S_19Amount,0),0)) -> 0 | AB15: =SUM(IF(S_20AccNo=$B15,IF(S_20FieldRank<=S_20Choice,S_20Amount,0),0)) -> 0 | AC15: =SUM(IF(S_21AccNo=$B15,IF(S_21FieldRank<=S_21Choice,S_21Amount,0),0)) -> 0 | AD15: =SUM(IF(S_22AccNo=$B15,IF(S_22FieldRank<=S_22Choice,S_22Amount,0),0)) -> 0 | AF15: =SUM(IF(S_23AccNo=$B15,IF(S_23FieldRank<=S_23Choice,S_23Amount,0),0)) -> 0 | AG15: 0 | AH15: =SUM(IF(S_5AccNO=$B15,IF(S_5FieldRank<=S_5Choice,S_5Amount,0),0)) -> 0 | AI15: =SUM(I15:W15) -> -119586.5
B16: 4400 | C16: Inter-fund Transfers | D16: 0 | E16: 0 | F16: 0 | G16: 0 | H16: Inter-fund Transfers | I16: =SUM(IF(S1AccNO=B16,IF(S1FieldRank<=S1Choice,S1Amount,0),0)) -> 0 | J16: =SUM(IF(S_2AccNO=$B16,IF(S_2FieldRank<=S_2Choice,S_2Amount,0),0)) -> 0 | K16: =SUM(IF(S_6AccNO=$B16,IF(S_6FieldRank<=s_6Choice,S_6Amount,0),0)) -> 0 | L16: =SUM(IF(S_7AccNO=$B16,IF(S_7FieldRank<=S_7Choice,S_7Amount,0),0)) -> 0 | M16: =SUM(IF(S_8AccNO=$B16,IF(S_8FieldRank<=S_8Choice,S_8Amount,0),0)) -> 0 | N16: Inter-fund Transfers | O16: =SUM(IF(S_11AccNO=$B16,IF(S_11FieldRank<=S_11Choice,S_11Amount,0),0)) -> 0 | P16: =SUM(IF(S_3AccNO=$B16,IF(S_3FieldRank<=S_3Choice,S_3Amount,0),0)) -> 0 | Q16: =SUM(IF(S_4AccNO=$B16,IF(S_4FieldRank<=S_4Choice,S_4Amount,0),0)) -> 0 | R16: =SUM(IF(S_10AccNO=$B16,IF(S_10FieldRank<=S_10Choice,S_10Amount,0),0)) -> 0 | S16: =SUM(IF(S_13AccNO=$B16,IF(S_13FieldRank<=S_13Choice,S_13Amount,0),0)) -> 0 | T16: =SUM(IF(S_12AccNO=$B16,IF(S_12FieldRank<=S_12Choice,S_12Amount,0),0)) -> 0 | U16: =SUM(IF(S_15AccNO=$B16,IF(S_15FieldRank<=S_15Choice,S_15Amount,0),0)) -> 0 | V16: =SUM(IF(S_16AccNO=$B16,IF(S_16FieldRank<=S_16Choice,S_16Amount,0),0)) -> 0 | W16: =SUM(IF(S_17AccNO=$B16,IF(S_17FieldRank<=S_17Choice,S_17Amount,0),0)) -> 0 | X16: Inter-fund Transfers | Y16: =SUM(IF(S_18AccNO=$B16,IF(S_18FieldRank<=S_18Choice,S_18Amount,0),0)) -> 0 | Z16: =SUM(IF(S_9AccNO=$B16,IF(S_9FieldRank<=S_9Choice,S_9Amount,0),0)) -> 0 | AA16: =SUM(IF(S_19AccNO=$B16,IF(S_19FieldRank<=S_19Choice,S_19Amount,0),0)) -> 0 | AB16: =SUM(IF(S_20AccNo=$B16,IF(S_20FieldRank<=S_20Choice,S_20Amount,0),0)) -> 0 | AC16: =SUM(IF(S_21AccNo=$B16,IF(S_21FieldRank<=S_21Choice,S_21Amount,0),0)) -> 0 | AD16: =SUM(IF(S_22AccNo=$B16,IF(S_22FieldRank<=S_22Choice,S_22Amount,0),0)) -> 0 | AF16: =SUM(IF(S_23AccNo=$B16,IF(S_23FieldRank<=S_23Choice,S_23Amount,0),0)) -> 0 | AG16: 0 | AH16: =SUM(IF(S_5AccNO=$B16,IF(S_5FieldRank<=S_5Choice,S_5Amount,0),0)) -> 0
B17: 5001 | C17: Cash Gifts - Staff Support | D17: 1628512 | E17: 41172 | F17: 2001940 | G17: 41000 | H17: Cash Gifts - Staff Support | I17: =SUM(IF(S1AccNO=B17,IF(S1FieldRank<=S1Choice,S1Amount,0),0)) -> 100000 | J17: =SUM(IF(S_2AccNO=$B17,IF(S_2FieldRank<=S_2Choice,S_2Amount,0),0)) -> 686640 | K17: =SUM(IF(S_6AccNO=$B17,IF(S_6FieldRank<=s_6Choice,S_6Amount,0),0)) -> 0 | L17: =SUM(IF(S_7AccNO=$B17,IF(S_7FieldRank<=S_7Choice,S_7Amount,0),0)) -> 142000 | M17: =SUM(IF(S_8AccNO=$B17,IF(S_8FieldRank<=S_8Choice,S_8Amount,0),0)) -> 0 | N17: Cash Gifts - Staff Support | O17: =SUM(IF(S_11AccNO=$B17,IF(S_11FieldRank<=S_11Choice,S_11Amount,0),0)) -> 0 | P17: =SUM(IF(S_3AccNO=$B17,IF(S_3FieldRank<=S_3Choice,S_3Amount,0),0)) -> 0 | Q17: =SUM(IF(S_4AccNO=$B17,IF(S_4FieldRank<=S_4Choice,S_4Amount,0),0)) -> 0 | R17: =SUM(IF(S_10AccNO=$B17,IF(S_10FieldRank<=S_10Choice,S_10Amount,0),0)) -> 8000 | S17: =SUM(IF(S_13AccNO=$B17,IF(S_13FieldRank<=S_13Choice,S_13Amount,0),0)) -> 949000 | T17: =SUM(IF(S_12AccNO=$B17,IF(S_12FieldRank<=S_12Choice,S_12Amount,0),0)) -> 0 | U17: =SUM(IF(S_15AccNO=$B17,IF(S_15FieldRank<=S_15Choice,S_15Amount,0),0)) -> 0 | V17: =SUM(IF(S_16AccNO=$B17,IF(S_16FieldRank<=S_16Choice,S_16Amount,0),0)) -> 75300 | W17: =SUM(IF(S_17AccNO=$B17,IF(S_17FieldRank<=S_17Choice,S_17Amount,0),0)) -> 0 | X17: Cash Gifts - Staff Support | Y17: =SUM(IF(S_18AccNO=$B17,IF(S_18FieldRank<=S_18Choice,S_18Amount,0),0)) -> 9000 | Z17: =SUM(IF(S_9AccNO=$B17,IF(S_9FieldRank<=S_9Choice,S_9Amount,0),0)) -> 0 | AA17: =SUM(IF(S_19AccNO=$B17,IF(S_19FieldRank<=S_19Choice,S_19Amount,0),0)) -> 0 | AB17: =SUM(IF(S_20AccNo=$B17,IF(S_20FieldRank<=S_20Choice,S_20Amount,0),0)) -> 0 | AC17: =SUM(IF(S_21AccNo=$B17,IF(S_21FieldRank<=S_21Choice,S_21Amount,0),0)) -> 0 | AD17: =SUM(IF(S_22AccNo=$B17,IF(S_22FieldRank<=S_22Choice,S_22Amount,0),0)) -> 32000 | AE17: =GETPIVOTDATA("Amount",'S25'!$J$5,"Acc_NO",7001) -> 0 | AF17: =SUM(IF(S_23AccNo=$B17,IF(S_23FieldRank<=S_23Choice,S_23Amount,0),0)) -> 0 | AG17: 0 | AH17: =SUM(IF(S_5AccNO=$B17,IF(S_5FieldRank<=S_5Choice,S_5Amount,0),0)) -> 0
B18: 5002 | C18: Gifts-in-kind - Staff support | D18: 0 | E18: 0 | F18: 0 | G18: 0 | H18: Gifts-in-kind - Staff support | I18: =SUM(IF(S1AccNO=B18,IF(S1FieldRank<=S1Choice,S1Amount,0),0)) -> 0 | J18: =SUM(IF(S_2AccNO=$B18,IF(S_2FieldRank<=S_2Choice,S_2Amount,0),0)) -> 0 | K18: =SUM(IF(S_6AccNO=$B18,IF(S_6FieldRank<=s_6Choice,S_6Amount,0),0)) -> 0 | L18: =SUM(IF(S_7AccNO=$B18,IF(S_7FieldRank<=S_7Choice,S_7Amount,0),0)) -> 0 | M18: =SUM(IF(S_8AccNO=$B18,IF(S_8FieldRank<=S_8Choice,S_8Amount,0),0)) -> 0 | N18: Gifts-in-kind - Staff support | O18: =SUM(IF(S_11AccNO=$B18,IF(S_11FieldRank<=S_11Choice,S_11Amount,0),0)) -> 0 | P18: =SUM(IF(S_3AccNO=$B18,IF(S_3FieldRank<=S_3Choice,S_3Amount,0),0)) -> 0 | Q18: =SUM(IF(S_4AccNO=$B18,IF(S_4FieldRank<=S_4Choice,S_4Amount,0),0)) -> 0 | R18: =SUM(IF(S_10AccNO=$B18,IF(S_10FieldRank<=S_10Choice,S_10Amount,0),0)) -> 0 | S18: =SUM(IF(S_13AccNO=$B18,IF(S_13FieldRank<=S_13Choice,S_13Amount,0),0)) -> 0 | T18: =SUM(IF(S_12AccNO=$B18,IF(S_12FieldRank<=S_12Choice,S_12Amount,0),0)) -> 0 | U18: =SUM(IF(S_15AccNO=$B18,IF(S_15FieldRank<=S_15Choice,S_15Amount,0),0)) -> 0 | V18: =SUM(IF(S_16AccNO=$B18,IF(S_16FieldRank<=S_16Choice,S_16Amount,0),0)) -> 0 | W18: =SUM(IF(S_17AccNO=$B18,IF(S_17FieldRank<=S_17Choice,S_17Amount,0),0)) -> 0 | X18: Gifts-in-kind - Staff support | Y18: =SUM(IF(S_18AccNO=$B18,IF(S_18FieldRank<=S_18Choice,S_18Amount,0),0)) -> 0 | Z18: =SUM(IF(S_9AccNO=$B18,IF(S_9FieldRank<=S_9Choice,S_9Amount,0),0)) -> 0 | AA18: =SUM(IF(S_19AccNO=$B18,IF(S_19FieldRank<=S_19Choice,S_19Amount,0),0)) -> 0 | AB18: =SUM(IF(S_20AccNo=$B18,IF(S_20FieldRank<=S_20Choice,S_20Amount,0),0)) -> 0 | AC18: =SUM(IF(S_21AccNo=$B18,IF(S_21FieldRank<=S_21Choice,S_21Amount,0),0)) -> 0 | AD18: =SUM(IF(S_22AccNo=$B18,IF(S_22FieldRank<=S_22Choice,S_22Amount,0),0)) -> 0 | AF18: =SUM(IF(S_23AccNo=$B18,IF(S_23FieldRank<=S_23Choice,S_23Amount,0),0)) -> 0 | AG18: 0 | AH18: =SUM(IF(S_5AccNO=$B18,IF(S_5FieldRank<=S_5Choice,S_5Amount,0),0)) -> 0
B19: 5004 | C19: Cash Gifts - Programs | D19: 318619 | E19: 242369 | F19: 340923 | G19: 167378 | H19: Cash Gifts - Programs | I19: =SUM(IF(S1AccNO=B19,IF(S1FieldRank<=S1Choice,S1Amount,0),0)) -> 0 | J19: =SUM(IF(S_2AccNO=$B19,IF(S_2FieldRank<=S_2Choice,S_2Amount,0),0)) -> 0 | K19: =SUM(IF(S_6AccNO=$B19,IF(S_6FieldRank<=s_6Choice,S_6Amount,0),0)) -> 0 | L19: =SUM(IF(S_7AccNO=$B19,IF(S_7FieldRank<=S_7Choice,S_7Amount,0),0)) -> 3830 | M19: =SUM(IF(S_8AccNO=$B19,IF(S_8FieldRank<=S_8Choice,S_8Amount,0),0)) -> 0 | N19: Cash Gifts - Programs | O19: =SUM(IF(S_11AccNO=$B19,IF(S_11FieldRank<=S_11Choice,S_11Amount,0),0)) -> 0 | P19: =SUM(IF(S_3AccNO=$B19,IF(S_3FieldRank<=S_3Choice,S_3Amount,0),0)) -> 2400 | Q19: =SUM(IF(S_4AccNO=$B19,IF(S_4FieldRank<=S_4Choice,S_4Amount,0),0)) -> 0 | S19: =SUM(IF(S_13AccNO=$B19,IF(S_13FieldRank<=S_13Choice,S_13Amount,0),0)) -> 0 | T19: =SUM(IF(S_12AccNO=$B19,IF(S_12FieldRank<=S_12Choice,S_12Amount,0),0)) -> 3000 | U19: =SUM(IF(S_15AccNO=$B19,IF(S_15FieldRank<=S_15Choice,S_15Amount,0),0)) -> 149315 | V19: =SUM(IF(S_16AccNO=$B19,IF(S_16FieldRank<=S_16Choice,S_16Amount,0),0)) -> 0 | W19: =SUM(IF(S_17AccNO=$B19,IF(S_17FieldRank<=S_17Choice,S_17Amount,0),0)) -> 15000 | X19: Cash Gifts - Programs | Y19: =SUM(IF(S_18AccNO=$B19,IF(S_18FieldRank<=S_18Choice,S_18Amount,0),0)) -> 46000 | Z19: =SUM(IF(S_9AccNO=$B19,IF(S_9FieldRank<=S_9Choice,S_9Amount,0),0)) -> 5000 | AA19: =SUM(IF(S_19AccNO=$B19,IF(S_19FieldRank<=S_19Choice,S_19Amount,0),0)) -> 0 | AB19: =SUM(IF(S_20AccNo=$B19,IF(S_20FieldRank<=S_20Choice,S_20Amount,0),0)) -> 5000 | AC19: =SUM(IF(S_21AccNo=$B19,IF(S_21FieldRank<=S_21Choice,S_21Amount,0),0)) -> 0 | AD19: =SUM(IF(S_22AccNo=$B19,IF(S_22FieldRank<=S_22Choice,S_22Amount,0),0)) -> 0 | AE19: ='S25'!E7 -> 5378 | AF19: =SUM(IF(S_23AccNo=$B19,IF(S_23FieldRank<=S_23Choice,S_23Amount,0),0)) -> 106000 | AG19: 0 | AH19: =SUM(IF(S_5AccNO=$B19,IF(S_5FieldRank<=S_5Choice,S_5Amount,0),0)) -> 0
B20: 5005 | C20: Gifts-in-Kind - Programs | D20: 0 | E20: 0 | F20: 4500 | G20: 4500 | H20: Gifts-in-Kind - Programs | I20: =SUM(IF(S1AccNO=B20,IF(S1FieldRank<=S1Choice,S1Amount,0),0)) -> 0 | J20: =SUM(IF(S_2AccNO=$B20,IF(S_2FieldRank<=S_2Choice,S_2Amount,0),0)) -> 0 | K20: =SUM(IF(S_6AccNO=$B20,IF(S_6FieldRank<=s_6Choice,S_6Amount,0),0)) -> 0 | L20: =SUM(IF(S_7AccNO=$B20,IF(S_7FieldRank<=S_7Choice,S_7Amount,0),0)) -> 0 | M20: =SUM(IF(S_8AccNO=$B20,IF(S_8FieldRank<=S_8Choice,S_8Amount,0),0)) -> 0 | N20: Gifts-in-Kind - Programs | O20: =SUM(IF(S_11AccNO=$B20,IF(S_11FieldRank<=S_11Choice,S_11Amount,0),0)) -> 0 | P20: =SUM(IF(S_3AccNO=$B20,IF(S_3FieldRank<=S_3Choice,S_3Amount,0),0)) -> 0 | Q20: =SUM(IF(S_4AccNO=$B20,IF(S_4FieldRank<=S_4Choice,S_4Amount,0),0)) -> 0 | S20: =SUM(IF(S_13AccNO=$B20,IF(S_13FieldRank<=S_13Choice,S_13Amount,0),0)) -> 0 | T20: =SUM(IF(S_12AccNO=$B20,IF(S_12FieldRank<=S_12Choice,S_12Amount,0),0)) -> 0 | U20: =SUM(IF(S_15AccNO=$B20,IF(S_15FieldRank<=S_15Choice,S_15Amount,0),0)) -> 0 | V20: =SUM(IF(S_16AccNO=$B20,IF(S_16FieldRank<=S_16Choice,S_16Amount,0),0)) -> 0 | W20: =SUM(IF(S_17AccNO=$B20,IF(S_17FieldRank<=S_17Choice,S_17Amount,0),0)) -> 0 | X20: Gifts-in-Kind - Programs | Y20: =SUM(IF(S_18AccNO=$B20,IF(S_18FieldRank<=S_18Choice,S_18Amount,0),0)) -> 4000 | Z20: =SUM(IF(S_9AccNO=$B20,IF(S_9FieldRank<=S_9Choice,S_9Amount,0),0)) -> 500 | AA20: =SUM(IF(S_19AccNO=$B20,IF(S_19FieldRank<=S_19Choice,S_19Amount,0),0)) -> 0 | AB20: =SUM(IF(S_20AccNo=$B20,IF(S_20FieldRank<=S_20Choice,S_20Amount,0),0)) -> 0 | AC20: =SUM(IF(S_21AccNo=$B20,IF(S_21FieldRank<=S_21Choice,S_21Amount,0),0)) -> 0 | AD20: =SUM(IF(S_22AccNo=$B20,IF(S_22FieldRank<=S_22Choice,S_22Amount,0),0)) -> 0 | AF20: =SUM(IF(S_23AccNo=$B20,IF(S_23FieldRank<=S_23Choice,S_23Amount,0),0)) -> 0 | AG20: 0 | AH20: =SUM(IF(S_5AccNO=$B20,IF(S_5FieldRank<=S_5Choice,S_5Amount,0),0)) -> 0
B21: 6200 | C21: Program Fees | D21: 78540 | E21: 2000 | F21: 143330 | G21: 0 | H21: Program Fees | I21: =SUM(IF(S1AccNO=B21,IF(S1FieldRank<=S1Choice,S1Amount,0),0)) -> 0 | J21: =SUM(IF(S_2AccNO=$B21,IF(S_2FieldRank<=S_2Choice,S_2Amount,0),0)) -> 0 | K21: =SUM(IF(S_6AccNO=$B21,IF(S_6FieldRank<=s_6Choice,S_6Amount,0),0)) -> 0 | L21: =SUM(IF(S_7AccNO=$B21,IF(S_7FieldRank<=S_7Choice,S_7Amount,0),0)) -> 0 | M21: =SUM(IF(S_8AccNO=$B21,IF(S_8FieldRank<=S_8Choice,S_8Amount,0),0)) -> 21450 | N21: Program Fees | O21: =SUM(IF(S_11AccNO=$B21,IF(S_11FieldRank<=S_11Choice,S_11Amount,0),0)) -> 0 | P21: =SUM(IF(S_3AccNO=$B21,IF(S_3FieldRank<=S_3Choice,S_3Amount,0),0)) -> 37400 | Q21: =SUM(IF(S_4AccNO=$B21,IF(S_4FieldRank<=S_4Choice,S_4Amount,0),0)) -> 6000 | R21: =SUM(IF(S_10AccNO=$B21,IF(S_10FieldRank<=S_10Choice,S_10Amount,0),0)) -> 0 | S21: =SUM(IF(S_13AccNO=$B21,IF(S_13FieldRank<=S_13Choice,S_13Amount,0),0)) -> 0 | T21: =SUM(IF(S_12AccNO=$B21,IF(S_12FieldRank<=S_12Choice,S_12Amount,0),0)) -> 55500 | U21: =SUM(IF(S_15AccNO=$B21,IF(S_15FieldRank<=S_15Choice,S_15Amount,0),0)) -> 0 | V21: =SUM(IF(S_16AccNO=$B21,IF(S_16FieldRank<=S_16Choice,S_16Amount,0),0)) -> 0 | W21: =SUM(IF(S_17AccNO=$B21,IF(S_17FieldRank<=S_17Choice,S_17Amount,0),0)) -> 22980 | X21: Program Fees | Y21: =SUM(IF(S_18AccNO=$B21,IF(S_18FieldRank<=S_18Choice,S_18Amount,0),0)) -> 0 | Z21: =SUM(IF(S_9AccNO=$B21,IF(S_9FieldRank<=S_9Choice,S_9Amount,0),0)) -> 0 | AA21: =SUM(IF(S_19AccNO=$B21,IF(S_19FieldRank<=S_19Choice,S_19Amount,0),0)) -> 0 | AB21: =SUM(IF(S_20AccNo=$B21,IF(S_20FieldRank<=S_20Choice,S_20Amount,0),0)) -> 0 | AC21: =SUM(IF(S_21AccNo=$B21,IF(S_21FieldRank<=S_21Choice,S_21Amount,0),0)) -> 0 | AD21: =SUM(IF(S_22AccNo=$B21,IF(S_22FieldRank<=S_22Choice,S_22Amount,0),0)) -> 0 | AF21: =SUM(IF(S_23AccNo=$B21,IF(S_23FieldRank<=S_23Choice,S_23Amount,0),0)) -> 0 | AG21: 0 | AH21: =SUM(IF(S_5AccNO=$B21,IF(S_5FieldRank<=S_5Choice,S_5Amount,0),0)) -> 0
B22: 6210 | C22: Rental Income | D22: 134750 | E22: 6000 | F22: 140750 | G22: 11000 | H22: Rental Income | I22: =SUM(IF(S1AccNO=B22,IF(S1FieldRank<=S1Choice,S1Amount,0),0)) -> 0 | J22: =SUM(IF(S_2AccNO=$B22,IF(S_2FieldRank<=S_2Choice,S_2Amount,0),0)) -> 0 | K22: =SUM(IF(S_6AccNO=$B22,IF(S_6FieldRank<=s_6Choice,S_6Amount,0),0)) -> 0 | L22: =SUM(IF(S_7AccNO=$B22,IF(S_7FieldRank<=S_7Choice,S_7Amount,0),0)) -> 0 | M22: =SUM(IF(S_8AccNO=$B22,IF(S_8FieldRank<=S_8Choice,S_8Amount,0),0)) -> 0 | N22: Rental Income | O22: =SUM(IF(S_11AccNO=$B22,IF(S_11FieldRank<=S_11Choice,S_11Amount,0),0)) -> 0 | P22: =SUM(IF(S_3AccNO=$B22,IF(S_3FieldRank<=S_3Choice,S_3Amount,0),0)) -> 0 | Q22: =SUM(IF(S_4AccNO=$B22,IF(S_4FieldRank<=S_4Choice,S_4Amount,0),0)) -> 0 | R22: =SUM(IF(S_10AccNO=$B22,IF(S_10FieldRank<=S_10Choice,S_10Amount,0),0)) -> 0 | S22: =SUM(IF(S_13AccNO=$B22,IF(S_13FieldRank<=S_13Choice,S_13Amount,0),0)) -> 0 | T22: =SUM(IF(S_12AccNO=$B22,IF(S_12FieldRank<=S_12Choice,S_12Amount,0),0)) -> 0 | U22: =SUM(IF(S_15AccNO=$B22,IF(S_15FieldRank<=S_15Choice,S_15Amount,0),0)) -> 129750 | V22: =SUM(IF(S_16AccNO=$B22,IF(S_16FieldRank<=S_16Choice,S_16Amount,0),0)) -> 0 | W22: =SUM(IF(S_17AccNO=$B22,IF(S_17FieldRank<=S_17Choice,S_17Amount,0),0)) -> 0 | X22: Rental Income | Y22: =SUM(IF(S_18AccNO=$B22,IF(S_18FieldRank<=S_18Choice,S_18Amount,0),0)) -> 11000 | Z22: =SUM(IF(S_9AccNO=$B22,IF(S_9FieldRank<=S_9Choice,S_9Amount,0),0)) -> 0 | AA22: =SUM(IF(S_19AccNO=$B22,IF(S_19FieldRank<=S_19Choice,S_19Amount,0),0)) -> 0 | AB22: =SUM(IF(S_20AccNo=$B22,IF(S_20FieldRank<=S_20Choice,S_20Amount,0),0)) -> 0 | AC22: =SUM(IF(S_21AccNo=$B22,IF(S_21FieldRank<=S_21Choice,S_21Amount,0),0)) -> 0 | AD22: =SUM(IF(S_22AccNo=$B22,IF(S_22FieldRank<=S_22Choice,S_22Amount,0),0)) -> 0 | AF22: =SUM(IF(S_23AccNo=$B22,IF(S_23FieldRank<=S_23Choice,S_23Amount,0),0)) -> 0 | AG22: 0 | AH22: =SUM(IF(S_5AccNO=$B22,IF(S_5FieldRank<=S_5Choice,S_5Amount,0),0)) -> 0
B23: 6400 | C23: Sales | D23: 500 | E23: 500 | F23: 500 | G23: 500 | H23: Sales | I23: =SUM(IF(S1AccNO=B23,IF(S1FieldRank<=S1Choice,S1Amount,0),0)) -> 0 | J23: =SUM(IF(S_2AccNO=$B23,IF(S_2FieldRank<=S_2Choice,S_2Amount,0),0)) -> 0 | K23: =SUM(IF(S_6AccNO=$B23,IF(S_6FieldRank<=s_6Choice,S_6Amount,0),0)) -> 0 | L23: =SUM(IF(S_7AccNO=$B23,IF(S_7FieldRank<=S_7Choice,S_7Amount,0),0)) -> 0 | M23: =SUM(IF(S_8AccNO=$B23,IF(S_8FieldRank<=S_8Choice,S_8Amount,0),0)) -> 0 | N23: Sales | O23: =SUM(IF(S_11AccNO=$B23,IF(S_11FieldRank<=S_11Choice,S_11Amount,0),0)) -> 0 | P23: =SUM(IF(S_3AccNO=$B23,IF(S_3FieldRank<=S_3Choice,S_3Amount,0),0)) -> 0 | Q23: =SUM(IF(S_4AccNO=$B23,IF(S_4FieldRank<=S_4Choice,S_4Amount,0),0)) -> 0 | R23: =SUM(IF(S_10AccNO=$B23,IF(S_10FieldRank<=S_10Choice,S_10Amount,0),0)) -> 0 | S23: =SUM(IF(S_13AccNO=$B23,IF(S_13FieldRank<=S_13Choice,S_13Amount,0),0)) -> 0 | T23: =SUM(IF(S_12AccNO=$B23,IF(S_12FieldRank<=S_12Choice,S_12Amount,0),0)) -> 0 | U23: =SUM(IF(S_15AccNO=$B23,IF(S_15FieldRank<=S_15Choice,S_15Amount,0),0)) -> 0 | V23: =SUM(IF(S_16AccNO=$B23,IF(S_16FieldRank<=S_16Choice,S_16Amount,0),0)) -> 0 | W23: =SUM(IF(S_17AccNO=$B23,IF(S_17FieldRank<=S_17Choice,S_17Amount,0),0)) -> 0 | X23: Sales | Y23: =SUM(IF(S_18AccNO=$B23,IF(S_18FieldRank<=S_18Choice,S_18Amount,0),0)) -> 0 | Z23: =SUM(IF(S_9AccNO=$B23,IF(S_9FieldRank<=S_9Choice,S_9Amount,0),0)) -> 500 | AA23: =SUM(IF(S_19AccNO=$B23,IF(S_19FieldRank<=S_19Choice,S_19Amount,0),0)) -> 0 | AB23: =SUM(IF(S_20AccNo=$B23,IF(S_20FieldRank<=S_20Choice,S_20Amount,0),0)) -> 0 | AC23: =SUM(IF(S_21AccNo=$B23,IF(S_21FieldRank<=S_21Choice,S_21Amount,0),0)) -> 0 | AD23: =SUM(IF(S_22AccNo=$B23,IF(S_22FieldRank<=S_22Choice,S_22Amount,0),0)) -> 0 | AF23: =SUM(IF(S_23AccNo=$B23,IF(S_23FieldRank<=S_23Choice,S_23Amount,0),0)) -> 0 | AG23: 0 | AH23: =SUM(IF(S_5AccNO=$B23,IF(S_5FieldRank<=S_5Choice,S_5Amount,0),0)) -> 0
B24: 6500 | C24: Interest Income | D24: 100000 | E24: 100000 | F24: 110000 | G24: 110000 | H24: Interest Income | I24: =SUM(IF(S1AccNO=B24,IF(S1FieldRank<=S1Choice,S1Amount,0),0)) -> 0 | J24: =SUM(IF(S_2AccNO=$B24,IF(S_2FieldRank<=S_2Choice,S_2Amount,0),0)) -> 0 | K24: =SUM(IF(S_6AccNO=$B24,IF(S_6FieldRank<=s_6Choice,S_6Amount,0),0)) -> 0 | L24: =SUM(IF(S_7AccNO=$B24,IF(S_7FieldRank<=S_7Choice,S_7Amount,0),0)) -> 0 | M24: =SUM(IF(S_8AccNO=$B24,IF(S_8FieldRank<=S_8Choice,S_8Amount,0),0)) -> 0 | N24: Interest Income | O24: =SUM(IF(S_11AccNO=$B24,IF(S_11FieldRank<=S_11Choice,S_11Amount,0),0)) -> 0 | P24: =SUM(IF(S_3AccNO=$B24,IF(S_3FieldRank<=S_3Choice,S_3Amount,0),0)) -> 0 | Q24: =SUM(IF(S_4AccNO=$B24,IF(S_4FieldRank<=S_4Choice,S_4Amount,0),0)) -> 0 | R24: =SUM(IF(S_10AccNO=$B24,IF(S_10FieldRank<=S_10Choice,S_10Amount,0),0)) -> 0 | S24: =SUM(IF(S_13AccNO=$B24,IF(S_13FieldRank<=S_13Choice,S_13Amount,0),0)) -> 0 | T24: =SUM(IF(S_12AccNO=$B24,IF(S_12FieldRank<=S_12Choice,S_12Amount,0),0)) -> 0 | U24: =SUM(IF(S_15AccNO=$B24,IF(S_15FieldRank<=S_15Choice,S_15Amount,0),0)) -> 0 | V24: =SUM(IF(S_16AccNO=$B24,IF(S_16FieldRank<=S_16Choice,S_16Amount,0),0)) -> 0 | W24: =SUM(IF(S_17AccNO=$B24,IF(S_17FieldRank<=S_17Choice,S_17Amount,0),0)) -> 0 | X24: Interest Income | Y24: =SUM(IF(S_18AccNO=$B24,IF(S_18FieldRank<=S_18Choice,S_18Amount,0),0)) -> 110000 | Z24: =SUM(IF(S_9AccNO=$B24,IF(S_9FieldRank<=S_9Choice,S_9Amount,0),0)) -> 0 | AA24: =SUM(IF(S_19AccNO=$B24,IF(S_19FieldRank<=S_19Choice,S_19Amount,0),0)) -> 0 | AB24: =SUM(IF(S_20AccNo=$B24,IF(S_20FieldRank<=S_20Choice,S_20Amount,0),0)) -> 0 | AC24: =SUM(IF(S_21AccNo=$B24,IF(S_21FieldRank<=S_21Choice,S_21Amount,0),0)) -> 0 | AD24: =SUM(IF(S_22AccNo=$B24,IF(S_22FieldRank<=S_22Choice,S_22Amount,0),0)) -> 0 | AF24: =SUM(IF(S_23AccNo=$B24,IF(S_23FieldRank<=S_23Choice,S_23Amount,0),0)) -> 0 | AG24: 0 | AH24: =SUM(IF(S_5AccNO=$B24,IF(S_5FieldRank<=S_5Choice,S_5Amount,0),0)) -> 0
B25: 6510 | C25: Market Change | D25: 0 | E25: 0 | F25: 0 | G25: 0 | H25: Market Change | I25: =SUM(IF(S1AccNO=B25,IF(S1FieldRank<=S1Choice,S1Amount,0),0)) -> 0 | J25: =SUM(IF(S_2AccNO=$B25,IF(S_2FieldRank<=S_2Choice,S_2Amount,0),0)) -> 0 | K25: =SUM(IF(S_6AccNO=$B25,IF(S_6FieldRank<=s_6Choice,S_6Amount,0),0)) -> 0 | L25: =SUM(IF(S_7AccNO=$B25,IF(S_7FieldRank<=S_7Choice,S_7Amount,0),0)) -> 0 | M25: =SUM(IF(S_8AccNO=$B25,IF(S_8FieldRank<=S_8Choice,S_8Amount,0),0)) -> 0 | N25: Market Change | O25: =SUM(IF(S_11AccNO=$B25,IF(S_11FieldRank<=S_11Choice,S_11Amount,0),0)) -> 0 | P25: =SUM(IF(S_3AccNO=$B25,IF(S_3FieldRank<=S_3Choice,S_3Amount,0),0)) -> 0 | Q25: =SUM(IF(S_4AccNO=$B25,IF(S_4FieldRank<=S_4Choice,S_4Amount,0),0)) -> 0 | R25: =SUM(IF(S_10AccNO=$B25,IF(S_10FieldRank<=S_10Choice,S_10Amount,0),0)) -> 0 | S25: =SUM(IF(S_13AccNO=$B25,IF(S_13FieldRank<=S_13Choice,S_13Amount,0),0)) -> 0 | T25: =SUM(IF(S_12AccNO=$B25,IF(S_12FieldRank<=S_12Choice,S_12Amount,0),0)) -> 0 | U25: =SUM(IF(S_15AccNO=$B25,IF(S_15FieldRank<=S_15Choice,S_15Amount,0),0)) -> 0 | V25: =SUM(IF(S_16AccNO=$B25,IF(S_16FieldRank<=S_16Choice,S_16Amount,0),0)) -> 0 | W25: =SUM(IF(S_17AccNO=$B25,IF(S_17FieldRank<=S_17Choice,S_17Amount,0),0)) -> 0 | X25: Market Change | Y25: =SUM(IF(S_18AccNO=$B25,IF(S_18FieldRank<=S_18Choice,S_18Amount,0),0)) -> 0 | Z25: =SUM(IF(S_9AccNO=$B25,IF(S_9FieldRank<=S_9Choice,S_9Amount,0),0)) -> 0 | AA25: =SUM(IF(S_19AccNO=$B25,IF(S_19FieldRank<=S_19Choice,S_19Amount,0),0)) -> 0 | AB25: =SUM(IF(S_20AccNo=$B25,IF(S_20FieldRank<=S_20Choice,S_20Amount,0),0)) -> 0 | AC25: =SUM(IF(S_21AccNo=$B25,IF(S_21FieldRank<=S_21Choice,S_21Amount,0),0)) -> 0 | AD25: =SUM(IF(S_22AccNo=$B25,IF(S_22FieldRank<=S_22Choice,S_22Amount,0),0)) -> 0 | AF25: =SUM(IF(S_23AccNo=$B25,IF(S_23FieldRank<=S_23Choice,S_23Amount,0),0)) -> 0 | AG25: 0 | AH25: =SUM(IF(S_5AccNO=$B25,IF(S_5FieldRank<=S_5Choice,S_5Amount,0),0)) -> 0
B26: 6710 | C26: Gain (Loss) on Assets | D26: 0 | E26: 0 | F26: 0 | G26: 0 | H26: Gain (Loss) on Assets | I26: =SUM(IF(S1AccNO=B26,IF(S1FieldRank<=S1Choice,S1Amount,0),0)) -> 0 | J26: =SUM(IF(S_2AccNO=$B26,IF(S_2FieldRank<=S_2Choice,S_2Amount,0),0)) -> 0 | K26: =SUM(IF(S_6AccNO=$B26,IF(S_6FieldRank<=s_6Choice,S_6Amount,0),0)) -> 0 | L26: =SUM(IF(S_7AccNO=$B26,IF(S_7FieldRank<=S_7Choice,S_7Amount,0),0)) -> 0 | M26: =SUM(IF(S_8AccNO=$B26,IF(S_8FieldRank<=S_8Choice,S_8Amount,0),0)) -> 0 | N26: Gain (Loss) on Assets | O26: =SUM(IF(S_11AccNO=$B26,IF(S_11FieldRank<=S_11Choice,S_11Amount,0),0)) -> 0 | P26: =SUM(IF(S_3AccNO=$B26,IF(S_3FieldRank<=S_3Choice,S_3Amount,0),0)) -> 0 | Q26: =SUM(IF(S_4AccNO=$B26,IF(S_4FieldRank<=S_4Choice,S_4Amount,0),0)) -> 0 | R26: =SUM(IF(S_10AccNO=$B26,IF(S_10FieldRank<=S_10Choice,S_10Amount,0),0)) -> 0 | S26: =SUM(IF(S_13AccNO=$B26,IF(S_13FieldRank<=S_13Choice,S_13Amount,0),0)) -> 0 | T26: =SUM(IF(S_12AccNO=$B26,IF(S_12FieldRank<=S_12Choice,S_12Amount,0),0)) -> 0 | U26: =SUM(IF(S_15AccNO=$B26,IF(S_15FieldRank<=S_15Choice,S_15Amount,0),0)) -> 0 | V26: =SUM(IF(S_16AccNO=$B26,IF(S_16FieldRank<=S_16Choice,S_16Amount,0),0)) -> 0 | W26: =SUM(IF(S_17AccNO=$B26,IF(S_17FieldRank<=S_17Choice,S_17Amount,0),0)) -> 0 | X26: Gain (Loss) on Assets | Y26: =SUM(IF(S_18AccNO=$B26,IF(S_18FieldRank<=S_18Choice,S_18Amount,0),0)) -> 0 | Z26: =SUM(IF(S_9AccNO=$B26,IF(S_9FieldRank<=S_9Choice,S_9Amount,0),0)) -> 0 | AA26: =SUM(IF(S_19AccNO=$B26,IF(S_19FieldRank<=S_19Choice,S_19Amount,0),0)) -> 0 | AB26: =SUM(IF(S_20AccNo=$B26,IF(S_20FieldRank<=S_20Choice,S_20Amount,0),0)) -> 0 | AC26: =SUM(IF(S_21AccNo=$B26,IF(S_21FieldRank<=S_21Choice,S_21Amount,0),0)) -> 0 | AD26: =SUM(IF(S_22AccNo=$B26,IF(S_22FieldRank<=S_22Choice,S_22Amount,0),0)) -> 0 | AF26: =SUM(IF(S_23AccNo=$B26,IF(S_23FieldRank<=S_23Choice,S_23Amount,0),0)) -> 0 | AG26: 0 | AH26: =SUM(IF(S_5AccNO=$B26,IF(S_5FieldRank<=S_5Choice,S_5Amount,0),0)) -> 0
B27: 6900 | C27: Other income | D27: 0 | E27: 0 | F27: 0 | G27: 0 | H27: Other income | I27: =SUM(IF(S1AccNO=B27,IF(S1FieldRank<=S1Choice,S1Amount,0),0)) -> 0 | J27: =SUM(IF(S_2AccNO=$B27,IF(S_2FieldRank<=S_2Choice,S_2Amount,0),0)) -> 0 | K27: =SUM(IF(S_6AccNO=$B27,IF(S_6FieldRank<=s_6Choice,S_6Amount,0),0)) -> 0 | L27: =SUM(IF(S_7AccNO=$B27,IF(S_7FieldRank<=S_7Choice,S_7Amount,0),0)) -> 0 | M27: =SUM(IF(S_8AccNO=$B27,IF(S_8FieldRank<=S_8Choice,S_8Amount,0),0)) -> 0 | N27: Other income | O27: =SUM(IF(S_11AccNO=$B27,IF(S_11FieldRank<=S_11Choice,S_11Amount,0),0)) -> 0 | P27: =SUM(IF(S_3AccNO=$B27,IF(S_3FieldRank<=S_3Choice,S_3Amount,0),0)) -> 0 | Q27: =SUM(IF(S_4AccNO=$B27,IF(S_4FieldRank<=S_4Choice,S_4Amount,0),0)) -> 0 | R27: =SUM(IF(S_10AccNO=$B27,IF(S_10FieldRank<=S_10Choice,S_10Amount,0),0)) -> 0 | S27: =SUM(IF(S_13AccNO=$B27,IF(S_13FieldRank<=S_13Choice,S_13Amount,0),0)) -> 0 | T27: =SUM(IF(S_12AccNO=$B27,IF(S_12FieldRank<=S_12Choice,S_12Amount,0),0)) -> 0 | U27: =SUM(IF(S_15AccNO=$B27,IF(S_15FieldRank<=S_15Choice,S_15Amount,0),0)) -> 0 | V27: =SUM(IF(S_16AccNO=$B27,IF(S_16FieldRank<=S_16Choice,S_16Amount,0),0)) -> 0 | W27: =SUM(IF(S_17AccNO=$B27,IF(S_17FieldRank<=S_17Choice,S_17Amount,0),0)) -> 0 | X27: Other income | Y27: =SUM(IF(S_18AccNO=$B27,IF(S_18FieldRank<=S_18Choice,S_18Amount,0),0)) -> 0 | Z27: =SUM(IF(S_9AccNO=$B27,IF(S_9FieldRank<=S_9Choice,S_9Amount,0),0)) -> 0 | AA27: =SUM(IF(S_19AccNO=$B27,IF(S_19FieldRank<=S_19Choice,S_19Amount,0),0)) -> 0 | AB27: =SUM(IF(S_20AccNo=$B27,IF(S_20FieldRank<=S_20Choice,S_20Amount,0),0)) -> 0 | AC27: =SUM(IF(S_21AccNo=$B27,IF(S_21FieldRank<=S_21Choice,S_21Amount,0),0)) -> 0 | AD27: =SUM(IF(S_22AccNo=$B27,IF(S_22FieldRank<=S_22Choice,S_22Amount,0),0)) -> 0 | AF27: =SUM(IF(S_23AccNo=$B27,IF(S_23FieldRank<=S_23Choice,S_23Amount,0),0)) -> 0 | AG27: 0 | AH27: =SUM(IF(S_5AccNO=$B27,IF(S_5FieldRank<=S_5Choice,S_5Amount,0),0)) -> 0
T28: =SUM(IF(S_12AccNO=$B28,IF(S_12FieldRank<=S_12Choice,S_12Amount,0),0)) -> 0
B29: 7001 | C29: Executive Salaries | D29: 270862.55 | E29: 270862.55 | F29: =SUM(I29:AF29) -> 264398 | G29: 264398 | H29: =C29 -> Executive Salaries | I29: =SUM(IF(S1AccNO=B29,IF(S1FieldRank<=S1Choice,S1Amount,0),0)) -> 0 | J29: =SUM(IF(S_2AccNO=$B29,IF(S_2FieldRank<=S_2Choice,S_2Amount,0),0)) -> 0 | K29: =SUM(IF(S_6AccNO=$B29,IF(S_6FieldRank<=s_6Choice,S_6Amount,0),0)) -> 0 | L29: =SUM(IF(S_7AccNO=$B29,IF(S_7FieldRank<=S_7Choice,S_7Amount,0),0)) -> 0 | M29: =SUM(IF(S_8AccNO=$B29,IF(S_8FieldRank<=S_8Choice,S_8Amount,0),0)) -> 0 | N29: =C29 -> Executive Salaries | O29: =SUM(IF(S_11AccNO=$B29,IF(S_11FieldRank<=S_11Choice,S_11Amount,0),0)) -> 0 | P29: =SUM(IF(S_3AccNO=$B29,IF(S_3FieldRank<=S_3Choice,S_3Amount,0),0)) -> 0 | Q29: =SUM(IF(S_4AccNO=$B29,IF(S_4FieldRank<=S_4Choice,S_4Amount,0),0)) -> 0 | R29: =SUM(IF(S_10AccNO=$B29,IF(S_10FieldRank<=S_10Choice,S_10Amount,0),0)) -> 0 | S29: =SUM(IF(S_13AccNO=$B29,IF(S_13FieldRank<=S_13Choice,S_13Amount,0),0)) -> 0 | T29: =SUM(IF(S_12AccNO=$B29,IF(S_12FieldRank<=S_12Choice,S_12Amount,0),0)) -> 0 | U29: =SUM(IF(S_15AccNO=$B29,IF(S_15FieldRank<=S_15Choice,S_15Amount,0),0)) -> 0 | V29: =SUM(IF(S_16AccNO=$B29,IF(S_16FieldRank<=S_16Choice,S_16Amount,0),0)) -> 0 | W29: =SUM(IF(S_17AccNO=$B29,IF(S_17FieldRank<=S_17Choice,S_17Amount,0),0)) -> 0 | X29: =C29 -> Executive Salaries | Y29: =SUM(IF(S_18AccNO=$B29,IF(S_18FieldRank<=S_18Choice,S_18Amount,0),0)) -> 65798 | Z29: =SUM(IF(S_9AccNO=$B29,IF(S_9FieldRank<=S_9Choice,S_9Amount,0),0)) -> 48600 | AA29: =SUM(IF(S_19AccNO=$B29,IF(S_19FieldRank<=S_19Choice,S_19Amount,0),0)) -> 0 | AB29: =SUM(IF(S_20AccNo=$B29,IF(S_20FieldRank<=S_20Choice,S_20Amount,0),0)) -> 0 | AC29: =SUM(IF(S_21AccNo=$B29,IF(S_21FieldRank<=S_21Choice,S_21Amount,0),0)) -> 0 | AD29: =SUM(IF(S_22AccNo=$B29,IF(S_22FieldRank<=S_22Choice,S_22Amount,0),0)) -> 90000 | AE29: =GETPIVOTDATA("Amount",'S25'!$J$5,"Acc_NO",7001) -> 0 | AF29: =GETPIVOTDATA("Amount",'S23'!$M$13,"Acc_NO",7001) -> 60000 | AG29: =SUM(IF(S_12AccNO=$B29,IF(S_12FieldRank<=S_12Choice,S_12Amount,0),0)) -> 0 | AH29: =SUM(IF(S_5AccNO=$B29,IF(S_5FieldRank<=S_5Choice,S_5Amount,0),0)) -> 0
B30: 7003 | C30: Clerical Salaries | D30: 63141 | E30: 63141 | F30: 69472 | G30: 69472 | H30: Clerical Salaries | I30: =SUM(IF(S1AccNO=B30,IF(S1FieldRank<=S1Choice,S1Amount,0),0)) -> 0 | J30: =SUM(IF(S_2AccNO=$B30,IF(S_2FieldRank<=S_2Choice,S_2Amount,0),0)) -> 0 | K30: =SUM(IF(S_6AccNO=$B30,IF(S_6FieldRank<=s_6Choice,S_6Amount,0),0)) -> 0 | L30: =SUM(IF(S_7AccNO=$B30,IF(S_7FieldRank<=S_7Choice,S_7Amount,0),0)) -> 0 | M30: =SUM(IF(S_8AccNO=$B30,IF(S_8FieldRank<=S_8Choice,S_8Amount,0),0)) -> 0 | N30: Clerical Salaries | O30: =SUM(IF(S_11AccNO=$B30,IF(S_11FieldRank<=S_11Choice,S_11Amount,0),0)) -> 0 | P30: =SUM(IF(S_3AccNO=$B30,IF(S_3FieldRank<=S_3Choice,S_3Amount,0),0)) -> 0 | Q30: =SUM(IF(S_4AccNO=$B30,IF(S_4FieldRank<=S_4Choice,S_4Amount,0),0)) -> 0 | R30: =SUM(IF(S_10AccNO=$B30,IF(S_10FieldRank<=S_10Choice,S_10Amount,0),0)) -> 0 | S30: =SUM(IF(S_13AccNO=$B30,IF(S_13FieldRank<=S_13Choice,S_13Amount,0),0)) -> 0 | T30: =SUM(IF(S_12AccNO=$B30,IF(S_12FieldRank<=S_12Choice,S_12Amount,0),0)) -> 0 | U30: =SUM(IF(S_15AccNO=$B30,IF(S_15FieldRank<=S_15Choice,S_15Amount,0),0)) -> 0 | V30: =SUM(IF(S_16AccNO=$B30,IF(S_16FieldRank<=S_16Choice,S_16Amount,0),0)) -> 0 | W30: =SUM(IF(S_17AccNO=$B30,IF(S_17FieldRank<=S_17Choice,S_17Amount,0),0)) -> 0 | X30: Clerical Salaries | Y30: =SUM(IF(S_18AccNO=$B30,IF(S_18FieldRank<=S_18Choice,S_18Amount,0),0)) -> 41392 | Z30: =SUM(IF(S_9AccNO=$B30,IF(S_9FieldRank<=S_9Choice,S_9Amount,0),0)) -> 28080 | AA30: =SUM(IF(S_19AccNO=$B30,IF(S_19FieldRank<=S_19Choice,S_19Amount,0),0)) -> 0 | AB30: =SUM(IF(S_20AccNo=$B30,IF(S_20FieldRank<=S_20Choice,S_20Amount,0),0)) -> 0 | AC30: =SUM(IF(S_21AccNo=$B30,IF(S_21FieldRank<=S_21Choice,S_21Amount,0),0)) -> 0 | AD30: =SUM(IF(S_22AccNo=$B30,IF(S_22FieldRank<=S_22Choice,S_22Amount,0),0)) -> 0 | AF30: =SUM(IF(S_23AccNo=$B30,IF(S_23FieldRank<=S_23Choice,S_23Amount,0),0)) -> 0 | AG30: 0 | AH30: =SUM(IF(S_5AccNO=$B30,IF(S_5FieldRank<=S_5Choice,S_5Amount,0),0)) -> 0
B31: 7004 | C31: Other Salaries | D31: 13266.25 | E31: 1766.25 | F31: 17852.5 | G31: =SUM(Y31:AF31) -> 1852.5 | H31: Other Salaries | I31: =SUM(IF(S1AccNO=B31,IF(S1FieldRank<=S1Choice,S1Amount,0),0)) -> 0 | J31: =SUM(IF(S_2AccNO=$B31,IF(S_2FieldRank<=S_2Choice,S_2Amount,0),0)) -> 0 | K31: =SUM(IF(S_6AccNO=$B31,IF(S_6FieldRank<=s_6Choice,S_6Amount,0),0)) -> 0 | L31: =SUM(IF(S_7AccNO=$B31,IF(S_7FieldRank<=S_7Choice,S_7Amount,0),0)) -> 0 | M31: =SUM(IF(S_8AccNO=$B31,IF(S_8FieldRank<=S_8Choice,S_8Amount,0),0)) -> 0 | N31: Other Salaries | O31: =SUM(IF(S_11AccNO=$B31,IF(S_11FieldRank<=S_11Choice,S_11Amount,0),0)) -> 0 | P31: =SUM(IF(S_3AccNO=$B31,IF(S_3FieldRank<=S_3Choice,S_3Amount,0),0)) -> 0 | Q31: =SUM(IF(S_4AccNO=$B31,IF(S_4FieldRank<=S_4Choice,S_4Amount,0),0)) -> 0 | S31: =SUM(IF(S_13AccNO=$B31,IF(S_13FieldRank<=S_13Choice,S_13Amount,0),0)) -> 0 | T31: =SUM(IF(S_12AccNO=$B31,IF(S_12FieldRank<=S_12Choice,S_12Amount,0),0)) -> 0 | U31: =SUM(IF(S_15AccNO=$B31,IF(S_15FieldRank<=S_15Choice,S_15Amount,0),0)) -> 10000 | V31: =SUM(IF(S_16AccNO=$B31,IF(S_16FieldRank<=S_16Choice,S_16Amount,0),0)) -> 0 | W31: =SUM(IF(S_17AccNO=$B31,IF(S_17FieldRank<=S_17Choice,S_17Amount,0),0)) -> 6000 | X31: Other Salaries | Y31: =SUM(IF(S_18AccNO=$B31,IF(S_18FieldRank<=S_18Choice,S_18Amount,0),0)) -> 1852.5 | Z31: =SUM(IF(S_9AccNO=$B31,IF(S_9FieldRank<=S_9Choice,S_9Amount,0),0)) -> 0 | AA31: =SUM(IF(S_19AccNO=$B31,IF(S_19FieldRank<=S_19Choice,S_19Amount,0),0)) -> 0 | AB31: =SUM(IF(S_20AccNo=$B31,IF(S_20FieldRank<=S_20Choice,S_20Amount,0),0)) -> 0 | AC31: =SUM(IF(S_21AccNo=$B31,IF(S_21FieldRank<=S_21Choice,S_21Amount,0),0)) -> 0 | AD31: =SUM(IF(S_22AccNo=$B31,IF(S_22FieldRank<=S_22Choice,S_22Amount,0),0)) -> 0 | AF31: =SUM(IF(S_23AccNo=$B31,IF(S_23FieldRank<=S_23Choice,S_23Amount,0),0)) -> 0 | AG31: 0 | AH31: =SUM(IF(S_5AccNO=$B31,IF(S_5FieldRank<=S_5Choice,S_5Amount,0),0)) -> 0
B32: 7005 | C32: Missionary Salaries | D32: 712059.4 | E32: 39798.4 | F32: 943138 | G32: 8350 | H32: Missionary Salaries | I32: =SUM(IF(S1AccNO=B32,IF(S1FieldRank<=S1Choice,S1Amount,0),0)) -> 90000 | J32: =SUM(IF(S_2AccNO=$B32,IF(S_2FieldRank<=S_2Choice,S_2Amount,0),0)) -> 578943 | K32: =SUM(IF(S_6AccNO=$B32,IF(S_6FieldRank<=s_6Choice,S_6Amount,0),0)) -> 0 | L32: =SUM(IF(S_7AccNO=$B32,IF(S_7FieldRank<=S_7Choice,S_7Amount,0),0)) -> 113160 | M32: =SUM(IF(S_8AccNO=$B32,IF(S_8FieldRank<=S_8Choice,S_8Amount,0),0)) -> 0 | N32: Missionary Salaries | O32: =SUM(IF(S_11AccNO=$B32,IF(S_11FieldRank<=S_11Choice,S_11Amount,0),0)) -> 0 | P32: =SUM(IF(S_3AccNO=$B32,IF(S_3FieldRank<=S_3Choice,S_3Amount,0),0)) -> 0 | Q32: =SUM(IF(S_4AccNO=$B32,IF(S_4FieldRank<=S_4Choice,S_4Amount,0),0)) -> 0 | R32: =SUM(IF(S_10AccNO=$B32,IF(S_10FieldRank<=S_10Choice,S_10Amount,0),0)) -> 0 | S32: =SUM(IF(S_13AccNO=$B32,IF(S_13FieldRank<=S_13Choice,S_13Amount,0),0)) -> 84750 | T32: =SUM(IF(S_12AccNO=$B32,IF(S_12FieldRank<=S_12Choice,S_12Amount,0),0)) -> 0 | U32: =SUM(IF(S_15AccNO=$B32,IF(S_15FieldRank<=S_15Choice,S_15Amount,0),0)) -> 0 | V32: =SUM(IF(S_16AccNO=$B32,IF(S_16FieldRank<=S_16Choice,S_16Amount,0),0)) -> 67935 | W32: =SUM(IF(S_17AccNO=$B32,IF(S_17FieldRank<=S_17Choice,S_17Amount,0),0)) -> 0 | X32: Missionary Salaries | Y32: =SUM(IF(S_18AccNO=$B32,IF(S_18FieldRank<=S_18Choice,S_18Amount,0),0)) -> 8350 | Z32: =SUM(IF(S_9AccNO=$B32,IF(S_9FieldRank<=S_9Choice,S_9Amount,0),0)) -> 0 | AA32: =SUM(IF(S_19AccNO=$B32,IF(S_19FieldRank<=S_19Choice,S_19Amount,0),0)) -> 0 | AB32: =SUM(IF(S_20AccNo=$B32,IF(S_20FieldRank<=S_20Choice,S_20Amount,0),0)) -> 0 | AC32: =SUM(IF(S_21AccNo=$B32,IF(S_21FieldRank<=S_21Choice,S_21Amount,0),0)) -> 0 | AD32: =SUM(IF(S_22AccNo=$B32,IF(S_22FieldRank<=S_22Choice,S_22Amount,0),0)) -> 0 | AF32: =SUM(IF(S_23AccNo=$B32,IF(S_23FieldRank<=S_23Choice,S_23Amount,0),0)) -> 0 | AG32: 0 | AH32: =SUM(IF(S_5AccNO=$B32,IF(S_5FieldRank<=S_5Choice,S_5Amount,0),0)) -> 0
B33: 7103 | C33: Medical Insurance | D33: 0 | E33: 0 | F33: 200 | G33: 0 | H33: Medical Insurance | I33: =SUM(IF(S1AccNO=B33,IF(S1FieldRank<=S1Choice,S1Amount,0),0)) -> 0 | J33: =SUM(IF(S_2AccNO=$B33,IF(S_2FieldRank<=S_2Choice,S_2Amount,0),0)) -> 0 | K33: =SUM(IF(S_6AccNO=$B33,IF(S_6FieldRank<=s_6Choice,S_6Amount,0),0)) -> 0 | L33: =SUM(IF(S_7AccNO=$B33,IF(S_7FieldRank<=S_7Choice,S_7Amount,0),0)) -> 0 | M33: =SUM(IF(S_8AccNO=$B33,IF(S_8FieldRank<=S_8Choice,S_8Amount,0),0)) -> 0 | N33: Medical Insurance | O33: =SUM(IF(S_11AccNO=$B33,IF(S_11FieldRank<=S_11Choice,S_11Amount,0),0)) -> 0 | P33: =SUM(IF(S_3AccNO=$B33,IF(S_3FieldRank<=S_3Choice,S_3Amount,0),0)) -> 0 | Q33: =SUM(IF(S_4AccNO=$B33,IF(S_4FieldRank<=S_4Choice,S_4Amount,0),0)) -> 200 | R33: =SUM(IF(S_10AccNO=$B33,IF(S_10FieldRank<=S_10Choice,S_10Amount,0),0)) -> 0 | S33: =SUM(IF(S_13AccNO=$B33,IF(S_13FieldRank<=S_13Choice,S_13Amount,0),0)) -> 0 | T33: =SUM(IF(S_12AccNO=$B33,IF(S_12FieldRank<=S_12Choice,S_12Amount,0),0)) -> 0 | U33: =SUM(IF(S_15AccNO=$B33,IF(S_15FieldRank<=S_15Choice,S_15Amount,0),0)) -> 0 | V33: =SUM(IF(S_16AccNO=$B33,IF(S_16FieldRank<=S_16Choice,S_16Amount,0),0)) -> 0 | W33: =SUM(IF(S_17AccNO=$B33,IF(S_17FieldRank<=S_17Choice,S_17Amount,0),0)) -> 0 | X33: Medical Insurance | Y33: =SUM(IF(S_18AccNO=$B33,IF(S_18FieldRank<=S_18Choice,S_18Amount,0),0)) -> 0 | Z33: =SUM(IF(S_9AccNO=$B33,IF(S_9FieldRank<=S_9Choice,S_9Amount,0),0)) -> 0 | AA33: =SUM(IF(S_19AccNO=$B33,IF(S_19FieldRank<=S_19Choice,S_19Amount,0),0)) -> 0 | AB33: =SUM(IF(S_20AccNo=$B33,IF(S_20FieldRank<=S_20Choice,S_20Amount,0),0)) -> 0 | AC33: =SUM(IF(S_21AccNo=$B33,IF(S_21FieldRank<=S_21Choice,S_21Amount,0),0)) -> 0 | AD33: =SUM(IF(S_22AccNo=$B33,IF(S_22FieldRank<=S_22Choice,S_22Amount,0),0)) -> 0 | AF33: =SUM(IF(S_23AccNo=$B33,IF(S_23FieldRank<=S_23Choice,S_23Amount,0),0)) -> 0 | AG33: 0 | AH33: =SUM(IF(S_5AccNO=$B33,IF(S_5FieldRank<=S_5Choice,S_5Amount,0),0)) -> 0
B34: 7201 | C34: Payroll Tax | D34: 26983.5155 | E34: 26103.7655 | F34: 26906.77125 | G34: 25682.77125 | H34: Payroll Tax | I34: =SUM(IF(S1AccNO=B34,IF(S1FieldRank<=S1Choice,S1Amount,0),0)) -> 0 | J34: =SUM(IF(S_2AccNO=$B34,IF(S_2FieldRank<=S_2Choice,S_2Amount,0),0)) -> 0 | K34: =SUM(IF(S_6AccNO=$B34,IF(S_6FieldRank<=s_6Choice,S_6Amount,0),0)) -> 0 | L34: =SUM(IF(S_7AccNO=$B34,IF(S_7FieldRank<=S_7Choice,S_7Amount,0),0)) -> 0 | M34: =SUM(IF(S_8AccNO=$B34,IF(S_8FieldRank<=S_8Choice,S_8Amount,0),0)) -> 0 | N34: Payroll Tax | O34: =SUM(IF(S_11AccNO=$B34,IF(S_11FieldRank<=S_11Choice,S_11Amount,0),0)) -> 0 | P34: =SUM(IF(S_3AccNO=$B34,IF(S_3FieldRank<=S_3Choice,S_3Amount,0),0)) -> 0 | Q34: =SUM(IF(S_4AccNO=$B34,IF(S_4FieldRank<=S_4Choice,S_4Amount,0),0)) -> 0 | R34: =SUM(IF(S_10AccNO=$B34,IF(S_10FieldRank<=S_10Choice,S_10Amount,0),0)) -> 0 | S34: =SUM(IF(S_13AccNO=$B34,IF(S_13FieldRank<=S_13Choice,S_13Amount,0),0)) -> 0 | T34: =SUM(IF(S_12AccNO=$B34,IF(S_12FieldRank<=S_12Choice,S_12Amount,0),0)) -> 0 | U34: =SUM(IF(S_15AccNO=$B34,IF(S_15FieldRank<=S_15Choice,S_15Amount,0),0)) -> 765 | V34: =SUM(IF(S_16AccNO=$B34,IF(S_16FieldRank<=S_16Choice,S_16Amount,0),0)) -> 0 | W34: =SUM(IF(S_17AccNO=$B34,IF(S_17FieldRank<=S_17Choice,S_17Amount,0),0)) -> 459 | X34: Payroll Tax | Y34: =SUM(IF(S_18AccNO=$B34,IF(S_18FieldRank<=S_18Choice,S_18Amount,0),0)) -> 8341.75125 | Z34: =SUM(IF(S_9AccNO=$B34,IF(S_9FieldRank<=S_9Choice,S_9Amount,0),0)) -> 5866.02 | AA34: =SUM(IF(S_19AccNO=$B34,IF(S_19FieldRank<=S_19Choice,S_19Amount,0),0)) -> 0 | AB34: =SUM(IF(S_20AccNo=$B34,IF(S_20FieldRank<=S_20Choice,S_20Amount,0),0)) -> 0 | AC34: =SUM(IF(S_21AccNo=$B34,IF(S_21FieldRank<=S_21Choice,S_21Amount,0),0)) -> 0 | AD34: =SUM(IF(S_22AccNo=$B34,IF(S_22FieldRank<=S_22Choice,S_22Amount,0),0)) -> 6885 | AF34: 4590 | AG34: 0 | AH34: =SUM(IF(S_5AccNO=$B34,IF(S_5FieldRank<=S_5Choice,S_5Amount,0),0)) -> 0
B35: 7203 | C35: Employment Insurance | D35: 4600 | E35: 800 | F35: 7000 | G35: 900 | H35: Employment Insurance | I35: =SUM(IF(S1AccNO=B35,IF(S1FieldRank<=S1Choice,S1Amount,0),0)) -> 6100 | J35: =SUM(IF(S_2AccNO=$B35,IF(S_2FieldRank<=S_2Choice,S_2Amount,0),0)) -> 0 | K35: =SUM(IF(S_6AccNO=$B35,IF(S_6FieldRank<=s_6Choice,S_6Amount,0),0)) -> 0 | L35: =SUM(IF(S_7AccNO=$B35,IF(S_7FieldRank<=S_7Choice,S_7Amount,0),0)) -> 0 | M35: =SUM(IF(S_8AccNO=$B35,IF(S_8FieldRank<=S_8Choice,S_8Amount,0),0)) -> 0 | N35: Employment Insurance | O35: =SUM(IF(S_11AccNO=$B35,IF(S_11FieldRank<=S_11Choice,S_11Amount,0),0)) -> 0 | P35: =SUM(IF(S_3AccNO=$B35,IF(S_3FieldRank<=S_3Choice,S_3Amount,0),0)) -> 0 | Q35: =SUM(IF(S_4AccNO=$B35,IF(S_4FieldRank<=S_4Choice,S_4Amount,0),0)) -> 0 | R35: =SUM(IF(S_10AccNO=$B35,IF(S_10FieldRank<=S_10Choice,S_10Amount,0),0)) -> 0 | S35: =SUM(IF(S_13AccNO=$B35,IF(S_13FieldRank<=S_13Choice,S_13Amount,0),0)) -> 0 | T35: =SUM(IF(S_12AccNO=$B35,IF(S_12FieldRank<=S_12Choice,S_12Amount,0),0)) -> 0 | U35: =SUM(IF(S_15AccNO=$B35,IF(S_15FieldRank<=S_15Choice,S_15Amount,0),0)) -> 0 | V35: =SUM(IF(S_16AccNO=$B35,IF(S_16FieldRank<=S_16Choice,S_16Amount,0),0)) -> 0 | W35: =SUM(IF(S_17AccNO=$B35,IF(S_17FieldRank<=S_17Choice,S_17Amount,0),0)) -> 0 | X35: Employment Insurance | Y35: =SUM(IF(S_18AccNO=$B35,IF(S_18FieldRank<=S_18Choice,S_18Amount,0),0)) -> 900 | Z35: =SUM(IF(S_9AccNO=$B35,IF(S_9FieldRank<=S_9Choice,S_9Amount,0),0)) -> 0 | AA35: =SUM(IF(S_19AccNO=$B35,IF(S_19FieldRank<=S_19Choice,S_19Amount,0),0)) -> 0 | AB35: =SUM(IF(S_20AccNo=$B35,IF(S_20FieldRank<=S_20Choice,S_20Amount,0),0)) -> 0 | AC35: =SUM(IF(S_21AccNo=$B35,IF(S_21FieldRank<=S_21Choice,S_21Amount,0),0)) -> 0 | AD35: =SUM(IF(S_22AccNo=$B35,IF(S_22FieldRank<=S_22Choice,S_22Amount,0),0)) -> 0 | AF35: =SUM(IF(S_23AccNo=$B35,IF(S_23FieldRank<=S_23Choice,S_23Amount,0),0)) -> 0 | AG35: 0 | AH35: =SUM(IF(S_5AccNO=$B35,IF(S_5FieldRank<=S_5Choice,S_5Amount,0),0)) -> 0
B36: 8003 | C36: Staff Training | D36: 16150 | E36: 2300 | F36: 14200 | G36: 3400 | H36: Staff Training | I36: =SUM(IF(S1AccNO=B36,IF(S1FieldRank<=S1Choice,S1Amount,0),0)) -> 0 | J36: =SUM(IF(S_2AccNO=$B36,IF(S_2FieldRank<=S_2Choice,S_2Amount,0),0)) -> 3500 | K36: =SUM(IF(S_6AccNO=$B36,IF(S_6FieldRank<=s_6Choice,S_6Amount,0),0)) -> 300 | L36: =SUM(IF(S_7AccNO=$B36,IF(S_7FieldRank<=S_7Choice,S_7Amount,0),0)) -> 1000 | M36: =SUM(IF(S_8AccNO=$B36,IF(S_8FieldRank<=S_8Choice,S_8Amount,0),0)) -> 0 | N36: Staff Training | O36: =SUM(IF(S_11AccNO=$B36,IF(S_11FieldRank<=S_11Choice,S_11Amount,0),0)) -> 6000 | P36: =SUM(IF(S_3AccNO=$B36,IF(S_3FieldRank<=S_3Choice,S_3Amount,0),0)) -> 0 | Q36: =SUM(IF(S_4AccNO=$B36,IF(S_4FieldRank<=S_4Choice,S_4Amount,0),0)) -> 0 | R36: =SUM(IF(S_10AccNO=$B36,IF(S_10FieldRank<=S_10Choice,S_10Amount,0),0)) -> 0 | S36: =SUM(IF(S_13AccNO=$B36,IF(S_13FieldRank<=S_13Choice,S_13Amount,0),0)) -> 0 | T36: =SUM(IF(S_12AccNO=$B36,IF(S_12FieldRank<=S_12Choice,S_12Amount,0),0)) -> 0 | U36: =SUM(IF(S_15AccNO=$B36,IF(S_15FieldRank<=S_15Choice,S_15Amount,0),0)) -> 0 | V36: =SUM(IF(S_16AccNO=$B36,IF(S_16FieldRank<=S_16Choice,S_16Amount,0),0)) -> 0 | W36: =SUM(IF(S_17AccNO=$B36,IF(S_17FieldRank<=S_17Choice,S_17Amount,0),0)) -> 0 | X36: Staff Training | Y36: =SUM(IF(S_18AccNO=$B36,IF(S_18FieldRank<=S_18Choice,S_18Amount,0),0)) -> 300 | Z36: =SUM(IF(S_9AccNO=$B36,IF(S_9FieldRank<=S_9Choice,S_9Amount,0),0)) -> 1000 | AA36: =SUM(IF(S_19AccNO=$B36,IF(S_19FieldRank<=S_19Choice,S_19Amount,0),0)) -> 0 | AB36: =SUM(IF(S_20AccNo=$B36,IF(S_20FieldRank<=S_20Choice,S_20Amount,0),0)) -> 2100 | AC36: =SUM(IF(S_21AccNo=$B36,IF(S_21FieldRank<=S_21Choice,S_21Amount,0),0)) -> 0 | AD36: =SUM(IF(S_22AccNo=$B36,IF(S_22FieldRank<=S_22Choice,S_22Amount,0),0)) -> 0 | AF36: =SUM(IF(S_23AccNo=$B36,IF(S_23FieldRank<=S_23Choice,S_23Amount,0),0)) -> 0 | AG36: 0 | AH36: =SUM(IF(S_5AccNO=$B36,IF(S_5FieldRank<=S_5Choice,S_5Amount,0),0)) -> 0
B37: 8004 | C37: Member Care | D37: 3500 | E37: 2800 | F37: 3400 | G37: 2250 | H37: Member Care | I37: =SUM(IF(S1AccNO=B37,IF(S1FieldRank<=S1Choice,S1Amount,0),0)) -> 800 | J37: =SUM(IF(S_2AccNO=$B37,IF(S_2FieldRank<=S_2Choice,S_2Amount,0),0)) -> 0 | K37: =SUM(IF(S_6AccNO=$B37,IF(S_6FieldRank<=s_6Choice,S_6Amount,0),0)) -> 350 | L37: =SUM(IF(S_7AccNO=$B37,IF(S_7FieldRank<=S_7Choice,S_7Amount,0),0)) -> 0 | M37: =SUM(IF(S_8AccNO=$B37,IF(S_8FieldRank<=S_8Choice,S_8Amount,0),0)) -> 0 | N37: Member Care | O37: =SUM(IF(S_11AccNO=$B37,IF(S_11FieldRank<=S_11Choice,S_11Amount,0),0)) -> 0 | P37: =SUM(IF(S_3AccNO=$B37,IF(S_3FieldRank<=S_3Choice,S_3Amount,0),0)) -> 0 | Q37: =SUM(IF(S_4AccNO=$B37,IF(S_4FieldRank<=S_4Choice,S_4Amount,0),0)) -> 0 | R37: =SUM(IF(S_10AccNO=$B37,IF(S_10FieldRank<=S_10Choice,S_10Amount,0),0)) -> 0 | S37: =SUM(IF(S_13AccNO=$B37,IF(S_13FieldRank<=S_13Choice,S_13Amount,0),0)) -> 0 | T37: =SUM(IF(S_12AccNO=$B37,IF(S_12FieldRank<=S_12Choice,S_12Amount,0),0)) -> 0 | U37: =SUM(IF(S_15AccNO=$B37,IF(S_15FieldRank<=S_15Choice,S_15Amount,0),0)) -> 0 | V37: =SUM(IF(S_16AccNO=$B37,IF(S_16FieldRank<=S_16Choice,S_16Amount,0),0)) -> 0 | W37: =SUM(IF(S_17AccNO=$B37,IF(S_17FieldRank<=S_17Choice,S_17Amount,0),0)) -> 0 | X37: Member Care | Y37: =SUM(IF(S_18AccNO=$B37,IF(S_18FieldRank<=S_18Choice,S_18Amount,0),0)) -> 0 | Z37: =SUM(IF(S_9AccNO=$B37,IF(S_9FieldRank<=S_9Choice,S_9Amount,0),0)) -> 0 | AA37: =SUM(IF(S_19AccNO=$B37,IF(S_19FieldRank<=S_19Choice,S_19Amount,0),0)) -> 0 | AB37: =SUM(IF(S_20AccNo=$B37,IF(S_20FieldRank<=S_20Choice,S_20Amount,0),0)) -> 800 | AC37: =SUM(IF(S_21AccNo=$B37,IF(S_21FieldRank<=S_21Choice,S_21Amount,0),0)) -> 0 | AD37: =SUM(IF(S_22AccNo=$B37,IF(S_22FieldRank<=S_22Choice,S_22Amount,0),0)) -> 1450 | AF37: =SUM(IF(S_23AccNo=$B37,IF(S_23FieldRank<=S_23Choice,S_23Amount,0),0)) -> 0 | AG37: 0 | AH37: =SUM(IF(S_5AccNO=$B37,IF(S_5FieldRank<=S_5Choice,S_5Amount,0),0)) -> 0
B38: 8005 | C38: Public Relations | D38: 1100 | E38: 1100 | F38: 500 | G38: 500 | H38: Public Relations | I38: =SUM(IF(S1AccNO=B38,IF(S1FieldRank<=S1Choice,S1Amount,0),0)) -> 0 | J38: =SUM(IF(S_2AccNO=$B38,IF(S_2FieldRank<=S_2Choice,S_2Amount,0),0)) -> 0 | K38: =SUM(IF(S_6AccNO=$B38,IF(S_6FieldRank<=s_6Choice,S_6Amount,0),0)) -> 0 | L38: =SUM(IF(S_7AccNO=$B38,IF(S_7FieldRank<=S_7Choice,S_7Amount,0),0)) -> 0 | M38: =SUM(IF(S_8AccNO=$B38,IF(S_8FieldRank<=S_8Choice,S_8Amount,0),0)) -> 0 | N38: Public Relations | O38: =SUM(IF(S_11AccNO=$B38,IF(S_11FieldRank<=S_11Choice,S_11Amount,0),0)) -> 0 | P38: =SUM(IF(S_3AccNO=$B38,IF(S_3FieldRank<=S_3Choice,S_3Amount,0),0)) -> 0 | Q38: =SUM(IF(S_4AccNO=$B38,IF(S_4FieldRank<=S_4Choice,S_4Amount,0),0)) -> 0 | R38: =SUM(IF(S_10AccNO=$B38,IF(S_10FieldRank<=S_10Choice,S_10Amount,0),0)) -> 0 | S38: =SUM(IF(S_13AccNO=$B38,IF(S_13FieldRank<=S_13Choice,S_13Amount,0),0)) -> 0 | T38: =SUM(IF(S_12AccNO=$B38,IF(S_12FieldRank<=S_12Choice,S_12Amount,0),0)) -> 0 | U38: =SUM(IF(S_15AccNO=$B38,IF(S_15FieldRank<=S_15Choice,S_15Amount,0),0)) -> 0 | V38: =SUM(IF(S_16AccNO=$B38,IF(S_16FieldRank<=S_16Choice,S_16Amount,0),0)) -> 0 | W38: =SUM(IF(S_17AccNO=$B38,IF(S_17FieldRank<=S_17Choice,S_17Amount,0),0)) -> 0 | X38: Public Relations | Y38: =SUM(IF(S_18AccNO=$B38,IF(S_18FieldRank<=S_18Choice,S_18Amount,0),0)) -> 0 | Z38: =SUM(IF(S_9AccNO=$B38,IF(S_9FieldRank<=S_9Choice,S_9Amount,0),0)) -> 0 | AA38: =SUM(IF(S_19AccNO=$B38,IF(S_19FieldRank<=S_19Choice,S_19Amount,0),0)) -> 0 | AB38: =SUM(IF(S_20AccNo=$B38,IF(S_20FieldRank<=S_20Choice,S_20Amount,0),0)) -> 0 | AC38: =SUM(IF(S_21AccNo=$B38,IF(S_21FieldRank<=S_21Choice,S_21Amount,0),0)) -> 0 | AD38: =SUM(IF(S_22AccNo=$B38,IF(S_22FieldRank<=S_22Choice,S_22Amount,0),0)) -> 0 | AE38: 500 | AF38: =SUM(IF(S_23AccNo=$B38,IF(S_23FieldRank<=S_23Choice,S_23Amount,0),0)) -> 0 | AG38: 0 | AH38: =SUM(IF(S_5AccNO=$B38,IF(S_5FieldRank<=S_5Choice,S_5Amount,0),0)) -> 0
B39: 8008 | C39: Professional Fees | D39: 17540 | E39: 10700 | F39: 22840 | G39: 10700 | H39: Professional Fees | I39: =SUM(IF(S1AccNO=B39,IF(S1FieldRank<=S1Choice,S1Amount,0),0)) -> 0 | J39: =SUM(IF(S_2AccNO=$B39,IF(S_2FieldRank<=S_2Choice,S_2Amount,0),0)) -> 0 | K39: =SUM(IF(S_6AccNO=$B39,IF(S_6FieldRank<=s_6Choice,S_6Amount,0),0)) -> 0 | L39: =SUM(IF(S_7AccNO=$B39,IF(S_7FieldRank<=S_7Choice,S_7Amount,0),0)) -> 0 | M39: =SUM(IF(S_8AccNO=$B39,IF(S_8FieldRank<=S_8Choice,S_8Amount,0),0)) -> 3000 | N39: Professional Fees | O39: =SUM(IF(S_11AccNO=$B39,IF(S_11FieldRank<=S_11Choice,S_11Amount,0),0)) -> 300 | P39: =SUM(IF(S_3AccNO=$B39,IF(S_3FieldRank<=S_3Choice,S_3Amount,0),0)) -> 300 | Q39: =SUM(IF(S_4AccNO=$B39,IF(S_4FieldRank<=S_4Choice,S_4Amount,0),0)) -> 40 | R39: =SUM(IF(S_10AccNO=$B39,IF(S_10FieldRank<=S_10Choice,S_10Amount,0),0)) -> 0 | S39: =SUM(IF(S_13AccNO=$B39,IF(S_13FieldRank<=S_13Choice,S_13Amount,0),0)) -> 0 | T39: =SUM(IF(S_12AccNO=$B39,IF(S_12FieldRank<=S_12Choice,S_12Amount,0),0)) -> 5500 | U39: =SUM(IF(S_15AccNO=$B39,IF(S_15FieldRank<=S_15Choice,S_15Amount,0),0)) -> 3000 | V39: =SUM(IF(S_16AccNO=$B39,IF(S_16FieldRank<=S_16Choice,S_16Amount,0),0)) -> 0 | W39: =SUM(IF(S_17AccNO=$B39,IF(S_17FieldRank<=S_17Choice,S_17Amount,0),0)) -> 0 | X39: Professional Fees | Y39: =SUM(IF(S_18AccNO=$B39,IF(S_18FieldRank<=S_18Choice,S_18Amount,0),0)) -> 10550 | Z39: =SUM(IF(S_9AccNO=$B39,IF(S_9FieldRank<=S_9Choice,S_9Amount,0),0)) -> 150 | AA39: =SUM(IF(S_19AccNO=$B39,IF(S_19FieldRank<=S_19Choice,S_19Amount,0),0)) -> 0 | AB39: =SUM(IF(S_20AccNo=$B39,IF(S_20FieldRank<=S_20Choice,S_20Amount,0),0)) -> 0 | AC39: =SUM(IF(S_21AccNo=$B39,IF(S_21FieldRank<=S_21Choice,S_21Amount,0),0)) -> 0 | AD39: =SUM(IF(S_22AccNo=$B39,IF(S_22FieldRank<=S_22Choice,S_22Amount,0),0)) -> 0 | AF39: =SUM(IF(S_23AccNo=$B39,IF(S_23FieldRank<=S_23Choice,S_23Amount,0),0)) -> 0 | AG39: 0 | AH39: =SUM(IF(S_5AccNO=$B39,IF(S_5FieldRank<=S_5Choice,S_5Amount,0),0)) -> 0
B40: 8009 | C40: Liability Insurance | D40: 6175 | E40: 2800 | F40: 6350 | G40: 3000 | H40: Liability Insurance | I40: =SUM(IF(S1AccNO=B40,IF(S1FieldRank<=S1Choice,S1Amount,0),0)) -> 1350 | J40: =SUM(IF(S_2AccNO=$B40,IF(S_2FieldRank<=S_2Choice,S_2Amount,0),0)) -> 0 | K40: =SUM(IF(S_6AccNO=$B40,IF(S_6FieldRank<=s_6Choice,S_6Amount,0),0)) -> 0 | L40: =SUM(IF(S_7AccNO=$B40,IF(S_7FieldRank<=S_7Choice,S_7Amount,0),0)) -> 0 | M40: =SUM(IF(S_8AccNO=$B40,IF(S_8FieldRank<=S_8Choice,S_8Amount,0),0)) -> 0 | N40: Liability Insurance | O40: =SUM(IF(S_11AccNO=$B40,IF(S_11FieldRank<=S_11Choice,S_11Amount,0),0)) -> 2000 | P40: =SUM(IF(S_3AccNO=$B40,IF(S_3FieldRank<=S_3Choice,S_3Amount,0),0)) -> 0 | Q40: =SUM(IF(S_4AccNO=$B40,IF(S_4FieldRank<=S_4Choice,S_4Amount,0),0)) -> 0 | R40: =SUM(IF(S_10AccNO=$B40,IF(S_10FieldRank<=S_10Choice,S_10Amount,0),0)) -> 0 | S40: =SUM(IF(S_13AccNO=$B40,IF(S_13FieldRank<=S_13Choice,S_13Amount,0),0)) -> 0 | T40: =SUM(IF(S_12AccNO=$B40,IF(S_12FieldRank<=S_12Choice,S_12Amount,0),0)) -> 0 | U40: =SUM(IF(S_15AccNO=$B40,IF(S_15FieldRank<=S_15Choice,S_15Amount,0),0)) -> 0 | V40: =SUM(IF(S_16AccNO=$B40,IF(S_16FieldRank<=S_16Choice,S_16Amount,0),0)) -> 0 | W40: =SUM(IF(S_17AccNO=$B40,IF(S_17FieldRank<=S_17Choice,S_17Amount,0),0)) -> 0 | X40: Liability Insurance | Y40: =SUM(IF(S_18AccNO=$B40,IF(S_18FieldRank<=S_18Choice,S_18Amount,0),0)) -> 3000 | Z40: =SUM(IF(S_9AccNO=$B40,IF(S_9FieldRank<=S_9Choice,S_9Amount,0),0)) -> 0 | AA40: =SUM(IF(S_19AccNO=$B40,IF(S_19FieldRank<=S_19Choice,S_19Amount,0),0)) -> 0 | AB40: =SUM(IF(S_20AccNo=$B40,IF(S_20FieldRank<=S_20Choice,S_20Amount,0),0)) -> 0 | AC40: =SUM(IF(S_21AccNo=$B40,IF(S_21FieldRank<=S_21Choice,S_21Amount,0),0)) -> 0 | AD40: =SUM(IF(S_22AccNo=$B40,IF(S_22FieldRank<=S_22Choice,S_22Amount,0),0)) -> 0 | AF40: =SUM(IF(S_23AccNo=$B40,IF(S_23FieldRank<=S_23Choice,S_23Amount,0),0)) -> 0 | AG40: 0 | AH40: =SUM(IF(S_5AccNO=$B40,IF(S_5FieldRank<=S_5Choice,S_5Amount,0),0)) -> 0
B41: 8106 | C41: Office Supply | D41: 6300 | E41: 2500 | F41: 8000 | G41: 4000 | H41: Office Supply | I41: =SUM(IF(S1AccNO=B41,IF(S1FieldRank<=S1Choice,S1Amount,0),0)) -> 2000 | J41: =SUM(IF(S_2AccNO=$B41,IF(S_2FieldRank<=S_2Choice,S_2Amount,0),0)) -> 0 | K41: =SUM(IF(S_6AccNO=$B41,IF(S_6FieldRank<=s_6Choice,S_6Amount,0),0)) -> 1700 | L41: =SUM(IF(S_7AccNO=$B41,IF(S_7FieldRank<=S_7Choice,S_7Amount,0),0)) -> 0 | M41: =SUM(IF(S_8AccNO=$B41,IF(S_8FieldRank<=S_8Choice,S_8Amount,0),0)) -> 0 | N41: Office Supply | O41: =SUM(IF(S_11AccNO=$B41,IF(S_11FieldRank<=S_11Choice,S_11Amount,0),0)) -> 300 | P41: =SUM(IF(S_3AccNO=$B41,IF(S_3FieldRank<=S_3Choice,S_3Amount,0),0)) -> 0 | Q41: =SUM(IF(S_4AccNO=$B41,IF(S_4FieldRank<=S_4Choice,S_4Amount,0),0)) -> 0 | R41: =SUM(IF(S_10AccNO=$B41,IF(S_10FieldRank<=S_10Choice,S_10Amount,0),0)) -> 0 | S41: =SUM(IF(S_13AccNO=$B41,IF(S_13FieldRank<=S_13Choice,S_13Amount,0),0)) -> 0 | T41: =SUM(IF(S_12AccNO=$B41,IF(S_12FieldRank<=S_12Choice,S_12Amount,0),0)) -> 0 | U41: =SUM(IF(S_15AccNO=$B41,IF(S_15FieldRank<=S_15Choice,S_15Amount,0),0)) -> 0 | V41: =SUM(IF(S_16AccNO=$B41,IF(S_16FieldRank<=S_16Choice,S_16Amount,0),0)) -> 0 | W41: =SUM(IF(S_17AccNO=$B41,IF(S_17FieldRank<=S_17Choice,S_17Amount,0),0)) -> 0 | X41: Office Supply | Y41: =SUM(IF(S_18AccNO=$B41,IF(S_18FieldRank<=S_18Choice,S_18Amount,0),0)) -> 1900 | Z41: =SUM(IF(S_9AccNO=$B41,IF(S_9FieldRank<=S_9Choice,S_9Amount,0),0)) -> 1500 | AA41: =SUM(IF(S_19AccNO=$B41,IF(S_19FieldRank<=S_19Choice,S_19Amount,0),0)) -> 0 | AB41: =SUM(IF(S_20AccNo=$B41,IF(S_20FieldRank<=S_20Choice,S_20Amount,0),0)) -> 0 | AC41: =SUM(IF(S_21AccNo=$B41,IF(S_21FieldRank<=S_21Choice,S_21Amount,0),0)) -> 0 | AD41: =SUM(IF(S_22AccNo=$B41,IF(S_22FieldRank<=S_22Choice,S_22Amount,0),0)) -> 0 | AF41: 600 | AG41: 0 | AH41: =SUM(IF(S_5AccNO=$B41,IF(S_5FieldRank<=S_5Choice,S_5Amount,0),0)) -> 0
B42: 8107 | C42: Printing and Supplies | D42: 38900 | E42: 38600 | F42: 11100 | G42: 10800 | H42: Printing and Supplies | I42: =SUM(IF(S1AccNO=B42,IF(S1FieldRank<=S1Choice,S1Amount,0),0)) -> 0 | J42: =SUM(IF(S_2AccNO=$B42,IF(S_2FieldRank<=S_2Choice,S_2Amount,0),0)) -> 0 | K42: =SUM(IF(S_6AccNO=$B42,IF(S_6FieldRank<=s_6Choice,S_6Amount,0),0)) -> 0 | L42: =SUM(IF(S_7AccNO=$B42,IF(S_7FieldRank<=S_7Choice,S_7Amount,0),0)) -> 0 | M42: =SUM(IF(S_8AccNO=$B42,IF(S_8FieldRank<=S_8Choice,S_8Amount,0),0)) -> 300 | N42: Printing and Supplies | O42: =SUM(IF(S_11AccNO=$B42,IF(S_11FieldRank<=S_11Choice,S_11Amount,0),0)) -> 0 | P42: =SUM(IF(S_3AccNO=$B42,IF(S_3FieldRank<=S_3Choice,S_3Amount,0),0)) -> 0 | Q42: =SUM(IF(S_4AccNO=$B42,IF(S_4FieldRank<=S_4Choice,S_4Amount,0),0)) -> 0 | R42: =SUM(IF(S_10AccNO=$B42,IF(S_10FieldRank<=S_10Choice,S_10Amount,0),0)) -> 0 | S42: =SUM(IF(S_13AccNO=$B42,IF(S_13FieldRank<=S_13Choice,S_13Amount,0),0)) -> 0 | T42: =SUM(IF(S_12AccNO=$B42,IF(S_12FieldRank<=S_12Choice,S_12Amount,0),0)) -> 0 | U42: =SUM(IF(S_15AccNO=$B42,IF(S_15FieldRank<=S_15Choice,S_15Amount,0),0)) -> 0 | V42: =SUM(IF(S_16AccNO=$B42,IF(S_16FieldRank<=S_16Choice,S_16Amount,0),0)) -> 0 | W42: =SUM(IF(S_17AccNO=$B42,IF(S_17FieldRank<=S_17Choice,S_17Amount,0),0)) -> 0 | X42: Printing and Supplies | Y42: =SUM(IF(S_18AccNO=$B42,IF(S_18FieldRank<=S_18Choice,S_18Amount,0),0)) -> 0 | Z42: =SUM(IF(S_9AccNO=$B42,IF(S_9FieldRank<=S_9Choice,S_9Amount,0),0)) -> 10800 | AA42: =SUM(IF(S_19AccNO=$B42,IF(S_19FieldRank<=S_19Choice,S_19Amount,0),0)) -> 0 | AB42: =SUM(IF(S_20AccNo=$B42,IF(S_20FieldRank<=S_20Choice,S_20Amount,0),0)) -> 0 | AC42: =SUM(IF(S_21AccNo=$B42,IF(S_21FieldRank<=S_21Choice,S_21Amount,0),0)) -> 0 | AD42: =SUM(IF(S_22AccNo=$B42,IF(S_22FieldRank<=S_22Choice,S_22Amount,0),0)) -> 0 | AF42: =SUM(IF(S_23AccNo=$B42,IF(S_23FieldRank<=S_23Choice,S_23Amount,0),0)) -> 0 | AG42: 0 | AH42: =SUM(IF(S_5AccNO=$B42,IF(S_5FieldRank<=S_5Choice,S_5Amount,0),0)) -> 0
B43: 8108 | C43: General Ministry Supply | D43: 22250 | E43: 200 | F43: 29050 | G43: 500 | H43: General Ministry Supply | I43: =SUM(IF(S1AccNO=B43,IF(S1FieldRank<=S1Choice,S1Amount,0),0)) -> 1000 | J43: =SUM(IF(S_2AccNO=$B43,IF(S_2FieldRank<=S_2Choice,S_2Amount,0),0)) -> 0 | K43: =SUM(IF(S_6AccNO=$B43,IF(S_6FieldRank<=s_6Choice,S_6Amount,0),0)) -> 0 | L43: =SUM(IF(S_7AccNO=$B43,IF(S_7FieldRank<=S_7Choice,S_7Amount,0),0)) -> 4000 | M43: =SUM(IF(S_8AccNO=$B43,IF(S_8FieldRank<=S_8Choice,S_8Amount,0),0)) -> 1350 | N43: General Ministry Supply | O43: =SUM(IF(S_11AccNO=$B43,IF(S_11FieldRank<=S_11Choice,S_11Amount,0),0)) -> 2400 | P43: =SUM(IF(S_3AccNO=$B43,IF(S_3FieldRank<=S_3Choice,S_3Amount,0),0)) -> 12000 | Q43: =SUM(IF(S_4AccNO=$B43,IF(S_4FieldRank<=S_4Choice,S_4Amount,0),0)) -> 600 | R43: =SUM(IF(S_10AccNO=$B43,IF(S_10FieldRank<=S_10Choice,S_10Amount,0),0)) -> 0 | S43: =SUM(IF(S_13AccNO=$B43,IF(S_13FieldRank<=S_13Choice,S_13Amount,0),0)) -> 0 | T43: =SUM(IF(S_12AccNO=$B43,IF(S_12FieldRank<=S_12Choice,S_12Amount,0),0)) -> 700 | U43: =SUM(IF(S_15AccNO=$B43,IF(S_15FieldRank<=S_15Choice,S_15Amount,0),0)) -> 0 | V43: =SUM(IF(S_16AccNO=$B43,IF(S_16FieldRank<=S_16Choice,S_16Amount,0),0)) -> 0 | W43: =SUM(IF(S_17AccNO=$B43,IF(S_17FieldRank<=S_17Choice,S_17Amount,0),0)) -> 6500 | X43: General Ministry Supply | Y43: =SUM(IF(S_18AccNO=$B43,IF(S_18FieldRank<=S_18Choice,S_18Amount,0),0)) -> 0 | Z43: =SUM(IF(S_9AccNO=$B43,IF(S_9FieldRank<=S_9Choice,S_9Amount,0),0)) -> 0 | AA43: =SUM(IF(S_19AccNO=$B43,IF(S_19FieldRank<=S_19Choice,S_19Amount,0),0)) -> 0 | AB43: =SUM(IF(S_20AccNo=$B43,IF(S_20FieldRank<=S_20Choice,S_20Amount,0),0)) -> 0 | AC43: =SUM(IF(S_21AccNo=$B43,IF(S_21FieldRank<=S_21Choice,S_21Amount,0),0)) -> 0 | AD43: =SUM(IF(S_22AccNo=$B43,IF(S_22FieldRank<=S_22Choice,S_22Amount,0),0)) -> 0 | AF43: 500 | AG43: 0 | AH43: =SUM(IF(S_5AccNO=$B43,IF(S_5FieldRank<=S_5Choice,S_5Amount,0),0)) -> 0
B44: 8201 | C44: Telephone | D44: 7000 | E44: 4000 | F44: 7000 | G44: 4000 | H44: Telephone | I44: =SUM(IF(S1AccNO=B44,IF(S1FieldRank<=S1Choice,S1Amount,0),0)) -> 3000 | J44: =SUM(IF(S_2AccNO=$B44,IF(S_2FieldRank<=S_2Choice,S_2Amount,0),0)) -> 0 | K44: =SUM(IF(S_6AccNO=$B44,IF(S_6FieldRank<=s_6Choice,S_6Amount,0),0)) -> 0 | L44: =SUM(IF(S_7AccNO=$B44,IF(S_7FieldRank<=S_7Choice,S_7Amount,0),0)) -> 0 | M44: =SUM(IF(S_8AccNO=$B44,IF(S_8FieldRank<=S_8Choice,S_8Amount,0),0)) -> 0 | N44: Telephone | O44: =SUM(IF(S_11AccNO=$B44,IF(S_11FieldRank<=S_11Choice,S_11Amount,0),0)) -> 0 | P44: =SUM(IF(S_3AccNO=$B44,IF(S_3FieldRank<=S_3Choice,S_3Amount,0),0)) -> 0 | Q44: =SUM(IF(S_4AccNO=$B44,IF(S_4FieldRank<=S_4Choice,S_4Amount,0),0)) -> 0 | R44: =SUM(IF(S_10AccNO=$B44,IF(S_10FieldRank<=S_10Choice,S_10Amount,0),0)) -> 0 | S44: =SUM(IF(S_13AccNO=$B44,IF(S_13FieldRank<=S_13Choice,S_13Amount,0),0)) -> 0 | T44: =SUM(IF(S_12AccNO=$B44,IF(S_12FieldRank<=S_12Choice,S_12Amount,0),0)) -> 0 | U44: =SUM(IF(S_15AccNO=$B44,IF(S_15FieldRank<=S_15Choice,S_15Amount,0),0)) -> 0 | V44: =SUM(IF(S_16AccNO=$B44,IF(S_16FieldRank<=S_16Choice,S_16Amount,0),0)) -> 0 | W44: =SUM(IF(S_17AccNO=$B44,IF(S_17FieldRank<=S_17Choice,S_17Amount,0),0)) -> 0 | X44: Telephone | Y44: =SUM(IF(S_18AccNO=$B44,IF(S_18FieldRank<=S_18Choice,S_18Amount,0),0)) -> 4000 | Z44: =SUM(IF(S_9AccNO=$B44,IF(S_9FieldRank<=S_9Choice,S_9Amount,0),0)) -> 0 | AA44: =SUM(IF(S_19AccNO=$B44,IF(S_19FieldRank<=S_19Choice,S_19Amount,0),0)) -> 0 | AB44: =SUM(IF(S_20AccNo=$B44,IF(S_20FieldRank<=S_20Choice,S_20Amount,0),0)) -> 0 | AC44: =SUM(IF(S_21AccNo=$B44,IF(S_21FieldRank<=S_21Choice,S_21Amount,0),0)) -> 0 | AD44: =SUM(IF(S_22AccNo=$B44,IF(S_22FieldRank<=S_22Choice,S_22Amount,0),0)) -> 0 | AF44: =SUM(IF(S_23AccNo=$B44,IF(S_23FieldRank<=S_23Choice,S_23Amount,0),0)) -> 0 | AG44: 0 | AH44: =SUM(IF(S_5AccNO=$B44,IF(S_5FieldRank<=S_5Choice,S_5Amount,0),0)) -> 0
B45: 8211 | C45: Computer & Technology | D45: 24613 | E45: 23813 | F45: 26892 | G45: 25262 | H45: Computer & Technology | I45: =SUM(IF(S1AccNO=B45,IF(S1FieldRank<=S1Choice,S1Amount,0),0)) -> 1600 | J45: =SUM(IF(S_2AccNO=$B45,IF(S_2FieldRank<=S_2Choice,S_2Amount,0),0)) -> 0 | K45: =SUM(IF(S_6AccNO=$B45,IF(S_6FieldRank<=s_6Choice,S_6Amount,0),0)) -> 0 | L45: =SUM(IF(S_7AccNO=$B45,IF(S_7FieldRank<=S_7Choice,S_7Amount,0),0)) -> 0 | M45: =SUM(IF(S_8AccNO=$B45,IF(S_8FieldRank<=S_8Choice,S_8Amount,0),0)) -> 0 | N45: Computer & Technology | O45: =SUM(IF(S_11AccNO=$B45,IF(S_11FieldRank<=S_11Choice,S_11Amount,0),0)) -> 0 | P45: =SUM(IF(S_3AccNO=$B45,IF(S_3FieldRank<=S_3Choice,S_3Amount,0),0)) -> 30 | Q45: =SUM(IF(S_4AccNO=$B45,IF(S_4FieldRank<=S_4Choice,S_4Amount,0),0)) -> 0 | R45: =SUM(IF(S_10AccNO=$B45,IF(S_10FieldRank<=S_10Choice,S_10Amount,0),0)) -> 0 | S45: =SUM(IF(S_13AccNO=$B45,IF(S_13FieldRank<=S_13Choice,S_13Amount,0),0)) -> 0 | T45: =SUM(IF(S_12AccNO=$B45,IF(S_12FieldRank<=S_12Choice,S_12Amount,0),0)) -> 0 | U45: =SUM(IF(S_15AccNO=$B45,IF(S_15FieldRank<=S_15Choice,S_15Amount,0),0)) -> 0 | V45: =SUM(IF(S_16AccNO=$B45,IF(S_16FieldRank<=S_16Choice,S_16Amount,0),0)) -> 0 | W45: =SUM(IF(S_17AccNO=$B45,IF(S_17FieldRank<=S_17Choice,S_17Amount,0),0)) -> 0 | X45: Computer & Technology | Y45: =SUM(IF(S_18AccNO=$B45,IF(S_18FieldRank<=S_18Choice,S_18Amount,0),0)) -> 0 | Z45: =SUM(IF(S_9AccNO=$B45,IF(S_9FieldRank<=S_9Choice,S_9Amount,0),0)) -> 400 | AA45: =SUM(IF(S_19AccNO=$B45,IF(S_19FieldRank<=S_19Choice,S_19Amount,0),0)) -> 0 | AB45: =SUM(IF(S_20AccNo=$B45,IF(S_20FieldRank<=S_20Choice,S_20Amount,0),0)) -> 0 | AC45: =SUM(IF(S_21AccNo=$B45,IF(S_21FieldRank<=S_21Choice,S_21Amount,0),0)) -> 24862 | AD45: =SUM(IF(S_22AccNo=$B45,IF(S_22FieldRank<=S_22Choice,S_22Amount,0),0)) -> 0 | AF45: =SUM(IF(S_23AccNo=$B45,IF(S_23FieldRank<=S_23Choice,S_23Amount,0),0)) -> 0 | AG45: 0 | AH45: =SUM(IF(S_5AccNO=$B45,IF(S_5FieldRank<=S_5Choice,S_5Amount,0),0)) -> 0
B46: 8301 | C46: Postage & Shipping | D46: 12900 | E46: 12100 | F46: 23450 | G46: 22250 | H46: Postage & Shipping | I46: =SUM(IF(S1AccNO=B46,IF(S1FieldRank<=S1Choice,S1Amount,0),0)) -> 400 | J46: =SUM(IF(S_2AccNO=$B46,IF(S_2FieldRank<=S_2Choice,S_2Amount,0),0)) -> 0 | K46: =SUM(IF(S_6AccNO=$B46,IF(S_6FieldRank<=s_6Choice,S_6Amount,0),0)) -> 0 | L46: =SUM(IF(S_7AccNO=$B46,IF(S_7FieldRank<=S_7Choice,S_7Amount,0),0)) -> 0 | M46: =SUM(IF(S_8AccNO=$B46,IF(S_8FieldRank<=S_8Choice,S_8Amount,0),0)) -> 0 | N46: Postage & Shipping | O46: =SUM(IF(S_11AccNO=$B46,IF(S_11FieldRank<=S_11Choice,S_11Amount,0),0)) -> 0 | P46: =SUM(IF(S_3AccNO=$B46,IF(S_3FieldRank<=S_3Choice,S_3Amount,0),0)) -> 500 | Q46: =SUM(IF(S_4AccNO=$B46,IF(S_4FieldRank<=S_4Choice,S_4Amount,0),0)) -> 0 | R46: =SUM(IF(S_10AccNO=$B46,IF(S_10FieldRank<=S_10Choice,S_10Amount,0),0)) -> 0 | S46: =SUM(IF(S_13AccNO=$B46,IF(S_13FieldRank<=S_13Choice,S_13Amount,0),0)) -> 0 | T46: =SUM(IF(S_12AccNO=$B46,IF(S_12FieldRank<=S_12Choice,S_12Amount,0),0)) -> 300 | U46: =SUM(IF(S_15AccNO=$B46,IF(S_15FieldRank<=S_15Choice,S_15Amount,0),0)) -> 0 | V46: =SUM(IF(S_16AccNO=$B46,IF(S_16FieldRank<=S_16Choice,S_16Amount,0),0)) -> 0 | W46: =SUM(IF(S_17AccNO=$B46,IF(S_17FieldRank<=S_17Choice,S_17Amount,0),0)) -> 0 | X46: Postage & Shipping | Y46: =SUM(IF(S_18AccNO=$B46,IF(S_18FieldRank<=S_18Choice,S_18Amount,0),0)) -> 8500 | Z46: =SUM(IF(S_9AccNO=$B46,IF(S_9FieldRank<=S_9Choice,S_9Amount,0),0)) -> 13750 | AA46: =SUM(IF(S_19AccNO=$B46,IF(S_19FieldRank<=S_19Choice,S_19Amount,0),0)) -> 0 | AB46: =SUM(IF(S_20AccNo=$B46,IF(S_20FieldRank<=S_20Choice,S_20Amount,0),0)) -> 0 | AC46: =SUM(IF(S_21AccNo=$B46,IF(S_21FieldRank<=S_21Choice,S_21Amount,0),0)) -> 0 | AD46: =SUM(IF(S_22AccNo=$B46,IF(S_22FieldRank<=S_22Choice,S_22Amount,0),0)) -> 0 | AF46: =SUM(IF(S_23AccNo=$B46,IF(S_23FieldRank<=S_23Choice,S_23Amount,0),0)) -> 0 | AG46: 0 | AH46: =SUM(IF(S_5AccNO=$B46,IF(S_5FieldRank<=S_5Choice,S_5Amount,0),0)) -> 0
B47: 8402 | C47: Rent Expense | D47: 17539 | E47: 6000 | F47: 35974 | G47: 0 | H47: Rent Expense | I47: =SUM(IF(S1AccNO=B47,IF(S1FieldRank<=S1Choice,S1Amount,0),0)) -> 0 | J47: =SUM(IF(S_2AccNO=$B47,IF(S_2FieldRank<=S_2Choice,S_2Amount,0),0)) -> 0 | K47: =SUM(IF(S_6AccNO=$B47,IF(S_6FieldRank<=s_6Choice,S_6Amount,0),0)) -> 1200 | L47: =SUM(IF(S_7AccNO=$B47,IF(S_7FieldRank<=S_7Choice,S_7Amount,0),0)) -> 0 | M47: =SUM(IF(S_8AccNO=$B47,IF(S_8FieldRank<=S_8Choice,S_8Amount,0),0)) -> 2250 | N47: Rent Expense | O47: =SUM(IF(S_11AccNO=$B47,IF(S_11FieldRank<=S_11Choice,S_11Amount,0),0)) -> 0 | P47: =SUM(IF(S_3AccNO=$B47,IF(S_3FieldRank<=S_3Choice,S_3Amount,0),0)) -> 8544 | Q47: =SUM(IF(S_4AccNO=$B47,IF(S_4FieldRank<=S_4Choice,S_4Amount,0),0)) -> 2980 | R47: =SUM(IF(S_10AccNO=$B47,IF(S_10FieldRank<=S_10Choice,S_10Amount,0),0)) -> 0 | S47: =SUM(IF(S_13AccNO=$B47,IF(S_13FieldRank<=S_13Choice,S_13Amount,0),0)) -> 0 | T47: =SUM(IF(S_12AccNO=$B47,IF(S_12FieldRank<=S_12Choice,S_12Amount,0),0)) -> 21000 | U47: =SUM(IF(S_15AccNO=$B47,IF(S_15FieldRank<=S_15Choice,S_15Amount,0),0)) -> 0 | V47: =SUM(IF(S_16AccNO=$B47,IF(S_16FieldRank<=S_16Choice,S_16Amount,0),0)) -> 0 | W47: =SUM(IF(S_17AccNO=$B47,IF(S_17FieldRank<=S_17Choice,S_17Amount,0),0)) -> 0 | X47: Rent Expense | Y47: =SUM(IF(S_18AccNO=$B47,IF(S_18FieldRank<=S_18Choice,S_18Amount,0),0)) -> 0 | AA47: =SUM(IF(S_19AccNO=$B47,IF(S_19FieldRank<=S_19Choice,S_19Amount,0),0)) -> 0 | AB47: =SUM(IF(S_20AccNo=$B47,IF(S_20FieldRank<=S_20Choice,S_20Amount,0),0)) -> 0 | AC47: =SUM(IF(S_21AccNo=$B47,IF(S_21FieldRank<=S_21Choice,S_21Amount,0),0)) -> 0 | AD47: =SUM(IF(S_22AccNo=$B47,IF(S_22FieldRank<=S_22Choice,S_22Amount,0),0)) -> 0 | AF47: =SUM(IF(S_23AccNo=$B47,IF(S_23FieldRank<=S_23Choice,S_23Amount,0),0)) -> 0 | AG47: 0 | AH47: =SUM(IF(S_5AccNO=$B47,IF(S_5FieldRank<=S_5Choice,S_5Amount,0),0)) -> 0
B48: 8403 | C48: Bldg. & Equip Insurance | D48: 7700 | E48: 3500 | F48: 7950 | G48: 3650 | H48: Bldg. & Equip Insurance | I48: =SUM(IF(S1AccNO=B48,IF(S1FieldRank<=S1Choice,S1Amount,0),0)) -> 0 | J48: =SUM(IF(S_2AccNO=$B48,IF(S_2FieldRank<=S_2Choice,S_2Amount,0),0)) -> 0 | K48: =SUM(IF(S_6AccNO=$B48,IF(S_6FieldRank<=s_6Choice,S_6Amount,0),0)) -> 0 | L48: =SUM(IF(S_7AccNO=$B48,IF(S_7FieldRank<=S_7Choice,S_7Amount,0),0)) -> 0 | M48: =SUM(IF(S_8AccNO=$B48,IF(S_8FieldRank<=S_8Choice,S_8Amount,0),0)) -> 0 | N48: Bldg. & Equip Insurance | O48: =SUM(IF(S_11AccNO=$B48,IF(S_11FieldRank<=S_11Choice,S_11Amount,0),0)) -> 0 | P48: =SUM(IF(S_3AccNO=$B48,IF(S_3FieldRank<=S_3Choice,S_3Amount,0),0)) -> 0 | Q48: =SUM(IF(S_4AccNO=$B48,IF(S_4FieldRank<=S_4Choice,S_4Amount,0),0)) -> 0 | R48: =SUM(IF(S_10AccNO=$B48,IF(S_10FieldRank<=S_10Choice,S_10Amount,0),0)) -> 0 | S48: =SUM(IF(S_13AccNO=$B48,IF(S_13FieldRank<=S_13Choice,S_13Amount,0),0)) -> 0 | T48: =SUM(IF(S_12AccNO=$B48,IF(S_12FieldRank<=S_12Choice,S_12Amount,0),0)) -> 0 | U48: =SUM(IF(S_15AccNO=$B48,IF(S_15FieldRank<=S_15Choice,S_15Amount,0),0)) -> 4300 | V48: =SUM(IF(S_16AccNO=$B48,IF(S_16FieldRank<=S_16Choice,S_16Amount,0),0)) -> 0 | W48: =SUM(IF(S_17AccNO=$B48,IF(S_17FieldRank<=S_17Choice,S_17Amount,0),0)) -> 0 | X48: Bldg. & Equip Insurance | Y48: =SUM(IF(S_18AccNO=$B48,IF(S_18FieldRank<=S_18Choice,S_18Amount,0),0)) -> 3650 | Z48: =SUM(IF(S_9AccNO=$B48,IF(S_9FieldRank<=S_9Choice,S_9Amount,0),0)) -> 0 | AA48: =SUM(IF(S_19AccNO=$B48,IF(S_19FieldRank<=S_19Choice,S_19Amount,0),0)) -> 0 | AB48: =SUM(IF(S_20AccNo=$B48,IF(S_20FieldRank<=S_20Choice,S_20Amount,0),0)) -> 0 | AC48: =SUM(IF(S_21AccNo=$B48,IF(S_21FieldRank<=S_21Choice,S_21Amount,0),0)) -> 0 | AD48: =SUM(IF(S_22AccNo=$B48,IF(S_22FieldRank<=S_22Choice,S_22Amount,0),0)) -> 0 | AF48: =SUM(IF(S_23AccNo=$B48,IF(S_23FieldRank<=S_23Choice,S_23Amount,0),0)) -> 0 | AG48: 0 | AH48: =SUM(IF(S_5AccNO=$B48,IF(S_5FieldRank<=S_5Choice,S_5Amount,0),0)) -> 0
B49: 8405 | C49: Utilities | D49: 31960 | E49: 3400 | F49: 31300 | G49: 3550 | H49: Utilities | I49: =SUM(IF(S1AccNO=B49,IF(S1FieldRank<=S1Choice,S1Amount,0),0)) -> 0 | J49: =SUM(IF(S_2AccNO=$B49,IF(S_2FieldRank<=S_2Choice,S_2Amount,0),0)) -> 0 | K49: =SUM(IF(S_6AccNO=$B49,IF(S_6FieldRank<=s_6Choice,S_6Amount,0),0)) -> 0 | L49: =SUM(IF(S_7AccNO=$B49,IF(S_7FieldRank<=S_7Choice,S_7Amount,0),0)) -> 0 | M49: =SUM(IF(S_8AccNO=$B49,IF(S_8FieldRank<=S_8Choice,S_8Amount,0),0)) -> 0 | N49: Utilities | O49: =SUM(IF(S_11AccNO=$B49,IF(S_11FieldRank<=S_11Choice,S_11Amount,0),0)) -> 0 | P49: =SUM(IF(S_3AccNO=$B49,IF(S_3FieldRank<=S_3Choice,S_3Amount,0),0)) -> 3500 | Q49: =SUM(IF(S_4AccNO=$B49,IF(S_4FieldRank<=S_4Choice,S_4Amount,0),0)) -> 0 | R49: =SUM(IF(S_10AccNO=$B49,IF(S_10FieldRank<=S_10Choice,S_10Amount,0),0)) -> 0 | S49: =SUM(IF(S_13AccNO=$B49,IF(S_13FieldRank<=S_13Choice,S_13Amount,0),0)) -> 0 | T49: =SUM(IF(S_12AccNO=$B49,IF(S_12FieldRank<=S_12Choice,S_12Amount,0),0)) -> 0 | U49: =SUM(IF(S_15AccNO=$B49,IF(S_15FieldRank<=S_15Choice,S_15Amount,0),0)) -> 24250 | V49: =SUM(IF(S_16AccNO=$B49,IF(S_16FieldRank<=S_16Choice,S_16Amount,0),0)) -> 0 | W49: =SUM(IF(S_17AccNO=$B49,IF(S_17FieldRank<=S_17Choice,S_17Amount,0),0)) -> 0 | X49: Utilities | Y49: =SUM(IF(S_18AccNO=$B49,IF(S_18FieldRank<=S_18Choice,S_18Amount,0),0)) -> 3550 | Z49: =SUM(IF(S_9AccNO=$B49,IF(S_9FieldRank<=S_9Choice,S_9Amount,0),0)) -> 0 | AA49: =SUM(IF(S_19AccNO=$B49,IF(S_19FieldRank<=S_19Choice,S_19Amount,0),0)) -> 0 | AB49: =SUM(IF(S_20AccNo=$B49,IF(S_20FieldRank<=S_20Choice,S_20Amount,0),0)) -> 0 | AC49: =SUM(IF(S_21AccNo=$B49,IF(S_21FieldRank<=S_21Choice,S_21Amount,0),0)) -> 0 | AD49: =SUM(IF(S_22AccNo=$B49,IF(S_22FieldRank<=S_22Choice,S_22Amount,0),0)) -> 0 | AF49: =SUM(IF(S_23AccNo=$B49,IF(S_23FieldRank<=S_23Choice,S_23Amount,0),0)) -> 0 | AG49: 0 | AH49: =SUM(IF(S_5AccNO=$B49,IF(S_5FieldRank<=S_5Choice,S_5Amount,0),0)) -> 0
B50: 8408 | C50: Annuitant Payments | D50: 17000 | E50: 17000 | F50: 17000 | G50: 17000 | H50: Annuitant Payments | I50: =SUM(IF(S1AccNO=B50,IF(S1FieldRank<=S1Choice,S1Amount,0),0)) -> 0 | J50: =SUM(IF(S_2AccNO=$B50,IF(S_2FieldRank<=S_2Choice,S_2Amount,0),0)) -> 0 | K50: =SUM(IF(S_6AccNO=$B50,IF(S_6FieldRank<=s_6Choice,S_6Amount,0),0)) -> 0 | L50: =SUM(IF(S_7AccNO=$B50,IF(S_7FieldRank<=S_7Choice,S_7Amount,0),0)) -> 0 | M50: =SUM(IF(S_8AccNO=$B50,IF(S_8FieldRank<=S_8Choice,S_8Amount,0),0)) -> 0 | N50: Annuitant Payments | O50: =SUM(IF(S_11AccNO=$B50,IF(S_11FieldRank<=S_11Choice,S_11Amount,0),0)) -> 0 | P50: =SUM(IF(S_3AccNO=$B50,IF(S_3FieldRank<=S_3Choice,S_3Amount,0),0)) -> 0 | Q50: =SUM(IF(S_4AccNO=$B50,IF(S_4FieldRank<=S_4Choice,S_4Amount,0),0)) -> 0 | R50: =SUM(IF(S_10AccNO=$B50,IF(S_10FieldRank<=S_10Choice,S_10Amount,0),0)) -> 0 | S50: =SUM(IF(S_13AccNO=$B50,IF(S_13FieldRank<=S_13Choice,S_13Amount,0),0)) -> 0 | T50: =SUM(IF(S_12AccNO=$B50,IF(S_12FieldRank<=S_12Choice,S_12Amount,0),0)) -> 0 | U50: =SUM(IF(S_15AccNO=$B50,IF(S_15FieldRank<=S_15Choice,S_15Amount,0),0)) -> 0 | V50: =SUM(IF(S_16AccNO=$B50,IF(S_16FieldRank<=S_16Choice,S_16Amount,0),0)) -> 0 | W50: =SUM(IF(S_17AccNO=$B50,IF(S_17FieldRank<=S_17Choice,S_17Amount,0),0)) -> 0 | X50: Annuitant Payments | Y50: =SUM(IF(S_18AccNO=$B50,IF(S_18FieldRank<=S_18Choice,S_18Amount,0),0)) -> 0 | Z50: =SUM(IF(S_9AccNO=$B50,IF(S_9FieldRank<=S_9Choice,S_9Amount,0),0)) -> 0 | AA50: =SUM(IF(S_19AccNO=$B50,IF(S_19FieldRank<=S_19Choice,S_19Amount,0),0)) -> 0 | AB50: =SUM(IF(S_20AccNo=$B50,IF(S_20FieldRank<=S_20Choice,S_20Amount,0),0)) -> 0 | AC50: =SUM(IF(S_21AccNo=$B50,IF(S_21FieldRank<=S_21Choice,S_21Amount,0),0)) -> 0 | AD50: =SUM(IF(S_22AccNo=$B50,IF(S_22FieldRank<=S_22Choice,S_22Amount,0),0)) -> 0 | AF50: 17000 | AG50: 0 | AH50: =SUM(IF(S_5AccNO=$B50,IF(S_5FieldRank<=S_5Choice,S_5Amount,0),0)) -> 0
B51: 8410 | C51: Real Estate Tax | D51: 35000 | E51: 3200 | F51: 35800 | G51: 3300 | H51: Real Estate Tax | I51: =SUM(IF(S1AccNO=B51,IF(S1FieldRank<=S1Choice,S1Amount,0),0)) -> 0 | J51: =SUM(IF(S_2AccNO=$B51,IF(S_2FieldRank<=S_2Choice,S_2Amount,0),0)) -> 0 | K51: =SUM(IF(S_6AccNO=$B51,IF(S_6FieldRank<=s_6Choice,S_6Amount,0),0)) -> 0 | L51: =SUM(IF(S_7AccNO=$B51,IF(S_7FieldRank<=S_7Choice,S_7Amount,0),0)) -> 0 | M51: =SUM(IF(S_8AccNO=$B51,IF(S_8FieldRank<=S_8Choice,S_8Amount,0),0)) -> 0 | N51: Real Estate Tax | O51: =SUM(IF(S_11AccNO=$B51,IF(S_11FieldRank<=S_11Choice,S_11Amount,0),0)) -> 0 | P51: =SUM(IF(S_3AccNO=$B51,IF(S_3FieldRank<=S_3Choice,S_3Amount,0),0)) -> 0 | Q51: =SUM(IF(S_4AccNO=$B51,IF(S_4FieldRank<=S_4Choice,S_4Amount,0),0)) -> 0 | R51: =SUM(IF(S_10AccNO=$B51,IF(S_10FieldRank<=S_10Choice,S_10Amount,0),0)) -> 0 | S51: =SUM(IF(S_13AccNO=$B51,IF(S_13FieldRank<=S_13Choice,S_13Amount,0),0)) -> 0 | T51: =SUM(IF(S_12AccNO=$B51,IF(S_12FieldRank<=S_12Choice,S_12Amount,0),0)) -> 0 | U51: =SUM(IF(S_15AccNO=$B51,IF(S_15FieldRank<=S_15Choice,S_15Amount,0),0)) -> 32500 | V51: =SUM(IF(S_16AccNO=$B51,IF(S_16FieldRank<=S_16Choice,S_16Amount,0),0)) -> 0 | W51: =SUM(IF(S_17AccNO=$B51,IF(S_17FieldRank<=S_17Choice,S_17Amount,0),0)) -> 0 | X51: Real Estate Tax | Y51: =SUM(IF(S_18AccNO=$B51,IF(S_18FieldRank<=S_18Choice,S_18Amount,0),0)) -> 3300 | Z51: =SUM(IF(S_9AccNO=$B51,IF(S_9FieldRank<=S_9Choice,S_9Amount,0),0)) -> 0 | AA51: =SUM(IF(S_19AccNO=$B51,IF(S_19FieldRank<=S_19Choice,S_19Amount,0),0)) -> 0 | AB51: =SUM(IF(S_20AccNo=$B51,IF(S_20FieldRank<=S_20Choice,S_20Amount,0),0)) -> 0 | AC51: =SUM(IF(S_21AccNo=$B51,IF(S_21FieldRank<=S_21Choice,S_21Amount,0),0)) -> 0 | AD51: =SUM(IF(S_22AccNo=$B51,IF(S_22FieldRank<=S_22Choice,S_22Amount,0),0)) -> 0 | AF51: =SUM(IF(S_23AccNo=$B51,IF(S_23FieldRank<=S_23Choice,S_23Amount,0),0)) -> 0 | AG51: 0 | AH51: =SUM(IF(S_5AccNO=$B51,IF(S_5FieldRank<=S_5Choice,S_5Amount,0),0)) -> 0
B52: 8411 | C52: Grounds Maint. | D52: 16650 | E52: 2450 | F52: 44750 | G52: 3800 | H52: Grounds Maint. | I52: =SUM(IF(S1AccNO=B52,IF(S1FieldRank<=S1Choice,S1Amount,0),0)) -> 0 | J52: =SUM(IF(S_2AccNO=$B52,IF(S_2FieldRank<=S_2Choice,S_2Amount,0),0)) -> 0 | K52: =SUM(IF(S_6AccNO=$B52,IF(S_6FieldRank<=s_6Choice,S_6Amount,0),0)) -> 0 | L52: =SUM(IF(S_7AccNO=$B52,IF(S_7FieldRank<=S_7Choice,S_7Amount,0),0)) -> 0 | M52: =SUM(IF(S_8AccNO=$B52,IF(S_8FieldRank<=S_8Choice,S_8Amount,0),0)) -> 0 | N52: Grounds Maint. | O52: =SUM(IF(S_11AccNO=$B52,IF(S_11FieldRank<=S_11Choice,S_11Amount,0),0)) -> 0 | P52: =SUM(IF(S_3AccNO=$B52,IF(S_3FieldRank<=S_3Choice,S_3Amount,0),0)) -> 0 | Q52: =SUM(IF(S_4AccNO=$B52,IF(S_4FieldRank<=S_4Choice,S_4Amount,0),0)) -> 0 | R52: =SUM(IF(S_10AccNO=$B52,IF(S_10FieldRank<=S_10Choice,S_10Amount,0),0)) -> 0 | S52: =SUM(IF(S_13AccNO=$B52,IF(S_13FieldRank<=S_13Choice,S_13Amount,0),0)) -> 0 | T52: =SUM(IF(S_12AccNO=$B52,IF(S_12FieldRank<=S_12Choice,S_12Amount,0),0)) -> 0 | U52: =SUM(IF(S_15AccNO=$B52,IF(S_15FieldRank<=S_15Choice,S_15Amount,0),0)) -> 40950 | V52: =SUM(IF(S_16AccNO=$B52,IF(S_16FieldRank<=S_16Choice,S_16Amount,0),0)) -> 0 | W52: =SUM(IF(S_17AccNO=$B52,IF(S_17FieldRank<=S_17Choice,S_17Amount,0),0)) -> 0 | X52: Grounds Maint. | Y52: =SUM(IF(S_18AccNO=$B52,IF(S_18FieldRank<=S_18Choice,S_18Amount,0),0)) -> 3800 | Z52: =SUM(IF(S_9AccNO=$B52,IF(S_9FieldRank<=S_9Choice,S_9Amount,0),0)) -> 0 | AA52: =SUM(IF(S_19AccNO=$B52,IF(S_19FieldRank<=S_19Choice,S_19Amount,0),0)) -> 0 | AB52: =SUM(IF(S_20AccNo=$B52,IF(S_20FieldRank<=S_20Choice,S_20Amount,0),0)) -> 0 | AC52: =SUM(IF(S_21AccNo=$B52,IF(S_21FieldRank<=S_21Choice,S_21Amount,0),0)) -> 0 | AD52: =SUM(IF(S_22AccNo=$B52,IF(S_22FieldRank<=S_22Choice,S_22Amount,0),0)) -> 0 | AF52: =SUM(IF(S_23AccNo=$B52,IF(S_23FieldRank<=S_23Choice,S_23Amount,0),0)) -> 0 | AG52: 0 | AH52: =SUM(IF(S_5AccNO=$B52,IF(S_5FieldRank<=S_5Choice,S_5Amount,0),0)) -> 0
B53: 8413 | C53: Building Maint. | D53: 103700 | E53: 1800 | F53: 194100 | G53: 1100 | H53: Building Maint. | I53: =SUM(IF(S1AccNO=B53,IF(S1FieldRank<=S1Choice,S1Amount,0),0)) -> 0 | J53: =SUM(IF(S_2AccNO=$B53,IF(S_2FieldRank<=S_2Choice,S_2Amount,0),0)) -> 0 | K53: =SUM(IF(S_6AccNO=$B53,IF(S_6FieldRank<=s_6Choice,S_6Amount,0),0)) -> 0 | L53: =SUM(IF(S_7AccNO=$B53,IF(S_7FieldRank<=S_7Choice,S_7Amount,0),0)) -> 0 | M53: =SUM(IF(S_8AccNO=$B53,IF(S_8FieldRank<=S_8Choice,S_8Amount,0),0)) -> 0 | N53: Building Maint. | O53: =SUM(IF(S_11AccNO=$B53,IF(S_11FieldRank<=S_11Choice,S_11Amount,0),0)) -> 0 | P53: =SUM(IF(S_3AccNO=$B53,IF(S_3FieldRank<=S_3Choice,S_3Amount,0),0)) -> 0 | Q53: =SUM(IF(S_4AccNO=$B53,IF(S_4FieldRank<=S_4Choice,S_4Amount,0),0)) -> 0 | R53: =SUM(IF(S_10AccNO=$B53,IF(S_10FieldRank<=S_10Choice,S_10Amount,0),0)) -> 0 | S53: =SUM(IF(S_13AccNO=$B53,IF(S_13FieldRank<=S_13Choice,S_13Amount,0),0)) -> 0 | T53: =SUM(IF(S_12AccNO=$B53,IF(S_12FieldRank<=S_12Choice,S_12Amount,0),0)) -> 0 | U53: =SUM(IF(S_15AccNO=$B53,IF(S_15FieldRank<=S_15Choice,S_15Amount,0),0)) -> 191000 | V53: =SUM(IF(S_16AccNO=$B53,IF(S_16FieldRank<=S_16Choice,S_16Amount,0),0)) -> 0 | W53: =SUM(IF(S_17AccNO=$B53,IF(S_17FieldRank<=S_17Choice,S_17Amount,0),0)) -> 2000 | X53: Building Maint. | Y53: =SUM(IF(S_18AccNO=$B53,IF(S_18FieldRank<=S_18Choice,S_18Amount,0),0)) -> 1100 | Z53: =SUM(IF(S_9AccNO=$B53,IF(S_9FieldRank<=S_9Choice,S_9Amount,0),0)) -> 0 | AA53: =SUM(IF(S_19AccNO=$B53,IF(S_19FieldRank<=S_19Choice,S_19Amount,0),0)) -> 0 | AB53: =SUM(IF(S_20AccNo=$B53,IF(S_20FieldRank<=S_20Choice,S_20Amount,0),0)) -> 0 | AC53: =SUM(IF(S_21AccNo=$B53,IF(S_21FieldRank<=S_21Choice,S_21Amount,0),0)) -> 0 | AD53: =SUM(IF(S_22AccNo=$B53,IF(S_22FieldRank<=S_22Choice,S_22Amount,0),0)) -> 0 | AF53: =SUM(IF(S_23AccNo=$B53,IF(S_23FieldRank<=S_23Choice,S_23Amount,0),0)) -> 0 | AG53: 0 | AH53: =SUM(IF(S_5AccNO=$B53,IF(S_5FieldRank<=S_5Choice,S_5Amount,0),0)) -> 0
B54: 8502 | C54: Equipment Maint. | D54: 13675 | E54: 3075 | F54: 14650 | G54: 3150 | H54: Equipment Maint. | I54: =SUM(IF(S1AccNO=B54,IF(S1FieldRank<=S1Choice,S1Amount,0),0)) -> 1500 | J54: =SUM(IF(S_2AccNO=$B54,IF(S_2FieldRank<=S_2Choice,S_2Amount,0),0)) -> 0 | K54: =SUM(IF(S_6AccNO=$B54,IF(S_6FieldRank<=s_6Choice,S_6Amount,0),0)) -> 0 | L54: =SUM(IF(S_7AccNO=$B54,IF(S_7FieldRank<=S_7Choice,S_7Amount,0),0)) -> 0 | M54: =SUM(IF(S_8AccNO=$B54,IF(S_8FieldRank<=S_8Choice,S_8Amount,0),0)) -> 0 | N54: Equipment Maint. | O54: =SUM(IF(S_11AccNO=$B54,IF(S_11FieldRank<=S_11Choice,S_11Amount,0),0)) -> 0 | P54: =SUM(IF(S_3AccNO=$B54,IF(S_3FieldRank<=S_3Choice,S_3Amount,0),0)) -> 0 | Q54: =SUM(IF(S_4AccNO=$B54,IF(S_4FieldRank<=S_4Choice,S_4Amount,0),0)) -> 0 | R54: =SUM(IF(S_10AccNO=$B54,IF(S_10FieldRank<=S_10Choice,S_10Amount,0),0)) -> 0 | S54: =SUM(IF(S_13AccNO=$B54,IF(S_13FieldRank<=S_13Choice,S_13Amount,0),0)) -> 0 | T54: =SUM(IF(S_12AccNO=$B54,IF(S_12FieldRank<=S_12Choice,S_12Amount,0),0)) -> 0 | U54: =SUM(IF(S_15AccNO=$B54,IF(S_15FieldRank<=S_15Choice,S_15Amount,0),0)) -> 10000 | V54: =SUM(IF(S_16AccNO=$B54,IF(S_16FieldRank<=S_16Choice,S_16Amount,0),0)) -> 0 | W54: =SUM(IF(S_17AccNO=$B54,IF(S_17FieldRank<=S_17Choice,S_17Amount,0),0)) -> 0 | X54: Equipment Maint. | Y54: =SUM(IF(S_18AccNO=$B54,IF(S_18FieldRank<=S_18Choice,S_18Amount,0),0)) -> 3150 | Z54: =SUM(IF(S_9AccNO=$B54,IF(S_9FieldRank<=S_9Choice,S_9Amount,0),0)) -> 0 | AA54: =SUM(IF(S_19AccNO=$B54,IF(S_19FieldRank<=S_19Choice,S_19Amount,0),0)) -> 0 | AB54: =SUM(IF(S_20AccNo=$B54,IF(S_20FieldRank<=S_20Choice,S_20Amount,0),0)) -> 0 | AC54: =SUM(IF(S_21AccNo=$B54,IF(S_21FieldRank<=S_21Choice,S_21Amount,0),0)) -> 0 | AD54: =SUM(IF(S_22AccNo=$B54,IF(S_22FieldRank<=S_22Choice,S_22Amount,0),0)) -> 0 | AF54: =SUM(IF(S_23AccNo=$B54,IF(S_23FieldRank<=S_23Choice,S_23Amount,0),0)) -> 0 | AG54: 0 | AH54: =SUM(IF(S_5AccNO=$B54,IF(S_5FieldRank<=S_5Choice,S_5Amount,0),0)) -> 0
B55: 8510 | C55: Small Equip. Purchase | D55: 19700 | E55: 700 | F55: 24700 | G55: 700 | H55: Small Equip. Purchase | I55: =SUM(IF(S1AccNO=B55,IF(S1FieldRank<=S1Choice,S1Amount,0),0)) -> 0 | J55: =SUM(IF(S_2AccNO=$B55,IF(S_2FieldRank<=S_2Choice,S_2Amount,0),0)) -> 0 | K55: =SUM(IF(S_6AccNO=$B55,IF(S_6FieldRank<=s_6Choice,S_6Amount,0),0)) -> 0 | L55: =SUM(IF(S_7AccNO=$B55,IF(S_7FieldRank<=S_7Choice,S_7Amount,0),0)) -> 0 | M55: =SUM(IF(S_8AccNO=$B55,IF(S_8FieldRank<=S_8Choice,S_8Amount,0),0)) -> 0 | N55: Small Equip. Purchase | O55: =SUM(IF(S_11AccNO=$B55,IF(S_11FieldRank<=S_11Choice,S_11Amount,0),0)) -> 0 | P55: =SUM(IF(S_3AccNO=$B55,IF(S_3FieldRank<=S_3Choice,S_3Amount,0),0)) -> 0 | Q55: =SUM(IF(S_4AccNO=$B55,IF(S_4FieldRank<=S_4Choice,S_4Amount,0),0)) -> 0 | R55: =SUM(IF(S_10AccNO=$B55,IF(S_10FieldRank<=S_10Choice,S_10Amount,0),0)) -> 0 | S55: =SUM(IF(S_13AccNO=$B55,IF(S_13FieldRank<=S_13Choice,S_13Amount,0),0)) -> 0 | T55: =SUM(IF(S_12AccNO=$B55,IF(S_12FieldRank<=S_12Choice,S_12Amount,0),0)) -> 0 | U55: =SUM(IF(S_15AccNO=$B55,IF(S_15FieldRank<=S_15Choice,S_15Amount,0),0)) -> 20000 | V55: =SUM(IF(S_16AccNO=$B55,IF(S_16FieldRank<=S_16Choice,S_16Amount,0),0)) -> 0 | W55: =SUM(IF(S_17AccNO=$B55,IF(S_17FieldRank<=S_17Choice,S_17Amount,0),0)) -> 4000 | X55: Small Equip. Purchase | Y55: =SUM(IF(S_18AccNO=$B55,IF(S_18FieldRank<=S_18Choice,S_18Amount,0),0)) -> 0 | Z55: =SUM(IF(S_9AccNO=$B55,IF(S_9FieldRank<=S_9Choice,S_9Amount,0),0)) -> 700 | AA55: =SUM(IF(S_19AccNO=$B55,IF(S_19FieldRank<=S_19Choice,S_19Amount,0),0)) -> 0 | AB55: =SUM(IF(S_20AccNo=$B55,IF(S_20FieldRank<=S_20Choice,S_20Amount,0),0)) -> 0 | AC55: =SUM(IF(S_21AccNo=$B55,IF(S_21FieldRank<=S_21Choice,S_21Amount,0),0)) -> 0 | AD55: =SUM(IF(S_22AccNo=$B55,IF(S_22FieldRank<=S_22Choice,S_22Amount,0),0)) -> 0 | AF55: =SUM(IF(S_23AccNo=$B55,IF(S_23FieldRank<=S_23Choice,S_23Amount,0),0)) -> 0 | AG55: 0 | AH55: =SUM(IF(S_5AccNO=$B55,IF(S_5FieldRank<=S_5Choice,S_5Amount,0),0)) -> 0
B56: 8602 | C56: Artwork & Graphics | D56: 1400 | E56: 1400 | F56: 500 | G56: 500 | H56: Artwork & Graphics | I56: =SUM(IF(S1AccNO=B56,IF(S1FieldRank<=S1Choice,S1Amount,0),0)) -> 0 | J56: =SUM(IF(S_2AccNO=$B56,IF(S_2FieldRank<=S_2Choice,S_2Amount,0),0)) -> 0 | K56: =SUM(IF(S_6AccNO=$B56,IF(S_6FieldRank<=s_6Choice,S_6Amount,0),0)) -> 0 | L56: =SUM(IF(S_7AccNO=$B56,IF(S_7FieldRank<=S_7Choice,S_7Amount,0),0)) -> 0 | M56: =SUM(IF(S_8AccNO=$B56,IF(S_8FieldRank<=S_8Choice,S_8Amount,0),0)) -> 0 | N56: Artwork & Graphics | O56: =SUM(IF(S_11AccNO=$B56,IF(S_11FieldRank<=S_11Choice,S_11Amount,0),0)) -> 0 | P56: =SUM(IF(S_3AccNO=$B56,IF(S_3FieldRank<=S_3Choice,S_3Amount,0),0)) -> 0 | Q56: =SUM(IF(S_4AccNO=$B56,IF(S_4FieldRank<=S_4Choice,S_4Amount,0),0)) -> 0 | R56: =SUM(IF(S_10AccNO=$B56,IF(S_10FieldRank<=S_10Choice,S_10Amount,0),0)) -> 0 | S56: =SUM(IF(S_13AccNO=$B56,IF(S_13FieldRank<=S_13Choice,S_13Amount,0),0)) -> 0 | T56: =SUM(IF(S_12AccNO=$B56,IF(S_12FieldRank<=S_12Choice,S_12Amount,0),0)) -> 0 | U56: =SUM(IF(S_15AccNO=$B56,IF(S_15FieldRank<=S_15Choice,S_15Amount,0),0)) -> 0 | V56: =SUM(IF(S_16AccNO=$B56,IF(S_16FieldRank<=S_16Choice,S_16Amount,0),0)) -> 0 | W56: =SUM(IF(S_17AccNO=$B56,IF(S_17FieldRank<=S_17Choice,S_17Amount,0),0)) -> 0 | X56: Artwork & Graphics | Y56: =SUM(IF(S_18AccNO=$B56,IF(S_18FieldRank<=S_18Choice,S_18Amount,0),0)) -> 0 | Z56: =SUM(IF(S_9AccNO=$B56,IF(S_9FieldRank<=S_9Choice,S_9Amount,0),0)) -> 500 | AA56: =SUM(IF(S_19AccNO=$B56,IF(S_19FieldRank<=S_19Choice,S_19Amount,0),0)) -> 0 | AB56: =SUM(IF(S_20AccNo=$B56,IF(S_20FieldRank<=S_20Choice,S_20Amount,0),0)) -> 0 | AC56: =SUM(IF(S_21AccNo=$B56,IF(S_21FieldRank<=S_21Choice,S_21Amount,0),0)) -> 0 | AD56: =SUM(IF(S_22AccNo=$B56,IF(S_22FieldRank<=S_22Choice,S_22Amount,0),0)) -> 0 | AF56: =SUM(IF(S_23AccNo=$B56,IF(S_23FieldRank<=S_23Choice,S_23Amount,0),0)) -> 0 | AG56: 0 | AH56: =SUM(IF(S_5AccNO=$B56,IF(S_5FieldRank<=S_5Choice,S_5Amount,0),0)) -> 0
B57: 8606 | C57: Subscriptions & Periodicals | D57: 700 | E57: 700 | F57: 3600 | G57: 3600 | H57: Subscriptions & Periodicals | I57: =SUM(IF(S1AccNO=B57,IF(S1FieldRank<=S1Choice,S1Amount,0),0)) -> 0 | J57: =SUM(IF(S_2AccNO=$B57,IF(S_2FieldRank<=S_2Choice,S_2Amount,0),0)) -> 0 | K57: =SUM(IF(S_6AccNO=$B57,IF(S_6FieldRank<=s_6Choice,S_6Amount,0),0)) -> 0 | L57: =SUM(IF(S_7AccNO=$B57,IF(S_7FieldRank<=S_7Choice,S_7Amount,0),0)) -> 0 | M57: =SUM(IF(S_8AccNO=$B57,IF(S_8FieldRank<=S_8Choice,S_8Amount,0),0)) -> 0 | N57: Subscriptions & Periodicals | O57: =SUM(IF(S_11AccNO=$B57,IF(S_11FieldRank<=S_11Choice,S_11Amount,0),0)) -> 0 | P57: =SUM(IF(S_3AccNO=$B57,IF(S_3FieldRank<=S_3Choice,S_3Amount,0),0)) -> 0 | Q57: =SUM(IF(S_4AccNO=$B57,IF(S_4FieldRank<=S_4Choice,S_4Amount,0),0)) -> 0 | R57: =SUM(IF(S_10AccNO=$B57,IF(S_10FieldRank<=S_10Choice,S_10Amount,0),0)) -> 0 | S57: =SUM(IF(S_13AccNO=$B57,IF(S_13FieldRank<=S_13Choice,S_13Amount,0),0)) -> 0 | T57: =SUM(IF(S_12AccNO=$B57,IF(S_12FieldRank<=S_12Choice,S_12Amount,0),0)) -> 0 | U57: =SUM(IF(S_15AccNO=$B57,IF(S_15FieldRank<=S_15Choice,S_15Amount,0),0)) -> 0 | V57: =SUM(IF(S_16AccNO=$B57,IF(S_16FieldRank<=S_16Choice,S_16Amount,0),0)) -> 0 | W57: =SUM(IF(S_17AccNO=$B57,IF(S_17FieldRank<=S_17Choice,S_17Amount,0),0)) -> 0 | X57: Subscriptions & Periodicals | Y57: =SUM(IF(S_18AccNO=$B57,IF(S_18FieldRank<=S_18Choice,S_18Amount,0),0)) -> 0 | Z57: =SUM(IF(S_9AccNO=$B57,IF(S_9FieldRank<=S_9Choice,S_9Amount,0),0)) -> 0 | AA57: =SUM(IF(S_19AccNO=$B57,IF(S_19FieldRank<=S_19Choice,S_19Amount,0),0)) -> 700 | AB57: =SUM(IF(S_20AccNo=$B57,IF(S_20FieldRank<=S_20Choice,S_20Amount,0),0)) -> 0 | AC57: =SUM(IF(S_21AccNo=$B57,IF(S_21FieldRank<=S_21Choice,S_21Amount,0),0)) -> 0 | AD57: =SUM(IF(S_22AccNo=$B57,IF(S_22FieldRank<=S_22Choice,S_22Amount,0),0)) -> 200 | AE57: 1700 | AF57: =GETPIVOTDATA("Amount",'S23'!$J$7,"Acc_NO",8606) -> 1000 | AG57: 0 | AH57: =SUM(IF(S_5AccNO=$B57,IF(S_5FieldRank<=S_5Choice,S_5Amount,0),0)) -> 0
B58: 8608 | C58: Advertising | D58: 13650 | E58: 12650 | F58: 12450 | G58: 11450 | H58: Advertising | I58: =SUM(IF(S1AccNO=B58,IF(S1FieldRank<=S1Choice,S1Amount,0),0)) -> 0 | J58: =SUM(IF(S_2AccNO=$B58,IF(S_2FieldRank<=S_2Choice,S_2Amount,0),0)) -> 0 | K58: =SUM(IF(S_6AccNO=$B58,IF(S_6FieldRank<=s_6Choice,S_6Amount,0),0)) -> 0 | L58: =SUM(IF(S_7AccNO=$B58,IF(S_7FieldRank<=S_7Choice,S_7Amount,0),0)) -> 0 | M58: =SUM(IF(S_8AccNO=$B58,IF(S_8FieldRank<=S_8Choice,S_8Amount,0),0)) -> 0 | N58: Advertising | O58: =SUM(IF(S_11AccNO=$B58,IF(S_11FieldRank<=S_11Choice,S_11Amount,0),0)) -> 0 | P58: =SUM(IF(S_3AccNO=$B58,IF(S_3FieldRank<=S_3Choice,S_3Amount,0),0)) -> 500 | Q58: =SUM(IF(S_4AccNO=$B58,IF(S_4FieldRank<=S_4Choice,S_4Amount,0),0)) -> 0 | R58: =SUM(IF(S_10AccNO=$B58,IF(S_10FieldRank<=S_10Choice,S_10Amount,0),0)) -> 0 | S58: =SUM(IF(S_13AccNO=$B58,IF(S_13FieldRank<=S_13Choice,S_13Amount,0),0)) -> 0 | T58: =SUM(IF(S_12AccNO=$B58,IF(S_12FieldRank<=S_12Choice,S_12Amount,0),0)) -> 500 | U58: =SUM(IF(S_15AccNO=$B58,IF(S_15FieldRank<=S_15Choice,S_15Amount,0),0)) -> 0 | V58: =SUM(IF(S_16AccNO=$B58,IF(S_16FieldRank<=S_16Choice,S_16Amount,0),0)) -> 0 | W58: =SUM(IF(S_17AccNO=$B58,IF(S_17FieldRank<=S_17Choice,S_17Amount,0),0)) -> 0 | X58: Advertising | Y58: =SUM(IF(S_18AccNO=$B58,IF(S_18FieldRank<=S_18Choice,S_18Amount,0),0)) -> 0 | Z58: =SUM(IF(S_9AccNO=$B58,IF(S_9FieldRank<=S_9Choice,S_9Amount,0),0)) -> 10000 | AA58: =SUM(IF(S_19AccNO=$B58,IF(S_19FieldRank<=S_19Choice,S_19Amount,0),0)) -> 0 | AB58: =SUM(IF(S_20AccNo=$B58,IF(S_20FieldRank<=S_20Choice,S_20Amount,0),0)) -> 0 | AC58: =SUM(IF(S_21AccNo=$B58,IF(S_21FieldRank<=S_21Choice,S_21Amount,0),0)) -> 0 | AD58: =SUM(IF(S_22AccNo=$B58,IF(S_22FieldRank<=S_22Choice,S_22Amount,0),0)) -> 0 | AE58: 1450 | AF58: =SUM(IF(S_23AccNo=$B58,IF(S_23FieldRank<=S_23Choice,S_23Amount,0),0)) -> 0 | AG58: 0 | AH58: =SUM(IF(S_5AccNO=$B58,IF(S_5FieldRank<=S_5Choice,S_5Amount,0),0)) -> 0
B59: 8609 | C59: Mailing Service | D59: 0 | E59: 0 | F59: 0 | G59: 0 | H59: Mailing Service | I59: =SUM(IF(S1AccNO=B59,IF(S1FieldRank<=S1Choice,S1Amount,0),0)) -> 0 | J59: =SUM(IF(S_2AccNO=$B59,IF(S_2FieldRank<=S_2Choice,S_2Amount,0),0)) -> 0 | K59: =SUM(IF(S_6AccNO=$B59,IF(S_6FieldRank<=s_6Choice,S_6Amount,0),0)) -> 0 | L59: =SUM(IF(S_7AccNO=$B59,IF(S_7FieldRank<=S_7Choice,S_7Amount,0),0)) -> 0 | M59: =SUM(IF(S_8AccNO=$B59,IF(S_8FieldRank<=S_8Choice,S_8Amount,0),0)) -> 0 | N59: Mailing Service | O59: =SUM(IF(S_11AccNO=$B59,IF(S_11FieldRank<=S_11Choice,S_11Amount,0),0)) -> 0 | P59: =SUM(IF(S_3AccNO=$B59,IF(S_3FieldRank<=S_3Choice,S_3Amount,0),0)) -> 0 | Q59: =SUM(IF(S_4AccNO=$B59,IF(S_4FieldRank<=S_4Choice,S_4Amount,0),0)) -> 0 | R59: =SUM(IF(S_10AccNO=$B59,IF(S_10FieldRank<=S_10Choice,S_10Amount,0),0)) -> 0 | S59: =SUM(IF(S_13AccNO=$B59,IF(S_13FieldRank<=S_13Choice,S_13Amount,0),0)) -> 0 | T59: =SUM(IF(S_12AccNO=$B59,IF(S_12FieldRank<=S_12Choice,S_12Amount,0),0)) -> 0 | U59: =SUM(IF(S_15AccNO=$B59,IF(S_15FieldRank<=S_15Choice,S_15Amount,0),0)) -> 0 | V59: =SUM(IF(S_16AccNO=$B59,IF(S_16FieldRank<=S_16Choice,S_16Amount,0),0)) -> 0 | W59: =SUM(IF(S_17AccNO=$B59,IF(S_17FieldRank<=S_17Choice,S_17Amount,0),0)) -> 0 | X59: Mailing Service | Y59: =SUM(IF(S_18AccNO=$B59,IF(S_18FieldRank<=S_18Choice,S_18Amount,0),0)) -> 0 | Z59: =SUM(IF(S_9AccNO=$B59,IF(S_9FieldRank<=S_9Choice,S_9Amount,0),0)) -> 0 | AA59: =SUM(IF(S_19AccNO=$B59,IF(S_19FieldRank<=S_19Choice,S_19Amount,0),0)) -> 0 | AB59: =SUM(IF(S_20AccNo=$B59,IF(S_20FieldRank<=S_20Choice,S_20Amount,0),0)) -> 0 | AC59: =SUM(IF(S_21AccNo=$B59,IF(S_21FieldRank<=S_21Choice,S_21Amount,0),0)) -> 0 | AD59: =SUM(IF(S_22AccNo=$B59,IF(S_22FieldRank<=S_22Choice,S_22Amount,0),0)) -> 0 | AE59: =SUM(IF(S_23AccNo=$B59,IF(S_23FieldRank<=S_23Choice,S_23Amount,0),0)) -> 0 | AF59: =GETPIVOTDATA("Amount",'S23'!$J$7,"Acc_NO",8609) -> 0 | AG59: 0 | AH59: =SUM(IF(S_5AccNO=$B59,IF(S_5FieldRank<=S_5Choice,S_5Amount,0),0)) -> 0
B60: 8702 | C60: Vehicle Fuel & Oil | D60: 16795 | E60: 7895 | F60: 18840 | G60: 8640 | H60: Vehicle Fuel & Oil | I60: =SUM(IF(S1AccNO=B60,IF(S1FieldRank<=S1Choice,S1Amount,0),0)) -> 700 | J60: =SUM(IF(S_2AccNO=$B60,IF(S_2FieldRank<=S_2Choice,S_2Amount,0),0)) -> 0 | K60: =SUM(IF(S_6AccNO=$B60,IF(S_6FieldRank<=s_6Choice,S_6Amount,0),0)) -> 0 | L60: =SUM(IF(S_7AccNO=$B60,IF(S_7FieldRank<=S_7Choice,S_7Amount,0),0)) -> 0 | M60: =SUM(IF(S_8AccNO=$B60,IF(S_8FieldRank<=S_8Choice,S_8Amount,0),0)) -> 0 | N60: Vehicle Fuel & Oil | O60: =SUM(IF(S_11AccNO=$B60,IF(S_11FieldRank<=S_11Choice,S_11Amount,0),0)) -> 0 | P60: =SUM(IF(S_3AccNO=$B60,IF(S_3FieldRank<=S_3Choice,S_3Amount,0),0)) -> 5000 | Q60: =SUM(IF(S_4AccNO=$B60,IF(S_4FieldRank<=S_4Choice,S_4Amount,0),0)) -> 0 | R60: =SUM(IF(S_10AccNO=$B60,IF(S_10FieldRank<=S_10Choice,S_10Amount,0),0)) -> 0 | S60: =SUM(IF(S_13AccNO=$B60,IF(S_13FieldRank<=S_13Choice,S_13Amount,0),0)) -> 0 | T60: =SUM(IF(S_12AccNO=$B60,IF(S_12FieldRank<=S_12Choice,S_12Amount,0),0)) -> 0 | U60: =SUM(IF(S_15AccNO=$B60,IF(S_15FieldRank<=S_15Choice,S_15Amount,0),0)) -> 4500 | V60: =SUM(IF(S_16AccNO=$B60,IF(S_16FieldRank<=S_16Choice,S_16Amount,0),0)) -> 0 | W60: =SUM(IF(S_17AccNO=$B60,IF(S_17FieldRank<=S_17Choice,S_17Amount,0),0)) -> 0 | X60: Vehicle Fuel & Oil | Y60: =SUM(IF(S_18AccNO=$B60,IF(S_18FieldRank<=S_18Choice,S_18Amount,0),0)) -> 0 | Z60: =SUM(IF(S_9AccNO=$B60,IF(S_9FieldRank<=S_9Choice,S_9Amount,0),0)) -> 400 | AA60: =SUM(IF(S_19AccNO=$B60,IF(S_19FieldRank<=S_19Choice,S_19Amount,0),0)) -> 0 | AB60: =SUM(IF(S_20AccNo=$B60,IF(S_20FieldRank<=S_20Choice,S_20Amount,0),0)) -> 4800 | AC60: =SUM(IF(S_21AccNo=$B60,IF(S_21FieldRank<=S_21Choice,S_21Amount,0),0)) -> 0 | AD60: =SUM(IF(S_22AccNo=$B60,IF(S_22FieldRank<=S_22Choice,S_22Amount,0),0)) -> 0 | AE60: 1440 | AF60: 2000 | AG60: 0 | AH60: =SUM(IF(S_5AccNO=$B60,IF(S_5FieldRank<=S_5Choice,S_5Amount,0),0)) -> 0
B61: 8703 | C61: Vehicle Repair/Ins./Lic. | D61: 13000 | E61: 0 | F61: =SUM(I61:AF61) -> 16000 | G61: 0 | H61: =C61 -> Vehicle Repair/Ins./Lic. | I61: =SUM(IF(S1AccNO=B61,IF(S1FieldRank<=S1Choice,S1Amount,0),0)) -> 0 | J61: =SUM(IF(S_2AccNO=$B61,IF(S_2FieldRank<=S_2Choice,S_2Amount,0),0)) -> 0 | K61: =SUM(IF(S_6AccNO=$B61,IF(S_6FieldRank<=s_6Choice,S_6Amount,0),0)) -> 0 | L61: =SUM(IF(S_7AccNO=$B61,IF(S_7FieldRank<=S_7Choice,S_7Amount,0),0)) -> 0 | M61: =SUM(IF(S_8AccNO=$B61,IF(S_8FieldRank<=S_8Choice,S_8Amount,0),0)) -> 0 | N61: =C61 -> Vehicle Repair/Ins./Lic. | O61: =SUM(IF(S_11AccNO=$B61,IF(S_11FieldRank<=S_11Choice,S_11Amount,0),0)) -> 0 | P61: =SUM(IF(S_3AccNO=$B61,IF(S_3FieldRank<=S_3Choice,S_3Amount,0),0)) -> 0 | Q61: =SUM(IF(S_4AccNO=$B61,IF(S_4FieldRank<=S_4Choice,S_4Amount,0),0)) -> 0 | R61: =SUM(IF(S_10AccNO=$B61,IF(S_10FieldRank<=S_10Choice,S_10Amount,0),0)) -> 0 | S61: =SUM(IF(S_13AccNO=$B61,IF(S_13FieldRank<=S_13Choice,S_13Amount,0),0)) -> 0 | T61: =SUM(IF(S_12AccNO=$B61,IF(S_12FieldRank<=S_12Choice,S_12Amount,0),0)) -> 0 | U61: =SUM(IF(S_15AccNO=$B61,IF(S_15FieldRank<=S_15Choice,S_15Amount,0),0)) -> 16000 | V61: =SUM(IF(S_16AccNO=$B61,IF(S_16FieldRank<=S_16Choice,S_16Amount,0),0)) -> 0 | W61: =SUM(IF(S_17AccNO=$B61,IF(S_17FieldRank<=S_17Choice,S_17Amount,0),0)) -> 0 | X61: =C61 -> Vehicle Repair/Ins./Lic. | Y61: =SUM(IF(S_18AccNO=$B61,IF(S_18FieldRank<=S_18Choice,S_18Amount,0),0)) -> 0 | Z61: =SUM(IF(S_9AccNO=$B61,IF(S_9FieldRank<=S_9Choice,S_9Amount,0),0)) -> 0 | AA61: =SUM(IF(S_19AccNO=$B61,IF(S_19FieldRank<=S_19Choice,S_19Amount,0),0)) -> 0 | AB61: =SUM(IF(S_20AccNo=$B61,IF(S_20FieldRank<=S_20Choice,S_20Amount,0),0)) -> 0 | AC61: =SUM(IF(S_21AccNo=$B61,IF(S_21FieldRank<=S_21Choice,S_21Amount,0),0)) -> 0 | AD61: =SUM(IF(S_22AccNo=$B61,IF(S_22FieldRank<=S_22Choice,S_22Amount,0),0)) -> 0 | AE61: =SUM(IF(S_23AccNo=$B61,IF(S_23FieldRank<=S_23Choice,S_23Amount,0),0)) -> 0 | AF61: =SUM(IF(S_23AccNo=$B61,IF(S_23FieldRank<=S_23Choice,S_23Amount,0),0)) -> 0 | AG61: =SUM(IF(S_12AccNO=$B61,IF(S_12FieldRank<=S_12Choice,S_12Amount,0),0)) -> 0 | AH61: =SUM(IF(S_5AccNO=$B61,IF(S_5FieldRank<=S_5Choice,S_5Amount,0),0)) -> 0
B62: 8706 | C62: Vehicle Rental | D62: 5950 | E62: 4950 | F62: 6350 | G62: =SUM(Y62:AF62) -> 5850 | H62: Vehicle Rental | I62: =SUM(IF(S1AccNO=B62,IF(S1FieldRank<=S1Choice,S1Amount,0),0)) -> 500 | J62: =SUM(IF(S_2AccNO=$B62,IF(S_2FieldRank<=S_2Choice,S_2Amount,0),0)) -> 0 | K62: =SUM(IF(S_6AccNO=$B62,IF(S_6FieldRank<=s_6Choice,S_6Amount,0),0)) -> 0 | L62: =SUM(IF(S_7AccNO=$B62,IF(S_7FieldRank<=S_7Choice,S_7Amount,0),0)) -> 0 | M62: =SUM(IF(S_8AccNO=$B62,IF(S_8FieldRank<=S_8Choice,S_8Amount,0),0)) -> 0 | N62: Vehicle Rental | O62: =SUM(IF(S_11AccNO=$B62,IF(S_11FieldRank<=S_11Choice,S_11Amount,0),0)) -> 0 | P62: =SUM(IF(S_3AccNO=$B62,IF(S_3FieldRank<=S_3Choice,S_3Amount,0),0)) -> 0 | Q62: =SUM(IF(S_4AccNO=$B62,IF(S_4FieldRank<=S_4Choice,S_4Amount,0),0)) -> 0 | S62: =SUM(IF(S_13AccNO=$B62,IF(S_13FieldRank<=S_13Choice,S_13Amount,0),0)) -> 0 | T62: =SUM(IF(S_12AccNO=$B62,IF(S_12FieldRank<=S_12Choice,S_12Amount,0),0)) -> 0 | U62: =SUM(IF(S_15AccNO=$B62,IF(S_15FieldRank<=S_15Choice,S_15Amount,0),0)) -> 0 | V62: =SUM(IF(S_16AccNO=$B62,IF(S_16FieldRank<=S_16Choice,S_16Amount,0),0)) -> 0 | W62: =SUM(IF(S_17AccNO=$B62,IF(S_17FieldRank<=S_17Choice,S_17Amount,0),0)) -> 0 | X62: Vehicle Rental | Y62: =SUM(IF(S_18AccNO=$B62,IF(S_18FieldRank<=S_18Choice,S_18Amount,0),0)) -> 0 | Z62: =SUM(IF(S_9AccNO=$B62,IF(S_9FieldRank<=S_9Choice,S_9Amount,0),0)) -> 800 | AA62: =SUM(IF(S_19AccNO=$B62,IF(S_19FieldRank<=S_19Choice,S_19Amount,0),0)) -> 600 | AB62: =SUM(IF(S_20AccNo=$B62,IF(S_20FieldRank<=S_20Choice,S_20Amount,0),0)) -> 1200 | AC62: =SUM(IF(S_21AccNo=$B62,IF(S_21FieldRank<=S_21Choice,S_21Amount,0),0)) -> 0 | AD62: =SUM(IF(S_22AccNo=$B62,IF(S_22FieldRank<=S_22Choice,S_22Amount,0),0)) -> 0 | AE62: 2250 | AF62: 1000 | AG62: 0 | AH62: =SUM(IF(S_5AccNO=$B62,IF(S_5FieldRank<=S_5Choice,S_5Amount,0),0)) -> 0
B63: 8707 | C63: Auto Mileage Reimb | D63: 3700 | E63: 1400 | F63: 4600 | G63: 1400 | H63: Auto Mileage Reimb | I63: =SUM(IF(S1AccNO=B63,IF(S1FieldRank<=S1Choice,S1Amount,0),0)) -> 1200 | J63: =SUM(IF(S_2AccNO=$B63,IF(S_2FieldRank<=S_2Choice,S_2Amount,0),0)) -> 0 | K63: =SUM(IF(S_6AccNO=$B63,IF(S_6FieldRank<=s_6Choice,S_6Amount,0),0)) -> 0 | L63: =SUM(IF(S_7AccNO=$B63,IF(S_7FieldRank<=S_7Choice,S_7Amount,0),0)) -> 0 | M63: =SUM(IF(S_8AccNO=$B63,IF(S_8FieldRank<=S_8Choice,S_8Amount,0),0)) -> 0 | N63: Auto Mileage Reimb | O63: =SUM(IF(S_11AccNO=$B63,IF(S_11FieldRank<=S_11Choice,S_11Amount,0),0)) -> 0 | P63: =SUM(IF(S_3AccNO=$B63,IF(S_3FieldRank<=S_3Choice,S_3Amount,0),0)) -> 2000 | Q63: =SUM(IF(S_4AccNO=$B63,IF(S_4FieldRank<=S_4Choice,S_4Amount,0),0)) -> 0 | R63: =SUM(IF(S_10AccNO=$B63,IF(S_10FieldRank<=S_10Choice,S_10Amount,0),0)) -> 0 | S63: =SUM(IF(S_13AccNO=$B63,IF(S_13FieldRank<=S_13Choice,S_13Amount,0),0)) -> 0 | T63: =SUM(IF(S_12AccNO=$B63,IF(S_12FieldRank<=S_12Choice,S_12Amount,0),0)) -> 0 | U63: =SUM(IF(S_15AccNO=$B63,IF(S_15FieldRank<=S_15Choice,S_15Amount,0),0)) -> 0 | V63: =SUM(IF(S_16AccNO=$B63,IF(S_16FieldRank<=S_16Choice,S_16Amount,0),0)) -> 0 | W63: =SUM(IF(S_17AccNO=$B63,IF(S_17FieldRank<=S_17Choice,S_17Amount,0),0)) -> 0 | X63: Auto Mileage Reimb | Y63: =SUM(IF(S_18AccNO=$B63,IF(S_18FieldRank<=S_18Choice,S_18Amount,0),0)) -> 0 | Z63: =SUM(IF(S_9AccNO=$B63,IF(S_9FieldRank<=S_9Choice,S_9Amount,0),0)) -> 0 | AA63: =SUM(IF(S_19AccNO=$B63,IF(S_19FieldRank<=S_19Choice,S_19Amount,0),0)) -> 1400 | AB63: =SUM(IF(S_20AccNo=$B63,IF(S_20FieldRank<=S_20Choice,S_20Amount,0),0)) -> 0 | AC63: =SUM(IF(S_21AccNo=$B63,IF(S_21FieldRank<=S_21Choice,S_21Amount,0),0)) -> 0 | AD63: =SUM(IF(S_22AccNo=$B63,IF(S_22FieldRank<=S_22Choice,S_22Amount,0),0)) -> 0 | AE63: =SUM(IF(S_23AccNo=$B63,IF(S_23FieldRank<=S_23Choice,S_23Amount,0),0)) -> 0 | AF63: =SUM(IF(S_23AccNo=$B63,IF(S_23FieldRank<=S_23Choice,S_23Amount,0),0)) -> 0 | AG63: 0 | AH63: =SUM(IF(S_5AccNO=$B63,IF(S_5FieldRank<=S_5Choice,S_5Amount,0),0)) -> 0
B64: 8709 | C64: Meals & Entertainment | D64: 9000 | E64: 4200 | F64: 9600 | G64: 4500 | H64: Meals & Entertainment | I64: =SUM(IF(S1AccNO=B64,IF(S1FieldRank<=S1Choice,S1Amount,0),0)) -> 800 | J64: =SUM(IF(S_2AccNO=$B64,IF(S_2FieldRank<=S_2Choice,S_2Amount,0),0)) -> 0 | K64: =SUM(IF(S_6AccNO=$B64,IF(S_6FieldRank<=s_6Choice,S_6Amount,0),0)) -> 300 | L64: =SUM(IF(S_7AccNO=$B64,IF(S_7FieldRank<=S_7Choice,S_7Amount,0),0)) -> 0 | M64: =SUM(IF(S_8AccNO=$B64,IF(S_8FieldRank<=S_8Choice,S_8Amount,0),0)) -> 0 | N64: Meals & Entertainment | O64: =SUM(IF(S_11AccNO=$B64,IF(S_11FieldRank<=S_11Choice,S_11Amount,0),0)) -> 0 | P64: =SUM(IF(S_3AccNO=$B64,IF(S_3FieldRank<=S_3Choice,S_3Amount,0),0)) -> 3000 | Q64: =SUM(IF(S_4AccNO=$B64,IF(S_4FieldRank<=S_4Choice,S_4Amount,0),0)) -> 0 | R64: =SUM(IF(S_10AccNO=$B64,IF(S_10FieldRank<=S_10Choice,S_10Amount,0),0)) -> 0 | S64: =SUM(IF(S_13AccNO=$B64,IF(S_13FieldRank<=S_13Choice,S_13Amount,0),0)) -> 0 | T64: =SUM(IF(S_12AccNO=$B64,IF(S_12FieldRank<=S_12Choice,S_12Amount,0),0)) -> 1000 | U64: =SUM(IF(S_15AccNO=$B64,IF(S_15FieldRank<=S_15Choice,S_15Amount,0),0)) -> 0 | V64: =SUM(IF(S_16AccNO=$B64,IF(S_16FieldRank<=S_16Choice,S_16Amount,0),0)) -> 0 | W64: =SUM(IF(S_17AccNO=$B64,IF(S_17FieldRank<=S_17Choice,S_17Amount,0),0)) -> 0 | X64: Meals & Entertainment | Y64: =SUM(IF(S_18AccNO=$B64,IF(S_18FieldRank<=S_18Choice,S_18Amount,0),0)) -> 0 | Z64: =SUM(IF(S_9AccNO=$B64,IF(S_9FieldRank<=S_9Choice,S_9Amount,0),0)) -> 0 | AA64: =SUM(IF(S_19AccNO=$B64,IF(S_19FieldRank<=S_19Choice,S_19Amount,0),0)) -> 800 | AB64: =SUM(IF(S_20AccNo=$B64,IF(S_20FieldRank<=S_20Choice,S_20Amount,0),0)) -> 3300 | AC64: =SUM(IF(S_21AccNo=$B64,IF(S_21FieldRank<=S_21Choice,S_21Amount,0),0)) -> 0 | AD64: =SUM(IF(S_22AccNo=$B64,IF(S_22FieldRank<=S_22Choice,S_22Amount,0),0)) -> 0 | AE64: =SUM(IF(S_23AccNo=$B64,IF(S_23FieldRank<=S_23Choice,S_23Amount,0),0)) -> 0 | AF64: 400 | AG64: 0 | AH64: =SUM(IF(S_5AccNO=$B64,IF(S_5FieldRank<=S_5Choice,S_5Amount,0),0)) -> 0
B65: 8710 | C65: Commercial Travel | D65: 57050 | E65: 24750 | F65: 56800 | G65: 22550 | H65: Commercial Travel | I65: =SUM(IF(S1AccNO=B65,IF(S1FieldRank<=S1Choice,S1Amount,0),0)) -> 4000 | J65: =SUM(IF(S_2AccNO=$B65,IF(S_2FieldRank<=S_2Choice,S_2Amount,0),0)) -> 0 | K65: =SUM(IF(S_6AccNO=$B65,IF(S_6FieldRank<=s_6Choice,S_6Amount,0),0)) -> 1200 | L65: =SUM(IF(S_7AccNO=$B65,IF(S_7FieldRank<=S_7Choice,S_7Amount,0),0)) -> 2000 | M65: =SUM(IF(S_8AccNO=$B65,IF(S_8FieldRank<=S_8Choice,S_8Amount,0),0)) -> 10650 | N65: Commercial Travel | O65: =SUM(IF(S_11AccNO=$B65,IF(S_11FieldRank<=S_11Choice,S_11Amount,0),0)) -> 0 | P65: =SUM(IF(S_3AccNO=$B65,IF(S_3FieldRank<=S_3Choice,S_3Amount,0),0)) -> 2500 | Q65: =SUM(IF(S_4AccNO=$B65,IF(S_4FieldRank<=S_4Choice,S_4Amount,0),0)) -> 6900 | R65: =SUM(IF(S_10AccNO=$B65,IF(S_10FieldRank<=S_10Choice,S_10Amount,0),0)) -> 0 | S65: =SUM(IF(S_13AccNO=$B65,IF(S_13FieldRank<=S_13Choice,S_13Amount,0),0)) -> 0 | T65: =SUM(IF(S_12AccNO=$B65,IF(S_12FieldRank<=S_12Choice,S_12Amount,0),0)) -> 7000 | U65: =SUM(IF(S_15AccNO=$B65,IF(S_15FieldRank<=S_15Choice,S_15Amount,0),0)) -> 0 | V65: =SUM(IF(S_16AccNO=$B65,IF(S_16FieldRank<=S_16Choice,S_16Amount,0),0)) -> 0 | W65: =SUM(IF(S_17AccNO=$B65,IF(S_17FieldRank<=S_17Choice,S_17Amount,0),0)) -> 0 | X65: Commercial Travel | Y65: =SUM(IF(S_18AccNO=$B65,IF(S_18FieldRank<=S_18Choice,S_18Amount,0),0)) -> 0 | Z65: =SUM(IF(S_9AccNO=$B65,IF(S_9FieldRank<=S_9Choice,S_9Amount,0),0)) -> 400 | AA65: =SUM(IF(S_19AccNO=$B65,IF(S_19FieldRank<=S_19Choice,S_19Amount,0),0)) -> 7800 | AB65: =SUM(IF(S_20AccNo=$B65,IF(S_20FieldRank<=S_20Choice,S_20Amount,0),0)) -> 7200 | AC65: =SUM(IF(S_21AccNo=$B65,IF(S_21FieldRank<=S_21Choice,S_21Amount,0),0)) -> 0 | AD65: =SUM(IF(S_22AccNo=$B65,IF(S_22FieldRank<=S_22Choice,S_22Amount,0),0)) -> 0 | AE65: 6550 | AF65: 600 | AG65: 0 | AH65: =SUM(IF(S_5AccNO=$B65,IF(S_5FieldRank<=S_5Choice,S_5Amount,0),0)) -> 0
B66: 8711 | C66: Motel/Hotel & Room Rent | D66: 15850 | E66: 12150 | F66: 22810 | G66: 22060 | H66: Motel/Hotel & Room Rent | I66: =SUM(IF(S1AccNO=B66,IF(S1FieldRank<=S1Choice,S1Amount,0),0)) -> 0 | J66: =SUM(IF(S_2AccNO=$B66,IF(S_2FieldRank<=S_2Choice,S_2Amount,0),0)) -> 0 | K66: =SUM(IF(S_6AccNO=$B66,IF(S_6FieldRank<=s_6Choice,S_6Amount,0),0)) -> 750 | L66: =SUM(IF(S_7AccNO=$B66,IF(S_7FieldRank<=S_7Choice,S_7Amount,0),0)) -> 0 | M66: =SUM(IF(S_8AccNO=$B66,IF(S_8FieldRank<=S_8Choice,S_8Amount,0),0)) -> 0 | N66: Motel/Hotel & Room Rent | O66: =SUM(IF(S_11AccNO=$B66,IF(S_11FieldRank<=S_11Choice,S_11Amount,0),0)) -> 0 | P66: =SUM(IF(S_3AccNO=$B66,IF(S_3FieldRank<=S_3Choice,S_3Amount,0),0)) -> 0 | Q66: =SUM(IF(S_4AccNO=$B66,IF(S_4FieldRank<=S_4Choice,S_4Amount,0),0)) -> 0 | R66: =SUM(IF(S_10AccNO=$B66,IF(S_10FieldRank<=S_10Choice,S_10Amount,0),0)) -> 0 | S66: =SUM(IF(S_13AccNO=$B66,IF(S_13FieldRank<=S_13Choice,S_13Amount,0),0)) -> 0 | T66: =SUM(IF(S_12AccNO=$B66,IF(S_12FieldRank<=S_12Choice,S_12Amount,0),0)) -> 0 | U66: =SUM(IF(S_15AccNO=$B66,IF(S_15FieldRank<=S_15Choice,S_15Amount,0),0)) -> 0 | V66: =SUM(IF(S_16AccNO=$B66,IF(S_16FieldRank<=S_16Choice,S_16Amount,0),0)) -> 0 | W66: =SUM(IF(S_17AccNO=$B66,IF(S_17FieldRank<=S_17Choice,S_17Amount,0),0)) -> 0 | X66: Motel/Hotel & Room Rent | Y66: =SUM(IF(S_18AccNO=$B66,IF(S_18FieldRank<=S_18Choice,S_18Amount,0),0)) -> 0 | Z66: =SUM(IF(S_9AccNO=$B66,IF(S_9FieldRank<=S_9Choice,S_9Amount,0),0)) -> 500 | AA66: =SUM(IF(S_19AccNO=$B66,IF(S_19FieldRank<=S_19Choice,S_19Amount,0),0)) -> 6900 | AB66: =SUM(IF(S_20AccNo=$B66,IF(S_20FieldRank<=S_20Choice,S_20Amount,0),0)) -> 1940 | AC66: =SUM(IF(S_21AccNo=$B66,IF(S_21FieldRank<=S_21Choice,S_21Amount,0),0)) -> 0 | AD66: =SUM(IF(S_22AccNo=$B66,IF(S_22FieldRank<=S_22Choice,S_22Amount,0),0)) -> 0 | AE66: 2720 | AF66: 10000 | AG66: 0 | AH66: =SUM(IF(S_5AccNO=$B66,IF(S_5FieldRank<=S_5Choice,S_5Amount,0),0)) -> 0
B67: 8803 | C67: Food for Meetings | D67: 8250 | E67: 1350 | F67: 15200 | G67: 1200 | H67: Food for Meetings | I67: =SUM(IF(S1AccNO=B67,IF(S1FieldRank<=S1Choice,S1Amount,0),0)) -> 0 | J67: =SUM(IF(S_2AccNO=$B67,IF(S_2FieldRank<=S_2Choice,S_2Amount,0),0)) -> 0 | K67: =SUM(IF(S_6AccNO=$B67,IF(S_6FieldRank<=s_6Choice,S_6Amount,0),0)) -> 100 | L67: =SUM(IF(S_7AccNO=$B67,IF(S_7FieldRank<=S_7Choice,S_7Amount,0),0)) -> 0 | M67: =SUM(IF(S_8AccNO=$B67,IF(S_8FieldRank<=S_8Choice,S_8Amount,0),0)) -> 2100 | N67: Food for Meetings | O67: =SUM(IF(S_11AccNO=$B67,IF(S_11FieldRank<=S_11Choice,S_11Amount,0),0)) -> 0 | P67: =SUM(IF(S_3AccNO=$B67,IF(S_3FieldRank<=S_3Choice,S_3Amount,0),0)) -> 300 | Q67: =SUM(IF(S_4AccNO=$B67,IF(S_4FieldRank<=S_4Choice,S_4Amount,0),0)) -> 3000 | R67: =SUM(IF(S_10AccNO=$B67,IF(S_10FieldRank<=S_10Choice,S_10Amount,0),0)) -> 0 | S67: =SUM(IF(S_13AccNO=$B67,IF(S_13FieldRank<=S_13Choice,S_13Amount,0),0)) -> 0 | T67: =SUM(IF(S_12AccNO=$B67,IF(S_12FieldRank<=S_12Choice,S_12Amount,0),0)) -> 7000 | U67: =SUM(IF(S_15AccNO=$B67,IF(S_15FieldRank<=S_15Choice,S_15Amount,0),0)) -> 0 | V67: =SUM(IF(S_16AccNO=$B67,IF(S_16FieldRank<=S_16Choice,S_16Amount,0),0)) -> 0 | W67: =SUM(IF(S_17AccNO=$B67,IF(S_17FieldRank<=S_17Choice,S_17Amount,0),0)) -> 1500 | X67: Food for Meetings | Y67: =SUM(IF(S_18AccNO=$B67,IF(S_18FieldRank<=S_18Choice,S_18Amount,0),0)) -> 0 | Z67: =SUM(IF(S_9AccNO=$B67,IF(S_9FieldRank<=S_9Choice,S_9Amount,0),0)) -> 0 | AA67: =SUM(IF(S_19AccNO=$B67,IF(S_19FieldRank<=S_19Choice,S_19Amount,0),0)) -> 1000 | AB67: =SUM(IF(S_20AccNo=$B67,IF(S_20FieldRank<=S_20Choice,S_20Amount,0),0)) -> 0 | AC67: =SUM(IF(S_21AccNo=$B67,IF(S_21FieldRank<=S_21Choice,S_21Amount,0),0)) -> 0 | AD67: =SUM(IF(S_22AccNo=$B67,IF(S_22FieldRank<=S_22Choice,S_22Amount,0),0)) -> 200 | AE67: =SUM(IF(S_23AccNo=$B67,IF(S_23FieldRank<=S_23Choice,S_23Amount,0),0)) -> 0 | AF67: =SUM(IF(S_23AccNo=$B67,IF(S_23FieldRank<=S_23Choice,S_23Amount,0),0)) -> 0 | AG67: 0 | AH67: =SUM(IF(S_5AccNO=$B67,IF(S_5FieldRank<=S_5Choice,S_5Amount,0),0)) -> 0
B68: 8804 | C68: Speaker Honorarium | D68: 2000 | E68: 0 | F68: 4000 | G68: 0 | H68: Speaker Honorarium | I68: =SUM(IF(S1AccNO=B68,IF(S1FieldRank<=S1Choice,S1Amount,0),0)) -> 0 | J68: =SUM(IF(S_2AccNO=$B68,IF(S_2FieldRank<=S_2Choice,S_2Amount,0),0)) -> 0 | K68: =SUM(IF(S_6AccNO=$B68,IF(S_6FieldRank<=s_6Choice,S_6Amount,0),0)) -> 0 | L68: =SUM(IF(S_7AccNO=$B68,IF(S_7FieldRank<=S_7Choice,S_7Amount,0),0)) -> 0 | M68: =SUM(IF(S_8AccNO=$B68,IF(S_8FieldRank<=S_8Choice,S_8Amount,0),0)) -> 0 | N68: Speaker Honorarium | O68: =SUM(IF(S_11AccNO=$B68,IF(S_11FieldRank<=S_11Choice,S_11Amount,0),0)) -> 0 | P68: =SUM(IF(S_3AccNO=$B68,IF(S_3FieldRank<=S_3Choice,S_3Amount,0),0)) -> 0 | Q68: =SUM(IF(S_4AccNO=$B68,IF(S_4FieldRank<=S_4Choice,S_4Amount,0),0)) -> 0 | R68: =SUM(IF(S_10AccNO=$B68,IF(S_10FieldRank<=S_10Choice,S_10Amount,0),0)) -> 0 | S68: =SUM(IF(S_13AccNO=$B68,IF(S_13FieldRank<=S_13Choice,S_13Amount,0),0)) -> 0 | T68: =SUM(IF(S_12AccNO=$B68,IF(S_12FieldRank<=S_12Choice,S_12Amount,0),0)) -> 4000 | U68: =SUM(IF(S_15AccNO=$B68,IF(S_15FieldRank<=S_15Choice,S_15Amount,0),0)) -> 0 | V68: =SUM(IF(S_16AccNO=$B68,IF(S_16FieldRank<=S_16Choice,S_16Amount,0),0)) -> 0 | W68: =SUM(IF(S_17AccNO=$B68,IF(S_17FieldRank<=S_17Choice,S_17Amount,0),0)) -> 0 | X68: Speaker Honorarium | Y68: =SUM(IF(S_18AccNO=$B68,IF(S_18FieldRank<=S_18Choice,S_18Amount,0),0)) -> 0 | Z68: =SUM(IF(S_9AccNO=$B68,IF(S_9FieldRank<=S_9Choice,S_9Amount,0),0)) -> 0 | AA68: =SUM(IF(S_19AccNO=$B68,IF(S_19FieldRank<=S_19Choice,S_19Amount,0),0)) -> 0 | AB68: =SUM(IF(S_20AccNo=$B68,IF(S_20FieldRank<=S_20Choice,S_20Amount,0),0)) -> 0 | AC68: =SUM(IF(S_21AccNo=$B68,IF(S_21FieldRank<=S_21Choice,S_21Amount,0),0)) -> 0 | AD68: =SUM(IF(S_22AccNo=$B68,IF(S_22FieldRank<=S_22Choice,S_22Amount,0),0)) -> 0 | AE68: =SUM(IF(S_23AccNo=$B68,IF(S_23FieldRank<=S_23Choice,S_23Amount,0),0)) -> 0 | AF68: =SUM(IF(S_23AccNo=$B68,IF(S_23FieldRank<=S_23Choice,S_23Amount,0),0)) -> 0 | AG68: 0 | AH68: =SUM(IF(S_5AccNO=$B68,IF(S_5FieldRank<=S_5Choice,S_5Amount,0),0)) -> 0
B69: 8805 | C69: Missionary Conference | D69: 12105 | E69: 2500 | F69: 14970 | G69: 2950 | H69: Missionary Conference | I69: =SUM(IF(S1AccNO=B69,IF(S1FieldRank<=S1Choice,S1Amount,0),0)) -> 8300 | J69: =SUM(IF(S_2AccNO=$B69,IF(S_2FieldRank<=S_2Choice,S_2Amount,0),0)) -> 0 | K69: =SUM(IF(S_6AccNO=$B69,IF(S_6FieldRank<=s_6Choice,S_6Amount,0),0)) -> 3720 | L69: =SUM(IF(S_7AccNO=$B69,IF(S_7FieldRank<=S_7Choice,S_7Amount,0),0)) -> 0 | M69: =SUM(IF(S_8AccNO=$B69,IF(S_8FieldRank<=S_8Choice,S_8Amount,0),0)) -> 0 | N69: Missionary Conference | O69: =SUM(IF(S_11AccNO=$B69,IF(S_11FieldRank<=S_11Choice,S_11Amount,0),0)) -> 0 | P69: =SUM(IF(S_3AccNO=$B69,IF(S_3FieldRank<=S_3Choice,S_3Amount,0),0)) -> 0 | Q69: =SUM(IF(S_4AccNO=$B69,IF(S_4FieldRank<=S_4Choice,S_4Amount,0),0)) -> 0 | R69: =SUM(IF(S_10AccNO=$B69,IF(S_10FieldRank<=S_10Choice,S_10Amount,0),0)) -> 0 | S69: =SUM(IF(S_13AccNO=$B69,IF(S_13FieldRank<=S_13Choice,S_13Amount,0),0)) -> 0 | T69: =SUM(IF(S_12AccNO=$B69,IF(S_12FieldRank<=S_12Choice,S_12Amount,0),0)) -> 0 | U69: =SUM(IF(S_15AccNO=$B69,IF(S_15FieldRank<=S_15Choice,S_15Amount,0),0)) -> 0 | V69: =SUM(IF(S_16AccNO=$B69,IF(S_16FieldRank<=S_16Choice,S_16Amount,0),0)) -> 0 | W69: =SUM(IF(S_17AccNO=$B69,IF(S_17FieldRank<=S_17Choice,S_17Amount,0),0)) -> 0 | X69: Missionary Conference | Y69: =SUM(IF(S_18AccNO=$B69,IF(S_18FieldRank<=S_18Choice,S_18Amount,0),0)) -> 1250 | Z69: =SUM(IF(S_9AccNO=$B69,IF(S_9FieldRank<=S_9Choice,S_9Amount,0),0)) -> 300 | AA69: =SUM(IF(S_19AccNO=$B69,IF(S_19FieldRank<=S_19Choice,S_19Amount,0),0)) -> 0 | AB69: =SUM(IF(S_20AccNo=$B69,IF(S_20FieldRank<=S_20Choice,S_20Amount,0),0)) -> 0 | AC69: =SUM(IF(S_21AccNo=$B69,IF(S_21FieldRank<=S_21Choice,S_21Amount,0),0)) -> 0 | AD69: =SUM(IF(S_22AccNo=$B69,IF(S_22FieldRank<=S_22Choice,S_22Amount,0),0)) -> 500 | AE69: =SUM(IF(S_23AccNo=$B69,IF(S_23FieldRank<=S_23Choice,S_23Amount,0),0)) -> 0 | AF69: 900 | AG69: 0 | AH69: =SUM(IF(S_5AccNO=$B69,IF(S_5FieldRank<=S_5Choice,S_5Amount,0),0)) -> 0
B70: 8806 | C70: Seminars & Registrations | D70: 6500 | E70: 3200 | F70: 3225 | G70: 2725 | H70: Seminars & Registrations | I70: =SUM(IF(S1AccNO=B70,IF(S1FieldRank<=S1Choice,S1Amount,0),0)) -> 0 | J70: =SUM(IF(S_2AccNO=$B70,IF(S_2FieldRank<=S_2Choice,S_2Amount,0),0)) -> 0 | K70: =SUM(IF(S_6AccNO=$B70,IF(S_6FieldRank<=s_6Choice,S_6Amount,0),0)) -> 0 | L70: =SUM(IF(S_7AccNO=$B70,IF(S_7FieldRank<=S_7Choice,S_7Amount,0),0)) -> 0 | M70: =SUM(IF(S_8AccNO=$B70,IF(S_8FieldRank<=S_8Choice,S_8Amount,0),0)) -> 0 | N70: Seminars & Registrations | O70: =SUM(IF(S_11AccNO=$B70,IF(S_11FieldRank<=S_11Choice,S_11Amount,0),0)) -> 500 | P70: =SUM(IF(S_3AccNO=$B70,IF(S_3FieldRank<=S_3Choice,S_3Amount,0),0)) -> 0 | Q70: =SUM(IF(S_4AccNO=$B70,IF(S_4FieldRank<=S_4Choice,S_4Amount,0),0)) -> 0 | R70: =SUM(IF(S_10AccNO=$B70,IF(S_10FieldRank<=S_10Choice,S_10Amount,0),0)) -> 0 | S70: =SUM(IF(S_13AccNO=$B70,IF(S_13FieldRank<=S_13Choice,S_13Amount,0),0)) -> 0 | T70: =SUM(IF(S_12AccNO=$B70,IF(S_12FieldRank<=S_12Choice,S_12Amount,0),0)) -> 0 | U70: =SUM(IF(S_15AccNO=$B70,IF(S_15FieldRank<=S_15Choice,S_15Amount,0),0)) -> 0 | V70: =SUM(IF(S_16AccNO=$B70,IF(S_16FieldRank<=S_16Choice,S_16Amount,0),0)) -> 0 | W70: =SUM(IF(S_17AccNO=$B70,IF(S_17FieldRank<=S_17Choice,S_17Amount,0),0)) -> 0 | X70: Seminars & Registrations | Y70: =SUM(IF(S_18AccNO=$B70,IF(S_18FieldRank<=S_18Choice,S_18Amount,0),0)) -> 0 | Z70: =SUM(IF(S_9AccNO=$B70,IF(S_9FieldRank<=S_9Choice,S_9Amount,0),0)) -> 0 | AA70: =SUM(IF(S_19AccNO=$B70,IF(S_19FieldRank<=S_19Choice,S_19Amount,0),0)) -> 500 | AB70: =SUM(IF(S_20AccNo=$B70,IF(S_20FieldRank<=S_20Choice,S_20Amount,0),0)) -> 500 | AC70: =SUM(IF(S_21AccNo=$B70,IF(S_21FieldRank<=S_21Choice,S_21Amount,0),0)) -> 0 | AD70: =SUM(IF(S_22AccNo=$B70,IF(S_22FieldRank<=S_22Choice,S_22Amount,0),0)) -> 0 | AE70: 525 | AF70: 1200 | AG70: 0 | AH70: =SUM(IF(S_5AccNO=$B70,IF(S_5FieldRank<=S_5Choice,S_5Amount,0),0)) -> 0
B71: 8902 | C71: Organization Dues & Fees | D71: 5200 | E71: 4700 | F71: 5075 | G71: 4575 | H71: Organization Dues & Fees | I71: =SUM(IF(S1AccNO=B71,IF(S1FieldRank<=S1Choice,S1Amount,0),0)) -> 0 | J71: =SUM(IF(S_2AccNO=$B71,IF(S_2FieldRank<=S_2Choice,S_2Amount,0),0)) -> 0 | K71: =SUM(IF(S_6AccNO=$B71,IF(S_6FieldRank<=s_6Choice,S_6Amount,0),0)) -> 0 | L71: =SUM(IF(S_7AccNO=$B71,IF(S_7FieldRank<=S_7Choice,S_7Amount,0),0)) -> 0 | M71: =SUM(IF(S_8AccNO=$B71,IF(S_8FieldRank<=S_8Choice,S_8Amount,0),0)) -> 0 | N71: Organization Dues & Fees | O71: =SUM(IF(S_11AccNO=$B71,IF(S_11FieldRank<=S_11Choice,S_11Amount,0),0)) -> 500 | P71: =SUM(IF(S_3AccNO=$B71,IF(S_3FieldRank<=S_3Choice,S_3Amount,0),0)) -> 0 | Q71: =SUM(IF(S_4AccNO=$B71,IF(S_4FieldRank<=S_4Choice,S_4Amount,0),0)) -> 0 | R71: =SUM(IF(S_10AccNO=$B71,IF(S_10FieldRank<=S_10Choice,S_10Amount,0),0)) -> 0 | S71: =SUM(IF(S_13AccNO=$B71,IF(S_13FieldRank<=S_13Choice,S_13Amount,0),0)) -> 0 | T71: =SUM(IF(S_12AccNO=$B71,IF(S_12FieldRank<=S_12Choice,S_12Amount,0),0)) -> 0 | U71: =SUM(IF(S_15AccNO=$B71,IF(S_15FieldRank<=S_15Choice,S_15Amount,0),0)) -> 0 | V71: =SUM(IF(S_16AccNO=$B71,IF(S_16FieldRank<=S_16Choice,S_16Amount,0),0)) -> 0 | W71: =SUM(IF(S_17AccNO=$B71,IF(S_17FieldRank<=S_17Choice,S_17Amount,0),0)) -> 0 | X71: Organization Dues & Fees | Y71: =SUM(IF(S_18AccNO=$B71,IF(S_18FieldRank<=S_18Choice,S_18Amount,0),0)) -> 400 | Z71: =SUM(IF(S_9AccNO=$B71,IF(S_9FieldRank<=S_9Choice,S_9Amount,0),0)) -> 0 | AA71: =SUM(IF(S_19AccNO=$B71,IF(S_19FieldRank<=S_19Choice,S_19Amount,0),0)) -> 0 | AB71: =SUM(IF(S_20AccNo=$B71,IF(S_20FieldRank<=S_20Choice,S_20Amount,0),0)) -> 0 | AC71: =SUM(IF(S_21AccNo=$B71,IF(S_21FieldRank<=S_21Choice,S_21Amount,0),0)) -> 0 | AD71: =SUM(IF(S_22AccNo=$B71,IF(S_22FieldRank<=S_22Choice,S_22Amount,0),0)) -> 375 | AF71: 3800 | AG71: 0 | AH71: =SUM(IF(S_5AccNO=$B71,IF(S_5FieldRank<=S_5Choice,S_5Amount,0),0)) -> 0
B72: 8903 | C72: Founder Honorarium | D72: 6600 | E72: 6600 | F72: 0 | G72: 0 | H72: Founder Honorarium | I72: =SUM(IF(S1AccNO=B72,IF(S1FieldRank<=S1Choice,S1Amount,0),0)) -> 0 | J72: =SUM(IF(S_2AccNO=$B72,IF(S_2FieldRank<=S_2Choice,S_2Amount,0),0)) -> 0 | K72: =SUM(IF(S_6AccNO=$B72,IF(S_6FieldRank<=s_6Choice,S_6Amount,0),0)) -> 0 | L72: =SUM(IF(S_7AccNO=$B72,IF(S_7FieldRank<=S_7Choice,S_7Amount,0),0)) -> 0 | M72: =SUM(IF(S_8AccNO=$B72,IF(S_8FieldRank<=S_8Choice,S_8Amount,0),0)) -> 0 | N72: Founder Honorarium | O72: =SUM(IF(S_11AccNO=$B72,IF(S_11FieldRank<=S_11Choice,S_11Amount,0),0)) -> 0 | P72: =SUM(IF(S_3AccNO=$B72,IF(S_3FieldRank<=S_3Choice,S_3Amount,0),0)) -> 0 | Q72: =SUM(IF(S_4AccNO=$B72,IF(S_4FieldRank<=S_4Choice,S_4Amount,0),0)) -> 0 | R72: =SUM(IF(S_10AccNO=$B72,IF(S_10FieldRank<=S_10Choice,S_10Amount,0),0)) -> 0 | S72: =SUM(IF(S_13AccNO=$B72,IF(S_13FieldRank<=S_13Choice,S_13Amount,0),0)) -> 0 | T72: =SUM(IF(S_12AccNO=$B72,IF(S_12FieldRank<=S_12Choice,S_12Amount,0),0)) -> 0 | U72: =SUM(IF(S_15AccNO=$B72,IF(S_15FieldRank<=S_15Choice,S_15Amount,0),0)) -> 0 | V72: =SUM(IF(S_16AccNO=$B72,IF(S_16FieldRank<=S_16Choice,S_16Amount,0),0)) -> 0 | W72: =SUM(IF(S_17AccNO=$B72,IF(S_17FieldRank<=S_17Choice,S_17Amount,0),0)) -> 0 | X72: Founder Honorarium | Y72: =SUM(IF(S_18AccNO=$B72,IF(S_18FieldRank<=S_18Choice,S_18Amount,0),0)) -> 0 | Z72: =SUM(IF(S_9AccNO=$B72,IF(S_9FieldRank<=S_9Choice,S_9Amount,0),0)) -> 0 | AA72: =SUM(IF(S_19AccNO=$B72,IF(S_19FieldRank<=S_19Choice,S_19Amount,0),0)) -> 0 | AB72: =SUM(IF(S_20AccNo=$B72,IF(S_20FieldRank<=S_20Choice,S_20Amount,0),0)) -> 0 | AC72: =SUM(IF(S_21AccNo=$B72,IF(S_21FieldRank<=S_21Choice,S_21Amount,0),0)) -> 0 | AD72: =SUM(IF(S_22AccNo=$B72,IF(S_22FieldRank<=S_22Choice,S_22Amount,0),0)) -> 0 | AF72: =SUM(IF(S_23AccNo=$B72,IF(S_23FieldRank<=S_23Choice,S_23Amount,0),0)) -> 0 | AG72: 0 | AH72: =SUM(IF(S_5AccNO=$B72,IF(S_5FieldRank<=S_5Choice,S_5Amount,0),0)) -> 0
B73: 8940 | C73: Moving Expense | D73: 0 | E73: 0 | F73: 0 | G73: 0 | H73: Moving Expense | I73: =SUM(IF(S1AccNO=B73,IF(S1FieldRank<=S1Choice,S1Amount,0),0)) -> 0 | J73: =SUM(IF(S_2AccNO=$B73,IF(S_2FieldRank<=S_2Choice,S_2Amount,0),0)) -> 0 | K73: =SUM(IF(S_6AccNO=$B73,IF(S_6FieldRank<=s_6Choice,S_6Amount,0),0)) -> 0 | L73: =SUM(IF(S_7AccNO=$B73,IF(S_7FieldRank<=S_7Choice,S_7Amount,0),0)) -> 0 | M73: =SUM(IF(S_8AccNO=$B73,IF(S_8FieldRank<=S_8Choice,S_8Amount,0),0)) -> 0 | N73: Moving Expense | O73: =SUM(IF(S_11AccNO=$B73,IF(S_11FieldRank<=S_11Choice,S_11Amount,0),0)) -> 0 | P73: =SUM(IF(S_3AccNO=$B73,IF(S_3FieldRank<=S_3Choice,S_3Amount,0),0)) -> 0 | Q73: =SUM(IF(S_4AccNO=$B73,IF(S_4FieldRank<=S_4Choice,S_4Amount,0),0)) -> 0 | R73: =SUM(IF(S_10AccNO=$B73,IF(S_10FieldRank<=S_10Choice,S_10Amount,0),0)) -> 0 | S73: =SUM(IF(S_13AccNO=$B73,IF(S_13FieldRank<=S_13Choice,S_13Amount,0),0)) -> 0 | T73: =SUM(IF(S_12AccNO=$B73,IF(S_12FieldRank<=S_12Choice,S_12Amount,0),0)) -> 0 | U73: =SUM(IF(S_15AccNO=$B73,IF(S_15FieldRank<=S_15Choice,S_15Amount,0),0)) -> 0 | V73: =SUM(IF(S_16AccNO=$B73,IF(S_16FieldRank<=S_16Choice,S_16Amount,0),0)) -> 0 | W73: =SUM(IF(S_17AccNO=$B73,IF(S_17FieldRank<=S_17Choice,S_17Amount,0),0)) -> 0 | X73: Moving Expense | Y73: =SUM(IF(S_18AccNO=$B73,IF(S_18FieldRank<=S_18Choice,S_18Amount,0),0)) -> 0 | Z73: =SUM(IF(S_9AccNO=$B73,IF(S_9FieldRank<=S_9Choice,S_9Amount,0),0)) -> 0 | AA73: =SUM(IF(S_19AccNO=$B73,IF(S_19FieldRank<=S_19Choice,S_19Amount,0),0)) -> 0 | AB73: =SUM(IF(S_20AccNo=$B73,IF(S_20FieldRank<=S_20Choice,S_20Amount,0),0)) -> 0 | AC73: =SUM(IF(S_21AccNo=$B73,IF(S_21FieldRank<=S_21Choice,S_21Amount,0),0)) -> 0 | AD73: =SUM(IF(S_22AccNo=$B73,IF(S_22FieldRank<=S_22Choice,S_22Amount,0),0)) -> 0 | AF73: =SUM(IF(S_23AccNo=$B73,IF(S_23FieldRank<=S_23Choice,S_23Amount,0),0)) -> 0 | AG73: 0 | AH73: =SUM(IF(S_5AccNO=$B73,IF(S_5FieldRank<=S_5Choice,S_5Amount,0),0)) -> 0
B74: 8941 | C74: Miscellaneous | D74: 2050 | E74: 1750 | F74: 7500 | G74: 1850 | H74: Miscellaneous | I74: =SUM(IF(S1AccNO=B74,IF(S1FieldRank<=S1Choice,S1Amount,0),0)) -> 0 | J74: =SUM(IF(S_2AccNO=$B74,IF(S_2FieldRank<=S_2Choice,S_2Amount,0),0)) -> 0 | K74: =SUM(IF(S_6AccNO=$B74,IF(S_6FieldRank<=s_6Choice,S_6Amount,0),0)) -> 150 | L74: =SUM(IF(S_7AccNO=$B74,IF(S_7FieldRank<=S_7Choice,S_7Amount,0),0)) -> 0 | M74: =SUM(IF(S_8AccNO=$B74,IF(S_8FieldRank<=S_8Choice,S_8Amount,0),0)) -> 0 | N74: Miscellaneous | O74: =SUM(IF(S_11AccNO=$B74,IF(S_11FieldRank<=S_11Choice,S_11Amount,0),0)) -> 0 | P74: =SUM(IF(S_3AccNO=$B74,IF(S_3FieldRank<=S_3Choice,S_3Amount,0),0)) -> 0 | Q74: =SUM(IF(S_4AccNO=$B74,IF(S_4FieldRank<=S_4Choice,S_4Amount,0),0)) -> 0 | R74: =SUM(IF(S_10AccNO=$B74,IF(S_10FieldRank<=S_10Choice,S_10Amount,0),0)) -> 0 | S74: =SUM(IF(S_13AccNO=$B74,IF(S_13FieldRank<=S_13Choice,S_13Amount,0),0)) -> 0 | T74: =SUM(IF(S_12AccNO=$B74,IF(S_12FieldRank<=S_12Choice,S_12Amount,0),0)) -> 5500 | U74: =SUM(IF(S_15AccNO=$B74,IF(S_15FieldRank<=S_15Choice,S_15Amount,0),0)) -> 0 | V74: =SUM(IF(S_16AccNO=$B74,IF(S_16FieldRank<=S_16Choice,S_16Amount,0),0)) -> 0 | W74: =SUM(IF(S_17AccNO=$B74,IF(S_17FieldRank<=S_17Choice,S_17Amount,0),0)) -> 0 | X74: Miscellaneous | Y74: =SUM(IF(S_18AccNO=$B74,IF(S_18FieldRank<=S_18Choice,S_18Amount,0),0)) -> 1850 | Z74: =SUM(IF(S_9AccNO=$B74,IF(S_9FieldRank<=S_9Choice,S_9Amount,0),0)) -> 0 | AA74: =SUM(IF(S_19AccNO=$B74,IF(S_19FieldRank<=S_19Choice,S_19Amount,0),0)) -> 0 | AB74: =SUM(IF(S_20AccNo=$B74,IF(S_20FieldRank<=S_20Choice,S_20Amount,0),0)) -> 0 | AC74: =SUM(IF(S_21AccNo=$B74,IF(S_21FieldRank<=S_21Choice,S_21Amount,0),0)) -> 0 | AD74: =SUM(IF(S_22AccNo=$B74,IF(S_22FieldRank<=S_22Choice,S_22Amount,0),0)) -> 0 | AF74: =SUM(IF(S_23AccNo=$B74,IF(S_23FieldRank<=S_23Choice,S_23Amount,0),0)) -> 0 | AG74: 0 | AH74: =SUM(IF(S_5AccNO=$B74,IF(S_5FieldRank<=S_5Choice,S_5Amount,0),0)) -> 0
B75: 8951 | C75: Grants to US Affiliates | D75: 0 | E75: 0 | F75: 0 | G75: 0 | H75: Grants to US Affiliates | I75: =SUM(IF(S1AccNO=B75,IF(S1FieldRank<=S1Choice,S1Amount,0),0)) -> 0 | J75: =SUM(IF(S_2AccNO=$B75,IF(S_2FieldRank<=S_2Choice,S_2Amount,0),0)) -> 0 | K75: =SUM(IF(S_6AccNO=$B75,IF(S_6FieldRank<=s_6Choice,S_6Amount,0),0)) -> 0 | L75: =SUM(IF(S_7AccNO=$B75,IF(S_7FieldRank<=S_7Choice,S_7Amount,0),0)) -> 0 | M75: =SUM(IF(S_8AccNO=$B75,IF(S_8FieldRank<=S_8Choice,S_8Amount,0),0)) -> 0 | N75: Grants to US Affiliates | O75: =SUM(IF(S_11AccNO=$B75,IF(S_11FieldRank<=S_11Choice,S_11Amount,0),0)) -> 0 | P75: =SUM(IF(S_3AccNO=$B75,IF(S_3FieldRank<=S_3Choice,S_3Amount,0),0)) -> 0 | Q75: =SUM(IF(S_4AccNO=$B75,IF(S_4FieldRank<=S_4Choice,S_4Amount,0),0)) -> 0 | R75: =SUM(IF(S_10AccNO=$B75,IF(S_10FieldRank<=S_10Choice,S_10Amount,0),0)) -> 0 | S75: =SUM(IF(S_13AccNO=$B75,IF(S_13FieldRank<=S_13Choice,S_13Amount,0),0)) -> 0 | T75: =SUM(IF(S_12AccNO=$B75,IF(S_12FieldRank<=S_12Choice,S_12Amount,0),0)) -> 0 | U75: =SUM(IF(S_15AccNO=$B75,IF(S_15FieldRank<=S_15Choice,S_15Amount,0),0)) -> 0 | V75: =SUM(IF(S_16AccNO=$B75,IF(S_16FieldRank<=S_16Choice,S_16Amount,0),0)) -> 0 | W75: =SUM(IF(S_17AccNO=$B75,IF(S_17FieldRank<=S_17Choice,S_17Amount,0),0)) -> 0 | X75: Grants to US Affiliates | Y75: =SUM(IF(S_18AccNO=$B75,IF(S_18FieldRank<=S_18Choice,S_18Amount,0),0)) -> 0 | Z75: =SUM(IF(S_9AccNO=$B75,IF(S_9FieldRank<=S_9Choice,S_9Amount,0),0)) -> 0 | AA75: =SUM(IF(S_19AccNO=$B75,IF(S_19FieldRank<=S_19Choice,S_19Amount,0),0)) -> 0 | AB75: =SUM(IF(S_20AccNo=$B75,IF(S_20FieldRank<=S_20Choice,S_20Amount,0),0)) -> 0 | AC75: =SUM(IF(S_21AccNo=$B75,IF(S_21FieldRank<=S_21Choice,S_21Amount,0),0)) -> 0 | AD75: =SUM(IF(S_22AccNo=$B75,IF(S_22FieldRank<=S_22Choice,S_22Amount,0),0)) -> 0 | AF75: =SUM(IF(S_23AccNo=$B75,IF(S_23FieldRank<=S_23Choice,S_23Amount,0),0)) -> 0 | AG75: 0 | AH75: =SUM(IF(S_5AccNO=$B75,IF(S_5FieldRank<=S_5Choice,S_5Amount,0),0)) -> 0
B76: 8952 | C76: Grants to Canada Affiliates | D76: 760000 | E76: 0 | F76: 850000 | G76: 0 | H76: Grants to Canada Affiliates | I76: =SUM(IF(S1AccNO=B76,IF(S1FieldRank<=S1Choice,S1Amount,0),0)) -> 0 | J76: =SUM(IF(S_2AccNO=$B76,IF(S_2FieldRank<=S_2Choice,S_2Amount,0),0)) -> 0 | K76: =SUM(IF(S_6AccNO=$B76,IF(S_6FieldRank<=s_6Choice,S_6Amount,0),0)) -> 0 | L76: =SUM(IF(S_7AccNO=$B76,IF(S_7FieldRank<=S_7Choice,S_7Amount,0),0)) -> 0 | M76: =SUM(IF(S_8AccNO=$B76,IF(S_8FieldRank<=S_8Choice,S_8Amount,0),0)) -> 0 | N76: Grants to Canada Affiliates | O76: =SUM(IF(S_11AccNO=$B76,IF(S_11FieldRank<=S_11Choice,S_11Amount,0),0)) -> 0 | P76: =SUM(IF(S_3AccNO=$B76,IF(S_3FieldRank<=S_3Choice,S_3Amount,0),0)) -> 0 | Q76: =SUM(IF(S_4AccNO=$B76,IF(S_4FieldRank<=S_4Choice,S_4Amount,0),0)) -> 0 | R76: =SUM(IF(S_10AccNO=$B76,IF(S_10FieldRank<=S_10Choice,S_10Amount,0),0)) -> 0 | S76: =SUM(IF(S_13AccNO=$B76,IF(S_13FieldRank<=S_13Choice,S_13Amount,0),0)) -> 850000 | T76: =SUM(IF(S_12AccNO=$B76,IF(S_12FieldRank<=S_12Choice,S_12Amount,0),0)) -> 0 | U76: =SUM(IF(S_15AccNO=$B76,IF(S_15FieldRank<=S_15Choice,S_15Amount,0),0)) -> 0 | V76: =SUM(IF(S_16AccNO=$B76,IF(S_16FieldRank<=S_16Choice,S_16Amount,0),0)) -> 0 | W76: =SUM(IF(S_17AccNO=$B76,IF(S_17FieldRank<=S_17Choice,S_17Amount,0),0)) -> 0 | X76: Grants to Canada Affiliates | Y76: =SUM(IF(S_18AccNO=$B76,IF(S_18FieldRank<=S_18Choice,S_18Amount,0),0)) -> 0 | Z76: =SUM(IF(S_9AccNO=$B76,IF(S_9FieldRank<=S_9Choice,S_9Amount,0),0)) -> 0 | AA76: =SUM(IF(S_19AccNO=$B76,IF(S_19FieldRank<=S_19Choice,S_19Amount,0),0)) -> 0 | AB76: =SUM(IF(S_20AccNo=$B76,IF(S_20FieldRank<=S_20Choice,S_20Amount,0),0)) -> 0 | AC76: =SUM(IF(S_21AccNo=$B76,IF(S_21FieldRank<=S_21Choice,S_21Amount,0),0)) -> 0 | AD76: =SUM(IF(S_22AccNo=$B76,IF(S_22FieldRank<=S_22Choice,S_22Amount,0),0)) -> 0 | AF76: =SUM(IF(S_23AccNo=$B76,IF(S_23FieldRank<=S_23Choice,S_23Amount,0),0)) -> 0 | AG76: 0 | AH76: =SUM(IF(S_5AccNO=$B76,IF(S_5FieldRank<=S_5Choice,S_5Amount,0),0)) -> 0
B77: 8953 | C77: Grants to Russia Affiliates | D77: 0 | E77: 0 | F77: 0 | G77: 0 | H77: Grants to Russia Affiliates | I77: =SUM(IF(S1AccNO=B77,IF(S1FieldRank<=S1Choice,S1Amount,0),0)) -> 0 | J77: =SUM(IF(S_2AccNO=$B77,IF(S_2FieldRank<=S_2Choice,S_2Amount,0),0)) -> 0 | K77: =SUM(IF(S_6AccNO=$B77,IF(S_6FieldRank<=s_6Choice,S_6Amount,0),0)) -> 0 | L77: =SUM(IF(S_7AccNO=$B77,IF(S_7FieldRank<=S_7Choice,S_7Amount,0),0)) -> 0 | M77: =SUM(IF(S_8AccNO=$B77,IF(S_8FieldRank<=S_8Choice,S_8Amount,0),0)) -> 0 | N77: Grants to Russia Affiliates | O77: =SUM(IF(S_11AccNO=$B77,IF(S_11FieldRank<=S_11Choice,S_11Amount,0),0)) -> 0 | P77: =SUM(IF(S_3AccNO=$B77,IF(S_3FieldRank<=S_3Choice,S_3Amount,0),0)) -> 0 | Q77: =SUM(IF(S_4AccNO=$B77,IF(S_4FieldRank<=S_4Choice,S_4Amount,0),0)) -> 0 | R77: =SUM(IF(S_10AccNO=$B77,IF(S_10FieldRank<=S_10Choice,S_10Amount,0),0)) -> 0 | S77: =SUM(IF(S_13AccNO=$B77,IF(S_13FieldRank<=S_13Choice,S_13Amount,0),0)) -> 0 | T77: =SUM(IF(S_12AccNO=$B77,IF(S_12FieldRank<=S_12Choice,S_12Amount,0),0)) -> 0 | U77: =SUM(IF(S_15AccNO=$B77,IF(S_15FieldRank<=S_15Choice,S_15Amount,0),0)) -> 0 | V77: =SUM(IF(S_16AccNO=$B77,IF(S_16FieldRank<=S_16Choice,S_16Amount,0),0)) -> 0 | W77: =SUM(IF(S_17AccNO=$B77,IF(S_17FieldRank<=S_17Choice,S_17Amount,0),0)) -> 0 | X77: Grants to Russia Affiliates | Y77: =SUM(IF(S_18AccNO=$B77,IF(S_18FieldRank<=S_18Choice,S_18Amount,0),0)) -> 0 | Z77: =SUM(IF(S_9AccNO=$B77,IF(S_9FieldRank<=S_9Choice,S_9Amount,0),0)) -> 0 | AA77: =SUM(IF(S_19AccNO=$B77,IF(S_19FieldRank<=S_19Choice,S_19Amount,0),0)) -> 0 | AB77: =SUM(IF(S_20AccNo=$B77,IF(S_20FieldRank<=S_20Choice,S_20Amount,0),0)) -> 0 | AC77: =SUM(IF(S_21AccNo=$B77,IF(S_21FieldRank<=S_21Choice,S_21Amount,0),0)) -> 0 | AD77: =SUM(IF(S_22AccNo=$B77,IF(S_22FieldRank<=S_22Choice,S_22Amount,0),0)) -> 0 | AF77: =SUM(IF(S_23AccNo=$B77,IF(S_23FieldRank<=S_23Choice,S_23Amount,0),0)) -> 0 | AG77: 0 | AH77: =SUM(IF(S_5AccNO=$B77,IF(S_5FieldRank<=S_5Choice,S_5Amount,0),0)) -> 0
B78: 8976 | C78: Deprecation Expense | E78: 0 | F78: =SUM(I78:AF78) -> 0 | G78: =SUM(Y78:AF78) -> 0 | H78: =C78 -> Deprecation Expense | I78: =SUM(IF(S1AccNO=B78,IF(S1FieldRank<=S1Choice,S1Amount,0),0)) -> 0 | J78: =SUM(IF(S_2AccNO=$B78,IF(S_2FieldRank<=S_2Choice,S_2Amount,0),0)) -> 0 | K78: =SUM(IF(S_6AccNO=$B78,IF(S_6FieldRank<=s_6Choice,S_6Amount,0),0)) -> 0 | L78: =SUM(IF(S_7AccNO=$B78,IF(S_7FieldRank<=S_7Choice,S_7Amount,0),0)) -> 0 | M78: =SUM(IF(S_8AccNO=$B78,IF(S_8FieldRank<=S_8Choice,S_8Amount,0),0)) -> 0 | N78: =C78 -> Deprecation Expense | O78: =SUM(IF(S_11AccNO=$B78,IF(S_11FieldRank<=S_11Choice,S_11Amount,0),0)) -> 0 | P78: =SUM(IF(S_3AccNO=$B78,IF(S_3FieldRank<=S_3Choice,S_3Amount,0),0)) -> 0 | Q78: =SUM(IF(S_4AccNO=$B78,IF(S_4FieldRank<=S_4Choice,S_4Amount,0),0)) -> 0 | R78: =SUM(IF(S_10AccNO=$B78,IF(S_10FieldRank<=S_10Choice,S_10Amount,0),0)) -> 0 | S78: =SUM(IF(S_13AccNO=$B78,IF(S_13FieldRank<=S_13Choice,S_13Amount,0),0)) -> 0 | T78: =SUM(IF(S_12AccNO=$B78,IF(S_12FieldRank<=S_12Choice,S_12Amount,0),0)) -> 0 | U78: =SUM(IF(S_15AccNO=$B78,IF(S_15FieldRank<=S_15Choice,S_15Amount,0),0)) -> 0 | V78: =SUM(IF(S_16AccNO=$B78,IF(S_16FieldRank<=S_16Choice,S_16Amount,0),0)) -> 0 | W78: =SUM(IF(S_17AccNO=$B78,IF(S_17FieldRank<=S_17Choice,S_17Amount,0),0)) -> 0 | X78: =C78 -> Deprecation Expense | Y78: =SUM(IF(S_18AccNO=$B78,IF(S_18FieldRank<=S_18Choice,S_18Amount,0),0)) -> 0 | Z78: =SUM(IF(S_9AccNO=$B78,IF(S_9FieldRank<=S_9Choice,S_9Amount,0),0)) -> 0 | AA78: =SUM(IF(S_19AccNO=$B78,IF(S_19FieldRank<=S_19Choice,S_19Amount,0),0)) -> 0 | AB78: =SUM(IF(S_20AccNo=$B78,IF(S_20FieldRank<=S_20Choice,S_20Amount,0),0)) -> 0 | AC78: =SUM(IF(S_21AccNo=$B78,IF(S_21FieldRank<=S_21Choice,S_21Amount,0),0)) -> 0 | AD78: =SUM(IF(S_22AccNo=$B78,IF(S_22FieldRank<=S_22Choice,S_22Amount,0),0)) -> 0 | AF78: =SUM(IF(S_23AccNo=$B78,IF(S_23FieldRank<=S_23Choice,S_23Amount,0),0)) -> 0
B79: 8980 | C79: Research & Development | D79: 6000 | E79: 0 | F79: 4750 | G79: 0 | H79: =C79 -> Research & Development | I79: =SUM(IF(S1AccNO=B79,IF(S1FieldRank<=S1Choice,S1Amount,0),0)) -> 0 | J79: =SUM(IF(S_2AccNO=$B79,IF(S_2FieldRank<=S_2Choice,S_2Amount,0),0)) -> 0 | K79: =SUM(IF(S_6AccNO=$B79,IF(S_6FieldRank<=s_6Choice,S_6Amount,0),0)) -> 0 | L79: =SUM(IF(S_7AccNO=$B79,IF(S_7FieldRank<=S_7Choice,S_7Amount,0),0)) -> 4750 | M79: =SUM(IF(S_8AccNO=$B79,IF(S_8FieldRank<=S_8Choice,S_8Amount,0),0)) -> 0 | N79: =C79 -> Research & Development | O79: =SUM(IF(S_11AccNO=$B79,IF(S_11FieldRank<=S_11Choice,S_11Amount,0),0)) -> 0 | P79: =SUM(IF(S_3AccNO=$B79,IF(S_3FieldRank<=S_3Choice,S_3Amount,0),0)) -> 0 | Q79: =SUM(IF(S_4AccNO=$B79,IF(S_4FieldRank<=S_4Choice,S_4Amount,0),0)) -> 0 | R79: =SUM(IF(S_10AccNO=$B79,IF(S_10FieldRank<=S_10Choice,S_10Amount,0),0)) -> 0 | S79: =SUM(IF(S_13AccNO=$B79,IF(S_13FieldRank<=S_13Choice,S_13Amount,0),0)) -> 0 | T79: =SUM(IF(S_12AccNO=$B79,IF(S_12FieldRank<=S_12Choice,S_12Amount,0),0)) -> 0 | U79: =SUM(IF(S_15AccNO=$B79,IF(S_15FieldRank<=S_15Choice,S_15Amount,0),0)) -> 0 | V79: =SUM(IF(S_16AccNO=$B79,IF(S_16FieldRank<=S_16Choice,S_16Amount,0),0)) -> 0 | W79: =SUM(IF(S_17AccNO=$B79,IF(S_17FieldRank<=S_17Choice,S_17Amount,0),0)) -> 0 | X79: =C79 -> Research & Development | Y79: =SUM(IF(S_18AccNO=$B79,IF(S_18FieldRank<=S_18Choice,S_18Amount,0),0)) -> 0 | Z79: =SUM(IF(S_9AccNO=$B79,IF(S_9FieldRank<=S_9Choice,S_9Amount,0),0)) -> 0 | AA79: =SUM(IF(S_19AccNO=$B79,IF(S_19FieldRank<=S_19Choice,S_19Amount,0),0)) -> 0 | AB79: =SUM(IF(S_20AccNo=$B79,IF(S_20FieldRank<=S_20Choice,S_20Amount,0),0)) -> 0 | AC79: =SUM(IF(S_21AccNo=$B79,IF(S_21FieldRank<=S_21Choice,S_21Amount,0),0)) -> 0 | AD79: =SUM(IF(S_22AccNo=$B79,IF(S_22FieldRank<=S_22Choice,S_22Amount,0),0)) -> 0 | AF79: =SUM(IF(S_23AccNo=$B79,IF(S_23FieldRank<=S_23Choice,S_23Amount,0),0)) -> 0
B80: 8990 | C80: Ministry Expense | D80: 67520 | E80: 0 | F80: 74520 | G80: 0 | H80: =C80 -> Ministry Expense | I80: =SUM(IF(S1AccNO=B80,IF(S1FieldRank<=S1Choice,S1Amount,0),0)) -> 0 | J80: =SUM(IF(S_2AccNO=$B80,IF(S_2FieldRank<=S_2Choice,S_2Amount,0),0)) -> 44280 | K80: =SUM(IF(S_6AccNO=$B80,IF(S_6FieldRank<=s_6Choice,S_6Amount,0),0)) -> 0 | L80: =SUM(IF(S_7AccNO=$B80,IF(S_7FieldRank<=S_7Choice,S_7Amount,0),0)) -> 14640 | M80: =SUM(IF(S_8AccNO=$B80,IF(S_8FieldRank<=S_8Choice,S_8Amount,0),0)) -> 0 | N80: =C80 -> Ministry Expense | O80: =SUM(IF(S_11AccNO=$B80,IF(S_11FieldRank<=S_11Choice,S_11Amount,0),0)) -> 0 | P80: =SUM(IF(S_3AccNO=$B80,IF(S_3FieldRank<=S_3Choice,S_3Amount,0),0)) -> 0 | Q80: =SUM(IF(S_4AccNO=$B80,IF(S_4FieldRank<=S_4Choice,S_4Amount,0),0)) -> 0 | R80: =SUM(IF(S_10AccNO=$B80,IF(S_10FieldRank<=S_10Choice,S_10Amount,0),0)) -> 7200 | S80: =SUM(IF(S_13AccNO=$B80,IF(S_13FieldRank<=S_13Choice,S_13Amount,0),0)) -> 4800 | T80: =SUM(IF(S_12AccNO=$B80,IF(S_12FieldRank<=S_12Choice,S_12Amount,0),0)) -> 0 | U80: =SUM(IF(S_15AccNO=$B80,IF(S_15FieldRank<=S_15Choice,S_15Amount,0),0)) -> 0 | V80: =SUM(IF(S_16AccNO=$B80,IF(S_16FieldRank<=S_16Choice,S_16Amount,0),0)) -> 3600 | W80: =SUM(IF(S_17AccNO=$B80,IF(S_17FieldRank<=S_17Choice,S_17Amount,0),0)) -> 0 | X80: =C80 -> Ministry Expense | Y80: =SUM(IF(S_18AccNO=$B80,IF(S_18FieldRank<=S_18Choice,S_18Amount,0),0)) -> 0 | Z80: =SUM(IF(S_9AccNO=$B80,IF(S_9FieldRank<=S_9Choice,S_9Amount,0),0)) -> 0 | AA80: =SUM(IF(S_19AccNO=$B80,IF(S_19FieldRank<=S_19Choice,S_19Amount,0),0)) -> 0 | AB80: =SUM(IF(S_20AccNo=$B80,IF(S_20FieldRank<=S_20Choice,S_20Amount,0),0)) -> 0 | AC80: =SUM(IF(S_21AccNo=$B80,IF(S_21FieldRank<=S_21Choice,S_21Amount,0),0)) -> 0 | AD80: =SUM(IF(S_22AccNo=$B80,IF(S_22FieldRank<=S_22Choice,S_22Amount,0),0)) -> 0 | AE80: =GETPIVOTDATA("Amount",'S25'!$J$5,"Acc_NO",8990) -> 0 | AF80: =SUM(IF(S_23AccNo=$B80,IF(S_23FieldRank<=S_23Choice,S_23Amount,0),0)) -> 0 | AG80: 0 | AH80: =SUM(IF(S_5AccNO=$B80,IF(S_5FieldRank<=S_5Choice,S_5Amount,0),0)) -> 0
B81: 8999 | C81: Special Projects | D81: 0 | E81: 0 | F81: 0 | G81: 0 | H81: =C81 -> Special Projects | I81: =SUM(IF(S1AccNO=B81,IF(S1FieldRank<=S1Choice,S1Amount,0),0)) -> 0 | J81: =SUM(IF(S_2AccNO=$B81,IF(S_2FieldRank<=S_2Choice,S_2Amount,0),0)) -> 0 | K81: =SUM(IF(S_6AccNO=$B81,IF(S_6FieldRank<=s_6Choice,S_6Amount,0),0)) -> 0 | L81: =SUM(IF(S_7AccNO=$B81,IF(S_7FieldRank<=S_7Choice,S_7Amount,0),0)) -> 0 | M81: =SUM(IF(S_8AccNO=$B81,IF(S_8FieldRank<=S_8Choice,S_8Amount,0),0)) -> 0 | N81: =C81 -> Special Projects | O81: =SUM(IF(S_11AccNO=$B81,IF(S_11FieldRank<=S_11Choice,S_11Amount,0),0)) -> 0 | P81: =SUM(IF(S_3AccNO=$B81,IF(S_3FieldRank<=S_3Choice,S_3Amount,0),0)) -> 0 | Q81: =SUM(IF(S_4AccNO=$B81,IF(S_4FieldRank<=S_4Choice,S_4Amount,0),0)) -> 0 | R81: =SUM(IF(S_10AccNO=$B81,IF(S_10FieldRank<=S_10Choice,S_10Amount,0),0)) -> 0 | S81: =SUM(IF(S_13AccNO=$B81,IF(S_13FieldRank<=S_13Choice,S_13Amount,0),0)) -> 0 | T81: =SUM(IF(S_12AccNO=$B81,IF(S_12FieldRank<=S_12Choice,S_12Amount,0),0)) -> 0 | U81: =SUM(IF(S_15AccNO=$B81,IF(S_15FieldRank<=S_15Choice,S_15Amount,0),0)) -> 0 | V81: =SUM(IF(S_16AccNO=$B81,IF(S_16FieldRank<=S_16Choice,S_16Amount,0),0)) -> 0 | W81: =SUM(IF(S_17AccNO=$B81,IF(S_17FieldRank<=S_17Choice,S_17Amount,0),0)) -> 0 | X81: =C81 -> Special Projects | Y81: =SUM(IF(S_18AccNO=$B81,IF(S_18FieldRank<=S_18Choice,S_18Amount,0),0)) -> 0 | Z81: =SUM(IF(S_9AccNO=$B81,IF(S_9FieldRank<=S_9Choice,S_9Amount,0),0)) -> 0 | AA81: =SUM(IF(S_19AccNO=$B81,IF(S_19FieldRank<=S_19Choice,S_19Amount,0),0)) -> 0 | AB81: =SUM(IF(S_20AccNo=$B81,IF(S_20FieldRank<=S_20Choice,S_20Amount,0),0)) -> 0 | AC81: =SUM(IF(S_21AccNo=$B81,IF(S_21FieldRank<=S_21Choice,S_21Amount,0),0)) -> 0 | AD81: =SUM(IF(S_22AccNo=$B81,IF(S_22FieldRank<=S_22Choice,S_22Amount,0),0)) -> 0 | AF81: =SUM(IF(S_23AccNo=$B81,IF(S_23FieldRank<=S_23Choice,S_23Amount,0),0)) -> 0 | AG81: 0 | AH81: =SUM(IF(S_5AccNO=$B81,IF(S_5FieldRank<=S_5Choice,S_5Amount,0),0)) -> 0

Sheet S1
B1: AK Field Office | C1: 41780 | D1: =Main_BGT!F5 -> 2022-2023 | G1: 10
D2: Total Income | E2: =SUM(IF(S_1FieldRank<=S1Choice,IF(S1AccNO<=LastIncome,S1Amount,0),0)) -> 90000
D3: Total Expense | E3: =SUM(IF(S1FieldRank<=S1Choice,IF(S1AccNO>LastIncome,S1Amount,0),0)) -> 123250
D4: Difference | E4: =E2-E3 -> -33250
B5: Account Description | C5: Acc_NO | D5: Field Detail | E5: Amount | F5: Month | G5: Rank | H5: Out
B6: =IF(C6<1," ",VLOOKUP(C6,MainAccountNO:MainAccounts,2,FALSE)) ->  | H6: =IF(G6<=$G$1,"","OUT") -> 
A7: =A5+1 -> 1 | B7: =IF(C7<1," ",VLOOKUP(C7,MainAccountNO:MainAccounts,2,FALSE)) -> Vehicle Fuel & Oil | C7: 8702 | D7: Field related travel, using campus vehicles | E7: 700 | G7: 2 | H7: =IF(G7<=$G$1,"","OUT") -> 
A8: =A7+1 -> 2 | B8: =IF(C8<1," ",VLOOKUP(C8,MainAccountNO:MainAccounts,2,FALSE)) -> General Ministry Supply | C8: 8108 | D8: General ministry supplies | E8: 1000 | G8: 1 | H8: =IF(G8<=$G$1,"","OUT") -> 
A9: =A8+1 -> 3 | B9: =IF(C9<1," ",VLOOKUP(C9,MainAccountNO:MainAccounts,2,FALSE)) -> Employment Insurance | C9: 7203 | D9: Workers Comp on Alaska Staff | E9: 6100
A10: 4 | B10: =IF(C10<1," ",VLOOKUP(C10,MainAccountNO:MainAccounts,2,FALSE)) -> Vehicle Rental | C10: 8706 | D10: Field Director Car Rental while traveling | E10: 500 | G10: 2
A11: 5 | B11: =IF(C11<1," ",VLOOKUP(C11,MainAccountNO:MainAccounts,2,FALSE)) -> Commercial Travel | C11: 8710 | D11: Field Director in state travel (village flights etc) | E11: 4000 | G11: 2
A12: 6 | B12: =IF(C12<1," ",VLOOKUP(C12,MainAccountNO:MainAccounts,2,FALSE)) -> Auto Mileage Reimb | C12: 8707 | D12: Field Director to ELT - 2 trips | E12: 1200 | G12: 3
A13: 7 | B13: =IF(C13<1," ",VLOOKUP(C13,MainAccountNO:MainAccounts,2,FALSE)) -> Telephone | C13: 8201 | D13: Field Office & campus phones & Internet | E13: 3000 | G13: 2
A14: 8 | B14: =IF(C14<1," ",VLOOKUP(C14,MainAccountNO:MainAccounts,2,FALSE)) -> Meals & Entertainment | C14: 8709 | D14: Field Director field meals & entertainment | E14: 800 | G14: 3
A15: 9 | B15: =IF(C15<1," ",VLOOKUP(C15,MainAccountNO:MainAccounts,2,FALSE)) -> Office Supply | C15: 8106 | D15: Field Director off-site office supplies & small equipment | E15: 500 | G15: 3
A16: 10 | B16: =IF(C16<1," ",VLOOKUP(C16,MainAccountNO:MainAccounts,2,FALSE)) -> Office Supply | C16: 8106 | D16: Alaska Office/printer/copier Supplies | E16: 1500 | G16: 1
A17: 11 | B17: =IF(C17<1," ",VLOOKUP(C17,MainAccountNO:MainAccounts,2,FALSE)) -> Postage & Shipping | C17: 8301 | D17: Postage | E17: 400 | G17: 1
A18: 12 | B18: =IF(C18<1," ",VLOOKUP(C18,MainAccountNO:MainAccounts,2,FALSE)) -> Liability Insurance | C18: 8009 | D18: Field Liability Insurance (Brotherhood Mutual) | E18: 1350
A19: 13 | B19: =IF(C19<1," ",VLOOKUP(C19,MainAccountNO:MainAccounts,2,FALSE)) -> Equipment Maint. | C19: 8502 | D19: Copier Maintenance | E19: 1500 | G19: 1
A20: 14 | B20: =IF(C20<1," ",VLOOKUP(C20,MainAccountNO:MainAccounts,2,FALSE)) -> Missionary Conference | C20: 8805 | D20: Field Conf. Speaker & Child Care providers | E20: 2000 | F20: 6 | G20: 1
A21: 15 | B21: =IF(C21<1," ",VLOOKUP(C21,MainAccountNO:MainAccounts,2,FALSE)) -> Missionary Conference | C21: 8805 | D21: Field Conference Food & Housing/tent (incl cook) | E21: 2000 | F21: 6 | G21: 1
A22: 16 | B22: =IF(C22<1," ",VLOOKUP(C22,MainAccountNO:MainAccounts,2,FALSE)) -> Missionary Conference | C22: 8805 | D22: Staff Travel To Field Conference | E22: 4000 | F22: 6 | G22: 1
A23: 17 | B23: =IF(C23<1," ",VLOOKUP(C23,MainAccountNO:MainAccounts,2,FALSE)) -> Member Care | C23: 8004 | D23: Random acts of kindness | E23: 800 | G23: 1
A24: 18 | B24: =IF(C24<1," ",VLOOKUP(C24,MainAccountNO:MainAccounts,2,FALSE)) -> Missionary Conference | C24: 8805 | D24: Guest participation - housing, meals | E24: 300
A25: 19 | B25: =IF(C25<1," ",VLOOKUP(C25,MainAccountNO:MainAccounts,2,FALSE)) -> Computer & Technology | C25: 8211 | D25: Bookkeeping Software | E25: 1600 | G25: 1
A26: 20 | H26: =IF(G26<=$G$1,"","OUT") -> 
A27: 21
A28: 22
A29: 23 | B29: =IF(C29<1," ",VLOOKUP(C29,MainAccountNO:MainAccounts,2,FALSE)) ->  | D29: Staffing
A30: 24 | B30: =IF(C30<1," ",VLOOKUP(C30,MainAccountNO:MainAccounts,2,FALSE)) -> Cash Gifts - Staff Support | C30: 5001 | D30: Horsman Support | E30: 100000
A31: 25 | B31: =IF(C31<1," ",VLOOKUP(C31,MainAccountNO:MainAccounts,2,FALSE)) -> Missionary Salaries | C31: 7005 | D31: Horsman Salary | E31: =E30+E33 -> 90000
A32: 26 | B32: =IF(C32<1," ",VLOOKUP(C32,MainAccountNO:MainAccounts,2,FALSE)) -> Ministry Expense | C32: 8990 | D32: Horsman MER | E32: 0
A33: 27 | B33: =IF(C33<1," ",VLOOKUP(C33,MainAccountNO:MainAccounts,2,FALSE)) -> Operations Assessment | C33: 4100 | D33: Horsman Assessment | E33: =-E30*0.1 -> -10000
A34: 28 | B34: =IF(C34<1," ",VLOOKUP(C34,MainAccountNO:MainAccounts,2,FALSE)) -> 
A35: 29 | B35: =IF(C35<1," ",VLOOKUP(C35,MainAccountNO:MainAccounts,2,FALSE)) ->  | D35: Pink fields will be completed by Mike
A36: 30 | B36: =IF(C36<1," ",VLOOKUP(C36,MainAccountNO:MainAccounts,2,FALSE)) ->  | H36: =IF(G36<=$G$1,"","OUT") -> 

Sheet S2
B1: AK Field Ministries | C1: 40946 | D1: =Main_BGT!F5 -> 2022-2023 | G1: 10
D2: Total Income | E2: =SUM(IF(S_2FieldRank<=S_2Choice,IF(S_2AccNO<=LastIncome,S_2Amount,0),0)) -> 670152
D3: Total Expense | E3: =SUM(IF(S_2FieldRank<=S_2Choice,IF(S_2AccNO>LastIncome,S_2Amount,0),0)) -> 626723
D4: Difference | E4: =E2-E3 -> 43429
A5: line | B5: Account Description | C5: Acc_NO | D5: Field Detail | E5: Amount | F5: Month | G5: Rank | H5: Out
A6: 1 | B6: =IF(C6<1," ",VLOOKUP(C6,MainAccountNO:MainAccounts,2,FALSE)) ->  | H6: =IF(G6<=$G$1,"","OUT") -> 
A7: =A6+1 -> 2 | B7: =IF(C7<1," ",VLOOKUP(C7,MainAccountNO:MainAccounts,2,FALSE)) -> Beginning Fund Balances | C7: 3100 | D7: AK Field Ministries (currently $46,856 as of 11/30/2021) | E7: 46929
A8: =A7+1 -> 3 | B8: =IF(C8<1," ",VLOOKUP(C8,MainAccountNO:MainAccounts,2,FALSE)) -> 
A9: =A8+1 -> 4
A10: 5 | B10: =IF(C10<1," ",VLOOKUP(C10,MainAccountNO:MainAccounts,2,FALSE)) -> Commercial Travel | C10: 8710 | D10: Commerical Travel - Leadership | E10: 2500 | G10: 2
A11: 6 | B11: =IF(C11<1," ",VLOOKUP(C11,MainAccountNO:MainAccounts,2,FALSE)) -> Vehicle Fuel & Oil | C11: 8702 | D11: fuel and oil - Leadership | E11: 800 | G11: 1
A12: 7 | B12: =IF(C12<1," ",VLOOKUP(C12,MainAccountNO:MainAccounts,2,FALSE)) -> Motel/Hotel & Room Rent | C12: 8711 | D12: lodging - Leadership | E12: 600 | G12: 2
A13: 8 | B13: =IF(C13<1," ",VLOOKUP(C13,MainAccountNO:MainAccounts,2,FALSE)) -> Food for Meetings | C13: 8803 | D13: meals - Leadership | E13: 500 | G13: 2
A14: 9 | B14: =IF(C14<1," ",VLOOKUP(C14,MainAccountNO:MainAccounts,2,FALSE)) -> Staff Training | C14: 8003 | D14: leadership materials | E14: 600 | G14: 2
A15: 10 | B15: =IF(C15<1," ",VLOOKUP(C15,MainAccountNO:MainAccounts,2,FALSE)) -> Research & Development | C15: 8980 | D15: Field Research and development :) | E15: 1000 | G15: 1
A16: 11 | B16: =IF(C16<1," ",VLOOKUP(C16,MainAccountNO:MainAccounts,2,FALSE)) -> Commercial Travel | C16: 8710 | D16: Field Research and development travel | E16: 9000 | G16: 1
A17: 12 | B17: =IF(C17<1," ",VLOOKUP(C17,MainAccountNO:MainAccounts,2,FALSE)) -> Speaker Honorarium | C17: 8804 | D17: Staff training honorariums | E17: 2000 | G17: 1
A18: 13 | B18: =IF(C18<1," ",VLOOKUP(C18,MainAccountNO:MainAccounts,2,FALSE)) -> Seminars & Registrations | C18: 8806 | D18: Staff training | E18: 2500 | G18: 2
A19: 14 | B19: =IF(C19<1," ",VLOOKUP(C19,MainAccountNO:MainAccounts,2,FALSE)) -> Commercial Travel | C19: 8710 | D19: Staff Training travel | E19: 2500 | G19: 2
A20: 15 | B20: =IF(C20<1," ",VLOOKUP(C20,MainAccountNO:MainAccounts,2,FALSE)) -> Staff Training | C20: 8003 | D20: ANA/ Biblical Counseling/ On Boarding | E20: 2000 | G20: 1 | H20: =IF(G20<=$G$1,"","OUT") -> 
A21: 16 | B21: =IF(C21<1," ",VLOOKUP(C21,MainAccountNO:MainAccounts,2,FALSE)) -> Staff Training | C21: 8003 | D21: Training new missionaries | E21: 1500 | G21: 1 | H21: =IF(G21<=$G$1,"","OUT") -> 
D22: AK member Care/ Support
A23: =A21+1 -> 17 | B23: =IF(C23<1," ",VLOOKUP(C23,MainAccountNO:MainAccounts,2,FALSE)) -> Missionary Conference | C23: 8805 | D23: Member care Conference meals & housing (2 adults) | E23: 1200 | G23: 1
A24: 18 | B24: =IF(C24<1," ",VLOOKUP(C24,MainAccountNO:MainAccounts,2,FALSE)) -> Seminars & Registrations | C24: 8806 | D24: Member care participation at training events (2 adults) | E24: 1200 | G24: 1
A25: 19 | B25: =IF(C25<1," ",VLOOKUP(C25,MainAccountNO:MainAccounts,2,FALSE)) -> Member Care | C25: 8004 | D25: Member Care in-home support to missionaries (beyond 2 weeks ($50 / day per couple | E25: 500 | G25: 1
A26: 20 | B26: =IF(C26<1," ",VLOOKUP(C26,MainAccountNO:MainAccounts,2,FALSE)) -> Commercial Travel | C26: 8710 | D26: Member Care/ support travel flight & road system (minimum 2 visits / village ministry) | E26: 5000 | G26: 1
A27: 21 | B27: =IF(C27<1," ",VLOOKUP(C27,MainAccountNO:MainAccounts,2,FALSE)) -> Member Care | C27: 8004 | D27: Member care /Support care packages & encouragement | E27: 500 | G27: 1
D28: AK PROMTIONAL EVENT
A29: =A27+1 -> 22 | B29: =IF(C29<1," ",VLOOKUP(C29,MainAccountNO:MainAccounts,2,FALSE)) -> Public Relations | C29: 8005 | D29: Family Fun Day- promoting InterAct Field Ministries- Fun Day at Lazy Mtn. Campus | E29: 2000 | G29: 2
A30: 23 | B30: =IF(C30<1," ",VLOOKUP(C30,MainAccountNO:MainAccounts,2,FALSE)) -> Public Relations | C30: 8005 | D30: Family Fun Day- Activities | E30: 4000 | G30: 2
A31: 24 | B31: =IF(C31<1," ",VLOOKUP(C31,MainAccountNO:MainAccounts,2,FALSE)) -> Advertising | C31: 8608 | D31: Family Fun Day- Advertising | E31: 500 | G31: 1
A32: 25 | B32: =IF(C32<1," ",VLOOKUP(C32,MainAccountNO:MainAccounts,2,FALSE)) ->  | D32: STAFFING
A33: 26 | B33: =IF(C33<1," ",VLOOKUP(C33,MainAccountNO:MainAccounts,2,FALSE)) -> Cash Gifts - Staff Support | C33: 5001 | D33: Curtis T. Support | E33: 62000 | H33: =IF(G33<=$G$1,"","OUT") -> 
A34: =A33+1 -> 27 | B34: =IF(C34<1," ",VLOOKUP(C34,MainAccountNO:MainAccounts,2,FALSE)) -> Missionary Salaries | C34: 7005 | D34: Curtis T. Salary | E34: =E33-E35+E36 -> 54600
A35: 28 | B35: =IF(C35<1," ",VLOOKUP(C35,MainAccountNO:MainAccounts,2,FALSE)) -> Ministry Expense | C35: 8990 | D35: Curtis T. MER | E35: 1200
A36: 29 | B36: =IF(C36<1," ",VLOOKUP(C36,MainAccountNO:MainAccounts,2,FALSE)) -> Operations Assessment | C36: 4100 | D36: Curtis T Assessment | E36: =-E33*0.1 -> -6200
A37: 30 | B37: =IF(C37<1," ",VLOOKUP(C37,MainAccountNO:MainAccounts,2,FALSE)) -> Cash Gifts - Staff Support | C37: 5001 | D37: Curtis C. Support | E37: 40000
A38: 31 | B38: =IF(C38<1," ",VLOOKUP(C38,MainAccountNO:MainAccounts,2,FALSE)) -> Missionary Salaries | C38: 7005 | D38: Curtis C. Salary | E38: =E37+E40-E39 -> 33000
A39: 32 | B39: =IF(C39<1," ",VLOOKUP(C39,MainAccountNO:MainAccounts,2,FALSE)) -> Ministry Expense | C39: 8990 | D39: Curtis C. MER | E39: 3000
A40: 33 | B40: =IF(C40<1," ",VLOOKUP(C40,MainAccountNO:MainAccounts,2,FALSE)) -> Operations Assessment | C40: 4100 | D40: Curtis C. Assessment | E40: =-E37*0.1 -> -4000
A41: 34 | B41: =IF(C41<1," ",VLOOKUP(C41,MainAccountNO:MainAccounts,2,FALSE)) -> Cash Gifts - Staff Support | C41: 5001 | D41: Dalton Support | E41: 79000
A42: 35 | B42: =IF(C42<1," ",VLOOKUP(C42,MainAccountNO:MainAccounts,2,FALSE)) -> Missionary Salaries | C42: 7005 | D42: Dalton Salary | E42: =E41+E44-E43 -> 65100
A43: 36 | B43: =IF(C43<1," ",VLOOKUP(C43,MainAccountNO:MainAccounts,2,FALSE)) -> Ministry Expense | C43: 8990 | D43: Dalton MER | E43: 6000
A44: 37 | B44: =IF(C44<1," ",VLOOKUP(C44,MainAccountNO:MainAccounts,2,FALSE)) -> Operations Assessment | C44: 4100 | D44: Dalton Assessment | E44: =-E41*0.1 -> -7900
A45: =A40+1 -> 34 | B45: =IF(C45<1," ",VLOOKUP(C45,MainAccountNO:MainAccounts,2,FALSE)) -> Cash Gifts - Staff Support | C45: 5001 | D45: Derr Support | E45: 47000
A46: 35 | B46: =IF(C46<1," ",VLOOKUP(C46,MainAccountNO:MainAccounts,2,FALSE)) -> Missionary Salaries | C46: 7005 | D46: Derr Salary | E46: =E45+E48-E47 -> 39900
A47: 36 | B47: =IF(C47<1," ",VLOOKUP(C47,MainAccountNO:MainAccounts,2,FALSE)) -> Ministry Expense | C47: 8990 | D47: Derr MER | E47: 2400
A48: 37 | B48: =IF(C48<1," ",VLOOKUP(C48,MainAccountNO:MainAccounts,2,FALSE)) -> Operations Assessment | C48: 4100 | D48: Derr Assessment | E48: =-E45*0.1 -> -4700
A49: =A44+1 -> 38 | B49: =IF(C49<1," ",VLOOKUP(C49,MainAccountNO:MainAccounts,2,FALSE)) -> Cash Gifts - Staff Support | C49: 5001 | D49: DeVries Support | E49: 80000 | H49: =IF(G49<=$G$1,"","OUT") -> 
A50: 39 | B50: =IF(C50<1," ",VLOOKUP(C50,MainAccountNO:MainAccounts,2,FALSE)) -> Missionary Salaries | C50: 7005 | D50: DeVries Salary | E50: =E49-E51+E52 -> 60000
A51: 40 | B51: =IF(C51<1," ",VLOOKUP(C51,MainAccountNO:MainAccounts,2,FALSE)) -> Ministry Expense | C51: 8990 | D51: DeVries MER | E51: 12000
A52: 41 | B52: =IF(C52<1," ",VLOOKUP(C52,MainAccountNO:MainAccounts,2,FALSE)) -> Operations Assessment | C52: 4100 | D52: DeVries Assessment | E52: =-E49*0.1 -> -8000
A53: 42 | B53: =IF(C53<1," ",VLOOKUP(C53,MainAccountNO:MainAccounts,2,FALSE)) -> Cash Gifts - Staff Support | C53: 5001 | D53: Martin Support | E53: 72000 | H53: =IF(G53<=$G$1,"","OUT") -> 
A54: 43 | B54: =IF(C54<1," ",VLOOKUP(C54,MainAccountNO:MainAccounts,2,FALSE)) -> Missionary Salaries | C54: 7005 | D54: Martin Salary | E54: =E53-E55+E56 -> 61200
A55: 44 | B55: =IF(C55<1," ",VLOOKUP(C55,MainAccountNO:MainAccounts,2,FALSE)) -> Ministry Expense | C55: 8990 | D55: Martin MER | E55: 3600
A56: 45 | B56: =IF(C56<1," ",VLOOKUP(C56,MainAccountNO:MainAccounts,2,FALSE)) -> Operations Assessment | C56: 4100 | D56: Martin Assessment | E56: =-E53*0.1 -> -7200
A57: =A52+1 -> 42 | B57: =IF(C57<1," ",VLOOKUP(C57,MainAccountNO:MainAccounts,2,FALSE)) -> Cash Gifts - Staff Support | C57: 5001 | D57: Mole Support | E57: 52500
A58: 43 | B58: =IF(C58<1," ",VLOOKUP(C58,MainAccountNO:MainAccounts,2,FALSE)) -> Missionary Salaries | C58: 7005 | D58: Mole Salary | E58: =E57+E60-E59 -> 47250
A59: 44 | B59: =IF(C59<1," ",VLOOKUP(C59,MainAccountNO:MainAccounts,2,FALSE)) -> Ministry Expense | C59: 8990 | D59: Mole MER | E59: 0
A60: 45 | B60: =IF(C60<1," ",VLOOKUP(C60,MainAccountNO:MainAccounts,2,FALSE)) -> Operations Assessment | C60: 4100 | D60: Mole Assessment | E60: =-E57*0.1 -> -5250
A61: 46 | B61: =IF(C61<1," ",VLOOKUP(C61,MainAccountNO:MainAccounts,2,FALSE)) -> Cash Gifts - Staff Support | C61: 5001 | D61: Paull Support | E61: 48500
A62: 47 | B62: =IF(C62<1," ",VLOOKUP(C62,MainAccountNO:MainAccounts,2,FALSE)) -> Missionary Salaries | C62: 7005 | D62: Paull Salary | E62: =E61-E63+E64 -> 41250
A63: 48 | B63: =IF(C63<1," ",VLOOKUP(C63,MainAccountNO:MainAccounts,2,FALSE)) -> Ministry Expense | C63: 8990 | D63: Paull MER | E63: 2400
A64: 49 | B64: =IF(C64<1," ",VLOOKUP(C64,MainAccountNO:MainAccounts,2,FALSE)) -> Operations Assessment | C64: 4100 | D64: Paull Assessment | E64: =-E61*0.1 -> -4850
A65: 50 | B65: =IF(C65<1," ",VLOOKUP(C65,MainAccountNO:MainAccounts,2,FALSE)) -> Cash Gifts - Staff Support | C65: 5001 | D65: Peterson Support | E65: 44500
A66: 51 | B66: =IF(C66<1," ",VLOOKUP(C66,MainAccountNO:MainAccounts,2,FALSE)) -> Missionary Salaries | C66: 7005 | D66: Peterson Salary | E66: =E65-E67+E68 -> 40050
A67: 52 | B67: =IF(C67<1," ",VLOOKUP(C67,MainAccountNO:MainAccounts,2,FALSE)) -> Ministry Expense | C67: 8990 | D67: Peterson MER | E67: 0
A68: 53 | B68: =IF(C68<1," ",VLOOKUP(C68,MainAccountNO:MainAccounts,2,FALSE)) -> Operations Assessment | C68: 4100 | D68: Peterson Assessment | E68: =-E65*0.1 -> -4450
A69: =A64+1 -> 50 | B69: =IF(C69<1," ",VLOOKUP(C69,MainAccountNO:MainAccounts,2,FALSE)) -> Cash Gifts - Staff Support | C69: 5001 | D69: Richardson D Support | E69: 41000
A70: 51 | B70: =IF(C70<1," ",VLOOKUP(C70,MainAccountNO:MainAccounts,2,FALSE)) -> Missionary Salaries | C70: 7005 | D70: Richardson D Salary | E70: =E69-E71+E72 -> 36900
A71: 52 | B71: =IF(C71<1," ",VLOOKUP(C71,MainAccountNO:MainAccounts,2,FALSE)) -> Ministry Expense | C71: 8990 | D71: Richardson D MER | E71: 0 | H71: =IF(G71<=$G$1,"","OUT") -> 
A72: 53 | B72: =IF(C72<1," ",VLOOKUP(C72,MainAccountNO:MainAccounts,2,FALSE)) -> Operations Assessment | C72: 4100 | D72: Richardson D Assessment | E72: =-E69*0.1 -> -4100
A73: 54 | B73: =IF(C73<1," ",VLOOKUP(C73,MainAccountNO:MainAccounts,2,FALSE)) -> Cash Gifts - Staff Support | C73: 5001
A74: 55 | B74: =IF(C74<1," ",VLOOKUP(C74,MainAccountNO:MainAccounts,2,FALSE)) -> Missionary Salaries | C74: 7005
A75: 56 | B75: =IF(C75<1," ",VLOOKUP(C75,MainAccountNO:MainAccounts,2,FALSE)) -> Ministry Expense | C75: 8990
A76: 57 | B76: =IF(C76<1," ",VLOOKUP(C76,MainAccountNO:MainAccounts,2,FALSE)) -> Operations Assessment | C76: 4100
A77: 58 | B77: =IF(C77<1," ",VLOOKUP(C77,MainAccountNO:MainAccounts,2,FALSE)) -> Cash Gifts - Staff Support | C77: 5001 | D77: Watts Support | E77: 2700
A78: 59 | B78: =IF(C78<1," ",VLOOKUP(C78,MainAccountNO:MainAccounts,2,FALSE)) -> Ministry Expense | C78: 8990 | D78: Watts MER | E78: =E77+E79 -> 2430
A79: 60 | B79: =IF(C79<1," ",VLOOKUP(C79,MainAccountNO:MainAccounts,2,FALSE)) -> Operations Assessment | C79: 4100 | D79: Watts Assessment | E79: =-E77*0.1 -> -270
A80: 61 | B80: =IF(C80<1," ",VLOOKUP(C80,MainAccountNO:MainAccounts,2,FALSE)) -> Cash Gifts - Staff Support | C80: 5001 | D80: Zook Support | E80: 12500
A81: 62 | B81: =IF(C81<1," ",VLOOKUP(C81,MainAccountNO:MainAccounts,2,FALSE)) -> Ministry Expense | C81: 8990 | D81: Zook MER | E81: =E80+E82 -> 11250
A82: 63 | B82: =IF(C82<1," ",VLOOKUP(C82,MainAccountNO:MainAccounts,2,FALSE)) -> Operations Assessment | C82: 4100 | D82: Zook Assessment | E82: =-E80*0.1 -> -1250
A83: 64 | B83: =IF(C83<1," ",VLOOKUP(C83,MainAccountNO:MainAccounts,2,FALSE)) ->  | D83: Retired Staff
A84: 65 | B84: =IF(C84<1," ",VLOOKUP(C84,MainAccountNO:MainAccounts,2,FALSE)) -> Cash Gifts - Staff Support | C84: 5001 | D84: Abbey Support | E84: 2500 | H84: =IF(G84<=$G$1,"","OUT") -> 
A85: 66 | B85: =IF(C85<1," ",VLOOKUP(C85,MainAccountNO:MainAccounts,2,FALSE)) -> Missionary Salaries | C85: 7005 | D85: Abbey Salary | E85: =E84+E86 -> 2375
A86: 67 | B86: =IF(C86<1," ",VLOOKUP(C86,MainAccountNO:MainAccounts,2,FALSE)) -> Operations Assessment | C86: 4100 | D86: Abbey Assessment | E86: =-E84*0.05 -> -125
A87: 68 | B87: =IF(C87<1," ",VLOOKUP(C87,MainAccountNO:MainAccounts,2,FALSE)) -> Cash Gifts - Staff Support | C87: 5001 | D87: Henry Support | E87: 4200
A88: 69 | B88: =IF(C88<1," ",VLOOKUP(C88,MainAccountNO:MainAccounts,2,FALSE)) -> Missionary Salaries | C88: 7005 | D88: Henry Salary | E88: =E87+E89 -> 3990
A89: 70 | B89: =IF(C89<1," ",VLOOKUP(C89,MainAccountNO:MainAccounts,2,FALSE)) -> Operations Assessment | C89: 4100 | D89: Henry Assessment | E89: =-E87*0.05 -> -210
A90: 71 | B90: =IF(C90<1," ",VLOOKUP(C90,MainAccountNO:MainAccounts,2,FALSE)) -> Cash Gifts - Staff Support | C90: 5001 | D90: Hagedorn Support | E90: 23000
A91: 72 | B91: =IF(C91<1," ",VLOOKUP(C91,MainAccountNO:MainAccounts,2,FALSE)) -> Missionary Salaries | C91: 7005 | D91: Hagedorn Salary | E91: =E90+E92 -> 21850
A92: 73 | B92: =IF(C92<1," ",VLOOKUP(C92,MainAccountNO:MainAccounts,2,FALSE)) -> Operations Assessment | C92: 4100 | D92: Hagedorn Assessment | E92: =-E90*0.05 -> -1150
A93: 74 | B93: =IF(C93<1," ",VLOOKUP(C93,MainAccountNO:MainAccounts,2,FALSE)) -> Cash Gifts - Staff Support | C93: 5001 | D93: Hill Support | E93: 1760 | H93: =IF(G93<=$G$1,"","OUT") -> 
A94: =A93+1 -> 75 | B94: =IF(C94<1," ",VLOOKUP(C94,MainAccountNO:MainAccounts,2,FALSE)) -> Missionary Salaries | C94: 7005 | D94: Hill Salary | E94: =E93+E95 -> 1672 | H94: =IF(G94<=$G$1,"","OUT") -> 
A95: =A94+1 -> 76 | B95: =IF(C95<1," ",VLOOKUP(C95,MainAccountNO:MainAccounts,2,FALSE)) -> Operations Assessment | C95: 4100 | D95: Hill Assessment | E95: =-E93*0.05 -> -88 | H95: =IF(G95<=$G$1,"","OUT") -> 
A96: =A95+1 -> 77 | B96: =IF(C96<1," ",VLOOKUP(C96,MainAccountNO:MainAccounts,2,FALSE)) -> Cash Gifts - Staff Support | C96: 5001 | D96: Hughes Support | E96: 6480
A97: 78 | B97: =IF(C97<1," ",VLOOKUP(C97,MainAccountNO:MainAccounts,2,FALSE)) -> Missionary Salaries | C97: 7005 | D97: Hughes Salary | E97: =E96+E98 -> 6156 | H97: =IF(G97<=$G$1,"","OUT") -> 
A98: =A97+1 -> 79 | B98: =IF(C98<1," ",VLOOKUP(C98,MainAccountNO:MainAccounts,2,FALSE)) -> Operations Assessment | C98: 4100 | D98: Hughes Assessment | E98: =-E96*0.05 -> -324
A99: 80 | B99: =IF(C99<1," ",VLOOKUP(C99,MainAccountNO:MainAccounts,2,FALSE)) -> Cash Gifts - Staff Support | C99: 5001 | D99: Morgan Support | E99: 18000 | H99: =IF(G99<=$G$1,"","OUT") -> 
A100: =A99+1 -> 81 | B100: =IF(C100<1," ",VLOOKUP(C100,MainAccountNO:MainAccounts,2,FALSE)) -> Missionary Salaries | C100: 7005 | D100: Morgan Salary | E100: =E99+E101 -> 17100
A101: =A100+1 -> 82 | B101: =IF(C101<1," ",VLOOKUP(C101,MainAccountNO:MainAccounts,2,FALSE)) -> Operations Assessment | C101: 4100 | D101: Morgan Assessment | E101: =-E99*0.05 -> -900
A102: =A101+1 -> 83 | B102: =IF(C102<1," ",VLOOKUP(C102,MainAccountNO:MainAccounts,2,FALSE)) -> Cash Gifts - Staff Support | C102: 5001 | D102: Ross Support | E102: 40000
A103: 84 | B103: =IF(C103<1," ",VLOOKUP(C103,MainAccountNO:MainAccounts,2,FALSE)) -> Missionary Salaries | C103: 7005 | D103: Ross Salary | E103: =E102+E104 -> 38000
A104: =#REF!+1 ->  | B104: =IF(C104<1," ",VLOOKUP(C104,MainAccountNO:MainAccounts,2,FALSE)) -> Operations Assessment | C104: 4100 | D104: Ross Assessment | E104: =-E102*0.05 -> -2000
B105: =IF(C105<1," ",VLOOKUP(C105,MainAccountNO:MainAccounts,2,FALSE)) -> Cash Gifts - Staff Support | C105: 5001 | D105: Voran Support | E105: 9000 | H105: =IF(G105<='S15'!$G$1,"","OUT") -> 
B106: =IF(C106<1," ",VLOOKUP(C106,MainAccountNO:MainAccounts,2,FALSE)) -> Missionary Salaries | C106: 7005 | D106: Voran Salary | E106: =E105+E107 -> 8550 | H106: =IF(G106<='S15'!$G$1,"","OUT") -> 
B107: =IF(C107<1," ",VLOOKUP(C107,MainAccountNO:MainAccounts,2,FALSE)) -> Operations Assessment | C107: 4100 | D107: Voran Assessment | E107: =-E105*0.05 -> -450 | H107: =IF(G107<='S15'!$G$1,"","OUT") -> 
B108: =IF(C108<1," ",VLOOKUP(C108,MainAccountNO:MainAccounts,2,FALSE)) ->  | D108: Pink fields will be completed by Mike

Sheet S6
B1: RU Field Office | C1: 41790 | D1: =Main_BGT!F5 -> 2022-2023 | G1: 10
D2: Total Income | E2: =SUM(IF(S_6FieldRank<=s_6Choice,IF(S_6AccNO<=LastIncome,S_6Amount,0),0)) -> 0
D3: Total Expense | E3: =SUM(IF(S_6FieldRank<=s_6Choice,IF(S_6AccNO>LastIncome,S_6Amount,0),0)) -> 9770
D4: Difference | E4: =E2-E3 -> -9770
B5: Account Description | C5: Acc_NO | D5: Field Detail | E5: Amount | F5: Month | G5: Rank | H5: Out
A6: 1 | B6: =IF(C6<1," ",VLOOKUP(C6,MainAccountNO:MainAccounts,2,FALSE)) ->  | H6: =IF(G6<=$G$1,"","OUT") -> 
A7: =A6+1 -> 2 | B7: =IF(C7<1," ",VLOOKUP(C7,MainAccountNO:MainAccounts,2,FALSE)) ->  | D7: Field Conference (7 adults, 5 kids) | H7: =IF(G7<=$G$1,"","OUT") -> 
A8: =A7+1 -> 3 | B8: =IF(C8<1," ",VLOOKUP(C8,MainAccountNO:MainAccounts,2,FALSE)) -> Missionary Conference | C8: 8805 | D8: Travel: to/from conference location | E8: 1000 | G8: 1
A9: 4 | B9: =IF(C9<1," ",VLOOKUP(C9,MainAccountNO:MainAccounts,2,FALSE)) -> Missionary Conference | C9: 8805 | D9: meals | E9: 1320 | G9: 1
A10: 5 | B10: =IF(C10<1," ",VLOOKUP(C10,MainAccountNO:MainAccounts,2,FALSE)) -> Missionary Conference | C10: 8805 | D10: Housing | E10: 1000 | G10: 1
A11: 6 | B11: =IF(C11<1," ",VLOOKUP(C11,MainAccountNO:MainAccounts,2,FALSE)) -> Missionary Conference | C11: 8805 | D11: Misc. expenses/Group Activity | E11: 400 | G11: 2
A12: 7 | B12: =IF(C12<1," ",VLOOKUP(C12,MainAccountNO:MainAccounts,2,FALSE)) -> Member Care | C12: 8004 | D12: Random Acts of Kindness | E12: 200 | G12: 3
A13: 8 | B13: =IF(C13<1," ",VLOOKUP(C13,MainAccountNO:MainAccounts,2,FALSE)) -> Member Care | C13: 8004 | D13: Childcare | E13: 150 | G13: 2
A14: 9 | B14: =IF(C14<1," ",VLOOKUP(C14,MainAccountNO:MainAccounts,2,FALSE)) ->  | D14: Field Leader Travel
A15: 10 | B15: =IF(C15<1," ",VLOOKUP(C15,MainAccountNO:MainAccounts,2,FALSE)) -> Commercial Travel | C15: 8710 | D15: Travel to Teammates | E15: 900 | G15: 2 | I15: (3 trips, 3 round-trip tickets @ $300)
A16: 11 | B16: =IF(C16<1," ",VLOOKUP(C16,MainAccountNO:MainAccounts,2,FALSE)) -> Motel/Hotel & Room Rent | C16: 8711 | D16: Lodging during travels | E16: 450 | G16: 2 | I16: (3 trips, 3 nights @ $50)
A17: 12 | B17: =IF(C17<1," ",VLOOKUP(C17,MainAccountNO:MainAccounts,2,FALSE)) -> Food for Meetings | C17: 8803 | D17: meals with teammates & their ministry partners | E17: 100 | G17: 2
A18: 13 | B18: =IF(C18<1," ",VLOOKUP(C18,MainAccountNO:MainAccounts,2,FALSE)) -> Motel/Hotel & Room Rent | C18: 8711 | D18: Lodging during travels | E18: 300 | G18: 2 | I18: Costanza's
A19: 14 | B19: =IF(C19<1," ",VLOOKUP(C19,MainAccountNO:MainAccounts,2,FALSE)) -> Commercial Travel | C19: 8710 | D19: Travel with teammate vision trips | E19: 300 | G19: 2
A20: 15 | B20: =IF(C20<1," ",VLOOKUP(C20,MainAccountNO:MainAccounts,2,FALSE)) -> Staff Training | C20: 8003 | D20: Member Care/Materials for Team Development | E20: 300 | G20: 2
A21: 16 | D21: Admin/Ministry Advancement
A22: 17 | B22: =IF(C22<1," ",VLOOKUP(C22,MainAccountNO:MainAccounts,2,FALSE)) -> Office Supply | C22: 8106 | D22: Office Supplies | E22: 1700 | G22: 2 | I22: Desktop computer/monitor/etc.
A23: 18 | B23: =IF(C23<1," ",VLOOKUP(C23,MainAccountNO:MainAccounts,2,FALSE)) -> Meals & Entertainment | C23: 8709 | D23: Ministry advancement hospitality | E23: 300 | G23: 2
A24: 19 | B24: =IF(C24<1," ",VLOOKUP(C24,MainAccountNO:MainAccounts,2,FALSE)) -> Miscellaneous | C24: 8941 | D24: Hourly/Temp Admin help | E24: 150 | G24: 3
A25: 20 | B25: =IF(C25<1," ",VLOOKUP(C25,MainAccountNO:MainAccounts,2,FALSE)) -> Rent Expense | C25: 8402 | D25: Office Rental | E25: 1200 | G25: 2
A26: 21 | B26: =IF(C26<1," ",VLOOKUP(C26,MainAccountNO:MainAccounts,2,FALSE)) -> 
A27: 22 | B27: =IF(C27<1," ",VLOOKUP(C27,MainAccountNO:MainAccounts,2,FALSE)) -> 

Sheet S7
B1: RU Field Ministries | C1: 40978 | D1: =Main_BGT!F5 -> 2022-2023 | G1: 10
D2: Total Income | E2: =SUM(IF(S_7FieldRank<=S_7Choice,IF(S_7AccNO<=LastIncome,S_7Amount,0),0)) -> 193795
D3: Total Expense | E3: =SUM(IF(S_7FieldRank<=S_7Choice,IF(S_7AccNO>LastIncome,S_7Amount,0),0)) -> 139550
D4: Difference | E4: =E2-E3 -> 54245
A5: Line | B5: Account Description | C5: Acc_NO | D5: Field Detail | E5: Amount | F5: Month | G5: Rank | H5: Out
A6: 1 | B6: =IF(C6<1," ",VLOOKUP(C6,MainAccountNO:MainAccounts,2,FALSE)) -> Beginning Fund Balances | C6: 3100 | D6: RU Field Ministries Balance ( $16,330 as of 10/31/21) | E6: 16155 | H6: =IF(G6<=$G$1,"","OUT") ->  | I6: Research fund balance
A7: =A6+1 -> 2 | B7: =IF(C7<1," ",VLOOKUP(C7,MainAccountNO:MainAccounts,2,FALSE)) -> Beginning Fund Balances | C7: 3100 | D7: RU Discipleship Fund Bal ($46,178 as of 10/31/2021) | E7: 46393
A8: =A7+1 -> 3 | B8: =IF(C8<1," ",VLOOKUP(C8,MainAccountNO:MainAccounts,2,FALSE)) -> Cash Gifts - Programs | C8: 5004 | D8: RU Field Ministries Donations | E8: 800 | H8: =IF(G8<=$G$1,"","OUT") -> 
A9: =A8+1 -> 4 | B9: =IF(C9<1," ",VLOOKUP(C9,MainAccountNO:MainAccounts,2,FALSE)) -> Operations Assessment | C9: 4100 | D9: RU Field Ministries Assessment | E9: =-E8*0.1 -> -80
A10: 5 | B10: =IF(C10<1," ",VLOOKUP(C10,MainAccountNO:MainAccounts,2,FALSE)) -> Cash Gifts - Programs | C10: 5004 | D10: RU Discipleship | E10: 3030 | H10: =IF(G10<=$G$1,"","OUT") -> 
A11: 6 | B11: =IF(C11<1," ",VLOOKUP(C11,MainAccountNO:MainAccounts,2,FALSE)) -> Operations Assessment | C11: 4100 | D11: RU Discipleship Assessment | E11: =-E10*0.1 -> -303
A12: 7 | D12: English/PT Tentmaking
A13: 8 | B13: =IF(C13<1," ",VLOOKUP(C13,MainAccountNO:MainAccounts,2,FALSE)) -> Research & Development | C13: 8980 | D13: Development of English Teaching Ministry | E13: 750 | G13: 3
A14: 9 | B14: =IF(C14<1," ",VLOOKUP(C14,MainAccountNO:MainAccounts,2,FALSE)) -> General Ministry Supply | C14: 8108 | D14: Disicipleship Ministry Materaild & Development | E14: 4000 | G14: 2
A15: 10 | B15: =IF(C15<1," ",VLOOKUP(C15,MainAccountNO:MainAccounts,2,FALSE)) -> Research & Development | C15: 8980 | D15: Facilitating ministry travel to unreached areas | E15: 4000
A16: 11 | B16: =IF(C16<1," ",VLOOKUP(C16,MainAccountNO:MainAccounts,2,FALSE)) -> Commercial Travel | C16: 8710 | D16: Grants for native Siberians to attend training | E16: 2000 | G16: 2
A17: 12 | B17: =IF(C17<1," ",VLOOKUP(C17,MainAccountNO:MainAccounts,2,FALSE)) -> General Ministry Supply | C17: 8108 | D17: Discipleship Ministry Materials and Development
A18: 13 | B18: =IF(C18<1," ",VLOOKUP(C18,MainAccountNO:MainAccounts,2,FALSE)) -> 
A19: 14 | B19: =IF(C19<1," ",VLOOKUP(C19,MainAccountNO:MainAccounts,2,FALSE)) -> Commercial Travel | C19: 8710 | D19: Travel
A20: 15 | B20: =IF(C20<1," ",VLOOKUP(C20,MainAccountNO:MainAccounts,2,FALSE)) -> Motel/Hotel & Room Rent | C20: 8711 | D20: Lodging in New areas for vision/team planning 3 trips @ 5 nights @ $70/night
A21: 16 | B21: =IF(C21<1," ",VLOOKUP(C21,MainAccountNO:MainAccounts,2,FALSE)) -> Food for Meetings | C21: 8803 | D21: Meeting with strategic partners (meals) | H21: =IF(G21<=$G$1,"","OUT") -> 
A22: 17
A23: 18 | B23: =IF(C23<1," ",VLOOKUP(C23,MainAccountNO:MainAccounts,2,FALSE)) -> Staff Training | C23: 8003 | D23: Training for missionaries (books, , online, etc.) | E23: 1000 | G23: 2
A24: 19 | B24: =IF(C24<1," ",VLOOKUP(C24,MainAccountNO:MainAccounts,2,FALSE)) -> Staff Training | C24: 8003 | D24: MABC Cource
A25: 20 | B25: =IF(C25<1," ",VLOOKUP(C25,MainAccountNO:MainAccounts,2,FALSE)) -> Staff Training | C25: 8003 | D25: Training for ministry partners
A26: 21 | B26: =IF(C26<1," ",VLOOKUP(C26,MainAccountNO:MainAccounts,2,FALSE)) ->  | D26: STAFFING
A27: =A22+1 -> 18 | B27: =IF(C27<1," ",VLOOKUP(C27,MainAccountNO:MainAccounts,2,FALSE)) -> Cash Gifts - Staff Support | C27: 5001 | D27: Costanza Support | E27: 15000 | H27: =IF(G27<=$G$1,"","OUT") ->  | I27: =E27+E31+E35+E39 -> 142000
A28: 19 | B28: =IF(C28<1," ",VLOOKUP(C28,MainAccountNO:MainAccounts,2,FALSE)) -> Missionary Salaries | C28: 7005 | D28: Costanza Salary | E28: =E27-E29+E30 -> 12300
A29: 20 | B29: =IF(C29<1," ",VLOOKUP(C29,MainAccountNO:MainAccounts,2,FALSE)) -> Ministry Expense | C29: 8990 | D29: Costanza MER | E29: 1200
A30: 21 | B30: =IF(C30<1," ",VLOOKUP(C30,MainAccountNO:MainAccounts,2,FALSE)) -> Operations Assessment | C30: 4100 | D30: Costanza Assessment | E30: =-E27*0.1 -> -1500
A31: =A26+1 -> 22 | B31: =IF(C31<1," ",VLOOKUP(C31,MainAccountNO:MainAccounts,2,FALSE)) -> Cash Gifts - Staff Support | C31: 5001 | D31: Emrick Support | E31: 30000 | I31: =E31+E35+E39 -> 127000
A32: 23 | B32: =IF(C32<1," ",VLOOKUP(C32,MainAccountNO:MainAccounts,2,FALSE)) -> Missionary Salaries | C32: 7005 | D32: Emrick Salary | E32: =E31-E33+E34 -> 22200
A33: 24 | B33: =IF(C33<1," ",VLOOKUP(C33,MainAccountNO:MainAccounts,2,FALSE)) -> Ministry Expense | C33: 8990 | D33: Emrick MER | E33: 4800
A34: 25 | B34: =IF(C34<1," ",VLOOKUP(C34,MainAccountNO:MainAccounts,2,FALSE)) -> Operations Assessment | C34: 4100 | D34: Emrick Assessment | E34: =-E31*0.1 -> -3000
A35: 26 | B35: =IF(C35<1," ",VLOOKUP(C35,MainAccountNO:MainAccounts,2,FALSE)) -> Cash Gifts - Staff Support | C35: 5001 | D35: Hess Support | E35: 30000
A36: 27 | B36: =IF(C36<1," ",VLOOKUP(C36,MainAccountNO:MainAccounts,2,FALSE)) -> Missionary Salaries | C36: 7005 | D36: Hess Salary | E36: =E35-E37+E38 -> 21960
A37: 28 | B37: =IF(C37<1," ",VLOOKUP(C37,MainAccountNO:MainAccounts,2,FALSE)) -> Ministry Expense | C37: 8990 | D37: Hess MER | E37: 5040
A38: 29 | B38: =IF(C38<1," ",VLOOKUP(C38,MainAccountNO:MainAccounts,2,FALSE)) -> Operations Assessment | C38: 4100 | D38: Hess Assessment | E38: =-E35*0.1 -> -3000
A39: 30 | B39: =IF(C39<1," ",VLOOKUP(C39,MainAccountNO:MainAccounts,2,FALSE)) -> Cash Gifts - Staff Support | C39: 5001 | D39: Orner Support | E39: 67000
A40: 31 | B40: =IF(C40<1," ",VLOOKUP(C40,MainAccountNO:MainAccounts,2,FALSE)) -> Missionary Salaries | C40: 7005 | D40: Orner Salary | E40: =E39-E41+E42 -> 56700
A41: 32 | B41: =IF(C41<1," ",VLOOKUP(C41,MainAccountNO:MainAccounts,2,FALSE)) -> Ministry Expense | C41: 8990 | D41: Orner MER | E41: 3600
A42: 33 | B42: =IF(C42<1," ",VLOOKUP(C42,MainAccountNO:MainAccounts,2,FALSE)) -> Operations Assessment | C42: 4100 | D42: Orner Assessment | E42: =-E39*0.1 -> -6700
A43: 34
A44: 35 | D44: Pink fields will be completed by Mike

Sheet S8
B1: RU EnGage! | C1: 42601 | D1: =Main_BGT!F5 -> 2022-2023 | G1: 10
D2: Total Income | E2: =SUM(IF(S_8FieldRank<=S_8Choice,IF(S_8AccNO<=LastIncome,S_8Amount,0),0)) -> 31400
D3: Total Expense | E3: =SUM(IF(S_8FieldRank<=S_8Choice,IF(S_8AccNO>LastIncome,S_8Amount,0),0)) -> 19650
D4: Difference | E4: =E2-E3 -> 11750
A5: 1 | B5: Account Description | C5: Acc_NO | D5: Field Detail | E5: Amount | F5: Month | G5: Rank | H5: Out
A6: =+A5+1 -> 2 | B6: =IF(C6<1," ",VLOOKUP(C6,MainAccountNO:MainAccounts,2,FALSE)) -> Beginning Fund Balances | C6: 3100 | D6: RU EnGage! Schol fund ($8,000 as of 9/30/21) | E6: 8000
A7: =A6+1 -> 3
A8: =A7+1 -> 4 | B8: =IF(C8<1," ",VLOOKUP(C8,MainAccountNO:MainAccounts,2,FALSE)) ->  | D8: EnGage! Krasnoyarsk | H8: =IF(G8<=$G$1,"","OUT") -> 
A9: 5 | B9: =IF(C9<1," ",VLOOKUP(C9,MainAccountNO:MainAccounts,2,FALSE)) -> Program Fees | C9: 6200 | D9: Participant Fees | E9: 21450 | I9: This year we didn't raise the price and it looks like airfare may continue to be much more expensive bc of COVID, so I will be relying on the EnGage fund to offset any additional expenses.
A10: 6 | B10: =IF(C10<1," ",VLOOKUP(C10,MainAccountNO:MainAccounts,2,FALSE)) -> Operations Assessment | C10: 4100 | D10: Assessment | E10: 1950
A11: 7 | B11: =IF(C11<1," ",VLOOKUP(C11,MainAccountNO:MainAccounts,2,FALSE)) -> Printing and Supplies | C11: 8107 | D11: Prefield Materials $50 x 6 | E11: 300
A12: 8 | B12: =IF(C12<1," ",VLOOKUP(C12,MainAccountNO:MainAccounts,2,FALSE)) -> Professional Fees | C12: 8008 | D12: Visa Processing $500 x 6 | E12: 3000
A13: 9 | B13: =IF(C13<1," ",VLOOKUP(C13,MainAccountNO:MainAccounts,2,FALSE)) -> Commercial Travel | C13: 8710 | D13: US - Krasnoyarsk roundtrip airfare $1600 x 6 | E13: 9600
A14: 10 | B14: =IF(C14<1," ",VLOOKUP(C14,MainAccountNO:MainAccounts,2,FALSE)) -> Rent Expense | C14: 8402 | D14: Lodging $375 x 6 | E14: 2250
A15: 11 | B15: =IF(C15<1," ",VLOOKUP(C15,MainAccountNO:MainAccounts,2,FALSE)) -> Food for Meetings | C15: 8803 | D15: Food $350 x 6 | E15: 2100
A16: 12 | B16: =IF(C16<1," ",VLOOKUP(C16,MainAccountNO:MainAccounts,2,FALSE)) -> Commercial Travel | C16: 8710 | D16: Misc. Travel (bus, taxi) $50 x 6 | E16: 300
A17: 13 | B17: =IF(C17<1," ",VLOOKUP(C17,MainAccountNO:MainAccounts,2,FALSE)) -> Commercial Travel | C17: 8710 | D17: Trip to Unreached People Group $100 x 6 | E17: 600
A18: 14 | B18: =IF(C18<1," ",VLOOKUP(C18,MainAccountNO:MainAccounts,2,FALSE)) -> General Ministry Supply | C18: 8108 | D18: Russian Language Study $125 x 6 | E18: 750
A19: 15 | B19: =IF(C19<1," ",VLOOKUP(C19,MainAccountNO:MainAccounts,2,FALSE)) -> General Ministry Supply | C19: 8108 | D19: Ministry Event Expenses $100 x 6 | E19: 600
A20: 16
A21: 17 | B21: =IF(C21<1," ",VLOOKUP(C21,MainAccountNO:MainAccounts,2,FALSE)) -> Commercial Travel | C21: 8710
A22: 18 | B22: =IF(C22<1," ",VLOOKUP(C22,MainAccountNO:MainAccounts,2,FALSE)) -> Commercial Travel | C22: 8710
A23: =A19+1 -> 16 | B23: =IF(C23<1," ",VLOOKUP(C23,MainAccountNO:MainAccounts,2,FALSE)) -> 
A24: 17 | B24: =IF(C24<1," ",VLOOKUP(C24,MainAccountNO:MainAccounts,2,FALSE)) ->  | D24: Travel for Trip Supervisor
A25: 18 | B25: =IF(C25<1," ",VLOOKUP(C25,MainAccountNO:MainAccounts,2,FALSE)) -> Commercial Travel | C25: 8710 | D25: To/From UPG | E25: 150
A26: 19 | B26: =IF(C26<1," ",VLOOKUP(C26,MainAccountNO:MainAccounts,2,FALSE)) ->  | D26: Pink fields will be completed by Mike

Sheet S11
B1: Counseling Center & Professional Educaction | C1: 40941 | D1: =Main_BGT!F5 -> 2022-2023 | G1: 10
D2: Total Income | E2: =SUM(IF(S_11FieldRank<=S_11Choice,IF(S_11AccNO<=LastIncome,S_11Amount,0),0)) -> 7000
D3: Total Expense | E3: =SUM(IF(S_11FieldRank<=S_11Choice,IF(S_11AccNO>LastIncome,S_11Amount,0),0)) -> 12000
D4: Difference | E4: =E2-E3 -> -5000
B5: Account Description | C5: Acc_NO | D5: Field Detail | E5: Amount | F5: Month | G5: Rank | H5: Out
A6: 1 | B6: =IF(C6<1," ",VLOOKUP(C6,MainAccountNO:MainAccounts,2,FALSE)) ->  | H6: =IF(G6<=$G$1,"","OUT") -> 
A7: =A6+1 -> 2 | B7: =IF(C7<1," ",VLOOKUP(C7,MainAccountNO:MainAccounts,2,FALSE)) -> Beginning Fund Balances | C7: 3100 | D7: Beginning balance | E7: 7000 | H7: =IF(G7<=$G$1,"","OUT") -> 
A8: =A7+1 -> 3
A9: =A8+1 -> 4 | B9: =IF(C9<1," ",VLOOKUP(C9,MainAccountNO:MainAccounts,2,FALSE)) ->  | D9: Counseling Center
A10: 5 | B10: =IF(C10<1," ",VLOOKUP(C10,MainAccountNO:MainAccounts,2,FALSE)) -> Office Supply | C10: 8106 | D10: Office Furniture, chairs & Supplies | E10: 300 | G10: 1
A11: 6 | B11: =IF(C11<1," ",VLOOKUP(C11,MainAccountNO:MainAccounts,2,FALSE)) -> Staff Training | C11: 8003 | D11: ACBC Certification - Support for 2 staff | E11: 4000 | G11: 2
A12: 7 | B12: =IF(C12<1," ",VLOOKUP(C12,MainAccountNO:MainAccounts,2,FALSE)) -> Liability Insurance | C12: 8009 | D12: Liability Insurance | E12: 2000 | G12: 1
A13: 8 | B13: =IF(C13<1," ",VLOOKUP(C13,MainAccountNO:MainAccounts,2,FALSE)) -> Staff Training | C13: 8003 | D13: 12 Stones Counseling & Facilitiation | E13: 2000 | G13: 2
A14: 9 | B14: =IF(C14<1," ",VLOOKUP(C14,MainAccountNO:MainAccounts,2,FALSE)) -> Organization Dues & Fees | C14: 8902 | D14: State Fees - Business etc. | E14: 500 | G14: 1
A15: 10 | B15: =IF(C15<1," ",VLOOKUP(C15,MainAccountNO:MainAccounts,2,FALSE)) -> General Ministry Supply | C15: 8108 | D15: Library -Lending | E15: 1000 | G15: 2
A16: =A15+1 -> 11 | B16: =IF(C16<1," ",VLOOKUP(C16,MainAccountNO:MainAccounts,2,FALSE)) -> General Ministry Supply | C16: 8108 | D16: Materials for free distribution | E16: 1400 | G16: 2
A17: 12 | B17: =IF(C17<1," ",VLOOKUP(C17,MainAccountNO:MainAccounts,2,FALSE)) -> 
A18: 13 | B18: =IF(C18<1," ",VLOOKUP(C18,MainAccountNO:MainAccounts,2,FALSE)) ->  | D18: Professonal Educators
A19: 14 | B19: =IF(C19<1," ",VLOOKUP(C19,MainAccountNO:MainAccounts,2,FALSE)) -> Professional Fees | C19: 8008 | D19: Start up Funding for ACE-PLC | E19: 300 | G19: 2
A20: 15 | B20: =IF(C20<1," ",VLOOKUP(C20,MainAccountNO:MainAccounts,2,FALSE)) -> Seminars & Registrations | C20: 8806 | D20: Conference Funding | E20: 500 | G20: 2
A21: 16 | B21: =IF(C21<1," ",VLOOKUP(C21,MainAccountNO:MainAccounts,2,FALSE)) -> 
A22: 17 | B22: =IF(C22<1," ",VLOOKUP(C22,MainAccountNO:MainAccounts,2,FALSE)) -> 
A23: 18 | B23: =IF(C23<1," ",VLOOKUP(C23,MainAccountNO:MainAccounts,2,FALSE)) -> 
A24: 19 | B24: =IF(C24<1," ",VLOOKUP(C24,MainAccountNO:MainAccounts,2,FALSE)) -> 
A25: 20 | B25: =IF(C25<1," ",VLOOKUP(C25,MainAccountNO:MainAccounts,2,FALSE)) -> 
A26: 21 | B26: =IF(C26<1," ",VLOOKUP(C26,MainAccountNO:MainAccounts,2,FALSE)) -> 
A27: 22 | B27: =IF(C27<1," ",VLOOKUP(C27,MainAccountNO:MainAccounts,2,FALSE)) -> 
A28: 23 | B28: =IF(C28<1," ",VLOOKUP(C28,MainAccountNO:MainAccounts,2,FALSE)) -> 
A29: 24 | B29: =IF(C29<1," ",VLOOKUP(C29,MainAccountNO:MainAccounts,2,FALSE)) -> 
A30: 25 | B30: =IF(C30<1," ",VLOOKUP(C30,MainAccountNO:MainAccounts,2,FALSE)) -> 
A31: 26 | B31: =IF(C31<1," ",VLOOKUP(C31,MainAccountNO:MainAccounts,2,FALSE)) -> 
A32: 27 | B32: =IF(C32<1," ",VLOOKUP(C32,MainAccountNO:MainAccounts,2,FALSE)) -> 
A33: 28 | B33: =IF(C33<1," ",VLOOKUP(C33,MainAccountNO:MainAccounts,2,FALSE)) -> 
A34: 29 | B34: =IF(C34<1," ",VLOOKUP(C34,MainAccountNO:MainAccounts,2,FALSE)) -> 
A35: 30 | B35: =IF(C35<1," ",VLOOKUP(C35,MainAccountNO:MainAccounts,2,FALSE)) -> 
A36: 31 | B36: =IF(C36<1," ",VLOOKUP(C36,MainAccountNO:MainAccounts,2,FALSE)) -> 

Sheet S3
B1: AK LEaD | C1: 40900 | D1: Choose Rank Number ------------> | G1: 10
D2: Total Income | E2: =SUM(IF(S_3FieldRank<=S_3Choice,IF(S_3AccNO<=LastIncome,S_3Amount,0),0)) -> 69160
D3: Total Expense | E3: =SUM(IF(S_3FieldRank<=S_3Choice,IF(S_3AccNO>LastIncome,S_3Amount,0),0)) -> 38174
D4: Difference | E4: =E2-E3 -> 30986
B5: Account Description | C5: Acc_NO | D5: Field Detail | E5: Amount | F5: Month | G5: Rank | H5: Out
A6: 1 | H6: =IF(G6<=$G$1,"","OUT") -> 
A7: =A6+1 -> 2 | B7: =IF(C7<1," ",VLOOKUP(C7,MainAccountNO:MainAccounts,2,FALSE)) -> Beginning Fund Balances | C7: 3100 | D7: LEaD March 31, 2021 balance ($14,506 as of 9/30/21 ) | E7: 14600 | H7: =IF(G7<=$G$1,"","OUT") -> 
A8: =A7+1 -> 3 | B8: =IF(C8<1," ",VLOOKUP(C8,MainAccountNO:MainAccounts,2,FALSE)) -> Beginning Fund Balances | C8: 3100 | D8: LEaD Tuition balance ($14,840 as of 9/30/21 ) | E8: 15000 | H8: =IF(G8<=$G$1,"","OUT") -> 
A9: =A8+1 -> 4 | B9: =IF(C9<1," ",VLOOKUP(C9,MainAccountNO:MainAccounts,2,FALSE)) -> Program Fees | C9: 6200 | D9: LEaD Residential Tuition - est 6 Participants ($5,500 each) | E9: 33000 | G9: 1
A10: =A9+1 -> 5 | B10: =IF(C10<1," ",VLOOKUP(C10,MainAccountNO:MainAccounts,2,FALSE)) -> Cash Gifts - Programs | C10: 5004 | D10: Program Donations | E10: 2400 | G10: 2
A11: 6 | B11: =IF(C11<1," ",VLOOKUP(C11,MainAccountNO:MainAccounts,2,FALSE)) -> Operations Assessment | C11: 4100 | D11: Program Donations Assessment | E11: =-E10*0.1 -> -240
A13: =A10+1 -> 6 | B13: =IF(C13<1," ",VLOOKUP(C13,MainAccountNO:MainAccounts,2,FALSE)) -> Program Fees | C13: 6200 | D13: Tuition/Scholarship donations | E13: 4400 | G13: 2
A14: 7 | B14: =IF(C14<1," ",VLOOKUP(C14,MainAccountNO:MainAccounts,2,FALSE)) -> 
A15: 8 | B15: =IF(C15<1," ",VLOOKUP(C15,MainAccountNO:MainAccounts,2,FALSE)) ->  | D15: RESIDENTIAL ROOM/BOARD (Susitna, 2 houses, 6 students)
A16: 9 | B16: =IF(C16<1," ",VLOOKUP(C16,MainAccountNO:MainAccounts,2,FALSE)) -> Utilities | C16: 8405 | D16: Oct - 1st week of May utilities and fees (Wifi -$10, Garbage-$10) | E16: 3500 | G16: 1
A17: 10 | B17: =IF(C17<1," ",VLOOKUP(C17,MainAccountNO:MainAccounts,2,FALSE)) -> Rent Expense | C17: 8402 | D17: Susitna $137.50, 2 houses $550 each (October-1st week of May) | E17: 8044 | G17: 1
A18: 11 | B18: =IF(C18<1," ",VLOOKUP(C18,MainAccountNO:MainAccounts,2,FALSE)) -> 
A19: 12 | B19: =IF(C19<1," ",VLOOKUP(C19,MainAccountNO:MainAccounts,2,FALSE)) -> 
A20: 13 | B20: =IF(C20<1," ",VLOOKUP(C20,MainAccountNO:MainAccounts,2,FALSE)) ->  | D20: PROGRAM TRAVEL
A21: 14 | B21: =IF(C21<1," ",VLOOKUP(C21,MainAccountNO:MainAccounts,2,FALSE)) -> Vehicle Fuel & Oil | C21: 8702 | D21: Program Travel - fuel | E21: 5000 | G21: 2
A22: 15 | B22: =IF(C22<1," ",VLOOKUP(C22,MainAccountNO:MainAccounts,2,FALSE)) -> Auto Mileage Reimb | C22: 8707 | D22: Additional Transportation cost for supplies- Staff travel | E22: 2000 | G22: 2
A23: 16 | B23: =IF(C23<1," ",VLOOKUP(C23,MainAccountNO:MainAccounts,2,FALSE)) -> Commercial Travel | C23: 8710 | D23: Area Bible School Housing- Staff, students, @ 4 schools | E23: 2500 | G23: 2
A25: =A23+1 -> 17 | B25: =IF(C25<1," ",VLOOKUP(C25,MainAccountNO:MainAccounts,2,FALSE)) ->  | D25: RESIDENTIAL PROGRAM EXPENSES
A26: 18 | B26: =IF(C26<1," ",VLOOKUP(C26,MainAccountNO:MainAccounts,2,FALSE)) -> Professional Fees | C26: 8008 | D26: Professional Counselor | E26: 300 | G26: 1
A27: 19 | B27: =IF(C27<1," ",VLOOKUP(C27,MainAccountNO:MainAccounts,2,FALSE)) -> General Ministry Supply | C27: 8108 | D27: Modular fees (ABC, HGTW, AFJ, includes limited meals) | E27: 500 | G27: 1
A28: 20 | B28: =IF(C28<1," ",VLOOKUP(C28,MainAccountNO:MainAccounts,2,FALSE)) -> General Ministry Supply | C28: 8108 | D28: Leadership and Precept Bibles | E28: 400 | G28: 1
A29: 21 | B29: =IF(C29<1," ",VLOOKUP(C29,MainAccountNO:MainAccounts,2,FALSE)) -> General Ministry Supply | C29: 8108 | D29: Specific Materials - LIFO, Precept, Genesis Process | E29: 4000 | G29: 1
A30: 22 | B30: =IF(C30<1," ",VLOOKUP(C30,MainAccountNO:MainAccounts,2,FALSE)) -> General Ministry Supply | C30: 8108 | D30: Miscellaneous materials, books, supplies, including area Bible Schools | E30: 5000 | G30: 1
A31: 23 | B31: =IF(C31<1," ",VLOOKUP(C31,MainAccountNO:MainAccounts,2,FALSE)) -> General Ministry Supply | C31: 8108 | D31: Materials and supplies for vocational and life skills | E31: 2000 | G31: 1
A32: 24 | B32: =IF(C32<1," ",VLOOKUP(C32,MainAccountNO:MainAccounts,2,FALSE)) -> Meals & Entertainment | C32: 8709 | D32: Monthly recreational activities | E32: 2000 | G32: 1
A33: 25 | B33: =IF(C33<1," ",VLOOKUP(C33,MainAccountNO:MainAccounts,2,FALSE)) -> Meals & Entertainment | C33: 8709 | D33: Program celebrations - opening, closing | E33: 1000 | G33: 1
A34: 26 | B34: =IF(C34<1," ",VLOOKUP(C34,MainAccountNO:MainAccounts,2,FALSE)) -> Rent Expense | C34: 8402 | D34: Area Bible School housing & related expenses | E34: 500 | G34: 1
A35: 27 | B35: =IF(C35<1," ",VLOOKUP(C35,MainAccountNO:MainAccounts,2,FALSE)) -> Computer & Technology | C35: 8211 | D35: Domain Names Annual Fees "leadalaska.com & leadalaska.com" | E35: 30 | G35: 1 | H35: =IF(G35<=$G$1,"","OUT") -> 
A37: =A34+1 -> 27 | D37: PROMOTION
A38: 28 | B38: =IF(C38<1," ",VLOOKUP(C38,MainAccountNO:MainAccounts,2,FALSE)) -> Advertising | C38: 8608 | D38: Program Promotional and PR Materials | E38: 500 | G38: 1
A39: 29 | B39: =IF(C39<1," ",VLOOKUP(C39,MainAccountNO:MainAccounts,2,FALSE)) -> Postage & Shipping | C39: 8301 | D39: Tri-annual mailings, promotions, support | E39: 500 | G39: 1
A40: 30
A41: 31 | B41: =IF(C41<1," ",VLOOKUP(C41,MainAccountNO:MainAccounts,2,FALSE)) ->  | D41: GOVERNANCE COUNCIL
A42: 32 | B42: =IF(C42<1," ",VLOOKUP(C42,MainAccountNO:MainAccounts,2,FALSE)) -> Food for Meetings | C42: 8803 | D42: Council Meetings - quarterly | E42: 300 | G42: 1
A43: 33 | B43: =IF(C43<1," ",VLOOKUP(C43,MainAccountNO:MainAccounts,2,FALSE)) -> General Ministry Supply | C43: 8108 | D43: Materials | E43: 100 | G43: 1
A44: 34
A45: 35 | B45: =IF(C45<1," ",VLOOKUP(C45,MainAccountNO:MainAccounts,2,FALSE)) ->  | D45: Pink fields will be completed by Mike
A46: 36 | B46: =IF(C46<1," ",VLOOKUP(C46,MainAccountNO:MainAccounts,2,FALSE)) -> 
A47: 37 | B47: =IF(C47<1," ",VLOOKUP(C47,MainAccountNO:MainAccounts,2,FALSE)) -> 

Sheet S4
B1: AK EnGage! | C1: 40968 | D1: Choose Rank Number ------------> | G1: 10
D2: Total Income | E2: =SUM(IF(S_4FieldRank<=S_4Choice,IF(S_4AccNO<=LastIncome,S_4Amount,0),0)) -> 13150
D3: Total Expense | E3: =SUM(IF(S_4FieldRank<=S_4Choice,IF(S_4AccNO>LastIncome,S_4Amount,0),0)) -> 13720
D4: Difference | E4: =E2-E3 -> -570
B5: Account Description | C5: Acc_NO | D5: Field Detail | E5: Amount | F5: Month | G5: Rank | H5: Out
A6: 1 | B6: =IF(C6<1," ",VLOOKUP(C6,MainAccountNO:MainAccounts,2,FALSE)) ->  | H6: =IF(G6<=$G$1,"","OUT") -> 
A7: =A6+1 -> 2 | B7: =IF(C7<1," ",VLOOKUP(C7,MainAccountNO:MainAccounts,2,FALSE)) -> Beginning Fund Balances | C7: 3100 | D7: March 31, 2021 Balance EnGage! AK $7,750 as of 9/30/21) | E7: 7750 | H7: =IF(G7<=$G$1,"","OUT") -> 
A8: =A7+1 -> 3 | B8: =IF(C8<1," ",VLOOKUP(C8,MainAccountNO:MainAccounts,2,FALSE)) -> Program Fees | C8: 6200 | D8: Summer EnGage! Fees (4@1500) | E8: 6000 | F8: 6 | G8: 1
A9: 4 | B9: =IF(C9<1," ",VLOOKUP(C9,MainAccountNO:MainAccounts,2,FALSE)) -> Operations Assessment | C9: 4100 | D9: Summer EnGage! Assessment @ 10% | E9: =E8*-0.1 -> -600 | F9: 6 | G9: 1
A10: 5 | B10: =IF(C10<1," ",VLOOKUP(C10,MainAccountNO:MainAccounts,2,FALSE)) -> 
A11: 6 | B11: =IF(C11<1," ",VLOOKUP(C11,MainAccountNO:MainAccounts,2,FALSE)) -> General Ministry Supply | C11: 8108 | D11: Training Supplies (4x30 ea - including flash drive for digital info) | E11: 600 | G11: 1
A12: 7 | B12: =IF(C12<1," ",VLOOKUP(C12,MainAccountNO:MainAccounts,2,FALSE)) -> Commercial Travel | C12: 8710 | D12: Summer EnGage! Participant on-field Travel | E12: 6000 | G12: 1
A13: 8 | B13: =IF(C13<1," ",VLOOKUP(C13,MainAccountNO:MainAccounts,2,FALSE)) -> Food for Meetings | C13: 8803 | D13: Summer EnGage! Food | E13: 3000 | G13: 1
A14: 9 | B14: =IF(C14<1," ",VLOOKUP(C14,MainAccountNO:MainAccounts,2,FALSE)) -> Rent Expense | C14: 8402 | D14: Summer EnGage! Facility Rent & Housing | E14: 2000 | G14: 1
A15: 10 | B15: =IF(C15<1," ",VLOOKUP(C15,MainAccountNO:MainAccounts,2,FALSE)) -> Commercial Travel | C15: 8710 | D15: EnGage! Supervisory Travel | E15: 900 | G15: 1
A16: 11 | B16: =IF(C16<1," ",VLOOKUP(C16,MainAccountNO:MainAccounts,2,FALSE)) -> Medical Insurance | C16: 7103 | D16: Participant insurance (if needed) | E16: 200 | G16: 1
A17: 12 | B17: =IF(C17<1," ",VLOOKUP(C17,MainAccountNO:MainAccounts,2,FALSE)) -> Professional Fees | C17: 8008 | D17: Participant background checks | E17: 40 | G17: 1
A18: 13 | B18: =IF(C18<1," ",VLOOKUP(C18,MainAccountNO:MainAccounts,2,FALSE)) -> Rent Expense | C18: 8402 | D18: Transfer to Hospitality for 4 participants $35/night for 7 nights | E18: 980 | G18: 1
A19: 14 | B19: =IF(C19<1," ",VLOOKUP(C19,MainAccountNO:MainAccounts,2,FALSE)) -> 
A20: =A19+1 -> 15 | B20: =IF(C20<1," ",VLOOKUP(C20,MainAccountNO:MainAccounts,2,FALSE)) ->  | D20: Pink fields will be completed by Mike
A21: 16 | B21: =IF(C21<1," ",VLOOKUP(C21,MainAccountNO:MainAccounts,2,FALSE)) -> 
A22: 17 | B22: =IF(C22<1," ",VLOOKUP(C22,MainAccountNO:MainAccounts,2,FALSE)) -> 
A23: 18 | B23: =IF(C23<1," ",VLOOKUP(C23,MainAccountNO:MainAccounts,2,FALSE)) -> 
A24: 19 | B24: =IF(C24<1," ",VLOOKUP(C24,MainAccountNO:MainAccounts,2,FALSE)) -> 
A25: 20 | B25: =IF(C25<1," ",VLOOKUP(C25,MainAccountNO:MainAccounts,2,FALSE)) -> 
A26: 21 | B26: =IF(C26<1," ",VLOOKUP(C26,MainAccountNO:MainAccounts,2,FALSE)) -> 
A27: 22 | B27: =IF(C27<1," ",VLOOKUP(C27,MainAccountNO:MainAccounts,2,FALSE)) -> 
A28: 23 | B28: =IF(C28<1," ",VLOOKUP(C28,MainAccountNO:MainAccounts,2,FALSE)) -> 
A29: 24 | B29: =IF(C29<1," ",VLOOKUP(C29,MainAccountNO:MainAccounts,2,FALSE)) -> 
A30: 25 | B30: =IF(C30<1," ",VLOOKUP(C30,MainAccountNO:MainAccounts,2,FALSE)) -> 
A31: 26 | B31: =IF(C31<1," ",VLOOKUP(C31,MainAccountNO:MainAccounts,2,FALSE)) -> 
A32: 27 | B32: =IF(C32<1," ",VLOOKUP(C32,MainAccountNO:MainAccounts,2,FALSE)) -> 
A33: 28 | B33: =IF(C33<1," ",VLOOKUP(C33,MainAccountNO:MainAccounts,2,FALSE)) -> 
A34: 29 | B34: =IF(C34<1," ",VLOOKUP(C34,MainAccountNO:MainAccounts,2,FALSE)) -> 
A35: 30 | B35: =IF(C35<1," ",VLOOKUP(C35,MainAccountNO:MainAccounts,2,FALSE)) -> 

Sheet S10
B1: Home Ministry | C1: 10 | D1: Choose Rank Number ----------> | G1: 10
D2: Total Income | E2: =SUM(IF(S_10FieldRank<=S_10Choice,IF(S_10AccNO<=LastIncome,S_10Amount,0),0)) -> 7200
D3: Total Expense | E3: =SUM(IF(S_10FieldRank<=S_10Choice,IF(S_10AccNO>LastIncome,S_10Amount,0),0)) -> 7200
D4: Difference | E4: =E2-E3 -> 0
B5: Account Description | C5: Acc_NO | D5: Field Detail | E5: Amount | F5: Month | G5: Rank | H5: Out
A6: =A5+1 -> 1 | B6: =IF(C6<1," ",VLOOKUP(C6,MainAccountNO:MainAccounts,2,FALSE)) -> Beginning Fund Balances | C6: 3100 | D6: March 31, 2021 Balance (currently $22,563) | H6: =IF(G6<=$G$1,"","OUT") -> 
A7: =A6+1 -> 2 | B7: =IF(C7<1," ",VLOOKUP(C7,MainAccountNO:MainAccounts,2,FALSE)) -> Cash Gifts - Staff Support | C7: 5001 | D7: Sebald Support | E7: 0 | H7: =IF(G7<=$G$1,"","OUT") -> 
A8: 3 | B8: =IF(C8<1," ",VLOOKUP(C8,MainAccountNO:MainAccounts,2,FALSE)) -> Ministry Expense | C8: 8990 | D8: Sebald MER | E8: =E7+E9 -> 0
A9: 4 | B9: =IF(C9<1," ",VLOOKUP(C9,MainAccountNO:MainAccounts,2,FALSE)) -> Operations Assessment | C9: 4100 | D9: Sebald Assessment | E9: =-0.1*E7 -> 0
A10: 5 | B10: =IF(C10<1," ",VLOOKUP(C10,MainAccountNO:MainAccounts,2,FALSE)) -> Cash Gifts - Staff Support | C10: 5001 | D10: Emrick Support | E10: 0
A11: 6 | B11: =IF(C11<1," ",VLOOKUP(C11,MainAccountNO:MainAccounts,2,FALSE)) -> Ministry Expense | C11: 8990 | D11: Emrick MER | E11: =+E10+E12 -> 0
A12: 7 | B12: =IF(C12<1," ",VLOOKUP(C12,MainAccountNO:MainAccounts,2,FALSE)) -> Operations Assessment | C12: 4100 | D12: Emrick Assessment | E12: =-0.1*E10 -> 0
A13: 8 | B13: =IF(C13<1," ",VLOOKUP(C13,MainAccountNO:MainAccounts,2,FALSE)) -> Cash Gifts - Staff Support | C13: 5001 | D13: Peterson, Chad & Andrea Support | E13: 0
A14: 9 | B14: =IF(C14<1," ",VLOOKUP(C14,MainAccountNO:MainAccounts,2,FALSE)) -> Ministry Expense | C14: 8990 | D14: Peterson, Chad & Andrea MER | E14: =+E13+E15 -> 0
A15: 10 | B15: =IF(C15<1," ",VLOOKUP(C15,MainAccountNO:MainAccounts,2,FALSE)) -> Operations Assessment | C15: 4100 | D15: Peterson, Chad & Andrea Assessment | E15: =-0.1*E13 -> 0
A16: 11 | B16: =IF(C16<1," ",VLOOKUP(C16,MainAccountNO:MainAccounts,2,FALSE)) -> Cash Gifts - Staff Support | C16: 5001 | D16: Costanzo Support | E16: 8000 | H16: =IF(G16<=$G$1,"","OUT") -> 
A17: 12 | B17: =IF(C17<1," ",VLOOKUP(C17,MainAccountNO:MainAccounts,2,FALSE)) -> Ministry Expense | C17: 8990 | D17: Costanzo MER | E17: =E16+E18 -> 7200
A18: 13 | B18: =IF(C18<1," ",VLOOKUP(C18,MainAccountNO:MainAccounts,2,FALSE)) -> Operations Assessment | C18: 4100 | D18: Costanzo Assessment | E18: =-E16*0.1 -> -800
A19: 14 | B19: =IF(C19<1," ",VLOOKUP(C19,MainAccountNO:MainAccounts,2,FALSE)) -> 
A20: 15 | B20: =IF(C20<1," ",VLOOKUP(C20,MainAccountNO:MainAccounts,2,FALSE)) -> 
A21: 16 | B21: =IF(C21<1," ",VLOOKUP(C21,MainAccountNO:MainAccounts,2,FALSE)) -> 
A22: 17 | B22: =IF(C22<1," ",VLOOKUP(C22,MainAccountNO:MainAccounts,2,FALSE)) -> 
A23: 18 | B23: =IF(C23<1," ",VLOOKUP(C23,MainAccountNO:MainAccounts,2,FALSE)) -> 
A24: 19 | B24: =IF(C24<1," ",VLOOKUP(C24,MainAccountNO:MainAccounts,2,FALSE)) -> 
A25: 20 | B25: =IF(C25<1," ",VLOOKUP(C25,MainAccountNO:MainAccounts,2,FALSE)) -> 
A26: 21 | B26: =IF(C26<1," ",VLOOKUP(C26,MainAccountNO:MainAccounts,2,FALSE)) -> 
A27: 22 | B27: =IF(C27<1," ",VLOOKUP(C27,MainAccountNO:MainAccounts,2,FALSE)) -> 
A28: 23 | B28: =IF(C28<1," ",VLOOKUP(C28,MainAccountNO:MainAccounts,2,FALSE)) -> 
A29: 24 | B29: =IF(C29<1," ",VLOOKUP(C29,MainAccountNO:MainAccounts,2,FALSE)) -> 
A30: 25 | B30: =IF(C30<1," ",VLOOKUP(C30,MainAccountNO:MainAccounts,2,FALSE)) -> 
A31: 26 | B31: =IF(C31<1," ",VLOOKUP(C31,MainAccountNO:MainAccounts,2,FALSE)) -> 
A32: 27 | B32: =IF(C32<1," ",VLOOKUP(C32,MainAccountNO:MainAccounts,2,FALSE)) -> 
A33: 28 | B33: =IF(C33<1," ",VLOOKUP(C33,MainAccountNO:MainAccounts,2,FALSE)) -> 

Sheet S13
B1: Other Programs | C1: 13 | D1: =Main_BGT!F5 -> 2022-2023 | G1: 10
D2: Total Income | E2: =SUM(IF(S_13FieldRank<=S_13Choice,IF(S_13AccNO<=LastIncome,S_13Amount,0),0)) -> 939550
D3: Total Expense | E3: =SUM(IF(S_13FieldRank<=S_13Choice,IF(S_13AccNO>LastIncome,S_13Amount,0),0)) -> 939550
D4: Difference | E4: =E2-E3 -> 0
B5: Account Description | C5: Acc_NO | D5: Field Detail | E5: Amount | F5: Month | G5: Rank | H5: Out
A6: 1 | B6: =IF(C6<1," ",VLOOKUP(C6,MainAccountNO:MainAccounts,2,FALSE)) ->  | H6: =IF(G6<=$G$1,"","OUT") -> 
A7: =A6+1 -> 2 | B7: =IF(C7<1," ",VLOOKUP(C7,MainAccountNO:MainAccounts,2,FALSE)) -> Cash Gifts - Staff Support | C7: 5001 | D7: Funds received for InterAct Canada | E7: 850000 | H7: =IF(G7<=$G$1,"","OUT") -> 
A8: =A7+1 -> 3 | B8: =IF(C8<1," ",VLOOKUP(C8,MainAccountNO:MainAccounts,2,FALSE)) -> Grants to Canada Affiliates | C8: 8952 | D8: Funds transferred to InterAct Canada | E8: 850000
A9: 4 | B9: =IF(C9<1," ",VLOOKUP(C9,MainAccountNO:MainAccounts,2,FALSE)) -> Operations Assessment | C9: 4100 | D9: Canada Assessment Fees
A10: 5 | B10: =IF(C10<1," ",VLOOKUP(C10,MainAccountNO:MainAccounts,2,FALSE)) -> Cash Gifts - Staff Support | C10: 5001 | D10: Walker Support | E10: 90000 | M10: =E10+E13-E11-E12 -> 0
A11: 6 | B11: =IF(C11<1," ",VLOOKUP(C11,MainAccountNO:MainAccounts,2,FALSE)) -> Missionary Salaries | C11: 7005 | D11: Walker Salary | E11: =E10-E12+E13 -> 76200
A12: 7 | B12: =IF(C12<1," ",VLOOKUP(C12,MainAccountNO:MainAccounts,2,FALSE)) -> Ministry Expense | C12: 8990 | D12: Walker MER | E12: 4800
A13: 8 | B13: =IF(C13<1," ",VLOOKUP(C13,MainAccountNO:MainAccounts,2,FALSE)) -> Operations Assessment | C13: 4100 | D13: Walker Assessment | E13: =-E10*0.1 -> -9000
A14: 9 | B14: =IF(C14<1," ",VLOOKUP(C14,MainAccountNO:MainAccounts,2,FALSE)) -> Cash Gifts - Staff Support | C14: 5001 | D14: Cook Support | E14: 9000
A15: 10 | B15: =IF(C15<1," ",VLOOKUP(C15,MainAccountNO:MainAccounts,2,FALSE)) -> Missionary Salaries | C15: 7005 | D15: Cook Salary | E15: =E14+E16 -> 8550
A16: 11 | B16: =IF(C16<1," ",VLOOKUP(C16,MainAccountNO:MainAccounts,2,FALSE)) -> Operations Assessment | C16: 4100 | D16: Cook Assessment | E16: =-E14*0.05 -> -450
A17: 12 | B17: =IF(C17<1," ",VLOOKUP(C17,MainAccountNO:MainAccounts,2,FALSE)) -> 
A18: 13 | B18: =IF(C18<1," ",VLOOKUP(C18,MainAccountNO:MainAccounts,2,FALSE)) -> 
A19: 14 | B19: =IF(C19<1," ",VLOOKUP(C19,MainAccountNO:MainAccounts,2,FALSE)) -> 
A20: 15 | B20: =IF(C20<1," ",VLOOKUP(C20,MainAccountNO:MainAccounts,2,FALSE)) -> 
A21: 16 | B21: =IF(C21<1," ",VLOOKUP(C21,MainAccountNO:MainAccounts,2,FALSE)) -> 
A22: 17 | B22: =IF(C22<1," ",VLOOKUP(C22,MainAccountNO:MainAccounts,2,FALSE)) -> 
A23: 18 | B23: =IF(C23<1," ",VLOOKUP(C23,MainAccountNO:MainAccounts,2,FALSE)) -> 
A24: 19 | B24: =IF(C24<1," ",VLOOKUP(C24,MainAccountNO:MainAccounts,2,FALSE)) -> 
A25: 20 | B25: =IF(C25<1," ",VLOOKUP(C25,MainAccountNO:MainAccounts,2,FALSE)) -> 
A26: 21 | B26: =IF(C26<1," ",VLOOKUP(C26,MainAccountNO:MainAccounts,2,FALSE)) -> 
A27: 22 | B27: =IF(C27<1," ",VLOOKUP(C27,MainAccountNO:MainAccounts,2,FALSE)) -> 
A28: 23 | B28: =IF(C28<1," ",VLOOKUP(C28,MainAccountNO:MainAccounts,2,FALSE)) -> 
A29: 24 | B29: =IF(C29<1," ",VLOOKUP(C29,MainAccountNO:MainAccounts,2,FALSE)) -> 
A30: 25 | B30: =IF(C30<1," ",VLOOKUP(C30,MainAccountNO:MainAccounts,2,FALSE)) -> 
A31: 26 | B31: =IF(C31<1," ",VLOOKUP(C31,MainAccountNO:MainAccounts,2,FALSE)) -> 
A32: 27 | B32: =IF(C32<1," ",VLOOKUP(C32,MainAccountNO:MainAccounts,2,FALSE)) -> 
A33: 28 | B33: =IF(C33<1," ",VLOOKUP(C33,MainAccountNO:MainAccounts,2,FALSE)) -> 
A34: 29 | B34: =IF(C34<1," ",VLOOKUP(C34,MainAccountNO:MainAccounts,2,FALSE)) -> 
A35: 30 | B35: =IF(C35<1," ",VLOOKUP(C35,MainAccountNO:MainAccounts,2,FALSE)) -> 
A36: 31 | B36: =IF(C36<1," ",VLOOKUP(C36,MainAccountNO:MainAccounts,2,FALSE)) -> 
A37: 32 | B37: =IF(C37<1," ",VLOOKUP(C37,MainAccountNO:MainAccounts,2,FALSE)) -> 
A38: 33 | B38: =IF(C38<1," ",VLOOKUP(C38,MainAccountNO:MainAccounts,2,FALSE)) -> 
A39: 34 | B39: =IF(C39<1," ",VLOOKUP(C39,MainAccountNO:MainAccounts,2,FALSE)) -> 
A40: 35 | B40: =IF(C40<1," ",VLOOKUP(C40,MainAccountNO:MainAccounts,2,FALSE)) -> 
A41: 36 | B41: =IF(C41<1," ",VLOOKUP(C41,MainAccountNO:MainAccounts,2,FALSE)) -> 

Sheet S14
B1: Training | C1: 41787 | D1: 2019-2020 | G1: 10
D2: Total Income | E2: =SUM(IF(S_14FieldRank<=S_14Choice,IF(S_14AccNO<=LastIncome,S_14Amount,0),0)) -> 0
D3: Total Expense | E3: =SUM(IF(S_14FieldRank<=S_14Choice,IF(S_14AccNO>LastIncome,S_14Amount,0),0)) -> 0
D4: Difference | E4: =E2-E3 -> 0
B5: Account Description | C5: Acc_NO | D5: Field Detail | E5: Amount | F5: Month | G5: Rank | H5: Out
A6: 1 | B6: =IF(C6<1," ",VLOOKUP(C6,MainAccountNO:MainAccounts,2,FALSE)) ->  | H6: =IF(G6<=$G$1,"","OUT") -> 
A7: 1 | B7: =IF(C7<1," ",VLOOKUP(C7,MainAccountNO:MainAccounts,2,FALSE)) ->  | D7: STAFFING
A8: =A7+1 -> 2 | B8: =IF(C8<1," ",VLOOKUP(C8,MainAccountNO:MainAccounts,2,FALSE)) ->  | C8: 5001
A9: 3 | B9: =IF(C9<1," ",VLOOKUP(C9,MainAccountNO:MainAccounts,2,FALSE)) ->  | C9: 7005
A10: 4 | B10: =IF(C10<1," ",VLOOKUP(C10,MainAccountNO:MainAccounts,2,FALSE)) ->  | C10: 8990
A11: 5 | B11: =IF(C11<1," ",VLOOKUP(C11,MainAccountNO:MainAccounts,2,FALSE)) ->  | C11: 4100
A12: 6 | B12: =IF(C12<1," ",VLOOKUP(C12,MainAccountNO:MainAccounts,2,FALSE)) ->  | C12: 8003 | D12: Training materials
A13: 7 | B13: =IF(C13<1," ",VLOOKUP(C13,MainAccountNO:MainAccounts,2,FALSE)) ->  | C13: 8710 | D13: Travel expense $1000 x 8 trips
A14: 8
A15: 9 | B15: =IF(C15<1," ",VLOOKUP(C15,MainAccountNO:MainAccounts,2,FALSE)) -> 
A16: 10 | B16: =IF(C16<1," ",VLOOKUP(C16,MainAccountNO:MainAccounts,2,FALSE)) -> 
A17: 11 | B17: =IF(C17<1," ",VLOOKUP(C17,MainAccountNO:MainAccounts,2,FALSE)) -> 
A18: 12 | B18: =IF(C18<1," ",VLOOKUP(C18,MainAccountNO:MainAccounts,2,FALSE)) -> 
A19: 13 | B19: =IF(C19<1," ",VLOOKUP(C19,MainAccountNO:MainAccounts,2,FALSE)) -> 
A20: 14 | B20: =IF(C20<1," ",VLOOKUP(C20,MainAccountNO:MainAccounts,2,FALSE)) -> 
A21: 15 | B21: =IF(C21<1," ",VLOOKUP(C21,MainAccountNO:MainAccounts,2,FALSE)) -> 
A22: 16 | B22: =IF(C22<1," ",VLOOKUP(C22,MainAccountNO:MainAccounts,2,FALSE)) -> 
A23: 17 | B23: =IF(C23<1," ",VLOOKUP(C23,MainAccountNO:MainAccounts,2,FALSE)) -> 
A24: 18 | B24: =IF(C24<1," ",VLOOKUP(C24,MainAccountNO:MainAccounts,2,FALSE)) -> 
A25: 19 | B25: =IF(C25<1," ",VLOOKUP(C25,MainAccountNO:MainAccounts,2,FALSE)) -> 
A26: 20 | B26: =IF(C26<1," ",VLOOKUP(C26,MainAccountNO:MainAccounts,2,FALSE)) -> 
A27: 21 | B27: =IF(C27<1," ",VLOOKUP(C27,MainAccountNO:MainAccounts,2,FALSE)) -> 
A28: 22 | B28: =IF(C28<1," ",VLOOKUP(C28,MainAccountNO:MainAccounts,2,FALSE)) -> 
A29: 23 | B29: =IF(C29<1," ",VLOOKUP(C29,MainAccountNO:MainAccounts,2,FALSE)) -> 
A30: 24 | B30: =IF(C30<1," ",VLOOKUP(C30,MainAccountNO:MainAccounts,2,FALSE)) -> 
A31: 25 | B31: =IF(C31<1," ",VLOOKUP(C31,MainAccountNO:MainAccounts,2,FALSE)) -> 

Sheet S15
B1: Alaska Properties | C1: 40954 | D1: =Main_BGT!F5 -> 2022-2023 | G1: 10
D2: Total Income | E2: =SUM(IF(S_15FieldRank<=S_15Choice,IF(S_15AccNO<=LastIncome,S_15Amount,0),0)) -> 334133.5
D3: Total Expense | E3: =SUM(IF(S_15FieldRank<=S_15Choice,IF(S_15AccNO>LastIncome,S_15Amount,0),0)) -> 357265
D4: Difference | E4: =E2-E3 -> -23131.5
B5: Account Description | C5: Acc_NO | D5: Field Detail | E5: Amount | F5: Month | G5: Rank | H5: Out
A6: 1 | B6: =IF(C6<1," ",VLOOKUP(C6,MainAccountNO:MainAccounts,2,FALSE)) ->  | H6: =IF(G6<=$G$1,"","OUT") -> 
A7: =A6+1 -> 2 | B7: =IF(C7<1," ",VLOOKUP(C7,MainAccountNO:MainAccounts,2,FALSE)) -> Beginning Fund Balances | C7: 3100 | D7: March 31, 2021 Properties Fund Balance ($30,000) Grayling $37,000 | E7: 70000 | H7: =IF(G7<=$G$1,"","OUT") -> 
A8: 3 | B8: =IF(C8<1," ",VLOOKUP(C8,MainAccountNO:MainAccounts,2,FALSE)) -> Rental Income | C8: 6210 | D8: Missionary Rent ( Dalton (Grayling), ANC Duplex DeVries) | E8: 18750 | H8: =IF(G8<=$G$1,"","OUT") -> 
A9: 4 | B9: =IF(C9<1," ",VLOOKUP(C9,MainAccountNO:MainAccounts,2,FALSE)) -> Rental Income | C9: 6210 | D9: Rental income (#2A,2B,5,6,7,8,Bigelow,Joyce) | E9: 106000 | H9: =IF(G9<=$G$1,"","OUT") -> 
A10: 5 | B10: =IF(C10<1," ",VLOOKUP(C10,MainAccountNO:MainAccounts,2,FALSE)) -> Rental Income | C10: 6210 | D10: Rental income - LEaD (Susitna, Pioneer Peak) | E10: 5000
A11: 6 | B11: =IF(C11<1," ",VLOOKUP(C11,MainAccountNO:MainAccounts,2,FALSE)) -> Rental Income | C11: 6210 | D11: Rental income -
A12: 7 | B12: =IF(C12<1," ",VLOOKUP(C12,MainAccountNO:MainAccounts,2,FALSE)) -> Cash Gifts - Programs | C12: 5004 | D12: Appeal - Properties (net)Building #4,6,9,Chignik repairs,Equipment, Water sytem Upgrade | E12: 110000
A13: 8 | B13: =IF(C13<1," ",VLOOKUP(C13,MainAccountNO:MainAccounts,2,FALSE)) -> Operations Assessment | C13: 4100 | D13: Propertieis appeals assesment | E13: =E12*-0.1 -> -11000
A14: 9 | B14: =IF(C14<1," ",VLOOKUP(C14,MainAccountNO:MainAccounts,2,FALSE)) -> Cash Gifts - Programs | C14: 5004 | D14: Hospitality gator appeal | E14: 22000
A15: 10 | B15: =IF(C15<1," ",VLOOKUP(C15,MainAccountNO:MainAccounts,2,FALSE)) -> Operations Assessment | C15: 4100 | D15: Hospitality gator appeal Assessment | E15: =E14*-0.1 -> -2200
A16: 11 | B16: =IF(C16<1," ",VLOOKUP(C16,MainAccountNO:MainAccounts,2,FALSE)) -> Cash Gifts - Programs | C16: 5004 | D16: Building #1 Bathroom Remodel | E16: 4875
A17: 12 | B17: =IF(C17<1," ",VLOOKUP(C17,MainAccountNO:MainAccounts,2,FALSE)) -> Operations Assessment | C17: 4100 | D17: Building #1 Bathroom Remodel Assessment | E17: =E16*-0.1 -> -487.5
A18: 13 | B18: =IF(C18<1," ",VLOOKUP(C18,MainAccountNO:MainAccounts,2,FALSE)) -> Cash Gifts - Programs | C18: 5004 | D18: Building #3 Shop Bathroom | E18: 5565
A19: 14 | B19: =IF(C19<1," ",VLOOKUP(C19,MainAccountNO:MainAccounts,2,FALSE)) -> Operations Assessment | C19: 4100 | D19: Building #3 Shop Bathroom Assessment | E19: =E18*-0.1 -> -556.5
A20: 15 | B20: =IF(C20<1," ",VLOOKUP(C20,MainAccountNO:MainAccounts,2,FALSE)) -> Cash Gifts - Programs | C20: 5004 | D20: Prayer Walk Development | E20: 1375
A21: 16 | B21: =IF(C21<1," ",VLOOKUP(C21,MainAccountNO:MainAccounts,2,FALSE)) -> Operations Assessment | C21: 4100 | D21: Prayer Walk Development Assesment | E21: =E20*-0.1 -> -137.5
A22: 17 | B22: =IF(C22<1," ",VLOOKUP(C22,MainAccountNO:MainAccounts,2,FALSE)) -> Cash Gifts - Programs | C22: 5004 | D22: Building #7 Furnace upgrade
A23: 18 | B23: =IF(C23<1," ",VLOOKUP(C23,MainAccountNO:MainAccounts,2,FALSE)) -> Operations Assessment | C23: 4100 | D23: Building #7 Furnace upgrade Assessment | E23: =E22*-0.1 -> 0
A24: =A23+1 -> 19 | B24: =IF(C24<1," ",VLOOKUP(C24,MainAccountNO:MainAccounts,2,FALSE)) -> Cash Gifts - Programs | C24: 5004 | D24: Blue Spruce Development | E24: 5500
A25: 20 | B25: =IF(C25<1," ",VLOOKUP(C25,MainAccountNO:MainAccounts,2,FALSE)) -> Operations Assessment | C25: 4100 | D25: Blue Spruce Development Assesment | E25: =E24*-0.1 -> -550
A26: 21 | B26: =IF(C26<1," ",VLOOKUP(C26,MainAccountNO:MainAccounts,2,FALSE)) -> Cash Gifts - Programs | C26: 5004
A27: 22 | B27: =IF(C27<1," ",VLOOKUP(C27,MainAccountNO:MainAccounts,2,FALSE)) -> Operations Assessment | C27: 4100
A28: 23 | B28: =IF(C28<1," ",VLOOKUP(C28,MainAccountNO:MainAccounts,2,FALSE)) ->  | H28: =IF(G28<=$G$1,"","OUT") -> 
A29: 24 | B29: =IF(C29<1," ",VLOOKUP(C29,MainAccountNO:MainAccounts,2,FALSE)) -> Grounds Maint. | C29: 8411 | D29: Finish Anchorage landscaping | E29: 2000 | G29: 1 | H29: =IF(G29<=$G$1,"","OUT") -> 
A30: 25 | B30: =IF(C30<1," ",VLOOKUP(C30,MainAccountNO:MainAccounts,2,FALSE)) -> Building Maint. | C30: 8413 | D30: Prayer Walk Development | E30: 1375 | G30: 2
A31: 26 | B31: =IF(C31<1," ",VLOOKUP(C31,MainAccountNO:MainAccounts,2,FALSE)) -> Building Maint. | C31: 8413 | D31: Campus Security System | E31: 8125 | G31: 2 | H31: =IF(G31<=$G$1,"","OUT") -> 
A32: 27 | B32: =IF(C32<1," ",VLOOKUP(C32,MainAccountNO:MainAccounts,2,FALSE)) -> Grounds Maint. | C32: 8411 | D32: Shooting Range Repair | E32: 1500 | G32: 2
A33: 28 | B33: =IF(C33<1," ",VLOOKUP(C33,MainAccountNO:MainAccounts,2,FALSE)) -> Grounds Maint. | C33: 8411 | D33: Swage Pond - Fencing/landscaping | E33: 10000 | G33: 1
A34: 29 | B34: =IF(C34<1," ",VLOOKUP(C34,MainAccountNO:MainAccounts,2,FALSE)) -> Building Maint. | C34: 8413 | D34: Building #1 Water System upgrade (phase #1) | E34: 17000 | G34: 1
A35: 30 | B35: =IF(C35<1," ",VLOOKUP(C35,MainAccountNO:MainAccounts,2,FALSE)) -> Building Maint. | C35: 8413 | D35: Building #1 Restrooms / storage room | E35: 4500 | G35: 2
A36: 31 | B36: =IF(C36<1," ",VLOOKUP(C36,MainAccountNO:MainAccounts,2,FALSE)) -> Building Maint. | C36: 8413 | D36: Building #2 Duplex gas conv. | E36: 2500 | G36: 2
A37: 32 | B37: =IF(C37<1," ",VLOOKUP(C37,MainAccountNO:MainAccounts,2,FALSE)) -> Building Maint. | C37: 8413 | D37: Building #4 studio apartment | E37: 12000 | G37: 3
A38: 33 | B38: =IF(C38<1," ",VLOOKUP(C38,MainAccountNO:MainAccounts,2,FALSE)) -> Building Maint. | C38: 8413 | D38: Building #6 Room Addition/bathroom | E38: 8000 | G38: 3
A39: 34 | B39: =IF(C39<1," ",VLOOKUP(C39,MainAccountNO:MainAccounts,2,FALSE)) -> Building Maint. | C39: 8413 | D39: Bldg. #7 Repair | E39: 12000 | G39: 1
A40: 35 | B40: =IF(C40<1," ",VLOOKUP(C40,MainAccountNO:MainAccounts,2,FALSE)) -> Building Maint. | C40: 8413 | D40: Building #9 Addition (dining & small group meeting) | E40: 20000 | G40: 3
A41: 36 | B41: =IF(C41<1," ",VLOOKUP(C41,MainAccountNO:MainAccounts,2,FALSE)) -> Building Maint. | C41: 8413 | D41: Building #10A VVS Carpet/paint | E41: 5000 | G41: 1
A42: 37 | B42: =IF(C42<1," ",VLOOKUP(C42,MainAccountNO:MainAccounts,2,FALSE)) -> Building Maint. | C42: 8413 | D42: Building #10A (VV South) Bathroom reno
A43: 38 | B43: =IF(C43<1," ",VLOOKUP(C43,MainAccountNO:MainAccounts,2,FALSE)) -> Building Maint. | C43: 8413 | D43: Building #10B (VV West) Bathroom reno | E43: 4000 | G43: 3
A44: 39 | B44: =IF(C44<1," ",VLOOKUP(C44,MainAccountNO:MainAccounts,2,FALSE)) -> Building Maint. | C44: 8413 | D44: Building #10C (Pioneer Peak) Bathroom reno | E44: 3500 | G44: 1
A45: 40 | B45: =IF(C45<1," ",VLOOKUP(C45,MainAccountNO:MainAccounts,2,FALSE)) -> Building Maint. | C45: 8413 | D45: Building #10D (Susitina) Bathroom reno/ carpet | E45: 6000 | G45: 1
A46: 41 | B46: =IF(C46<1," ",VLOOKUP(C46,MainAccountNO:MainAccounts,2,FALSE)) -> Building Maint. | C46: 8413 | D46: Truck - Cap, Tailgate | E46: 5000 | G46: 2
A47: 42 | B47: =IF(C47<1," ",VLOOKUP(C47,MainAccountNO:MainAccounts,2,FALSE)) -> Grounds Maint. | C47: 8411 | D47: Gravel Spreader | E47: 10000 | G47: 3
A48: 43 | B48: =IF(C48<1," ",VLOOKUP(C48,MainAccountNO:MainAccounts,2,FALSE)) -> Building Maint. | C48: 8413 | D48: Equipment & Tools | E48: 10000 | G48: 3 | H48: =IF(G54<=$G$1,"","OUT") -> 
A49: 44 | B49: =IF(C49<1," ",VLOOKUP(C49,MainAccountNO:MainAccounts,2,FALSE)) -> Building Maint. | C49: 8413 | D49: General Building Repair | E49: 15000 | G49: 1 | H49: =IF(G55<=$G$1,"","OUT") -> 
A50: 45 | B50: =IF(C50<1," ",VLOOKUP(C50,MainAccountNO:MainAccounts,2,FALSE)) -> Building Maint. | C50: 8413 | D50: Chinik House Repairs | E50: 20000 | G50: 3
A51: 46 | B51: =IF(C51<1," ",VLOOKUP(C51,MainAccountNO:MainAccounts,2,FALSE)) -> Building Maint. | C51: 8413 | D51: Grayling House Repairs( Raiseed last fiscal year) | E51: 37000 | G51: 1 | I51: I changed this from $10,000 to $37,000
A52: 47 | B52: =IF(C52<1," ",VLOOKUP(C52,MainAccountNO:MainAccounts,2,FALSE)) -> Building Maint. | C52: 8413
A53: 48 | B53: =IF(C53<1," ",VLOOKUP(C53,MainAccountNO:MainAccounts,2,FALSE)) -> Utilities | C53: 8405
A54: =A47+1 -> 43 | B54: =IF(C54<1," ",VLOOKUP(C54,MainAccountNO:MainAccounts,2,FALSE)) -> Building Maint. | C54: 8413
A55: =A38+1 -> 34 | B55: =IF(C55<1," ",VLOOKUP(C55,MainAccountNO:MainAccounts,2,FALSE)) -> Bldg. & Equip Insurance | C55: 8403 | D55: Anchorage Comm.Prop.Insurance | E55: 4300
A56: 35 | B56: =IF(C56<1," ",VLOOKUP(C56,MainAccountNO:MainAccounts,2,FALSE)) -> Equipment Maint. | C56: 8502 | D56: Equipment Repair & Parts | E56: 10000 | G56: 1
A57: 36 | B57: =IF(C57<1," ",VLOOKUP(C57,MainAccountNO:MainAccounts,2,FALSE)) -> Grounds Maint. | C57: 8411 | D57: Gravel for Driveway at Lazy Mt repair & upkeep | E57: 16250 | G57: 1
A58: 37 | B58: =IF(C58<1," ",VLOOKUP(C58,MainAccountNO:MainAccounts,2,FALSE)) -> Grounds Maint. | C58: 8411 | D58: Grounds Maint.(Grass/Flowers) | E58: 1200
A59: 38 | B59: =IF(C59<1," ",VLOOKUP(C59,MainAccountNO:MainAccounts,2,FALSE)) -> Real Estate Tax | C59: 8410 | D59: Property Tax -- Anchorage Homes | E59: 12500
A60: 39 | B60: =IF(C60<1," ",VLOOKUP(C60,MainAccountNO:MainAccounts,2,FALSE)) -> Real Estate Tax | C60: 8410 | D60: Property Tax - Lazy Mountain | E60: 20000
A61: 40 | B61: =IF(C61<1," ",VLOOKUP(C61,MainAccountNO:MainAccounts,2,FALSE)) -> Utilities | C61: 8405 | D61: Dumpster - Weekly use | E61: 4750
A62: 41 | B62: =IF(C62<1," ",VLOOKUP(C62,MainAccountNO:MainAccounts,2,FALSE)) -> Utilities | C62: 8405 | D62: Utilities --Lazy Mt/ANC | E62: 19500
A63: 42 | B63: =IF(C63<1," ",VLOOKUP(C63,MainAccountNO:MainAccounts,2,FALSE)) -> Vehicle Fuel & Oil | C63: 8702 | D63: Van, PU & Equipment Fuel | E63: 4500 | G63: 1 | H63: =IF(G70<=$G$1,"","OUT") -> 
A64: 43 | B64: =IF(C64<1," ",VLOOKUP(C64,MainAccountNO:MainAccounts,2,FALSE)) -> Vehicle Repair/Ins./Lic. | C64: 8703 | D64: Van/PU/Saturn (vehicle Insurance)
A65: 44 | B65: =IF(C65<1," ",VLOOKUP(C65,MainAccountNO:MainAccounts,2,FALSE)) -> Vehicle Repair/Ins./Lic. | C65: 8703 | D65: Vehicle repair & upkeep | E65: 16000 | G65: 1
A66: 45 | B66: =IF(C66<1," ",VLOOKUP(C66,MainAccountNO:MainAccounts,2,FALSE)) -> Professional Fees | C66: 8008 | D66: Water Testing - monthly | E66: 3000
A67: 46 | B67: =IF(C67<1," ",VLOOKUP(C67,MainAccountNO:MainAccounts,2,FALSE)) -> Small Equip. Purchase | C67: 8510 | D67: Equipment purchases - hospitality gator | E67: 20000 | G67: 3 | H67: =IF(G74<=$G$1,"","OUT") -> 
A68: 47 | B68: =IF(C68<1," ",VLOOKUP(C68,MainAccountNO:MainAccounts,2,FALSE)) -> Printing and Supplies | C68: 8107 | D68: Printing | H68: =IF(G75<=$G$1,"","OUT") -> 
A69: 48 | B69: =IF(C69<1," ",VLOOKUP(C69,MainAccountNO:MainAccounts,2,FALSE)) -> Deprecation Expense | C69: 8976 | D69: Deprrection Expenses | H69: =IF(G76<=$G$1,"","OUT") -> 
A70: 48 | B70: =IF(C70<1," ",VLOOKUP(C70,MainAccountNO:MainAccounts,2,FALSE)) ->  | D70: STAFFING | H70: =IF(G76<=$G$1,"","OUT") -> 
A71: =A70+1 -> 49 | H71: =IF(G77<=$G$1,"","OUT") -> 
A72: 50
A73: 51
A74: 52 | B74: =IF(C74<1," ",VLOOKUP(C74,MainAccountNO:MainAccounts,2,FALSE)) -> 
A75: 53 | B75: =IF(C75<1," ",VLOOKUP(C75,MainAccountNO:MainAccounts,2,FALSE)) -> Other Salaries | C75: 7004 | D75: Lawn Mowing/general campus labor | E75: 10000
A76: 54 | B76: =IF(C76<1," ",VLOOKUP(C76,MainAccountNO:MainAccounts,2,FALSE)) -> Payroll Tax | C76: 7201 | D76: FICA on Lawn Mower | E76: 765
A77: 55 | B77: =IF(C77<1," ",VLOOKUP(C77,MainAccountNO:MainAccounts,2,FALSE)) -> 
D79: Pink fields will be completed by Mike

Sheet S16
B1: Member Care | C1: 41795 | D1: =Main_BGT!F5 -> 2022-2023 | G1: 10
D2: Total Income | E2: =SUM(IF(S_16FieldRank<=S_16Choice,IF(S_16AccNO<=LastIncome,S_16Amount,0),0)) -> 71535
D3: Total Expense | E3: =SUM(IF(S_16FieldRank<=S_16Choice,IF(S_16AccNO>LastIncome,S_16Amount,0),0)) -> 71535
D4: Difference | E4: =E2-E3 -> 0
B5: Account Description | C5: Acc_NO | D5: Field Detail | E5: Amount | F5: Month | G5: Rank | H5: Out
A6: =A5+1 -> 1 | B6: =IF(C6<1," ",VLOOKUP(C6,MainAccountNO:MainAccounts,2,FALSE)) -> Cash Gifts - Programs | C6: 5004 | D6: From Canada | H6: =IF(G6<=$G$1,"","OUT") -> 
A7: 2 | B7: =IF(C7<1," ",VLOOKUP(C7,MainAccountNO:MainAccounts,2,FALSE)) -> Commercial Travel | C7: 8710 | D7: Seminars, airfare
A8: 3 | B8: =IF(C8<1," ",VLOOKUP(C8,MainAccountNO:MainAccounts,2,FALSE)) -> Commercial Travel | C8: 8710 | D8: Airfare Village (2 people, 2 trips)
A9: 4 | B9: =IF(C9<1," ",VLOOKUP(C9,MainAccountNO:MainAccounts,2,FALSE)) -> Commercial Travel | C9: 8710 | D9: Seminars, airfare
A10: 5 | B10: =IF(C10<1," ",VLOOKUP(C10,MainAccountNO:MainAccounts,2,FALSE)) -> General Ministry Supply | C10: 8108 | D10: Books, resource materials
A11: 6 | B11: =IF(C11<1," ",VLOOKUP(C11,MainAccountNO:MainAccounts,2,FALSE)) -> General Ministry Supply | C11: 8108 | D11: Flowers, Gifts, Etc.
A12: 7 | B12: =IF(C12<1," ",VLOOKUP(C12,MainAccountNO:MainAccounts,2,FALSE)) -> General Ministry Supply | C12: 8108 | D12: Gifts to missionaries/MK's at conference
A13: 8 | B13: =IF(C13<1," ",VLOOKUP(C13,MainAccountNO:MainAccounts,2,FALSE)) -> Auto Mileage Reimb | C13: 8707 | D13: Vehicle gas/mileage to visit staff
A14: 9
A15: 10 | B15: =IF(C15<1," ",VLOOKUP(C15,MainAccountNO:MainAccounts,2,FALSE)) ->  | D15: STAFFING
A16: =A12+1 -> 8 | B16: =IF(C16<1," ",VLOOKUP(C16,MainAccountNO:MainAccounts,2,FALSE)) -> Cash Gifts - Staff Support | C16: 5001 | D16: Twichell Support | E16: 15000 | H16: =IF(G16<=$G$1,"","OUT") -> 
A17: 9 | B17: =IF(C17<1," ",VLOOKUP(C17,MainAccountNO:MainAccounts,2,FALSE)) -> Missionary Salaries | C17: 7005 | D17: Twichell. Salary | E17: =+E16+E18-E19 -> 10650
A18: 10 | B18: =IF(C18<1," ",VLOOKUP(C18,MainAccountNO:MainAccounts,2,FALSE)) -> Operations Assessment | C18: 4100 | D18: Twichell Assessment | E18: =-E16*0.05 -> -750
A19: 11 | B19: =IF(C19<1," ",VLOOKUP(C19,MainAccountNO:MainAccounts,2,FALSE)) -> Ministry Expense | C19: 8990 | D19: Twichell MER | E19: 3600
A20: =A15+1 -> 11 | B20: =IF(C20<1," ",VLOOKUP(C20,MainAccountNO:MainAccounts,2,FALSE)) -> Cash Gifts - Staff Support | C20: 5001 | D20: Richardson G. Support | E20: 28200
A21: 12 | B21: =IF(C21<1," ",VLOOKUP(C21,MainAccountNO:MainAccounts,2,FALSE)) -> Missionary Salaries | C21: 7005 | D21: Richardson G. Salary | E21: =+E20+E22 -> 26790
A22: 13 | B22: =IF(C22<1," ",VLOOKUP(C22,MainAccountNO:MainAccounts,2,FALSE)) -> Operations Assessment | C22: 4100 | D22: Richardson G Assessment | E22: =-E20*0.05 -> -1410
A23: 14 | B23: =IF(C23<1," ",VLOOKUP(C23,MainAccountNO:MainAccounts,2,FALSE)) -> Cash Gifts - Staff Support | C23: 5001 | D23: Moffat Support | E23: 14100
A24: 15 | B24: =IF(C24<1," ",VLOOKUP(C24,MainAccountNO:MainAccounts,2,FALSE)) -> Missionary Salaries | C24: 7005 | D24: Moffat Salary | E24: =+E23+E25 -> 13395
A25: 16 | B25: =IF(C25<1," ",VLOOKUP(C25,MainAccountNO:MainAccounts,2,FALSE)) -> Operations Assessment | C25: 4100 | D25: Moffat Assessment | E25: =-E23*0.05 -> -705
A26: 17 | B26: =IF(C26<1," ",VLOOKUP(C26,MainAccountNO:MainAccounts,2,FALSE)) -> Cash Gifts - Staff Support | C26: 5001 | D26: Arnold, Support | E26: 18000
A27: 18 | B27: =IF(C27<1," ",VLOOKUP(C27,MainAccountNO:MainAccounts,2,FALSE)) -> Missionary Salaries | C27: 7005 | D27: Arnold, Salary | E27: =+E26+E28 -> 17100
A28: 19 | B28: =IF(C28<1," ",VLOOKUP(C28,MainAccountNO:MainAccounts,2,FALSE)) -> Operations Assessment | C28: 4100 | D28: Arnold, Assessment | E28: =-E26*0.05 -> -900
A29: 20 | B29: =IF(C29<1," ",VLOOKUP(C29,MainAccountNO:MainAccounts,2,FALSE)) -> 
C32: Pink fields will be completed by Mike

Sheet S17
B1: AK Hospitality | C1: 40930 | D1: =Main_BGT!F5 -> 2022-2023 | G1: 10
D2: Total Income | E2: =SUM(IF(S_17FieldRank<=S_17Choice,IF(S_17AccNO<=LastIncome,S_17Amount,0),0)) -> 37980
D3: Total Expense | E3: =SUM(IF(S_17FieldRank<=S_17Choice,IF(S_17AccNO>LastIncome,S_17Amount,0),0)) -> 20459
D4: Difference | E4: =E2-E3 -> 17521
B5: Account Description | C5: Acc_NO | D5: Field Detail | E5: Amount | F5: Month | G5: Rank | H5: Out
A7: 1 | B7: =IF(C7<1," ",VLOOKUP(C7,MainAccountNO:MainAccounts,2,FALSE)) ->  | H7: =IF(G7<=$G$1,"","OUT") -> 
A8: =A7+1 -> 2 | B8: =IF(C8<1," ",VLOOKUP(C8,MainAccountNO:MainAccounts,2,FALSE)) -> Program Fees | C8: 6200 | D8: Transfer from EnGage for housing Full Program | E8: 980 | F8: 7 | G8: 1
A9: =A8+1 -> 3 | B9: =IF(C9<1," ",VLOOKUP(C9,MainAccountNO:MainAccounts,2,FALSE)) -> Cash Gifts - Programs | C9: 5004 | D9: Hospitality Donations from individuals | E9: 15000 | G9: 1
A10: =A9+1 -> 4 | B10: =IF(C10<1," ",VLOOKUP(C10,MainAccountNO:MainAccounts,2,FALSE)) -> Program Fees | C10: 6200 | D10: Transfer from EnGage for housing Full Program | E10: 12000 | F10: 5 | G10: 1
A11: =A10+1 -> 5 | B11: =IF(C11<1," ",VLOOKUP(C11,MainAccountNO:MainAccounts,2,FALSE)) -> Program Fees | C11: 6200 | D11: Group Use Fees | E11: 10000 | G11: 1 | H11: =IF(G11<=$G$1,"","OUT") -> 
A12: =A10+1 -> 5 | B12: =IF(C12<1," ",VLOOKUP(C12,MainAccountNO:MainAccounts,2,FALSE)) -> 
A13: =A12+1 -> 6 | B13: =IF(C13<1," ",VLOOKUP(C13,MainAccountNO:MainAccounts,2,FALSE)) -> General Ministry Supply | C13: 8108 | D13: Kitchen Supplies | E13: 1500 | G13: 1
A14: =A13+1 -> 7 | B14: =IF(C14<1," ",VLOOKUP(C14,MainAccountNO:MainAccounts,2,FALSE)) -> General Ministry Supply | C14: 8108 | D14: Linens | E14: 1500 | G14: 1
A15: 8 | B15: =IF(C15<1," ",VLOOKUP(C15,MainAccountNO:MainAccounts,2,FALSE)) -> General Ministry Supply | C15: 8108 | D15: Décor | E15: 1000 | G15: 1
A16: 9 | B16: =IF(C16<1," ",VLOOKUP(C16,MainAccountNO:MainAccounts,2,FALSE)) -> General Ministry Supply | C16: 8108 | D16: Paper Supplies | E16: 1500 | G16: 1
A17: 10 | B17: =IF(C17<1," ",VLOOKUP(C17,MainAccountNO:MainAccounts,2,FALSE)) -> General Ministry Supply | C17: 8108 | D17: Small Cleaning Equipment & supplies | E17: 1000 | G17: 1
A18: 11 | B18: =IF(C18<1," ",VLOOKUP(C18,MainAccountNO:MainAccounts,2,FALSE)) -> Small Equip. Purchase | C18: 8510 | D18: Furnishings & Kitchen equipment | E18: 4000 | G18: 1
A19: 12 | B19: =IF(C19<1," ",VLOOKUP(C19,MainAccountNO:MainAccounts,2,FALSE)) -> Food for Meetings | C19: 8803 | D19: Guest Food | E19: 1500 | G19: 1
A20: 13
A21: 14 | B21: =IF(C21<1," ",VLOOKUP(C21,MainAccountNO:MainAccounts,2,FALSE)) -> Other Salaries | C21: 7004 | D21: Housekeeping Salary | E21: 6000 | G21: 1
A22: 15 | B22: =IF(C22<1," ",VLOOKUP(C22,MainAccountNO:MainAccounts,2,FALSE)) -> Payroll Tax | C22: 7201 | D22: Housekeeping FICA | E22: =+E21*0.0765 -> 459
A23: 16 | B23: =IF(C23<1," ",VLOOKUP(C23,MainAccountNO:MainAccounts,2,FALSE)) -> Building Maint. | C23: 8413 | D23: Carpet Cleaning | E23: 2000 | G23: 1
A24: 17 | B24: =IF(C24<1," ",VLOOKUP(C24,MainAccountNO:MainAccounts,2,FALSE)) -> 
A25: 18 | B25: =IF(C25<1," ",VLOOKUP(C25,MainAccountNO:MainAccounts,2,FALSE)) -> 
A26: 19 | B26: =IF(C26<1," ",VLOOKUP(C26,MainAccountNO:MainAccounts,2,FALSE)) -> 
A27: 20 | B27: =IF(C27<1," ",VLOOKUP(C27,MainAccountNO:MainAccounts,2,FALSE)) -> 
A28: 21 | B28: =IF(C28<1," ",VLOOKUP(C28,MainAccountNO:MainAccounts,2,FALSE)) -> 
A29: 22 | B29: =IF(C29<1," ",VLOOKUP(C29,MainAccountNO:MainAccounts,2,FALSE)) -> 
A30: 23 | B30: =IF(C30<1," ",VLOOKUP(C30,MainAccountNO:MainAccounts,2,FALSE)) -> 
A31: 24 | B31: =IF(C31<1," ",VLOOKUP(C31,MainAccountNO:MainAccounts,2,FALSE)) -> 
A32: 25 | B32: =IF(C32<1," ",VLOOKUP(C32,MainAccountNO:MainAccounts,2,FALSE)) -> 
A33: 26 | B33: =IF(C33<1," ",VLOOKUP(C33,MainAccountNO:MainAccounts,2,FALSE)) -> 
A34: 27 | B34: =IF(C34<1," ",VLOOKUP(C34,MainAccountNO:MainAccounts,2,FALSE)) -> 
A35: 28 | B35: =IF(C35<1," ",VLOOKUP(C35,MainAccountNO:MainAccounts,2,FALSE)) -> 
A36: 29 | B36: =IF(C36<1," ",VLOOKUP(C36,MainAccountNO:MainAccounts,2,FALSE)) -> 
A37: 30 | B37: =IF(C37<1," ",VLOOKUP(C37,MainAccountNO:MainAccounts,2,FALSE)) -> 

Sheet S18
B1: Admin | C1: 41700 | D1: =Main_BGT!F5 -> 2022-2023 | G1: 10
D2: Total Income | E2: =SUM(IF(S_18FieldRank<=S_18Choice,IF(S_18AccNO<=LastIncome,S_18Amount,0),0)) -> 367850
D3: Total Expense | E3: =SUM(IF(S_18FieldRank<=S_18Choice,IF(S_18AccNO>LastIncome,S_18Amount,0),0)) -> 176934.2513
D4: Difference | E4: =E2-E3 -> 190915.7487
B5: Account Description | C5: Acc_NO | D5: Field Detail | E5: Amount | F5: Month | G5: Rank | H5: Out
A6: =A5+1 -> 1 | B6: =IF(C6<1," ",VLOOKUP(C6,MainAccountNO:MainAccounts,2,FALSE)) ->  | D6: REVENUE | H6: =IF(G6<=$G$1,"","OUT") -> 
A7: =A6+1 -> 2 | B7: =IF(C7<1," ",VLOOKUP(C7,MainAccountNO:MainAccounts,2,FALSE)) -> Beginning Fund Balances | C7: 3100 | D7: Operational Ministries Balance at March 31, 2021 | E7: 70000
A8: 3 | B8: =IF(C8<1," ",VLOOKUP(C8,MainAccountNO:MainAccounts,2,FALSE)) -> Operations Assessment | C8: 4100 | D8: Member & Project Assessments | E8: 115000
A9: 4 | B9: =IF(C9<1," ",VLOOKUP(C9,MainAccountNO:MainAccounts,2,FALSE)) -> Operations Assessment | C9: 4100 | D9: EnGage! Assessments | E9: 2500
A10: 5 | B10: =IF(C10<1," ",VLOOKUP(C10,MainAccountNO:MainAccounts,2,FALSE)) -> Operations Assessment | C10: 4100 | D10: Appeal assessments | E10: =10000*0.1 -> 1000
A11: 6 | B11: =IF(C11<1," ",VLOOKUP(C11,MainAccountNO:MainAccounts,2,FALSE)) -> Operations Assessment | C11: 4100 | D11: Canada Assessments
A12: 7 | B12: =IF(C12<1," ",VLOOKUP(C12,MainAccountNO:MainAccounts,2,FALSE)) -> Interest Income | C12: 6500 | D12: Investment earnings Transfer ($8,333x12) | E12: 110000
A13: 8 | B13: =IF(C13<1," ",VLOOKUP(C13,MainAccountNO:MainAccounts,2,FALSE)) -> Cash Gifts - Programs | C13: 5004 | D13: Operational Ministries white mail | E13: 40000
A14: 9 | B14: =IF(C14<1," ",VLOOKUP(C14,MainAccountNO:MainAccounts,2,FALSE)) -> Cash Gifts - Programs | C14: 5004 | D14: STEER donations | E14: 6000
A15: 10 | B15: =IF(C15<1," ",VLOOKUP(C15,MainAccountNO:MainAccounts,2,FALSE)) -> Gifts-in-Kind - Programs | C15: 5005 | D15: Stock , Wheat etc. | E15: 4000
A16: =A14+1 -> 10 | B16: =IF(C16<1," ",VLOOKUP(C16,MainAccountNO:MainAccounts,2,FALSE)) -> Inter-fund Transfers | C16: 4400 | D16: Net proceeds on letters 2 & 3
A17: 11 | B17: =IF(C17<1," ",VLOOKUP(C17,MainAccountNO:MainAccounts,2,FALSE)) -> Rental Income | C17: 6210 | D17: Guest House/Apartment use donations | E17: 5000
A18: 12 | B18: =IF(C18<1," ",VLOOKUP(C18,MainAccountNO:MainAccounts,2,FALSE)) -> Rental Income | C18: 6210 | D18: Office Apartment/Apartment use donations | E18: 6000
A19: 13 | B19: =IF(C19<1," ",VLOOKUP(C19,MainAccountNO:MainAccounts,2,FALSE)) -> Inter-fund Transfers | C19: 4400 | D19: From BDF for U.S. Office equipment upgrade
A20: 14 | B20: =IF(C20<1," ",VLOOKUP(C20,MainAccountNO:MainAccounts,2,FALSE)) ->  | D20: EXPENSES
A21: 15 | B21: Executive Salaries | C21: 7001 | D21: Finance Director Salary | E21: 65798 | J21: April-May $5,399/month June-March $5,500/month
A22: 16 | B22: =IF(C22<1," ",VLOOKUP(C22,MainAccountNO:MainAccounts,2,FALSE)) -> Clerical Salaries | C22: 7003 | D22: Donor Relations Salary (52*32*18.50) Diane | E22: =52*32*18.5 -> 30784
A23: 17 | B23: =IF(C23<1," ",VLOOKUP(C23,MainAccountNO:MainAccounts,2,FALSE)) -> Clerical Salaries | C23: 7003 | D23: Admin Assistant Salary (52x12x17) | E23: =52*12*17 -> 10608
A24: 18 | B24: =IF(C24<1," ",VLOOKUP(C24,MainAccountNO:MainAccounts,2,FALSE)) -> Other Salaries | C24: 7004 | D24: U.S. Office Landscaping: lawn mowing (60x13.50) | E24: 840
A25: 19 | B25: =IF(C25<1," ",VLOOKUP(C25,MainAccountNO:MainAccounts,2,FALSE)) -> Other Salaries | C25: 7004 | D25: U.S. Office housekeeping (50*1.5*13.50) | E25: =50*1.5*13.5 -> 1012.5 | J25: Minimum wage increases to $13.50 July 1st.
A26: 20 | B26: =IF(C26<1," ",VLOOKUP(C26,MainAccountNO:MainAccounts,2,FALSE)) -> Payroll Tax | C26: 7201 | D26: FICA on U.S. office staff (Admin) | E26: =J26*0.0765 -> 8341.75125 | J26: =SUM(E21:E25) -> 109042.5
A27: 21 | B27: =IF(C27<1," ",VLOOKUP(C27,MainAccountNO:MainAccounts,2,FALSE)) -> Employment Insurance | C27: 7203 | D27: Oregon Workers Comp and WBF | E27: 900
A28: 22 | B28: =IF(C28<1," ",VLOOKUP(C28,MainAccountNO:MainAccounts,2,FALSE)) -> Member Care | C28: 8004 | D28: Random Acts of Kindness, flowers, etc.
A29: 23 | B29: =IF(C29<1," ",VLOOKUP(C29,MainAccountNO:MainAccounts,2,FALSE)) -> Missionary Conference | C29: 8805 | D29: U.S. office staff travel to Canada Field Conference
A30: 24 | B30: =IF(C30<1," ",VLOOKUP(C30,MainAccountNO:MainAccounts,2,FALSE)) -> Missionary Conference | C30: 8805 | D30: Finance Director Travel to Alaska Conference | H30: =IF(G30<=$G$1,"","OUT") -> 
A31: =A29+1 -> 24 | B31: =IF(C31<1," ",VLOOKUP(C31,MainAccountNO:MainAccounts,2,FALSE)) -> Missionary Conference | C31: 8805 | D31: U.S. Office staff at Canada Field Conference Fee (5@$250) | E31: 1250
A32: 25 | B32: =IF(C32<1," ",VLOOKUP(C32,MainAccountNO:MainAccounts,2,FALSE)) -> Organization Dues & Fees | C32: 8902 | D32: Missio Nexus Dues (split w/CAN year) | E32: 400
A33: 26 | B33: =IF(C33<1," ",VLOOKUP(C33,MainAccountNO:MainAccounts,2,FALSE)) -> Professional Fees | C33: 8008 | D33: Annual Financial Audit and 990 Preparation | E33: 10500
A34: 27 | B34: =IF(C34<1," ",VLOOKUP(C34,MainAccountNO:MainAccounts,2,FALSE)) -> Professional Fees | C34: 8008 | D34: Oregon State Registration fee | E34: 50
A35: 28 | B35: =IF(C35<1," ",VLOOKUP(C35,MainAccountNO:MainAccounts,2,FALSE)) -> Liability Insurance | C35: 8009 | D35: Brotherhood Mutual Insurance (HO liability) | E35: 3000
A36: 29 | B36: =IF(C36<1," ",VLOOKUP(C36,MainAccountNO:MainAccounts,2,FALSE)) -> Bldg. & Equip Insurance | C36: 8403 | D36: Brotherhood Mutual Insurance (HO bldg/equip) | E36: 3650
A37: 30 | B37: =IF(C37<1," ",VLOOKUP(C37,MainAccountNO:MainAccounts,2,FALSE)) -> Telephone | C37: 8201 | D37: U.S. Office Local, LD & 800 Phone Service | E37: 4000
A38: 31 | B38: =IF(C38<1," ",VLOOKUP(C38,MainAccountNO:MainAccounts,2,FALSE)) -> Utilities | C38: 8405 | D38: U.S. Office and Guest House Electric | E38: 1000
A39: 32 | B39: =IF(C39<1," ",VLOOKUP(C39,MainAccountNO:MainAccounts,2,FALSE)) -> Utilities | C39: 8405 | D39: U.S. Office Heat (Carson Oil) | E39: 2000
A40: 33 | B40: =IF(C40<1," ",VLOOKUP(C40,MainAccountNO:MainAccounts,2,FALSE)) -> Utilities | C40: 8405 | D40: U.S. Office Garbage & Recycle | E40: 550
A41: 34 | B41: =IF(C41<1," ",VLOOKUP(C41,MainAccountNO:MainAccounts,2,FALSE)) -> Real Estate Tax | C41: 8410 | D41: U.S. Office Property Taxes | E41: 3300
A42: 35 | B42: =IF(C42<1," ",VLOOKUP(C42,MainAccountNO:MainAccounts,2,FALSE)) -> Founder Honorarium | C42: 8903 | D42: Founder honorarium for prior years service
A43: 36 | B43: =IF(C43<1," ",VLOOKUP(C43,MainAccountNO:MainAccounts,2,FALSE)) -> Miscellaneous | C43: 8941 | D43: Bank Charges, ACH and CC processing fees | E43: 1850
A44: 37 | B44: =IF(C44<1," ",VLOOKUP(C44,MainAccountNO:MainAccounts,2,FALSE)) -> Grounds Maint. | C44: 8411 | D44: U.S. Office Landscaping: Mower gas & tune-up | E44: 1500
A45: 38 | B45: =IF(C45<1," ",VLOOKUP(C45,MainAccountNO:MainAccounts,2,FALSE)) -> Grounds Maint. | C45: 8411 | D45: U.S. Office landscaping: general, flowers, weed control | E45: 500
A46: 39 | B46: =IF(C46<1," ",VLOOKUP(C46,MainAccountNO:MainAccounts,2,FALSE)) -> Grounds Maint. | C46: 8411 | D46: U.S. Office Annual Turf Maintenance Contract | E46: 1500
A47: 40 | B47: =IF(C47<1," ",VLOOKUP(C47,MainAccountNO:MainAccounts,2,FALSE)) -> Staff Training | C47: 8003 | D47: Lynda.com training | E47: 300
A48: 41 | B48: =IF(C48<1," ",VLOOKUP(C48,MainAccountNO:MainAccounts,2,FALSE)) -> Office Supply | C48: 8106 | D48: General Office Supplies | E48: 1900
A49: 42 | B49: =IF(C49<1," ",VLOOKUP(C49,MainAccountNO:MainAccounts,2,FALSE)) -> Printing and Supplies | C49: 8107 | D49: Letterhead (15k), Receipt Stock (15k) & Envelopes (70k)
A50: 43 | B50: =IF(C50<1," ",VLOOKUP(C50,MainAccountNO:MainAccounts,2,FALSE)) -> Office Supply | C50: 8106 | D50: Shred old records at U.S. Office
A51: 44 | B51: =IF(C51<1," ",VLOOKUP(C51,MainAccountNO:MainAccounts,2,FALSE)) -> Equipment Maint. | C51: 8502 | D51: Printer/Copier maint contract (Kelley Imaging) | E51: 1650
A52: 45 | B52: =IF(C52<1," ",VLOOKUP(C52,MainAccountNO:MainAccounts,2,FALSE)) -> Equipment Maint. | C52: 8502 | D52: Postage machine and Meter Rental | E52: 1500
A53: 46 | B53: =IF(C53<1," ",VLOOKUP(C53,MainAccountNO:MainAccounts,2,FALSE)) -> Postage & Shipping | C53: 8301 | D53: Postage - receipts & general mail | E53: 8500
A54: 47 | B54: =IF(C54<1," ",VLOOKUP(C54,MainAccountNO:MainAccounts,2,FALSE)) -> Grounds Maint. | C54: 8411 | D54: Grind Stumps/roots | E54: 300
A55: 48 | B55: =IF(C55<1," ",VLOOKUP(C55,MainAccountNO:MainAccounts,2,FALSE)) -> Building Maint. | C55: 8413 | D55: General Building Maintenance | E55: 300
A56: 49 | B56: =IF(C56<1," ",VLOOKUP(C56,MainAccountNO:MainAccounts,2,FALSE)) -> Building Maint. | C56: 8413 | D56: Pressure wash building/gutter cleaning | E56: 500
A57: 50 | B57: =IF(C57<1," ",VLOOKUP(C57,MainAccountNO:MainAccounts,2,FALSE)) -> Building Maint. | C57: 8413 | D57: Replace failing fence | E57: 300
A58: 51 | B58: =IF(C58<1," ",VLOOKUP(C58,MainAccountNO:MainAccounts,2,FALSE)) -> Deprecation Expense | C58: 8976 | D58: Annual Depreciation | F58: 12
A59: 52 | B59: =IF(C59<1," ",VLOOKUP(C59,MainAccountNO:MainAccounts,2,FALSE)) ->  | D59: Staffing
A60: 53 | B60: =IF(C60<1," ",VLOOKUP(C60,MainAccountNO:MainAccounts,2,FALSE)) -> Cash Gifts - Staff Support | C60: 5001 | D60: VanDiest Support | E60: 5000 | H60: =IF(G60<=$G$1,"","OUT") -> 
A61: 54 | B61: =IF(C61<1," ",VLOOKUP(C61,MainAccountNO:MainAccounts,2,FALSE)) -> Missionary Salaries | C61: 7005 | D61: VanDiest Salary | E61: =+E60+E62 -> 4750
A62: 55 | B62: =IF(C62<1," ",VLOOKUP(C62,MainAccountNO:MainAccounts,2,FALSE)) -> Operations Assessment | C62: 4100 | D62: VanDiest Assessment | E62: =-E60*0.05 -> -250
A63: 56 | B63: =IF(C63<1," ",VLOOKUP(C63,MainAccountNO:MainAccounts,2,FALSE)) -> Cash Gifts - Staff Support | C63: 5001 | D63: Hubbard Support | E63: 4000 | H63: =IF(G63<=$G$1,"","OUT") -> 
A64: 57 | B64: =IF(C64<1," ",VLOOKUP(C64,MainAccountNO:MainAccounts,2,FALSE)) -> Missionary Salaries | C64: 7005 | D64: Hubbard Salary | E64: =+E63+E65 -> 3600
A65: 58 | B65: =IF(C65<1," ",VLOOKUP(C65,MainAccountNO:MainAccounts,2,FALSE)) -> Operations Assessment | C65: 4100 | D65: Hubbard Assesment | E65: =-E63*0.1 -> -400
A66: =A62+1 -> 56 | B66: =IF(C66<1," ",VLOOKUP(C66,MainAccountNO:MainAccounts,2,FALSE)) -> 
A67: 57 | B67: =IF(C67<1," ",VLOOKUP(C67,MainAccountNO:MainAccounts,2,FALSE)) ->  | D67: Jerry to complete pink shaded items
A68: 58 | B68: =IF(C68<1," ",VLOOKUP(C68,MainAccountNO:MainAccounts,2,FALSE)) ->  | D68: Dale to complete Yellow shaded item | H68: =IF(G68<=$G$1,"","OUT") -> 

Sheet S9
B1: Communications | C1: 41710 | D1: =Main_BGT!F5 -> 2022-2023 | G1: 10
D2: Total Income | E2: =E7+E6 -> 5500
D3: Total Expense | E3: =E53 -> 130246.02
D4: Difference | E4: =E2-E3 -> -124746.02
B5: Account Description | C5: Acc_NO | D5: Field Detail | E5: Amount | F5: Month | G5: Rank | H5: Out
A6: 1 | B6: =IF(C6<1," ",VLOOKUP(C6,MainAccountNO:MainAccounts,2,FALSE)) -> Sales | C6: 6400 | D6: Prayer Letters/Cards for staff (w/o postage) | E6: 500 | H6: =IF(G6<=$G$1,"","OUT") -> 
A7: =A6+1 -> 2 | B7: =IF(C7<1," ",VLOOKUP(C7,MainAccountNO:MainAccounts,2,FALSE)) -> Cash Gifts - Programs | C7: 5004 | D7: Estimate Donation Increase (assessed Qrtly | E7: 5000
A8: 3 | B8: =IF(C8<1," ",VLOOKUP(C8,MainAccountNO:MainAccounts,2,FALSE)) ->  | D8: PUBLICATIONS
A9: 4 | B9: =IF(C9<1," ",VLOOKUP(C9,MainAccountNO:MainAccounts,2,FALSE)) -> Printing and Supplies | C9: 8107 | D9: InterACTION - Print (US) 4x | E9: 3400
A10: 5 | B10: =IF(C10<1," ",VLOOKUP(C10,MainAccountNO:MainAccounts,2,FALSE)) -> Postage & Shipping | C10: 8301 | D10: InterACTION - Postage (US) 4x | E10: 6500
A11: 6 | B11: =IF(C11<1," ",VLOOKUP(C11,MainAccountNO:MainAccounts,2,FALSE)) -> Professional Fees | C11: 8008 | D11: InterACTION - Honorariums for contributions | E11: 150
A12: 7 | B12: =IF(C12<1," ",VLOOKUP(C12,MainAccountNO:MainAccounts,2,FALSE)) -> Printing and Supplies | C12: 8107 | D12: Appeal Letter 2x | E12: 1600
A13: 8 | B13: =IF(C13<1," ",VLOOKUP(C13,MainAccountNO:MainAccounts,2,FALSE)) -> Postage & Shipping | C13: 8301 | D13: Appeal Letter Mailing 2x | E13: 3500
A14: 9 | B14: =IF(C14<1," ",VLOOKUP(C14,MainAccountNO:MainAccounts,2,FALSE)) -> Office Supply | C14: 8106 | D14: EnGage Brochures & Inserts (2,000) | E14: 1500
A15: 10 | B15: =IF(C15<1," ",VLOOKUP(C15,MainAccountNO:MainAccounts,2,FALSE)) -> Printing and Supplies | C15: 8107 | D15: New General Brochures Print 2,000 @ $1.25 | E15: 3500
A16: 11 | B16: =IF(C16<1," ",VLOOKUP(C16,MainAccountNO:MainAccounts,2,FALSE)) -> Advertising | C16: 8608 | D16: Digital Advertising (See line 2) | E16: 10000 | H16: =IF(G16<=$G$1,"","OUT") -> 
A17: 12 | B17: =IF(C17<1," ",VLOOKUP(C17,MainAccountNO:MainAccounts,2,FALSE)) -> Postage & Shipping | C17: 8301 | D17: Mail InterCessor | E17: 3600
A18: 13 | B18: =IF(C18<1," ",VLOOKUP(C18,MainAccountNO:MainAccounts,2,FALSE)) -> Staff Training | C18: 8003 | D18: Conferences & Courses | E18: 1000
A19: 14 | B19: =IF(C19<1," ",VLOOKUP(C19,MainAccountNO:MainAccounts,2,FALSE)) -> Postage & Shipping | C19: 8301 | D19: Stamps & Postcard Stamps | E19: 150
A20: 15 | B20: =IF(C20<1," ",VLOOKUP(C20,MainAccountNO:MainAccounts,2,FALSE)) -> Printing and Supplies | C20: 8107 | D20: Thank you notes & Postcard Stamps | E20: 500
A21: 16 | B21: =IF(C21<1," ",VLOOKUP(C21,MainAccountNO:MainAccounts,2,FALSE)) -> Printing and Supplies | C21: 8107 | D21: 40,000 #10 Envelopes | E21: 1800 | H21: =IF(G21<=$G$1,"","OUT") -> 
A22: =A20+1 -> 16
A23: =A22+1 -> 17 | D23: Marketing & Media
A24: 18 | B24: =IF(C24<1," ",VLOOKUP(C24,MainAccountNO:MainAccounts,2,FALSE)) -> Computer & Technology | C24: 8211 | D24: Email marketing subscription (mailchimp) | E24: 200
A25: 19 | B25: =IF(C25<1," ",VLOOKUP(C25,MainAccountNO:MainAccounts,2,FALSE)) -> Computer & Technology | C25: 8211 | D25: Social Media Scheduler | E25: 200
A26: 20 | B26: =IF(C26<1," ",VLOOKUP(C26,MainAccountNO:MainAccounts,2,FALSE)) -> Small Equip. Purchase | C26: 8510 | D26: Video equip misc (SD cards, cables, adaptors) | E26: 700
A27: 21 | B27: =IF(C27<1," ",VLOOKUP(C27,MainAccountNO:MainAccounts,2,FALSE)) -> Artwork & Graphics | C27: 8602 | D27: Stock Media - graphics, videos, music | E27: 500
A28: 22 | B28: =IF(C28<1," ",VLOOKUP(C28,MainAccountNO:MainAccounts,2,FALSE)) -> Gifts-in-Kind - Programs | C28: 5005 | D28: Promo items | E28: 500
A29: 23 | B29: =IF(C29<1," ",VLOOKUP(C29,MainAccountNO:MainAccounts,2,FALSE)) -> 
A30: 24
A31: 25 | D31: Travel
A32: 26 | B32: =IF(C32<1," ",VLOOKUP(C32,MainAccountNO:MainAccounts,2,FALSE)) -> Vehicle Fuel & Oil | C32: 8702 | D32: AK Field visit exploration fuel | E32: 200
A33: 27 | B33: =IF(C33<1," ",VLOOKUP(C33,MainAccountNO:MainAccounts,2,FALSE)) -> Vehicle Fuel & Oil | C33: 8702 | D33: CAN - Field visit exploration fuel | E33: 200
A34: 28 | B34: =IF(C34<1," ",VLOOKUP(C34,MainAccountNO:MainAccounts,2,FALSE)) -> Vehicle Rental | C34: 8706 | D34: Vehichle Rental CA exploration | E34: 800
A35: 29 | B35: =IF(C35<1," ",VLOOKUP(C35,MainAccountNO:MainAccounts,2,FALSE)) -> Commercial Travel | C35: 8710 | D35: Can & AK field exploration | E35: 400
A36: 30 | B36: =IF(C36<1," ",VLOOKUP(C36,MainAccountNO:MainAccounts,2,FALSE)) -> Motel/Hotel & Room Rent | C36: 8711 | D36: CAN - Lodging exploration | E36: 500
A37: 31 | B37: =IF(C37<1," ",VLOOKUP(C37,MainAccountNO:MainAccounts,2,FALSE)) -> Missionary Conference | C37: 8805 | D37: CAN Field Conf. fees Chris | E37: 300
A38: 32 | B38: =IF(C38<1," ",VLOOKUP(C38,MainAccountNO:MainAccounts,2,FALSE)) -> 
A39: 33 | B39: =IF(C39<1," ",VLOOKUP(C39,MainAccountNO:MainAccounts,2,FALSE)) -> 
A40: 34
A41: 35 | B41: =IF(C41<1," ",VLOOKUP(C41,MainAccountNO:MainAccounts,2,FALSE)) ->  | D41: STAFFING
A42: 36 | B42: =IF(C42<1," ",VLOOKUP(C42,MainAccountNO:MainAccounts,2,FALSE)) -> Executive Salaries | C42: 7001 | D42: Chris Olson | E42: 48600
A43: 37 | B43: =IF(C43<1," ",VLOOKUP(C43,MainAccountNO:MainAccounts,2,FALSE)) -> Payroll Tax | C43: 7201 | D43: Communications FICA | E43: =+E42*0.0765 -> 3717.9
A44: 38 | B44: =IF(C44<1," ",VLOOKUP(C44,MainAccountNO:MainAccounts,2,FALSE)) -> Cash Gifts - Staff Support | C44: 5001
A45: 39 | B45: =IF(C45<1," ",VLOOKUP(C45,MainAccountNO:MainAccounts,2,FALSE)) -> Missionary Salaries | C45: 7005 | E45: =+E44-E46 -> 0
A46: 40 | B46: =IF(C46<1," ",VLOOKUP(C46,MainAccountNO:MainAccounts,2,FALSE)) -> Ministry Expense | C46: 8990
A47: 41 | B47: =IF(C47<1," ",VLOOKUP(C47,MainAccountNO:MainAccounts,2,FALSE)) -> Operations Assessment | C47: 4100 | E47: 0
A48: 42 | B48: =IF(C48<1," ",VLOOKUP(C48,MainAccountNO:MainAccounts,2,FALSE)) -> Clerical Salaries | C48: 7003 | D48: Communications Assistant McClelland (52 weeksX 10 hr | E48: 10400
A49: 43 | B49: =IF(C49<1," ",VLOOKUP(C49,MainAccountNO:MainAccounts,2,FALSE)) -> Payroll Tax | C49: 7201 | D49: Communications Assistant FICA | E49: =+E48*0.0765 -> 795.6
A50: 44 | B50: =IF(C50<1," ",VLOOKUP(C50,MainAccountNO:MainAccounts,2,FALSE)) -> Clerical Salaries | C50: 7003 | D50: Communications Assistant Bruzda (52 weeksX 20hr | E50: 17680
A51: 45 | B51: =IF(C51<1," ",VLOOKUP(C51,MainAccountNO:MainAccounts,2,FALSE)) -> Payroll Tax | C51: 7201 | D51: Communications Assistant FICA | E51: =+E50*0.0765 -> 1352.52
A52: 46 | B52: Rent Expense | C52: 8402 | D52: Chris Olson | E52: 6000
A53: 47 | B53: =IF(C53<1," ",VLOOKUP(C53,MainAccountNO:MainAccounts,2,FALSE)) ->  | E53: =SUM(E9:E52) -> 130246.02
A54: 48
A55: 49 | B55: =IF(C55<1," ",VLOOKUP(C55,MainAccountNO:MainAccounts,2,FALSE)) ->  | D55: Pink fields will be completed by Mike

Sheet S19
B1: Board | C1: 41720 | D1: =Main_BGT!F5 -> 2022-2023 | G1: 10
D2: Total Income | E2: =SUM(IF(S_19FieldRank<=S_19Choice,IF(S_19AccNO<=LastIncome,S_19Amount,0),0)) -> 0
D3: Total Expense | E3: =SUM(IF(S_19FieldRank<=S_19Choice,IF(S_19AccNO>LastIncome,S_19Amount,0),0)) -> 19700
D4: Difference | E4: =E2-E3 -> -19700
B5: Account Description | C5: Acc_NO | D5: Field Detail | E5: Amount | F5: Month | G5: Rank | H5: Out
B6: =IF(C6<1," ",VLOOKUP(C6,MainAccountNO:MainAccounts,2,FALSE)) ->  | H6: =IF(G6<=$G$1,"","OUT") -> 
A7: 1 | B7: =IF(C7<1," ",VLOOKUP(C7,MainAccountNO:MainAccounts,2,FALSE)) ->  | D7: SUMMER '22 BOARD MEETING (OR) | H7: =IF(G7<=$G$1,"","OUT") -> 
A8: =A7+1 -> 2 | B8: =IF(C8<1," ",VLOOKUP(C8,MainAccountNO:MainAccounts,2,FALSE)) -> Commercial Travel | C8: 8710 | D8: Air Travel | E8: 3300 | F8: 7 | G8: 1
A9: 3 | B9: =IF(C9<1," ",VLOOKUP(C9,MainAccountNO:MainAccounts,2,FALSE)) -> Vehicle Rental | C9: 8706 | D9: Board rental cars | E9: 300 | F9: 7 | G9: 1
A10: 4 | B10: =IF(C10<1," ",VLOOKUP(C10,MainAccountNO:MainAccounts,2,FALSE)) -> Auto Mileage Reimb | C10: 8707 | D10: Ground travel | E10: 700 | F10: 7 | G10: 1
A11: 5 | B11: =IF(C11<1," ",VLOOKUP(C11,MainAccountNO:MainAccounts,2,FALSE)) -> Food for Meetings | C11: 8803 | D11: Catered Lunch & Board member meals | E11: 800 | F11: 7 | G11: 1
A12: 6 | B12: =IF(C12<1," ",VLOOKUP(C12,MainAccountNO:MainAccounts,2,FALSE)) -> Motel/Hotel & Room Rent | C12: 8711 | D12: Housing at meeting | E12: 2000 | F12: 7 | G12: 1
A13: 7
A14: 8 | B14: =IF(C14<1," ",VLOOKUP(C14,MainAccountNO:MainAccounts,2,FALSE)) ->  | D14: WINTER '22 BOARD MEETING (OR)
A15: 9 | B15: =IF(C15<1," ",VLOOKUP(C15,MainAccountNO:MainAccounts,2,FALSE)) -> Commercial Travel | C15: 8710 | D15: Air Travel | E15: 3300 | F15: 2 | G15: 1
A16: 10 | B16: =IF(C16<1," ",VLOOKUP(C16,MainAccountNO:MainAccounts,2,FALSE)) -> Vehicle Rental | C16: 8706 | D16: Board Courtesy Cars (1@300) | E16: 300 | F16: 2 | G16: 1
A17: 11 | B17: =IF(C17<1," ",VLOOKUP(C17,MainAccountNO:MainAccounts,2,FALSE)) -> Auto Mileage Reimb | C17: 8707 | D17: Ground Travel | E17: 700 | F17: 2 | G17: 1
A18: 12 | B18: =IF(C18<1," ",VLOOKUP(C18,MainAccountNO:MainAccounts,2,FALSE)) -> Motel/Hotel & Room Rent | C18: 8711 | D18: Room for early arrival & late departure | E18: 800 | F18: 2 | G18: 1
A19: 13 | B19: =IF(C19<1," ",VLOOKUP(C19,MainAccountNO:MainAccounts,2,FALSE)) -> Food for Meetings | C19: 8803 | D19: Hotel/motel meals | E19: 200 | F19: 2 | G19: 1
A20: 14 | B20: =IF(C20<1," ",VLOOKUP(C20,MainAccountNO:MainAccounts,2,FALSE)) -> Motel/Hotel & Room Rent | C20: 8711 | D20: Meeting & Conference Room | E20: 3500 | F20: 2 | G20: 1
A21: 15 | B21: =IF(C21<1," ",VLOOKUP(C21,MainAccountNO:MainAccounts,2,FALSE)) -> Commercial Travel | C21: 8710 | D21: Field Directors
A22: 16
A23: 17 | B23: =IF(C23<1," ",VLOOKUP(C23,MainAccountNO:MainAccounts,2,FALSE)) ->  | D23: MISCELLANEOUS
A24: 18 | B24: =IF(C24<1," ",VLOOKUP(C24,MainAccountNO:MainAccounts,2,FALSE)) -> Meals & Entertainment | C24: 8709 | D24: Ex Dir. meals with prospective board members | E24: 400 | G24: 1 | H24: =IF(G24<=$G$1,"","OUT") -> 
A25: 19 | B25: =IF(C25<1," ",VLOOKUP(C25,MainAccountNO:MainAccounts,2,FALSE)) -> Subscriptions & Periodicals | C25: 8606 | D25: Board development material | E25: 400 | G25: 2 | H25: =IF(G25<=$G$1,"","OUT") -> 
A26: 20 | B26: =IF(C26<1," ",VLOOKUP(C26,MainAccountNO:MainAccounts,2,FALSE)) -> Subscriptions & Periodicals | C26: 8606 | D26: Board orientation material | E26: 300 | G26: 1 | H26: =IF(G26<=$G$1,"","OUT") -> 
A27: 21 | B27: =IF(C27<1," ",VLOOKUP(C27,MainAccountNO:MainAccounts,2,FALSE)) -> 
A28: 22 | B28: =IF(C28<1," ",VLOOKUP(C28,MainAccountNO:MainAccounts,2,FALSE)) -> Motel/Hotel & Room Rent | C28: 8711 | D28: Board development activity - Lodging | E28: 600 | G28: 2
A29: 23 | B29: =IF(C29<1," ",VLOOKUP(C29,MainAccountNO:MainAccounts,2,FALSE)) -> Seminars & Registrations | C29: 8806 | D29: Board development activity - Registration | E29: 500 | G29: 2
A30: 24 | B30: =IF(C30<1," ",VLOOKUP(C30,MainAccountNO:MainAccounts,2,FALSE)) -> Commercial Travel | C30: 8710 | D30: Board development activity - Travel | E30: 1200 | G30: 2
A31: 25 | B31: =IF(C31<1," ",VLOOKUP(C31,MainAccountNO:MainAccounts,2,FALSE)) -> Meals & Entertainment | C31: 8709 | D31: Board development activity - Meals | E31: 400 | G31: 2
A32: 26 | B32: =IF(C32<1," ",VLOOKUP(C32,MainAccountNO:MainAccounts,2,FALSE)) -> Member Care | C32: 8004 | D32: Gifts for board members
A33: 27 | B33: =IF(C33<1," ",VLOOKUP(C33,MainAccountNO:MainAccounts,2,FALSE)) -> Member Care | C33: 8004 | D33: Smith vacation - at board's request | H33: =IF(G33<=$G$1,"","OUT") -> 
A34: 28 | B34: =IF(C34<1," ",VLOOKUP(C34,MainAccountNO:MainAccounts,2,FALSE)) -> 
A35: 29 | B35: =IF(C35<1," ",VLOOKUP(C35,MainAccountNO:MainAccounts,2,FALSE)) ->  | D35: Above figures Joint Board Expenses U.S 55% / CDN 45%
A36: 30 | B36: =IF(C36<1," ",VLOOKUP(C36,MainAccountNO:MainAccounts,2,FALSE)) -> 
A37: 31 | B37: =IF(C37<1," ",VLOOKUP(C37,MainAccountNO:MainAccounts,2,FALSE)) ->  | D37: 0.55

Sheet S20
B1: Executive Director | C1: 41750 | D1: =Main_BGT!F5 -> 2022-2023 | G1: 10
D2: Total Income | E2: =SUM(IF(S_20FieldRank<=S_20Choice,IF(S_20AccNo<=LastIncome,S_20Amount,0),0)) -> 5000
D3: Total Expense | E3: =SUM(IF(S_20FieldRank<=S_20Choice,IF(S_20AccNo>LastIncome,S_20Amount,0),0)) -> 21840
D4: Difference | E4: =E2-E3 -> -16840
B5: Account Description | C5: Acc_NO | D5: Field Detail | E5: Amount | F5: Month | G5: Rank | H5: Out
A6: 1 | B6: =IF(C6<1," ",VLOOKUP(C6,MainAccountNO:MainAccounts,2,FALSE)) -> Executive Salaries | C6: 7001 | D6: From Canada Dale & Carol Smith | E6: =-97570-24000 -> -121570 | H6: =IF(G6<=$G$1,"","OUT") -> 
B7: =IF(C7<1," ",VLOOKUP(C7,MainAccountNO:MainAccounts,2,FALSE)) -> Payroll Tax | C7: 7201 | D7: From Canada Carol Smith payroll taxes | E7: -1836
A8: =A6+1 -> 2 | B8: =IF(C8<1," ",VLOOKUP(C8,MainAccountNO:MainAccounts,2,FALSE)) -> Cash Gifts - Programs | C8: 5004 | D8: Fundraising for RU trip | E8: 5000
A9: =A8+1 -> 3 | B9: =IF(C9<1," ",VLOOKUP(C9,MainAccountNO:MainAccounts,2,FALSE)) -> Commercial Travel | C9: 8710 | D9: Exec Dir. & wife in Russia Conference | E9: 4300 | F9: 10 | G9: 1
A10: 4 | B10: =IF(C10<1," ",VLOOKUP(C10,MainAccountNO:MainAccounts,2,FALSE)) -> Motel/Hotel & Room Rent | C10: 8711 | D10: Exec Dir. & wife at Russia | E10: 700 | F10: 10 | G10: 1
A11: 5 | B11: =IF(C11<1," ",VLOOKUP(C11,MainAccountNO:MainAccounts,2,FALSE)) -> Vehicle Rental | C11: 8706 | D11: ED Rental Cars charged through Canada | E11: 1200 | G11: 1
A12: 6 | B12: =IF(C12<1," ",VLOOKUP(C12,MainAccountNO:MainAccounts,2,FALSE)) -> Meals & Entertainment | C12: 8709 | D12: ED Meals & Entertainment through Canada | E12: 1500 | G12: 2
A13: 7 | B13: =IF(C13<1," ",VLOOKUP(C13,MainAccountNO:MainAccounts,2,FALSE)) -> Vehicle Fuel & Oil | C13: 8702 | D13: ED fuel through Canada | E13: 4000 | G13: 1
A14: 8 | B14: =IF(C14<1," ",VLOOKUP(C14,MainAccountNO:MainAccounts,2,FALSE)) -> Staff Training | C14: 8003 | D14: FLT Training Material | E14: 1000 | F14: 4,9 | G14: 1
A15: 9 | B15: =IF(C15<1," ",VLOOKUP(C15,MainAccountNO:MainAccounts,2,FALSE)) -> Commercial Travel | C15: 8710 | D15: Biblical Counseling Research & Travel | E15: 1000 | G15: 2
A16: 10 | B16: =IF(C16<1," ",VLOOKUP(C16,MainAccountNO:MainAccounts,2,FALSE)) -> Staff Training | C16: 8003 | D16: Staff training materials (books/cds/etc) | E16: 600 | G16: 1
A17: 11 | B17: =IF(C17<1," ",VLOOKUP(C17,MainAccountNO:MainAccounts,2,FALSE)) -> Member Care | C17: 8004 | D17: Random acts of kindness | E17: 800 | G17: 1
A18: 12 | B18: Vihicle Fuel & Oil | C18: 8702 | D18: Donor Visits | E18: 800 | G18: 1
A19: 13 | B19: =IF(C19<1," ",VLOOKUP(C19,MainAccountNO:MainAccounts,2,FALSE)) -> Seminars & Registrations | C19: 8806 | D19: Missio Nexus conference fee | E19: 500 | G19: 1
A20: 14 | B20: =IF(C20<1," ",VLOOKUP(C20,MainAccountNO:MainAccounts,2,FALSE)) -> Commercial Travel | C20: 8710 | D20: Flights to Missio Nexus conf | E20: 500 | G20: 1
A21: 15 | B21: =IF(C21<1," ",VLOOKUP(C21,MainAccountNO:MainAccounts,2,FALSE)) -> Motel/Hotel & Room Rent | C21: 8711 | D21: Missio Nexus lodging 4 nights | E21: 440 | G21: 1
A22: 16 | B22: =IF(C22<1," ",VLOOKUP(C22,MainAccountNO:MainAccounts,2,FALSE)) -> Motel/Hotel & Room Rent | C22: 8711 | D22: Off site FLT (2 x 3 nights) | E22: 800 | F22: 4,9 | G22: 1
A23: 17 | B23: =IF(C23<1," ",VLOOKUP(C23,MainAccountNO:MainAccounts,2,FALSE)) -> Commercial Travel | C23: 8710 | D23: Off site FLT (2 events in different locales) | E23: 1400 | F23: 4,9 | G23: 1
A24: 18 | B24: =IF(C24<1," ",VLOOKUP(C24,MainAccountNO:MainAccounts,2,FALSE)) -> Meals & Entertainment | C24: 8709 | D24: Off site FLT | E24: 600 | F24: 4,9 | G24: 1
A25: 19 | B25: =IF(C25<1," ",VLOOKUP(C25,MainAccountNO:MainAccounts,2,FALSE)) -> Meals & Entertainment | C25: 8709 | D25: Meals & Entertainment with donors | E25: 700 | G25: 1
A26: 20 | B26: =IF(C26<1," ",VLOOKUP(C26,MainAccountNO:MainAccounts,2,FALSE)) -> Meals & Entertainment | C26: 8709 | D26: ELT meals | E26: 500 | G26: 1
A27: 21 | B27: =IF(C27<1," ",VLOOKUP(C27,MainAccountNO:MainAccounts,2,FALSE)) -> Staff Training | C27: 8003 | D27: ELT Activity | E27: 500 | G27: 2
A28: 22 | B28: =IF(C28<1," ",VLOOKUP(C28,MainAccountNO:MainAccounts,2,FALSE)) -> Executive Salaries | C28: 7001 | D28: Executive Director Salary | E28: 97570
A29: 23 | B29: =IF(C29<1," ",VLOOKUP(C29,MainAccountNO:MainAccounts,2,FALSE)) -> Payroll Tax | C29: 7201 | D29: Executive Director payroll taxes
A30: 24 | B30: =IF(C30<1," ",VLOOKUP(C30,MainAccountNO:MainAccounts,2,FALSE)) -> Executive Salaries | C30: 7001 | D30: Carol Smith Salary | E30: 24000
A31: 25 | B31: =IF(C31<1," ",VLOOKUP(C31,MainAccountNO:MainAccounts,2,FALSE)) -> Payroll Tax | C31: 7201 | D31: Carol Smith payroll taxes | E31: =+E30*0.0765 -> 1836
A32: =A27+1 -> 22 | B32: =IF(C32<1," ",VLOOKUP(C32,MainAccountNO:MainAccounts,2,FALSE)) -> 

Sheet S21
B1: Information Systems | C1: 41755 | D1: =Main_BGT!F5 -> 2022-2023 | G1: 10
D2: Total Income | E2: =SUM(IF(S_21FieldRank<=S_21Choice,IF(S_21AccNo<=LastIncome,S_21Amount,0),0)) -> 0
D3: Total Expense | E3: =SUM(IF(S_21FieldRank<=S_21Choice,IF(S_21AccNo>LastIncome,S_21Amount,0),0)) -> 24862
D4: Difference | E4: =E2-E3 -> -24862
B5: Account Description | C5: Acc_NO | D5: Field Detail | E5: Amount | F5: Month | G5: Rank | H5: Out
A6: 1 | B6: =IF(C6<1," ",VLOOKUP(C6,MainAccountNO:MainAccounts,2,FALSE)) ->  | H6: =IF(G6<=$G$1,"","OUT") -> 
A7: =A6+1 -> 2 | B7: =IF(C7<1," ",VLOOKUP(C7,MainAccountNO:MainAccounts,2,FALSE)) -> Computer & Technology | C7: 8211 | D7: Web hosting fee | E7: 100 | H7: =IF(G7<='S18'!$G$1,"","OUT") -> 
A8: =A7+1 -> 3 | B8: =IF(C8<1," ",VLOOKUP(C8,MainAccountNO:MainAccounts,2,FALSE)) -> Computer & Technology | C8: 8211 | D8: Annual domain renewals | E8: 200 | H8: =IF(G8<='S18'!$G$1,"","OUT") -> 
A9: 4 | B9: =IF(C9<1," ",VLOOKUP(C9,MainAccountNO:MainAccounts,2,FALSE)) -> Computer & Technology | C9: 8211 | D9: Backup software license renewal | H9: =IF(G9<='S18'!$G$1,"","OUT") ->  | J9: included in line above
A10: 5 | B10: =IF(C10<1," ",VLOOKUP(C10,MainAccountNO:MainAccounts,2,FALSE)) -> Computer & Technology | C10: 8211 | D10: BlackPoint Watchguard security renewals | E10: 2000 | H10: =IF(G10<='S18'!$G$1,"","OUT") -> 
A11: 6 | B11: =IF(C11<1," ",VLOOKUP(C11,MainAccountNO:MainAccounts,2,FALSE)) -> Computer & Technology | C11: 8211 | D11: Zeth on/off-site troubleshooting (i.e., Brad) | E11: 3500 | H11: =IF(G11<='S18'!$G$1,"","OUT") -> 
A12: 7 | B12: =IF(C12<1," ",VLOOKUP(C12,MainAccountNO:MainAccounts,2,FALSE)) -> Computer & Technology | C12: 8211 | D12: Webroot anti-virus (9x4.25*12 | H12: =IF(G12<='S18'!$G$1,"","OUT") ->  | J12: good through 12/2023
A13: 8 | B13: =IF(C13<1," ",VLOOKUP(C13,MainAccountNO:MainAccounts,2,FALSE)) -> Computer & Technology | C13: 8211 | D13: QuickBooks Annual support/upgrade Fee | E13: 2450 | H13: =IF(G13<='S18'!$G$1,"","OUT") -> 
A14: 9 | B14: =IF(C14<1," ",VLOOKUP(C14,MainAccountNO:MainAccounts,2,FALSE)) -> Computer & Technology | C14: 8211 | D14: Adobe Creative Cloud annual subscription (2) | E14: 1700 | H14: =IF(G14<='S18'!$G$1,"","OUT") -> 
A15: 10 | B15: =IF(C15<1," ",VLOOKUP(C15,MainAccountNO:MainAccounts,2,FALSE)) -> Computer & Technology | C15: 8211 | D15: Server Warranty renewal | H15: =IF(G15<='S18'!$G$1,"","OUT") ->  | J15: good through 4/2023
A16: 11 | B16: =IF(C16<1," ",VLOOKUP(C16,MainAccountNO:MainAccounts,2,FALSE)) -> Computer & Technology | C16: 8211 | D16: IT Contingency (computer, printer dies, etc.) | E16: 1000 | H16: =IF(G16<='S18'!$G$1,"","OUT") -> 
A17: 12 | B17: =IF(C17<1," ",VLOOKUP(C17,MainAccountNO:MainAccounts,2,FALSE)) -> Computer & Technology | C17: 8211 | D17: Office 365 subscriptions ($25 x 6) | E17: 288 | H17: =IF(G17<='S18'!$G$1,"","OUT") -> 
A18: 13 | B18: =IF(C18<1," ",VLOOKUP(C18,MainAccountNO:MainAccounts,2,FALSE)) -> Computer & Technology | C18: 8211 | D18: Chromebox annual license | H18: =IF(G18<='S18'!$G$1,"","OUT") -> 
A19: 14 | B19: =IF(C19<1," ",VLOOKUP(C19,MainAccountNO:MainAccounts,2,FALSE)) -> Computer & Technology | C19: 8211 | D19: AVOS-Amazon web hosting services annual fee | E19: 175 | H19: =IF(G19<=[4]S18!$G$1,"","OUT") -> 
A20: 15 | B20: =IF(C20<1," ",VLOOKUP(C20,MainAccountNO:MainAccounts,2,FALSE)) -> Computer & Technology | C20: 8211 | D20: AVOS - Annual plugin subscription | E20: 150 | H20: =IF(G20<=[4]S18!$G$1,"","OUT") -> 
A21: 16 | B21: =IF(C21<1," ",VLOOKUP(C21,MainAccountNO:MainAccounts,2,FALSE)) -> Computer & Technology | C21: 8211 | D21: AVOS - allowance for Mendenhall updates | E21: 400 | H21: =IF(G21<=[4]S18!$G$1,"","OUT") -> 
A22: 17 | B22: =IF(C22<1," ",VLOOKUP(C22,MainAccountNO:MainAccounts,2,FALSE)) -> Computer & Technology | C22: 8211 | D22: BlackBaud Raiser's Edge 4 months contract | E22: 2800 | L22: Some of this cost to be shared by Canada.
A23: 18 | B23: =IF(C23<1," ",VLOOKUP(C23,MainAccountNO:MainAccounts,2,FALSE)) -> Computer & Technology | C23: 8211 | D23: Purchase of new software to replace Raisers Edge | E23: 4975 | H23: =IF(G23<='S18'!$G$1,"","OUT") ->  | L23: Per month | M23: Per month if pay 3 yr advance | P23: Per YR
A24: 19 | B24: =IF(C24<1," ",VLOOKUP(C24,MainAccountNO:MainAccounts,2,FALSE)) -> Computer & Technology | C24: 8211 | D24: Donor Perfect 1 year | E24: 5124 | H24: =IF(G24<='S18'!$G$1,"","OUT") ->  | I24: =E24*3 -> 15372 | J24: If we prepay 3 years get six months free. | L24: =5124/12 -> 427 | M24: =I24/42 -> 366 | P24: =M24*12 -> 4392
A25: 20 | B25: =IF(C25<1," ",VLOOKUP(C25,MainAccountNO:MainAccounts,2,FALSE)) ->  | H25: =IF(G25<='S18'!$G$1,"","OUT") ->  | L25: US if 60% | M25: =M24*0.6*12 -> 2635.2
A26: 21 | B26: =IF(C26<1," ",VLOOKUP(C26,MainAccountNO:MainAccounts,2,FALSE)) ->  | H26: =IF(G26<='S18'!$G$1,"","OUT") ->  | L26: Can 40% | M26: =M24*12*0.4 -> 1756.8
A27: =A26+1 -> 22 | B27: =IF(C27<1," ",VLOOKUP(C27,MainAccountNO:MainAccounts,2,FALSE)) ->  | H27: =IF(G27<='S18'!$G$1,"","OUT") -> 
A28: 23 | B28: =IF(C28<1," ",VLOOKUP(C28,MainAccountNO:MainAccounts,2,FALSE)) ->  | H28: =IF(G28<='S18'!$G$1,"","OUT") -> 
A29: 24 | B29: =IF(C29<1," ",VLOOKUP(C29,MainAccountNO:MainAccounts,2,FALSE)) ->  | H29: =IF(G29<='S18'!$G$1,"","OUT") -> 
A30: 25 | B30: =IF(C30<1," ",VLOOKUP(C30,MainAccountNO:MainAccounts,2,FALSE)) ->  | H30: =IF(G30<='S18'!$G$1,"","OUT") -> 
A31: 26 | B31: =IF(C31<1," ",VLOOKUP(C31,MainAccountNO:MainAccounts,2,FALSE)) ->  | H31: =IF(G31<='S18'!$G$1,"","OUT") -> 
A32: 27 | B32: =IF(C32<1," ",VLOOKUP(C32,MainAccountNO:MainAccounts,2,FALSE)) ->  | H32: =IF(G32<='S18'!$G$1,"","OUT") -> 
A33: 28 | B33: =IF(C33<1," ",VLOOKUP(C33,MainAccountNO:MainAccounts,2,FALSE)) ->  | H33: =IF(G33<='S18'!$G$1,"","OUT") -> 
A34: 29 | B34: =IF(C34<1," ",VLOOKUP(C34,MainAccountNO:MainAccounts,2,FALSE)) ->  | H34: =IF(G34<='S18'!$G$1,"","OUT") -> 
A35: 30 | B35: =IF(C35<1," ",VLOOKUP(C35,MainAccountNO:MainAccounts,2,FALSE)) ->  | H35: =IF(G35<='S18'!$G$1,"","OUT") -> 
D37: Pink fields will be completed by Mike

Sheet S22
B1: HR | C1: 41758 | D1: =Main_BGT!F5 -> 2022-2023 | G1: 10
D2: Total Income | E2: =SUM(IF(S_22FieldRank<=S_22Choice,IF(S_22AccNo<=LastIncome,S_22Amount,0),0)) -> 32000
D3: Total Expense | E3: =SUM(IF(S_22FieldRank<=S_22Choice,IF(S_22AccNo>LastIncome,S_22Amount,0),0)) -> 99610
D4: Difference | E4: =E2-E3 -> -67610
B5: Account Description | C5: Acc_NO | D5: Field Detail | E5: Amount | F5: Month | G5: Rank | H5: Out
A6: 1 | B6: =IF(C6<1," ",VLOOKUP(C6,MainAccountNO:MainAccounts,2,FALSE)) ->  | H6: =IF(G6<=$G$1,"","OUT") -> 
A7: =A6+1 -> 2 | B7: =IF(C7<1," ",VLOOKUP(C7,MainAccountNO:MainAccounts,2,FALSE)) -> Cash Gifts - Programs | C7: 5004 | D7: Appeal: Covenant Eyes for staff
A8: 3 | B8: =IF(C8<1," ",VLOOKUP(C8,MainAccountNO:MainAccounts,2,FALSE)) ->  | D8: CONFERENCES / FIELD VISITS
A9: =A8+1 -> 4 | B9: =IF(C9<1," ",VLOOKUP(C9,MainAccountNO:MainAccounts,2,FALSE)) -> Missionary Conference | C9: 8805 | D9: Canada Field Conference fee (2@ $250) | E9: 500
A10: 5 | B10: =IF(C10<1," ",VLOOKUP(C10,MainAccountNO:MainAccounts,2,FALSE)) ->  | D10: MISCELLANEOUS
A11: 6 | B11: =IF(C11<1," ",VLOOKUP(C11,MainAccountNO:MainAccounts,2,FALSE)) -> Member Care | C11: 8004 | D11: Covenant Eyes for staff | E11: 1450
A12: 7 | B12: =IF(C12<1," ",VLOOKUP(C12,MainAccountNO:MainAccounts,2,FALSE)) -> Advertising | C12: 8608 | D12: ShortTermMissions.com
A13: 8 | B13: =IF(C13<1," ",VLOOKUP(C13,MainAccountNO:MainAccounts,2,FALSE)) -> Organization Dues & Fees | C13: 8902 | D13: SHRM membership
A14: 9 | B14: =IF(C14<1," ",VLOOKUP(C14,MainAccountNO:MainAccounts,2,FALSE)) -> Organization Dues & Fees | C14: 8902 | D14: CIT membership (other half pd by CAN) | E14: 375
A15: 10 | B15: =IF(C15<1," ",VLOOKUP(C15,MainAccountNO:MainAccounts,2,FALSE)) -> Subscriptions & Periodicals | C15: 8606 | D15: Church Law & Tax Newsletter | E15: 200
A16: 11 | B16: =IF(C16<1," ",VLOOKUP(C16,MainAccountNO:MainAccounts,2,FALSE)) -> Food for Meetings | C16: 8803 | D16: VIEW foood/ snacks. Activitiees. Childcare | E16: 200
A17: 12 | B17: =IF(C17<1," ",VLOOKUP(C17,MainAccountNO:MainAccounts,2,FALSE)) -> Public Relations | C17: 8005 | D17: Entertaining prospective applicants, etc.
A18: 13 | B18: =IF(C18<1," ",VLOOKUP(C18,MainAccountNO:MainAccounts,2,FALSE)) ->  | D18: STAFFING
A19: 14 | B19: =IF(C19<1," ",VLOOKUP(C19,MainAccountNO:MainAccounts,2,FALSE)) -> Cash Gifts - Staff Support | C19: 5001 | D19: Crosby Support | E19: 32000
A20: 15 | B20: =IF(C20<1," ",VLOOKUP(C20,MainAccountNO:MainAccounts,2,FALSE)) -> Executive Salaries | C20: 7001
A21: 16 | B21: =IF(C21<1," ",VLOOKUP(C21,MainAccountNO:MainAccounts,2,FALSE)) -> Executive Salaries | C21: 7001 | D21: HR/Adminstration | E21: 90000
A22: 17 | B22: =IF(C22<1," ",VLOOKUP(C22,MainAccountNO:MainAccounts,2,FALSE)) -> Payroll Tax | C22: 7201 | D22: HR/Adminstration | E22: =E21*0.0765 -> 6885
A23: 18 | B23: =IF(C23<1," ",VLOOKUP(C23,MainAccountNO:MainAccounts,2,FALSE)) -> Payroll Tax | C23: 7201 | E23: =E20*0.0765 -> 0
D25: Pink fields will be completed by Mike

Sheet S25
B1: Mobilization | C1: 41760 | D1: =[3]Main_BGT!F5 -> 2021-2022 | G1: 10
D2: Total Income | E2: =SUM(IF(S_22FieldRank<=S_22Choice,IF(S_22AccNo<=LastIncome,S_22Amount,0),0)) -> 5378
D3: Total Expense | E3: =SUM(E12:E56) -> 17135
D4: Difference | E4: =E2-E3 -> -11757 | L4: Row Labels | M4: Sum of Amount
A5: Line | B5: Account Description | C5: Acc_NO | D5: Field Detail | E5: Amount | F5: Month | G5: Rank | H5: Out | J5: Row Labels | K5: Sum of Amount | L5: 8005 | M5: 500
A6: 1 | B6: =IF(C6<1," ",VLOOKUP(C6,MainAccountNO:MainAccounts,2,FALSE)) ->  | H6: =IF(G6<=$G$1,"","OUT") ->  | J6: 5001 | L6: Public Relations | M6: 500
A7: =A6+1 -> 2 | B7: Cash Gifts - Programs | C7: 5004 | D7: From Canada | E7: 5378 | J7: 5004 | K7: 5378 | L7: 8606 | M7: 1700
A8: 3 | B8: =IF(C8<1," ",VLOOKUP(C8,MainAccountNO:MainAccounts,2,FALSE)) ->  | D8: CAMPUS RECRUITMENT - | J8: 7001 | L8: Subsciptions & Periodicals | M8: 1700
A9: 4 | B9: Vehicle Fuel & Oil | C9: 8702 | D9: Shasta/Simpson U (George, 2x) | J9: 7005 | K9: 0 | L9: 8608 | M9: 1450
A10: 5 | B10: Motel/Hotel & Room Rent | C10: 8711 | D10: Shasta/Simpson U (4 nights fall, 3 nights spring) | J10: 8005 | K10: 500 | L10: Advertising | M10: 1450
A11: 6 | B11: =IF(C11<1," ",VLOOKUP(C11,MainAccountNO:MainAccounts,2,FALSE)) ->  | J11: 8608 | K11: 1450 | L11: 8702 | M11: 1440
A12: 7 | B12: Vehicle Fuel & Oil | C12: 8702 | D12: GNU (Andy & Josh x2) | E12: 320 | J12: 8702 | K12: 1440 | L12: Vehicle Fuel & Oil | M12: 1440
A13: 8 | B13: Motel/Hotel & Room Rent | C13: 8711 | D13: GNU (Fall, Spring) 6 nights total | E13: 660 | J13: 8706 | K13: 2250 | L13: 8706 | M13: 2250
A14: 9 | B14: Vehicle Rental | C14: 8706 | D14: GNU (Andy & Josh: fall, spring) | E14: 500 | J14: 8710 | K14: 6550 | L14: Vehicle Rental | M14: 2250
A15: 10 | B15: =IF(C15<1," ",VLOOKUP(C15,MainAccountNO:MainAccounts,2,FALSE)) ->  | J15: 8711 | K15: 2720 | L15: 8710 | M15: 6550
A16: 11 | B16: Commercial Travel | C16: 8710 | D16: Montana Bible College (2x) George W or Carrie Curtis | E16: 700 | J16: 8806 | K16: 525 | L16: Commercial Travel | M16: 6550
A17: 12 | B17: Vehicle Fuel & Oil | C17: 8702 | D17: Montana Bible College Wilderness (2x) Greg | E17: 350 | J17: 8990 | K17: 0 | L17: 8711 | M17: 2720
A18: 13 | B18: Motel/Hotel & Room Rent | C18: 8711 | D18: Montana Bible College Wilderness (2x) Greg 6 hotel nights | E18: 600 | J18: Grand Total | K18: 20813 | L18: Motel/Hotel & Room Rent | M18: 2720
A19: 14 | B19: =IF(C19<1," ",VLOOKUP(C19,MainAccountNO:MainAccounts,2,FALSE)) ->  | L19: 8806 | M19: 525
A20: 15 | B20: Motel/Hotel & Room Rent | C20: 8711 | D20: Moody (2xFall and Spring) | E20: 700 | L20: Advertising | M20: 525
A21: 16 | B21: Commercial Travel | C21: 8710 | D21: Moody (2xFall and Spring) Andy & Carrie | E21: 1000 | L21: Grand Total | M21: 17135
A22: 17 | B22: =IF(C22<1," ",VLOOKUP(C22,MainAccountNO:MainAccounts,2,FALSE)) -> 
A23: 18 | B23: Motel/Hotel & Room Rent | C23: 8711 | D23: Emmaus 2x Fall, Spring | E23: 440
A24: 19 | B24: Vehicle Fuel & Oil | C24: 8702 | D24: Emmaus (spring) | E24: 100
A25: 20 | B25: Vehicle Rental | C25: 8706 | D25: Emmaus (spring 4 nights) | E25: 400
A26: 21
A27: 22 | B27: Commercial Travel | C27: 8710 | D27: Emmaus (Andy, Jim, George) | E27: 1400
A28: 23 | B28: =IF(C28<1," ",VLOOKUP(C28,MainAccountNO:MainAccounts,2,FALSE)) -> 
A29: 24 | B29: Commercial Travel | C29: 8710 | D29: Frontier/Denver schools (Fall & Spring) | E29: 1300
A30: 25 | B30: Vehicle Rental | C30: 8706 | D30: Frontier Denver LaGrange Return | E30: 300
A31: 26 | B31: Vehicle Fuel & Oil | C31: 8702 | D31: Frontier Denver LaGrange Return | E31: 120
A32: 27 | B32: Public Relations | C32: 8005 | D32: Frontier (3xBill & Lois-Food for student gatherings | E32: 300
A33: 28 | B33: =IF(C33<1," ",VLOOKUP(C33,MainAccountNO:MainAccounts,2,FALSE)) -> 
A34: 29 | B34: Commercial Travel | C34: 8710 | D34: Toccoa/CIU (fall) (2x Alanta) | E34: 750
A35: 30 | B35: Vehicle Rental | C35: 8706 | D35: Toccoa/CIU (2x) | E35: 550
A36: 31 | B36: Commercial Travel | C36: 8710 | D36: Toccoa/CIU (spring) | E36: 600
A37: 32 | B37: Vehicle Fuel & Oil | C37: 8702 | D37: Toccoa/CIU (spring) | E37: 225
A38: 33 | B38: Vehicle Fuel & Oil | C38: 8702 | D38: Ecola (Jerry or Dale 2x) | E38: 125
A39: 34 | B39: Vehicle Fuel & Oil | C39: 8702 | D39: travel to field
A40: 35 | B40: Commercial Travel | C40: 8710 | D40: Gate keeper to field
A41: 36 | B41: Public Relations | C41: 8005 | D41: Meals While Traveling
A42: 37
A43: 38 | B43: Commercial Travel | C43: 8710 | D43: Recruitment Contingency | E43: 800
A44: 39 | B44: Motel/Hotel & Room Rent | C44: 8711 | D44: Recruitment Contingency | E44: 320
A45: 40 | B45: Vehicle Fuel & Oil | C45: 8702 | D45: Recruitment Contingency | E45: 200
A46: 41 | B46: Vehicle Rental | C46: 8706 | D46: Recruitment Contingency | E46: 500
A47: 42 | B47: =IF(C47<1," ",VLOOKUP(C47,MainAccountNO:MainAccounts,2,FALSE)) -> 
A48: 43 | D48: Mobilization Director Trip To Alaska
A49: 44 | B49: Commercial Travel | C49: 8710 | D49: Andy's Trip To Alaska
A50: 45 | B50: =IF(C50<1," ",VLOOKUP(C50,MainAccountNO:MainAccounts,2,FALSE)) -> 
A51: 46 | B51: =IF(C51<1," ",VLOOKUP(C51,MainAccountNO:MainAccounts,2,FALSE)) ->  | D51: MISCELLANEOUS
A52: 47 | B52: Advertising | C52: 8608 | D52: Electronic Promotion | E52: 800
A53: 48 | B53: Advertising | C53: 8608 | D53: ShortTermMissions.com | E53: 650
A54: 49 | B54: Advertising | C54: 8806 | D54: Campus Conference Reistraion Fees (Moody, Simpson) | E54: 525
A55: 50 | B55: Public Relations | C55: 8005 | D55: Entertaining prospective applicants, etc. | E55: 200
A56: 51 | B56: Subsciptions & Periodicals | C56: 8606 | D56: Pipefy - 8 users | E56: 1700
A57: 52 | B57: =IF(C57<1," ",VLOOKUP(C57,MainAccountNO:MainAccounts,2,FALSE)) -> 
A58: 53 | B58: =IF(C58<1," ",VLOOKUP(C58,MainAccountNO:MainAccounts,2,FALSE)) -> 
A59: 54 | B59: =IF(C59<1," ",VLOOKUP(C59,MainAccountNO:MainAccounts,2,FALSE)) ->  | D59: STAFFING
A60: 55 | B60: Cash Gifts - Staff Support | C60: 5001
A61: 56 | B61: Missionary Salaries | C61: 7005 | E61: =+E60-E62 -> 0
A62: 57 | B62: Ministry Expense | C62: 8990 | E62: 0
A63: 58 | B63: Executive Salaries | C63: 7001
D65: Pink fields will be completed by Mike
C71: `

Sheet S23
B1: Development | C1: 41730 | D1: =Main_BGT!F5 -> 2022-2023 | G1: 10
D2: Total Income | E2: =SUM(IF(S_23FieldRank<=S_23Choice,IF(S_23AccNo<=LastIncome,S_23Amount,0),0))+I13 -> 106000
D3: Total Expense | E3: =SUM(IF(S_23FieldRank<=S_23Choice,IF(S_23AccNo>LastIncome,S_23Amount,0),0))+E48 -> 103590
D4: Difference | E4: =E2-E3 -> 2410
A5: Line | B5: Account Description | C5: Acc_NO | D5: Field Detail | E5: Amount | F5: Month | G5: Rank | H5: Out
A6: 1 | B6: =IF(C6<1," ",VLOOKUP(C6,MainAccountNO:MainAccounts,2,FALSE)) ->  | H6: =IF(G6<=$G$1,"","OUT") -> 
A7: =A6+1 -> 2 | B7: =IF(C7<1," ",VLOOKUP(C7,MainAccountNO:MainAccounts,2,FALSE)) -> Cash Gifts - Programs | C7: 5004 | D7: Appeal 1 - | E7: 3000 | H7: =IF(G7<=$G$1,"","OUT") ->  | J7: Row Labels | K7: Sum of Amount
A8: =A7+1 -> 3 | B8: =IF(C8<1," ",VLOOKUP(C8,MainAccountNO:MainAccounts,2,FALSE)) -> Cash Gifts - Programs | C8: 5004 | D8: Appeal 2 - operations | E8: 3000 | J8: 4100
A9: 4 | B9: =IF(C9<1," ",VLOOKUP(C9,MainAccountNO:MainAccounts,2,FALSE)) -> Cash Gifts - Programs | C9: 5004 | D9: Appeal 3 - Year-end Letter - operations | J9: 4400
A10: 5 | B10: =IF(C10<1," ",VLOOKUP(C10,MainAccountNO:MainAccounts,2,FALSE)) -> Cash Gifts - Programs | C10: 5004 | D10: Misc funds raised | E10: 50000 | J10: 5004 | K10: 106000
A11: 6 | B11: =IF(C11<1," ",VLOOKUP(C11,MainAccountNO:MainAccounts,2,FALSE)) -> Cash Gifts - Programs | C11: 5004 | D11: Grant Revenue net | E11: 50000 | J11: 7001 | K11: 60000
A12: 7 | B12: =IF(C12<1," ",VLOOKUP(C12,MainAccountNO:MainAccounts,2,FALSE)) ->  | J12: 7201 | K12: 4590
A13: 8 | B13: =IF(C13<1," ",VLOOKUP(C13,MainAccountNO:MainAccounts,2,FALSE)) -> Printing and Supplies | C13: 8107 | D13: Cost of Appeal 1 (Printing & Postage) | J13: 8106 | K13: 600 | M13: Row Labels | N13: Sum of Amount
A14: 9 | B14: =IF(C14<1," ",VLOOKUP(C14,MainAccountNO:MainAccounts,2,FALSE)) -> Printing and Supplies | C14: 8107 | D14: Cost of Appeal 2 (Printing & Postage) | J14: 8107 | M14: 7001 | N14: 60000
A15: 10 | B15: =IF(C15<1," ",VLOOKUP(C15,MainAccountNO:MainAccounts,2,FALSE)) -> Printing and Supplies | C15: 8107 | D15: Cost of Appeal 3 - Year-end letter (Printing & Postage) | J15: 8108 | K15: 500 | M15: 7201 | N15: 4590
A16: 11 | B16: =IF(C16<1," ",VLOOKUP(C16,MainAccountNO:MainAccounts,2,FALSE)) -> Printing and Supplies | C16: 8107 | D16: Cost of Appeal 4 (Printing & Postage) | J16: 8408 | K16: 17000 | M16: 8106 | N16: 600
A17: 12 | B17: =IF(C17<1," ",VLOOKUP(C17,MainAccountNO:MainAccounts,2,FALSE)) -> Printing and Supplies | C17: 8107 | D17: Cost of Appeal 5 (Printing & Postage) | J17: 8606 | K17: 1000 | M17: 8107
A18: 13 | B18: =IF(C18<1," ",VLOOKUP(C18,MainAccountNO:MainAccounts,2,FALSE)) ->  | J18: 8609 | M18: 8108 | N18: 500
A19: 14 | B19: =IF(C19<1," ",VLOOKUP(C19,MainAccountNO:MainAccounts,2,FALSE)) -> Operations Assessment | C19: 4100 | D19: Assessment on Appeal 1 | J19: 8702 | K19: 2000 | M19: 8408 | N19: 17000
A20: 15 | B20: =IF(C20<1," ",VLOOKUP(C20,MainAccountNO:MainAccounts,2,FALSE)) -> Operations Assessment | C20: 4100 | D20: Assessment on Appeal 2 - Operations | J20: 8706 | K20: 1000 | M20: 8606 | N20: 1000
A21: 16 | B21: =IF(C21<1," ",VLOOKUP(C21,MainAccountNO:MainAccounts,2,FALSE)) -> Operations Assessment | C21: 4100 | D21: Assessment on Appeal 3 - Year-end letter - operations | J21: 8709 | K21: 400 | M21: 8609
A22: 17 | B22: =IF(C22<1," ",VLOOKUP(C22,MainAccountNO:MainAccounts,2,FALSE)) -> Operations Assessment | C22: 4100 | D22: Assessment on Appeal 4 | J22: 8710 | K22: 600 | M22: 8702 | N22: 2000
A23: 18 | B23: =IF(C23<1," ",VLOOKUP(C23,MainAccountNO:MainAccounts,2,FALSE)) -> Operations Assessment | C23: 4100 | D23: Assessment on Appeal 5 | J23: 8711 | K23: 10000 | M23: 8706 | N23: 1000
A24: 19 | B24: =IF(C24<1," ",VLOOKUP(C24,MainAccountNO:MainAccounts,2,FALSE)) -> Inter-fund Transfers | C24: 4400 | D24: Transfers to Operations for letters 2 & 3 | J24: 8805 | K24: 900 | M24: 8709 | N24: 400
A25: 20 | B25: =IF(C25<1," ",VLOOKUP(C25,MainAccountNO:MainAccounts,2,FALSE)) ->  | J25: 8806 | K25: 1200 | M25: 8710 | N25: 600
A26: 21 | B26: =IF(C26<1," ",VLOOKUP(C26,MainAccountNO:MainAccounts,2,FALSE)) -> Cash Gifts - Programs | C26: 5004 | D26: Crowell Grant (Undesignated) | E26: 0 | J26: 8902 | K26: 3800 | M26: 8711 | N26: 10000
A27: 22 | B27: =IF(C27<1," ",VLOOKUP(C27,MainAccountNO:MainAccounts,2,FALSE)) -> Cash Gifts - Programs | C27: 5004 | D27: Trijicon (Operations & field projects) | J27: Grand Total | K27: 209590 | M27: 8805 | N27: 900
A28: 23 | B28: =IF(C28<1," ",VLOOKUP(C28,MainAccountNO:MainAccounts,2,FALSE)) ->  | M28: 8806 | N28: 1200
A29: 24 | B29: =IF(C29<1," ",VLOOKUP(C29,MainAccountNO:MainAccounts,2,FALSE)) -> Organization Dues & Fees | C29: 8902 | D29: ECFA Dues | E29: 1350 | G29: 1 | M29: 8902 | N29: 3800
A30: 25 | B30: =IF(C30<1," ",VLOOKUP(C30,MainAccountNO:MainAccounts,2,FALSE)) -> Organization Dues & Fees | C30: 8902 | D30: STEER Dues | E30: 250 | G30: 1 | M30: Grand Total | N30: 103590
A31: 26 | B31: =IF(C31<1," ",VLOOKUP(C31,MainAccountNO:MainAccounts,2,FALSE)) -> Organization Dues & Fees | C31: 8902 | D31: State Charitable Registrations | E31: 2200 | G31: 1
A32: 27 | B32: =IF(C32<1," ",VLOOKUP(C32,MainAccountNO:MainAccounts,2,FALSE)) -> Annuitant Payments | C32: 8408 | D32: Annuitant Payments | E32: 17000 | G32: 1
A33: 28 | B33: =IF(C33<1," ",VLOOKUP(C33,MainAccountNO:MainAccounts,2,FALSE)) -> Executive Salaries | C33: 7001 | D33: Development Director Salary | E33: 60000 | G33: 1
A34: 29 | B34: =IF(C34<1," ",VLOOKUP(C34,MainAccountNO:MainAccounts,2,FALSE)) -> Payroll Tax | C34: 7201 | D34: Development Director payroll taxes | E34: =+E33*0.0765 -> 4590 | G34: 1
A35: =A33+1 -> 29 | B35: =IF(C35<1," ",VLOOKUP(C35,MainAccountNO:MainAccounts,2,FALSE)) ->  | G35: 1
A36: =A34+1 -> 30 | B36: =IF(C36<1," ",VLOOKUP(C36,MainAccountNO:MainAccounts,2,FALSE)) -> Office Supply | C36: 8106 | D36: Development office supplies | E36: 600 | G36: 1
A37: 31 | B37: =IF(C37<1," ",VLOOKUP(C37,MainAccountNO:MainAccounts,2,FALSE)) -> Vehicle Fuel & Oil | C37: 8702 | D37: Vehicle fuel and oil | E37: 2000 | G37: 1
A38: 32 | B38: =IF(C38<1," ",VLOOKUP(C38,MainAccountNO:MainAccounts,2,FALSE)) -> Vehicle Rental | C38: 8706 | D38: Rental Car reimbursement | E38: 1000 | G38: 1
A39: 33 | B39: =IF(C39<1," ",VLOOKUP(C39,MainAccountNO:MainAccounts,2,FALSE)) -> Meals & Entertainment | C39: 8709 | D39: Meals & Entertainment | E39: 400 | G39: 1 | I39: With donors
A40: 34 | B40: =IF(C40<1," ",VLOOKUP(C40,MainAccountNO:MainAccounts,2,FALSE)) -> Commercial Travel | C40: 8710 | D40: Development Travel | E40: 600 | G40: 1
A41: 35 | B41: =IF(C41<1," ",VLOOKUP(C41,MainAccountNO:MainAccounts,2,FALSE)) -> Subscriptions & Periodicals | C41: 8606 | D41: Development grant-writing software | E41: 1000 | G41: 1
A42: 36 | B42: =IF(C42<1," ",VLOOKUP(C42,MainAccountNO:MainAccounts,2,FALSE)) -> Missionary Conference | C42: 8805 | D42: Canada Conference fees | E42: 300 | G42: 1
A43: 37 | B43: =IF(C43<1," ",VLOOKUP(C43,MainAccountNO:MainAccounts,2,FALSE)) -> Missionary Conference | C43: 8805 | D43: Canada Conference Travel | E43: 600 | G43: 1
A44: 38 | B44: =IF(C44<1," ",VLOOKUP(C44,MainAccountNO:MainAccounts,2,FALSE)) -> Seminars & Registrations | C44: 8806 | D44: Seminars & Training | E44: 1200 | G44: 1
A45: 39 | B45: =IF(C45<1," ",VLOOKUP(C45,MainAccountNO:MainAccounts,2,FALSE)) -> Motel/Hotel & Room Rent | C45: 8711 | D45: Hotels during travel | E45: 10000 | G45: 1
A46: 40 | B46: =IF(C46<1," ",VLOOKUP(C46,MainAccountNO:MainAccounts,2,FALSE)) -> Mailing Service | C46: 8609 | D46: Mailing service (appeals) | G46: 1
A47: 41 | B47: =IF(C47<1," ",VLOOKUP(C47,MainAccountNO:MainAccounts,2,FALSE)) -> General Ministry Supply | C47: 8108 | D47: General Ministry supply | E47: 500 | G47: 1
E48: =SUM(E29:E47) -> 103590

Sheet Sheet1
A1: Row Labels | B1: Sum of Amount
A2: 7001 | B2: 60000
A3: 7201 | B3: 4590
A4: 8106 | B4: 600
A5: 8107
A6: 8108 | B6: 500
A7: 8408 | B7: 17000
A8: 8606 | B8: 1000
A9: 8609
A10: 8702 | B10: 2000
A11: 8706 | B11: 1000
A12: 8709 | B12: 400
A13: 8710 | B13: 600
A14: 8711 | B14: 10000
A15: 8805 | B15: 900
A16: 8806 | B16: 1200
A17: 8902 | B17: 3800
A18: Grand Total | B18: 103590

Sheet S5
C1: 5 | D1: Choose Rank Number ------------> | G1: 10
D2: Total Income | E2: =SUM(IF(S_5FieldRank<=S_5Choice,IF(S_5AccNO<=LastIncome,S_5Amount,0),0)) -> 0
D3: Total Expense | E3: =SUM(IF(S_5FieldRank<=S_5Choice,IF(S_5AccNO>LastIncome,S_5Amount,0),0)) -> 0
D4: Difference | E4: =E2-E3 -> 0
B5: Account Description | C5: Acc_NO | D5: Field Detail | E5: Amount | F5: Month | G5: Rank | H5: Out
A6: 1 | B6: =IF(C6<1," ",VLOOKUP(C6,MainAccountNO:MainAccounts,2,FALSE)) ->  | H6: =IF(G6<=$G$1,"","OUT") -> 
A7: 2 | B7: =IF(C7<1," ",VLOOKUP(C7,MainAccountNO:MainAccounts,2,FALSE)) -> 
A8: 3 | B8: =IF(C8<1," ",VLOOKUP(C8,MainAccountNO:MainAccounts,2,FALSE)) ->  | H8: =IF(G8<=$G$1,"","OUT") -> 
A9: 4 | B9: =IF(C9<1," ",VLOOKUP(C9,MainAccountNO:MainAccounts,2,FALSE)) ->  | D9: This Page Blank
A10: =A9+1 -> 5 | B10: =IF(C10<1," ",VLOOKUP(C10,MainAccountNO:MainAccounts,2,FALSE)) -> 
A11: 6 | B11: =IF(C11<1," ",VLOOKUP(C11,MainAccountNO:MainAccounts,2,FALSE)) -> 
A12: 7 | B12: =IF(C12<1," ",VLOOKUP(C12,MainAccountNO:MainAccounts,2,FALSE)) -> 
A13: 8 | B13: =IF(C13<1," ",VLOOKUP(C13,MainAccountNO:MainAccounts,2,FALSE)) -> 
A14: 9 | B14: =IF(C14<1," ",VLOOKUP(C14,MainAccountNO:MainAccounts,2,FALSE)) -> 
A15: 10 | B15: =IF(C15<1," ",VLOOKUP(C15,MainAccountNO:MainAccounts,2,FALSE)) -> 
A16: 11 | B16: =IF(C16<1," ",VLOOKUP(C16,MainAccountNO:MainAccounts,2,FALSE)) -> 
A17: 12 | B17: =IF(C17<1," ",VLOOKUP(C17,MainAccountNO:MainAccounts,2,FALSE)) -> 
A18: 13 | B18: =IF(C18<1," ",VLOOKUP(C18,MainAccountNO:MainAccounts,2,FALSE)) -> 
A19: 14 | B19: =IF(C19<1," ",VLOOKUP(C19,MainAccountNO:MainAccounts,2,FALSE)) -> 
A20: 15 | B20: =IF(C20<1," ",VLOOKUP(C20,MainAccountNO:MainAccounts,2,FALSE)) -> 
A21: 16 | B21: =IF(C21<1," ",VLOOKUP(C21,MainAccountNO:MainAccounts,2,FALSE)) -> 
A22: 17 | B22: =IF(C22<1," ",VLOOKUP(C22,MainAccountNO:MainAccounts,2,FALSE)) -> 
A23: 18 | B23: =IF(C23<1," ",VLOOKUP(C23,MainAccountNO:MainAccounts,2,FALSE)) -> 
A24: 19 | B24: =IF(C24<1," ",VLOOKUP(C24,MainAccountNO:MainAccounts,2,FALSE)) -> 
A25: 20 | B25: =IF(C25<1," ",VLOOKUP(C25,MainAccountNO:MainAccounts,2,FALSE)) -> 
A26: 21 | B26: =IF(C26<1," ",VLOOKUP(C26,MainAccountNO:MainAccounts,2,FALSE)) -> 
A27: 22 | B27: =IF(C27<1," ",VLOOKUP(C27,MainAccountNO:MainAccounts,2,FALSE)) -> 
A28: 23 | B28: =IF(C28<1," ",VLOOKUP(C28,MainAccountNO:MainAccounts,2,FALSE)) -> 
A29: 24 | B29: =IF(C29<1," ",VLOOKUP(C29,MainAccountNO:MainAccounts,2,FALSE)) -> 
A30: 25 | B30: =IF(C30<1," ",VLOOKUP(C30,MainAccountNO:MainAccounts,2,FALSE)) -> 
A31: 26 | B31: =IF(C31<1," ",VLOOKUP(C31,MainAccountNO:MainAccounts,2,FALSE)) -> 
A32: 27 | B32: =IF(C32<1," ",VLOOKUP(C32,MainAccountNO:MainAccounts,2,FALSE)) -> 
A33: 28 | B33: =IF(C33<1," ",VLOOKUP(C33,MainAccountNO:MainAccounts,2,FALSE)) -> 
A34: 29 | B34: =IF(C34<1," ",VLOOKUP(C34,MainAccountNO:MainAccounts,2,FALSE)) -> 
A35: 30 | B35: =IF(C35<1," ",VLOOKUP(C35,MainAccountNO:MainAccounts,2,FALSE)) -> 
A36: 31 | B36: =IF(C36<1," ",VLOOKUP(C36,MainAccountNO:MainAccounts,2,FALSE)) -> 
A37: 32 | B37: =IF(C37<1," ",VLOOKUP(C37,MainAccountNO:MainAccounts,2,FALSE)) -> 
A38: 33 | B38: =IF(C38<1," ",VLOOKUP(C38,MainAccountNO:MainAccounts,2,FALSE)) -> 
A39: 34 | B39: =IF(C39<1," ",VLOOKUP(C39,MainAccountNO:MainAccounts,2,FALSE)) -> 
A40: 35 | B40: =IF(C40<1," ",VLOOKUP(C40,MainAccountNO:MainAccounts,2,FALSE)) -> 
A41: 36 | B41: =IF(C41<1," ",VLOOKUP(C41,MainAccountNO:MainAccounts,2,FALSE)) -> 

Sheet S12
B1: Lazy Mtn. Events 040943 | C1: 12 | D1: 2022-2023 | G1: 10
D2: Total Income | E2: =SUM(IF(S_12FieldRank<=S_12Choice,IF(S_12AccNO<=LastIncome,S_12Amount,0),0)) -> 58500
D3: Total Expense | E3: =SUM(IF(S_12FieldRank<=S_12Choice,IF(S_12AccNO>LastIncome,S_12Amount,0),0)) -> 52500
D4: Difference | E4: =E2-E3 -> 6000
B5: Account Description | C5: Acc_NO | D5: Field Detail | E5: Amount | F5: Month | G5: Rank | H5: Out
A6: 1 | B6: =IF(C6<1," ",VLOOKUP(C6,MainAccountNO:MainAccounts,2,FALSE)) -> Program Fees | C6: 6200 | D6: Registration fees (pilot project Pre-Field, 2 womens's retreats, 2 men's retreats, counseling retreat,/conference /training, Educator's training, family retreat | E6: 55500 | G6: 2 | H6: =IF(G6<=$G$1,"","OUT") -> 
A7: =A6+1 -> 2 | B7: =IF(C7<1," ",VLOOKUP(C7,MainAccountNO:MainAccounts,2,FALSE)) -> Cash Gifts - Programs | C7: 5004 | D7: Donations AK Fundraisning day | E7: 2000 | F7: 6 | G7: 2 | H7: =IF(G7<=$G$1,"","OUT") -> 
A8: =A7+1 -> 3 | B8: =IF(C8<1," ",VLOOKUP(C8,MainAccountNO:MainAccounts,2,FALSE)) -> Cash Gifts - Programs | C8: 5004 | D8: Scholarships funding for retreats | E8: 1000
A9: 4 | B9: =IF(C9<1," ",VLOOKUP(C9,MainAccountNO:MainAccounts,2,FALSE)) ->  | D9: Ministry Expenditures
A10: 5 | B10: =IF(C10<1," ",VLOOKUP(C10,MainAccountNO:MainAccounts,2,FALSE)) -> General Ministry Supply | C10: 8108 | D10: Event marterials & resources, books | E10: 500 | G10: 2
A11: 6 | B11: =IF(C11<1," ",VLOOKUP(C11,MainAccountNO:MainAccounts,2,FALSE)) -> General Ministry Supply | C11: 8108 | D11: Event Office supplies | E11: 200 | G11: 2
A12: 7 | B12: =IF(C12<1," ",VLOOKUP(C12,MainAccountNO:MainAccounts,2,FALSE)) -> Professional Fees | C12: 8008 | D12: Facilitator. Speaker honoraria or fees | E12: 3500 | G12: 2
A13: 8 | B13: =IF(C13<1," ",VLOOKUP(C13,MainAccountNO:MainAccounts,2,FALSE)) -> Professional Fees | C13: 8008 | D13: Worship, tec other event ministry coordinator reimbursement | E13: 2000 | G13: 2
A14: 9 | B14: =IF(C14<1," ",VLOOKUP(C14,MainAccountNO:MainAccounts,2,FALSE)) -> 
A15: 10 | B15: =IF(C15<1," ",VLOOKUP(C15,MainAccountNO:MainAccounts,2,FALSE)) ->  | D15: Meal related
A16: 11 | B16: =IF(C16<1," ",VLOOKUP(C16,MainAccountNO:MainAccounts,2,FALSE)) -> Speaker Honorarium | C16: 8804 | D16: Meal program honoraria | E16: 4000 | G16: 2
A17: 12 | B17: =IF(C17<1," ",VLOOKUP(C17,MainAccountNO:MainAccounts,2,FALSE)) -> Food for Meetings | C17: 8803 | D17: Groceries for meals | E17: 5000 | G17: 2
A18: 13 | B18: =IF(C18<1," ",VLOOKUP(C18,MainAccountNO:MainAccounts,2,FALSE)) -> Food for Meetings | C18: 8803 | D18: Snacks | E18: 2000 | G18: 2
A19: 14 | B19: =IF(C19<1," ",VLOOKUP(C19,MainAccountNO:MainAccounts,2,FALSE)) -> 
A20: 15 | B20: =IF(C20<1," ",VLOOKUP(C20,MainAccountNO:MainAccounts,2,FALSE)) ->  | D20: Travel Related
A21: 16 | B21: =IF(C21<1," ",VLOOKUP(C21,MainAccountNO:MainAccounts,2,FALSE)) -> Commercial Travel | C21: 8710 | D21: Facilitator. Speaker Travel | E21: 6000 | G21: 2
A22: 17 | B22: =IF(C22<1," ",VLOOKUP(C22,MainAccountNO:MainAccounts,2,FALSE)) -> Meals & Entertainment | C22: 8709 | D22: Preparation travel (groceries, supply trips | E22: 1000 | G22: 2
A23: 18 | B23: =IF(C23<1," ",VLOOKUP(C23,MainAccountNO:MainAccounts,2,FALSE)) -> Commercial Travel | C23: 8710 | D23: Promotional Travel | E23: 1000 | G23: 2
A24: 19 | B24: =IF(C24<1," ",VLOOKUP(C24,MainAccountNO:MainAccounts,2,FALSE)) -> 
A25: 20 | B25: =IF(C25<1," ",VLOOKUP(C25,MainAccountNO:MainAccounts,2,FALSE)) ->  | D25: Promotional Expenditures
A26: 21 | B26: =IF(C26<1," ",VLOOKUP(C26,MainAccountNO:MainAccounts,2,FALSE)) -> Advertising | C26: 8608 | D26: Publications, advertising, distribution | E26: 500 | G26: 2
A27: 22 | B27: =IF(C27<1," ",VLOOKUP(C27,MainAccountNO:MainAccounts,2,FALSE)) -> Postage & Shipping | C27: 8301 | D27: Postage | E27: 300 | G27: 2
A28: 23 | B28: =IF(C28<1," ",VLOOKUP(C28,MainAccountNO:MainAccounts,2,FALSE)) -> 
A29: 24 | B29: =IF(C29<1," ",VLOOKUP(C29,MainAccountNO:MainAccounts,2,FALSE)) ->  | D29: Housing Internal Transfer to Hospitality
A30: 25 | B30: =IF(C30<1," ",VLOOKUP(C30,MainAccountNO:MainAccounts,2,FALSE)) -> Rent Expense | C30: 8402 | D30: Non-InterAct field Mininstry Events - $35 / night participant | E30: 21000 | G30: 2
A31: 26 | B31: =IF(C31<1," ",VLOOKUP(C31,MainAccountNO:MainAccounts,2,FALSE)) -> 
A32: 27 | B32: =IF(C32<1," ",VLOOKUP(C32,MainAccountNO:MainAccounts,2,FALSE)) ->  | D32: Misc. Expenditures
A33: 28 | B33: =IF(C33<1," ",VLOOKUP(C33,MainAccountNO:MainAccounts,2,FALSE)) -> Miscellaneous | C33: 8941 | D33: Childcare- related epenses | E33: 500 | G33: 2
A34: 29 | B34: =IF(C34<1," ",VLOOKUP(C34,MainAccountNO:MainAccounts,2,FALSE)) -> Miscellaneous | C34: 8941 | D34: Childcare- reimbursements for workers | E34: 5000 | G34: 2
A35: 30 | B35: =IF(C35<1," ",VLOOKUP(C35,MainAccountNO:MainAccounts,2,FALSE)) -> 
A36: 31 | B36: =IF(C36<1," ",VLOOKUP(C36,MainAccountNO:MainAccounts,2,FALSE)) -> 
A37: 32 | B37: =IF(C37<1," ",VLOOKUP(C37,MainAccountNO:MainAccounts,2,FALSE)) -> 
A38: 33 | B38: =IF(C38<1," ",VLOOKUP(C38,MainAccountNO:MainAccounts,2,FALSE)) -> 
A39: 34 | B39: =IF(C39<1," ",VLOOKUP(C39,MainAccountNO:MainAccounts,2,FALSE)) -> 
A40: 35 | B40: =IF(C40<1," ",VLOOKUP(C40,MainAccountNO:MainAccounts,2,FALSE)) -> 
A41: 36 | B41: =IF(C41<1," ",VLOOKUP(C41,MainAccountNO:MainAccounts,2,FALSE)) -> 
A42: 37 | B42: =IF(C42<1," ",VLOOKUP(C42,MainAccountNO:MainAccounts,2,FALSE)) -> 
A43: 38 | B43: =IF(C43<1," ",VLOOKUP(C43,MainAccountNO:MainAccounts,2,FALSE)) -> 
A44: 39 | B44: =IF(C44<1," ",VLOOKUP(C44,MainAccountNO:MainAccounts,2,FALSE)) -> 
A45: 40 | B45: =IF(C45<1," ",VLOOKUP(C45,MainAccountNO:MainAccounts,2,FALSE)) -> 
A46: 41 | B46: =IF(C46<1," ",VLOOKUP(C46,MainAccountNO:MainAccounts,2,FALSE)) -> 
A47: 42 | B47: =IF(C47<1," ",VLOOKUP(C47,MainAccountNO:MainAccounts,2,FALSE)) -> 
A48: 43 | B48: =IF(C48<1," ",VLOOKUP(C48,MainAccountNO:MainAccounts,2,FALSE)) -> 
